{"text_format":"2","workbook":"xlsx","n_sheets":11,"sheets":["Resumo do Orçamento","Orçamento Sintetico SD","Orçamento Sintético CD","Cronograma","Memória","DMTs","CPUs","ES ","COMPOSIÇÃO BDI","Curva ABC de Serviços","Curva ABC de Insumos"],"not_rendered":{"charts":0,"images":15,"macros":0,"external_links":38,"defined_names":733,"comments":1,"pivot_tables":0},"unopened":[],"bounds":{"document_bytes":16777216,"sheet_cells":100000,"run_cost":"one","rows_first":2000,"rows_last":500,"rows_between":2000,"halvings":0,"cell_chars":16384,"cell_head_chars":4096},"cells_cut":0,"cells_raw":0,"read":"whole","date_system":"1900"}

{"sheet":"Resumo do Orçamento","index":0,"n_rows":13,"n_cols":10,"rows_kept":13,"cut":false,"hidden":false,"merged":[[16,0,16,2],[16,5,16,6],[16,7,16,9],[7,0,7,2],[7,3,7,8],[8,0,8,2],[8,3,8,8],[9,0,9,2],[9,3,9,8],[12,0,12,2],[12,5,12,6],[12,7,12,9],[14,0,14,9],[11,0,11,2],[11,5,11,6],[11,7,11,9],[4,0,4,2],[4,3,4,8],[5,0,5,2],[5,3,5,8],[6,0,6,2],[6,3,6,8],[3,0,3,2],[3,3,3,8],[2,0,2,9],[0,4,0,5],[0,6,0,7],[1,4,1,5],[1,6,1,7]]}
[null,null,null,"Obra","Bancos",null,"B.D.I.",null,"Encargos Sociais"]
[null,null,null,"Execução de serviços de pavimentação em paralelepípedo em ruas no município de Penedo/AL","SINAPI - 04/2024 - Alagoas\nSICRO3 - 01/2024 - Alagoas\nORSE - 03/2024 - Sergipe\n",null,"27,46%",null,"Desonerado: \nHorista: 85,20%\nMensalista: 46,48%"]
["Planilha Orçamentária Resumida"]
["Item",null,null,"Descrição",{"$nulls":5},"Total"]
[" 1 ",null,null,"SERVIÇOS PRELIMINARES",{"$nulls":5},{"$f":"'Orçamento Sintetico SD'!I5","v":96848.430000000008}]
[" 2 ",null,null,"TERRAPLENAGEM",{"$nulls":5},{"$f":"'Orçamento Sintetico SD'!I11","v":27412.34}]
[" 3 ",null,null,"PAVIMENTAÇÃO",{"$nulls":5},{"$f":"'Orçamento Sintetico SD'!I16","v":583322.7300000001}]
[" 4 ",null,null,"DRENAGEM",{"$nulls":5},{"$f":"'Orçamento Sintetico SD'!I22","v":212139.2}]
[" 5 ",null,null,"SINALIZAÇÃO",{"$nulls":5},{"$f":"'Orçamento Sintetico SD'!I26","v":497.9}]
[" 6 ",null,null,"SERVIÇOS COMPLEMENTARES",{"$nulls":5},{"$f":"'Orçamento Sintetico SD'!I29","v":8229.0499999999993}]
[]
[]
[{"$nulls":5},"Total Geral",null,{"$f":"SUM(J5:J10)","v":928449.65000000026}]

{"sheet":"Orçamento Sintetico SD","index":1,"n_rows":38,"n_cols":15,"rows_kept":38,"cut":false,"hidden":false,"merged":[[37,0,37,8],[34,0,34,2],[34,4,34,5],[34,6,34,8],[35,0,35,2],[35,4,35,5],[35,6,35,8],[0,4,0,5],[0,6,0,7],[1,4,1,5],[1,6,1,7],[2,0,2,8],[33,0,33,2],[33,4,33,5],[33,6,33,8],[11,9,14,9],[16,9,20,9],[22,9,24,9]]}
[null,null,null,"Obra","Bancos",null,"B.D.I.",null,"Encargos Sociais"]
[null,null,null,"SEM DESONERAÇÃO -Execução de serviços de pavimentação em paralelepípedo em ruas do município de Penedo/AL ","SINAPI - 04/2024 - Alagoas\nSICRO3 - 01/2024 - Alagoas\nORSE - 03/2024 - Sergipe\n",null,"21,35%",null,"Não Desonerado: \nHorista: 115,22%\nMensalista: 70,31%"]
["Orçamento Sintético"]
["Item","Código","Banco","Descrição","Und","Quant.","Valor Unit","Valor Unit com BDI","Total"]
[" 1 ",null,null,"SERVIÇOS PRELIMINARES",{"$nulls":4},{"$f":"SUM(I6:I10)","v":96848.430000000008}]
[" 1.1 "," 103689 ","SINAPI","FORNECIMENTO E INSTALAÇÃO DE PLACA DE OBRA COM CHAPA GALVANIZADA E ESTRUTURA DE MADEIRA. AF_03/2022_PS","m²",{"$f":"Memória!G13","v":12.96},312.7,{"$f":"TRUNC(G6 * (1 + 21.35 / 100), 2)","v":379.46},{"$f":"TRUNC(F6 * H6, 2)","v":4917.8},"Obras complementares",null,"Terraplanagem",{"$f":"I11/I33","v":2.9524853609455282E-2},2.9520000000000001E-2,{"$f":"TRUNC(N6,5)","v":2.9520000000000001E-2}]
[" 1.2 "," 103689 ","SINAPI","FORNECIMENTO E INSTALAÇÃO DE PLACA DE OBRA COM CHAPA GALVANIZADA E ESTRUTURA DE MADEIRA. AF_03/2022_PS (PLACA IMA)","m²",{"$f":"Memória!G18","v":3},312.7,{"$f":"TRUNC(G7 * (1 + 21.35 / 100), 2)","v":379.46},{"$f":"TRUNC(F7 * H7, 2)","v":1138.3800000000001},"Obras complementares",null,"Pavimentação",{"$f":"I16/I33","v":0.62827610522552291},0.62827,{"$f":"TRUNC(N7,5)","v":0.62827}]
[" 1.3 "," GRD-2023-12-SP1 ","Próprio","ADMINISTRAÇÃO LOCAL","UND",{"$f":"Memória!J23","v":1},64096.800000000003,{"$f":"TRUNC(G8 * (1 + 21.35 / 100), 2)","v":77781.460000000006},{"$f":"TRUNC(F8 * H8, 2)","v":77781.460000000006},"Administração local",null,"Drenagem",{"$f":"I22/I33","v":0.22848756526538619},0.22847999999999999,0.22847999999999999]
[" 1.4 "," GRD-2023-12-SP2 ","Próprio","MOBILIZAÇÃO E DESMOBILIZAÇÃO -","UND",{"$f":"Memória!J33","v":2},2410.86,{"$f":"TRUNC(G9 * (1 + 21.35 / 100), 2)","v":2925.57},{"$f":"TRUNC(F9 * H9, 2)","v":5851.14},"Mobilização desmobilização",null,"Consultoria",{"$f":"I10/I33","v":7.7114036286189541E-3},7.7200000000000003E-3,7.7200000000000003E-3]
[" 1.5 "," GRD-2023-12-SP3 ","Próprio","PROJETO EXECUTIVO - ","UND",{"$f":"1","v":1},5900,{"$f":"TRUNC(G10 * (1 + 21.35 / 100), 2)","v":7159.65},{"$f":"TRUNC(F10 * H10, 2)","v":7159.65},"Consultoria",null,"Administração local",{"$f":"I8/I33","v":8.377563608322755E-2},8.3779999999999993E-2,8.3779999999999993E-2]
[" 2 ",null,null,"TERRAPLENAGEM",{"$nulls":4},{"$f":"SUM(I12:I15)","v":27412.34},null,null,"Obras complementares",{"$f":"(I29+I6+I7+I26)/I33","v":1.5922382005313908E-2},1.593E-2,1.593E-2]
[" 2.1 "," 78472 ","SINAPI","SERVICOS TOPOGRAFICOS PARA PAVIMENTACAO, INCLUSIVE NOTA DE SERVICOS, ACOMPANHAMENTO E GREIDE","m²",{"$f":"Memória!G48","v":4209.99},0.4,{"$f":"TRUNC(G12 * (1 + 21.35 / 100), 2)","v":0.48},{"$f":"TRUNC(F12 * H12, 2)","v":2020.79},"Terraplanagem",null,"Mobilização desmobilização",{"$f":"I9/I33","v":6.3020541824750529E-3},6.3E-3,6.3E-3]
[" 2.2 "," 100575 ","SINAPI","REGULARIZAÇÃO DE SUPERFÍCIES COM MOTONIVELADORA. AF_11/2019","m²",{"$f":"Memória!G61","v":4209.99},0.13,{"$f":"TRUNC(G13 * (1 + 21.35 / 100), 2)","v":0.15},{"$f":"TRUNC(F13 * H13, 2)","v":631.49},null,null,null,{"$f":"SUM(M6:M12)","v":1},{"$f":"SUM(N6:N12)","v":0.99999999999999989},{"$f":"SUM(O6:O12)","v":0.99999999999999989}]
[" 2.3 "," 100974 ","SINAPI","CARGA, MANOBRA E DESCARGA DE SOLOS E MATERIAIS GRANULARES EM CAMINHÃO BASCULANTE 10 M³ - CARGA COM PÁ CARREGADEIRA (CAÇAMBA DE 1,7 A 2,8 M³ / 128 HP) E DESCARGA LIVRE (UNIDADE: M3). AF_07/2020","m³",{"$f":"Memória!H76","v":1000.8125000000001},8.2799999999999994,{"$f":"TRUNC(G14 * (1 + 21.35 / 100), 2)","v":10.039999999999999},10048.129999999999]
[" 2.4 "," 95875 ","SINAPI","TRANSPORTE COM CAMINHÃO BASCULANTE DE 10 M³, EM VIA URBANA PAVIMENTADA, DMT ATÉ 30 KM (UNIDADE: M3XKM). AF_07/2020","M3XKM",{"$f":"Memória!H89","v":5004.0625000000009},2.4300000000000002,{"$f":"TRUNC(G15 * (1 + 21.35 / 100), 2)","v":2.94},14711.93]
[" 3 ",null,null,"PAVIMENTAÇÃO",{"$nulls":4},{"$f":"SUM(I17:I21)","v":583322.7300000001}]
[" 3.1 "," 101169 ","SINAPI","EXECUÇÃO DE PAVIMENTO EM PARALELEPÍPEDOS, REJUNTAMENTO COM ARGAMASSA TRAÇO 1:3 (CIMENTO E AREIA). AF_05/2020","m²",{"$f":"Memória!G98","v":4209.99},73.75,{"$f":"TRUNC(G17 * (1 + 21.35 / 100), 2)","v":89.49},{"$f":"TRUNC(F17 * H17, 2)","v":376752},"Pavimentação"]
[" 3.2 "," 95875 ","SINAPI","TRANSPORTE COM CAMINHÃO BASCULANTE DE 10 M³, EM VIA URBANA PAVIMENTADA, DMT ATÉ 30 KM (UNIDADE: M3XKM). AF_07/2020 (TRANSPORTE DE PEDRA)","M3XKM",{"$f":"Memória!H104","v":21218.35},2.4300000000000002,{"$f":"TRUNC(G18 * (1 + 21.35 / 100), 2)","v":2.94},{"$f":"TRUNC(F18 * H18, 2)","v":62381.94}]
[" 3.3 "," 93590 ","SINAPI","TRANSPORTE COM CAMINHÃO BASCULANTE DE 10 M³, EM VIA URBANA PAVIMENTADA, ADICIONAL PARA DMT EXCEDENTE A 30 KM (UNIDADE: M3XKM). AF_07/2020 (TRANSPORTE DE PEDRA)","M3XKM",{"$f":"Memória!H110","v":63655.05},0.96,{"$f":"TRUNC(G19 * (1 + 21.35 / 100), 2)","v":1.1599999999999999},{"$f":"TRUNC(F19 * H19, 2)","v":73839.850000000006}]
[" 3.4 "," 95875 ","SINAPI","TRANSPORTE COM CAMINHÃO BASCULANTE DE 10 M³, EM VIA URBANA PAVIMENTADA, DMT ATÉ 30 KM (UNIDADE: M3XKM). AF_07/2020 (TRANSPORTE DE AREIA)","M3XKM",{"$f":"Memória!H116","v":18944.96},2.4300000000000002,{"$f":"TRUNC(G20 * (1 + 21.35 / 100), 2)","v":2.94},{"$f":"TRUNC(F20 * H20, 2)","v":55698.18}]
[" 3.5 "," 93590 ","SINAPI","TRANSPORTE COM CAMINHÃO BASCULANTE DE 10 M³, EM VIA URBANA PAVIMENTADA, ADICIONAL PARA DMT EXCEDENTE A 30 KM (UNIDADE: M3XKM). AF_07/2020 (TRANSPORTE DE AREIA)","M3XKM",{"$f":"Memória!H122","v":12629.97},0.96,{"$f":"TRUNC(G21 * (1 + 21.35 / 100), 2)","v":1.1599999999999999},{"$f":"TRUNC(F21 * H21, 2)","v":14650.76}]
[" 4 ",null,null,"DRENAGEM",{"$nulls":4},{"$f":"SUM(I23:I25)","v":212139.2}]
[" 4.1 "," 94273 ","SINAPI","ASSENTAMENTO DE GUIA (MEIO-FIO) EM TRECHO RETO, CONFECCIONADA EM CONCRETO PRÉ-FABRICADO, DIMENSÕES 100X15X13X30 CM (COMPRIMENTO X BASE INFERIOR X BASE SUPERIOR X ALTURA), PARA VIAS URBANAS (USO VIÁRIO). AF_06/2016","M",{"$f":"Memória!C137","v":1880},56.59,{"$f":"TRUNC(G23 * (1 + 21.35 / 100), 2)","v":68.67},{"$f":"TRUNC(F23 * H23, 2)","v":129099.6},"Drenagem"]
[" 4.2 "," 83718 ","SINAPI","ESCORAMENTO DE MEIO FIO COM MATERIAL LOCAL COMPACTADO MANUALMENTE, EM FAIXA DE 0,50M","M",{"$f":"Memória!C149","v":1880},4.66,{"$f":"TRUNC(G24 * (1 + 21.35 / 100), 2)","v":5.65},{"$f":"TRUNC(F24 * H24, 2)","v":10622}]
[" 4.3 "," 94287 ","SINAPI","EXECUÇÃO DE SARJETA DE CONCRETO USINADO, MOLDADA  IN LOCO  EM TRECHO RETO, 30 CM BASE X 10 CM ALTURA. AF_06/2016","M",{"$f":"Memória!C161","v":1880},31.75,{"$f":"TRUNC(G25 * (1 + 21.35 / 100), 2)","v":38.520000000000003},{"$f":"TRUNC(F25 * H25, 2)","v":72417.600000000006}]
[" 5 ",null,null,"SINALIZAÇÃO",{"$nulls":4},{"$f":"SUM(I27:I28)","v":497.9}]
[" 5.1 "," 103694 ","SINAPI","FORNECIMENTO E INSTALAÇÃO DE SUPORTE DE MADEIRA  PARA PLACAS DE SINALIZAÇÃO, EM SOLO, COM H= DE 2,5 M E SEÇÃO DE 7,5 X 7,5 CM. AF_03/2022","UN",{"$f":"Memória!J173","v":2},108.42,{"$f":"TRUNC(G27 * (1 + 21.35 / 100), 2)","v":131.56},{"$f":"TRUNC(F27 * H27, 2)","v":263.12},"Obras complementares"]
[" 5.2 "," 10712 ","ORSE","Confecção de placa de sinalização totalmente refletiva","m²",{"$f":"Memória!J185","v":2},96.74,{"$f":"TRUNC(G28 * (1 + 21.35 / 100), 2)","v":117.39},{"$f":"TRUNC(F28 * H28, 2)","v":234.78},"Obras complementares"]
[" 6 ",null,null,"SERVIÇOS COMPLEMENTARES",{"$nulls":4},{"$f":"SUM(I30:I32)","v":8229.0499999999993}]
[" 6.1 "," C-22-0117 ","Próprio","LIMPEZA DE RUAS (VARRIÇÃO E REMOÇÃO DE ENTULHOS) - REF. ORSE 6191","m²",{"$f":"Memória!G199","v":4209.99},0.66,{"$f":"TRUNC(G30 * (1 + 21.35 / 100), 2)","v":0.8},{"$f":"TRUNC(F30 * H30, 2)","v":3367.99},"Obras complementares"]
[" 6.2 "," 102498 ","SINAPI","PINTURA DE MEIO-FIO COM TINTA BRANCA A BASE DE CAL (CAIAÇÃO). AF_05/2021","M",{"$f":"Memória!C211","v":1880},1.5,{"$f":"TRUNC(G31 * (1 + 21.35 / 100), 2)","v":1.82},{"$f":"TRUNC(F31 * H31, 2)","v":3421.6},"Obras complementares"]
[" 6.3 "," C-23-0016 ","Próprio","TOTEM DE INAUGURAÇÃO EM CONCRETO ARMADO FCL=20MPA COM TEXTO EM BAIXO RELEVO - MODELO CODEVASF","UND",{"$f":"Memória!J216","v":2},593.11,{"$f":"TRUNC(G32 * (1 + 21.35 / 100), 2)","v":719.73},{"$f":"TRUNC(F32 * H32, 2)","v":1439.46},"Obras complementares"]
[{"$nulls":8},{"$f":"I5+I11+I16+I22+I26+I29","v":928449.65000000026}]
[]
[]
[]
[]
["_______________________________________________________________\nGRD / UEP 2\nSetor de Engenharia"]

{"sheet":"Orçamento Sintético CD","index":2,"n_rows":38,"n_cols":15,"rows_kept":38,"cut":false,"hidden":false,"merged":[[11,9,14,9],[16,9,20,9],[22,9,24,9],[35,0,35,2],[35,4,35,5],[35,6,35,8],[32,4,32,5],[37,0,37,8],[34,0,34,2],[34,4,34,5],[34,6,34,8],[33,0,33,2],[33,4,33,5],[33,6,33,8],[0,4,0,5],[0,6,0,7],[1,4,1,5],[1,6,1,7],[2,0,2,8]]}
[null,null,null,"Obra","Bancos",null,"B.D.I.",null,"Encargos Sociais"]
[null,null,null,"Execução de serviços de pavimentação em paralelepípedo em ruas do município de Penedo/AL (DESONERADA)","SINAPI - 04/2024 - Alagoas\nSICRO3 - 01/2024 - Alagoas\nORSE - 03/2024 - Sergipe\n",null,"27,46%",null,"Desonerado: \nHorista: 85,20%\nMensalista: 46,48%"]
["Orçamento Sintético"]
["Item","Código","Banco","Descrição","Und","Quant.","Valor Unit","Valor Unit com BDI","Total"]
[" 1 ",null,null,"SERVIÇOS PRELIMINARES",{"$nulls":4},{"$f":"SUM(I6:I10)","v":93538.99}]
[" 1.1 "," 103689 ","SINAPI","FORNECIMENTO E INSTALAÇÃO DE PLACA DE OBRA COM CHAPA GALVANIZADA E ESTRUTURA DE MADEIRA. AF_03/2022_PS","m²",{"$f":"Memória!G13","v":12.96},308.95999999999998,{"$f":"TRUNC(G6 * (1 + 27.46 / 100), 2)","v":393.8},{"$f":"TRUNC(F6 * H6, 2)","v":5103.6400000000003},"Obras complementares",null,"Terraplanagem",{"$f":"I11/I33","v":2.9832295250545111E-2},3.0300000000000001E-2,{"$f":"TRUNC(N6,5)","v":3.0300000000000001E-2}]
[" 1.2 "," 103689 ","SINAPI","FORNECIMENTO E INSTALAÇÃO DE PLACA DE OBRA COM CHAPA GALVANIZADA E ESTRUTURA DE MADEIRA. AF_03/2022_PS (PLACA IMA)","m²",{"$f":"Memória!G18","v":3},308.95999999999998,{"$f":"TRUNC(G7 * (1 + 27.46 / 100), 2)","v":393.8},{"$f":"TRUNC(F7 * H7, 2)","v":1181.4000000000001},"Obras complementares",null,"Pavimentação",{"$f":"I16/I33","v":0.63312565682655186},0.64319999999999999,{"$f":"TRUNC(N7,5)","v":0.64319999999999999}]
[" 1.3 "," GRD-2023-12-SP1 ","Próprio","ADMINISTRAÇÃO LOCAL","UND",{"$f":"Memória!J23","v":1},57790.8,{"$f":"TRUNC(G8 * (1 + 27.46 / 100), 2)","v":73660.149999999994},{"$f":"TRUNC(F8 * H8, 2)","v":73660.149999999994},"Administração local",null,"Drenagem",{"$f":"I22/I33","v":0.22916114914202096},0.23282,0.23282]
[" 1.4 "," GRD-2023-12-SP2 ","Próprio","MOBILIZAÇÃO E DESMOBILIZAÇÃO ","UND",{"$f":"Memória!J33","v":2},2382.58,{"$f":"TRUNC(G9 * (1 + 27.46 / 100), 2)","v":3036.83},{"$f":"TRUNC(F9 * H9, 2)","v":6073.66},"Mobilização desmobilização",null,"Consultoria",{"$f":"I10/I33","v":7.9557512737375574E-3},8.0800000000000004E-3,8.0800000000000004E-3]
[" 1.5 "," GRD-2023-12-SP3 ","Próprio","PROJETO EXECUTIVO ","UND",{"$f":"1","v":1},5900,{"$f":"TRUNC(G10 * (1 + 27.46 / 100), 2)","v":7520.14},{"$f":"TRUNC(F10 * H10, 2)","v":7520.14},"Consultoria",null,"Administração local",{"$f":"I8/I33","v":7.7926984362817642E-2},6.3250000000000001E-2,6.3250000000000001E-2]
[" 2 ",null,null,"TERRAPLENAGEM",{"$nulls":4},{"$f":"SUM(I12:I15)","v":28198.85},null,null,"Obras complementares",{"$f":"(I29+I6+I7+I26)/I33","v":1.5572680602612396E-2},1.583E-2,1.583E-2]
[" 2.1 "," 78472 ","SINAPI","SERVICOS TOPOGRAFICOS PARA PAVIMENTACAO, INCLUSIVE NOTA DE SERVICOS, ACOMPANHAMENTO E GREIDE","m²",{"$f":"Memória!G48","v":4209.99},0.37,{"$f":"TRUNC(G12 * (1 + 27.46 / 100), 2)","v":0.47},{"$f":"TRUNC(F12 * H12, 2)","v":1978.69},"Terraplanagem",null,"Mobilização desmobilização",{"$f":"I9/I33","v":6.4254825417144959E-3},6.5199999999999998E-3,6.5199999999999998E-3]
[" 2.2 "," 100575 ","SINAPI","REGULARIZAÇÃO DE SUPERFÍCIES COM MOTONIVELADORA. AF_11/2019","m²",{"$f":"Memória!G61","v":4209.99},0.11,{"$f":"TRUNC(G13 * (1 + 27.46 / 100), 2)","v":0.14000000000000001},{"$f":"TRUNC(F13 * H13, 2)","v":589.39},null,null,null,{"$f":"SUM(M6:M12)","v":1},{"$f":"SUM(N6:N12)","v":1},{"$f":"SUM(O6:O12)","v":1}]
[" 2.3 "," 100974 ","SINAPI","CARGA, MANOBRA E DESCARGA DE SOLOS E MATERIAIS GRANULARES EM CAMINHÃO BASCULANTE 10 M³ - CARGA COM PÁ CARREGADEIRA (CAÇAMBA DE 1,7 A 2,8 M³ / 128 HP) E DESCARGA LIVRE (UNIDADE: M3). AF_07/2020","m³",{"$f":"Memória!H76","v":1000.8125000000001},8.1300000000000008,10.36,10368.39]
[" 2.4 "," 95875 ","SINAPI","TRANSPORTE COM CAMINHÃO BASCULANTE DE 10 M³, EM VIA URBANA PAVIMENTADA, DMT ATÉ 30 KM (UNIDADE: M3XKM). AF_07/2020","M3XKM",{"$f":"Memória!H89","v":5004.0625000000009},2.4,{"$f":"TRUNC(G15 * (1 + 27.46 / 100), 2)","v":3.05},15262.38]
[" 3 ",null,null,"PAVIMENTAÇÃO",{"$nulls":4},{"$f":"SUM(I17:I21)","v":598459.33000000007}]
[" 3.1 "," 101169 ","SINAPI","EXECUÇÃO DE PAVIMENTO EM PARALELEPÍPEDOS, REJUNTAMENTO COM ARGAMASSA TRAÇO 1:3 (CIMENTO E AREIA). AF_05/2020","m²",{"$f":"Memória!G98","v":4209.99},71.5,{"$f":"TRUNC(G17 * (1 + 27.46 / 100), 2)","v":91.13},{"$f":"TRUNC(F17 * H17, 2)","v":383656.38},"Pavimentação"]
[" 3.2 "," 95875 ","SINAPI","TRANSPORTE COM CAMINHÃO BASCULANTE DE 10 M³, EM VIA URBANA PAVIMENTADA, DMT ATÉ 30 KM (UNIDADE: M3XKM). AF_07/2020 (TRANSPORTE DE PEDRA)","M3XKM",{"$f":"Memória!H104","v":21218.35},2.4,{"$f":"TRUNC(G18 * (1 + 27.46 / 100), 2)","v":3.05},{"$f":"TRUNC(F18 * H18, 2)","v":64715.96}]
[" 3.3 "," 93590 ","SINAPI","TRANSPORTE COM CAMINHÃO BASCULANTE DE 10 M³, EM VIA URBANA PAVIMENTADA, ADICIONAL PARA DMT EXCEDENTE A 30 KM (UNIDADE: M3XKM). AF_07/2020 (TRANSPORTE DE PEDRA)","M3XKM",{"$f":"Memória!H110","v":63655.05},0.95,{"$f":"TRUNC(G19 * (1 + 27.46 / 100), 2)","v":1.21},{"$f":"TRUNC(F19 * H19, 2)","v":77022.61}]
[" 3.4 "," 95875 ","SINAPI","TRANSPORTE COM CAMINHÃO BASCULANTE DE 10 M³, EM VIA URBANA PAVIMENTADA, DMT ATÉ 30 KM (UNIDADE: M3XKM). AF_07/2020 (TRANSPORTE DE AREIA)","M3XKM",{"$f":"Memória!H116","v":18944.96},2.4,{"$f":"TRUNC(G20 * (1 + 27.46 / 100), 2)","v":3.05},{"$f":"TRUNC(F20 * H20, 2)","v":57782.12}]
[" 3.5 "," 93590 ","SINAPI","TRANSPORTE COM CAMINHÃO BASCULANTE DE 10 M³, EM VIA URBANA PAVIMENTADA, ADICIONAL PARA DMT EXCEDENTE A 30 KM (UNIDADE: M3XKM). AF_07/2020 (TRANSPORTE DE AREIA)","M3XKM",{"$f":"Memória!H122","v":12629.97},0.95,{"$f":"TRUNC(G21 * (1 + 27.46 / 100), 2)","v":1.21},{"$f":"TRUNC(F21 * H21, 2)","v":15282.26}]
[" 4 ",null,null,"DRENAGEM",{"$nulls":4},{"$f":"SUM(I23:I25)","v":216613.59999999998}]
[" 4.1 "," 94273 ","SINAPI","ASSENTAMENTO DE GUIA (MEIO-FIO) EM TRECHO RETO, CONFECCIONADA EM CONCRETO PRÉ-FABRICADO, DIMENSÕES 100X15X13X30 CM (COMPRIMENTO X BASE INFERIOR X BASE SUPERIOR X ALTURA), PARA VIAS URBANAS (USO VIÁRIO). AF_06/2016","M",{"$f":"Memória!C137","v":1880},55.51,{"$f":"TRUNC(G23 * (1 + 27.46 / 100), 2)","v":70.75},{"$f":"TRUNC(F23 * H23, 2)","v":133010},"Drenagem"]
[" 4.2 "," 83718 ","SINAPI","ESCORAMENTO DE MEIO FIO COM MATERIAL LOCAL COMPACTADO MANUALMENTE, EM FAIXA DE 0,50M","M",{"$f":"Memória!C149","v":1880},4.21,{"$f":"TRUNC(G24 * (1 + 27.46 / 100), 2)","v":5.36},{"$f":"TRUNC(F24 * H24, 2)","v":10076.799999999999}]
[" 4.3 "," 94287 ","SINAPI","EXECUÇÃO DE SARJETA DE CONCRETO USINADO, MOLDADA  IN LOCO  EM TRECHO RETO, 30 CM BASE X 10 CM ALTURA. AF_06/2016","M",{"$f":"Memória!C161","v":1880},30.69,{"$f":"TRUNC(G25 * (1 + 27.46 / 100), 2)","v":39.11},{"$f":"TRUNC(F25 * H25, 2)","v":73526.8}]
[" 5 ",null,null,"SINALIZAÇÃO",{"$nulls":4},{"$f":"SUM(I27:I28)","v":513.34}]
[" 5.1 "," 103694 ","SINAPI","FORNECIMENTO E INSTALAÇÃO DE SUPORTE DE MADEIRA  PARA PLACAS DE SINALIZAÇÃO, EM SOLO, COM H= DE 2,5 M E SEÇÃO DE 7,5 X 7,5 CM. AF_03/2022","UN",{"$f":"Memória!J173","v":2},104.64,{"$f":"TRUNC(G27 * (1 + 27.46 / 100), 2)","v":133.37},{"$f":"TRUNC(F27 * H27, 2)","v":266.74},"Obras complementares"]
[" 5.2 "," 10712 ","ORSE","Confecção de placa de sinalização totalmente refletiva","m²",{"$f":"Memória!J185","v":2},96.74,{"$f":"TRUNC(G28 * (1 + 27.46 / 100), 2)","v":123.3},{"$f":"TRUNC(F28 * H28, 2)","v":246.6},"Obras complementares"]
[" 6 ",null,null,"SERVIÇOS COMPLEMENTARES",{"$nulls":4},{"$f":"SUM(I30:I32)","v":7921.63}]
[" 6.1 "," C-22-0117 ","Próprio","LIMPEZA DE RUAS (VARRIÇÃO E REMOÇÃO DE ENTULHOS) - REF. ORSE 6191","m²",{"$f":"Memória!G199","v":4209.99},0.6,{"$f":"TRUNC(G30 * (1 + 27.46 / 100), 2)","v":0.76},{"$f":"TRUNC(F30 * H30, 2)","v":3199.59},"Obras complementares"]
[" 6.2 "," 102498 ","SINAPI","PINTURA DE MEIO-FIO COM TINTA BRANCA A BASE DE CAL (CAIAÇÃO). AF_05/2021","M",{"$f":"Memória!C211","v":1880},1.37,{"$f":"TRUNC(G31 * (1 + 27.46 / 100), 2)","v":1.74},{"$f":"TRUNC(F31 * H31, 2)","v":3271.2},"Obras complementares"]
[" 6.3 "," C-23-0016 ","Próprio","TOTEM DE INAUGURAÇÃO EM CONCRETO ARMADO FCL=20MPA COM TEXTO EM BAIXO RELEVO - MODELO CODEVASF","UND",{"$f":"Memória!J216","v":2},569.14,{"$f":"TRUNC(G32 * (1 + 27.46 / 100), 2)","v":725.42},{"$f":"TRUNC(F32 * H32, 2)","v":1450.84},"Obras complementares"]
[{"$nulls":4},"Total Geral",null,null,null,{"$f":"I5+I11+I16+I22+I26+I29","v":945245.74}]
[]
[]
[]
[]
["_______________________________________________________________\nGRD / UEP \nSetor de Engenharia"]

{"sheet":"Cronograma","index":3,"n_rows":37,"n_cols":8,"rows_kept":37,"cut":false,"hidden":false,"merged":[[36,0,36,6],[33,0,33,1],[0,3,0,4],[0,5,0,6],[1,3,1,4],[1,5,1,6],[2,0,2,6],[32,0,32,1],[30,0,30,1],[31,0,31,1]]}
[null,"Obra","Bancos","B.D.I.",null,"Encargos Sociais"]
[null,"SEM DESONERAÇÃO -Execução de serviços de pavimentação em paralelepípedo em ruas do município de Penedo/AL ","SINAPI - 04/2024 - Alagoas\nSICRO3 - 01/2024 - Alagoas\nORSE - 03/2024 - Sergipe\n","21,35%",null,"Não Desonerado: \nHorista: 115,22%\nMensalista: 70,31%"]
["Cronograma Físico e Financeiro"]
["Item","Descrição","Total Por Etapa","30 DIAS","60 DIAS","90 DIAS","120 DIAS","150 DIAS"]
[" 1 ","SERVIÇOS PRELIMINARES","100,00%\n96.848,43","18,27%\n17.697,03","20,08%\n19.445,37","24,09%\n23.334,44","24,09%\n23.334,44","13,46%\n13.037,16"]
[" 1.1 ","FORNECIMENTO E INSTALAÇÃO DE PLACA DE OBRA COM CHAPA GALVANIZADA E ESTRUTURA DE MADEIRA. AF_03/2022_PS","100,00%\n4.917,80","100,00%\n4.917,80","","","",""]
[" 1.2 ","FORNECIMENTO E INSTALAÇÃO DE PLACA DE OBRA COM CHAPA GALVANIZADA E ESTRUTURA DE MADEIRA. AF_03/2022_PS (PLACA IMA)","100,00%\n1.138,38","100,00%\n1.138,38","","","",""]
[" 1.3 ","ADMINISTRAÇÃO LOCAL","100,00%\n77.781,46","2,00%\n1.555,63","25,00%\n19.445,37","30,00%\n23.334,44","30,00%\n23.334,44","13,00%\n10.111,59"]
[" 1.4 ","MOBILIZAÇÃO E DESMOBILIZAÇÃO ","100,00%\n5.851,14","50,00%\n2.925,57","","","","50,00%\n2.925,57"]
[" 1.5 ","PROJETO EXECUTIVO ","100,00%\n7.159,65","100,00%\n7.159,65","","","",""]
[" 2 ","TERRAPLENAGEM","61,04%\n27.412,34","24,42%\n6.693,09","36,62%\n10.039,63","","",""]
[" 2.1 ","SERVICOS TOPOGRAFICOS PARA PAVIMENTACAO, INCLUSIVE NOTA DE SERVICOS, ACOMPANHAMENTO E GREIDE","100,00%\n2.020,79","40,00%\n808,32","60,00%\n1.212,47","","",""]
[" 2.4 ","TRANSPORTE COM CAMINHÃO BASCULANTE DE 10 M³, EM VIA URBANA PAVIMENTADA, DMT ATÉ 30 KM (UNIDADE: M3XKM). AF_07/2020","100,00%\n14.711,93","40,00%\n5.884,77","60,00%\n8.827,16","","",""]
[" 3 ","PAVIMENTAÇÃO","100,00%\n583.322,73","","10,00%\n58.332,27","40,00%\n233.329,09","40,00%\n233.329,09","10,00%\n58.332,27"]
[" 3.1 ","EXECUÇÃO DE PAVIMENTO EM PARALELEPÍPEDOS, REJUNTAMENTO COM ARGAMASSA TRAÇO 1:3 (CIMENTO E AREIA). AF_05/2020","100,00%\n376.752,00","","10,00%\n37.675,20","40,00%\n150.700,80","40,00%\n150.700,80","10,00%\n37.675,20"]
[" 3.2 ","TRANSPORTE COM CAMINHÃO BASCULANTE DE 10 M³, EM VIA URBANA PAVIMENTADA, DMT ATÉ 30 KM (UNIDADE: M3XKM). AF_07/2020 (TRANSPORTE DE PEDRA)","100,00%\n62.381,94","","10,00%\n6.238,19","40,00%\n24.952,78","40,00%\n24.952,78","10,00%\n6.238,19"]
[" 3.3 ","TRANSPORTE COM CAMINHÃO BASCULANTE DE 10 M³, EM VIA URBANA PAVIMENTADA, ADICIONAL PARA DMT EXCEDENTE A 30 KM (UNIDADE: M3XKM). AF_07/2020 (TRANSPORTE DE PEDRA)","100,00%\n73.839,85","","10,00%\n7.383,99","40,00%\n29.535,94","40,00%\n29.535,94","10,00%\n7.383,99"]
[" 3.4 ","TRANSPORTE COM CAMINHÃO BASCULANTE DE 10 M³, EM VIA URBANA PAVIMENTADA, DMT ATÉ 30 KM (UNIDADE: M3XKM). AF_07/2020 (TRANSPORTE DE AREIA)","100,00%\n55.698,18","","10,00%\n5.569,82","40,00%\n22.279,27","40,00%\n22.279,27","10,00%\n5.569,82"]
[" 3.5 ","TRANSPORTE COM CAMINHÃO BASCULANTE DE 10 M³, EM VIA URBANA PAVIMENTADA, ADICIONAL PARA DMT EXCEDENTE A 30 KM (UNIDADE: M3XKM). AF_07/2020 (TRANSPORTE DE AREIA)","100,00%\n14.650,76","","10,00%\n1.465,08","40,00%\n5.860,30","40,00%\n5.860,30","10,00%\n1.465,08"]
[" 4 ","DRENAGEM","100,00%\n212.139,20","","30,00%\n63.641,76","30,00%\n63.641,76","40,00%\n84.855,68",""]
[" 4.1 ","ASSENTAMENTO DE GUIA (MEIO-FIO) EM TRECHO RETO, CONFECCIONADA EM CONCRETO PRÉ-FABRICADO, DIMENSÕES 100X15X13X30 CM (COMPRIMENTO X BASE INFERIOR X BASE SUPERIOR X ALTURA), PARA VIAS URBANAS (USO VIÁRIO). AF_06/2016","100,00%\n129.099,60","","30,00%\n38.729,88","30,00%\n38.729,88","40,00%\n51.639,84",""]
[" 4.2 ","ESCORAMENTO DE MEIO FIO COM MATERIAL LOCAL COMPACTADO MANUALMENTE, EM FAIXA DE 0,50M","100,00%\n10.622,00","","30,00%\n3.186,60","30,00%\n3.186,60","40,00%\n4.248,80",""]
[" 4.3 ","EXECUÇÃO DE SARJETA DE CONCRETO USINADO, MOLDADA  IN LOCO  EM TRECHO RETO, 30 CM BASE X 10 CM ALTURA. AF_06/2016","100,00%\n72.417,60","","30,00%\n21.725,28","30,00%\n21.725,28","40,00%\n28.967,04",""]
[" 5 ","SINALIZAÇÃO","100,00%\n497,90","","50,00%\n248,95","50,00%\n248,95","",""]
[" 5.1 ","FORNECIMENTO E INSTALAÇÃO DE SUPORTE DE MADEIRA  PARA PLACAS DE SINALIZAÇÃO, EM SOLO, COM H= DE 2,5 M E SEÇÃO DE 7,5 X 7,5 CM. AF_03/2022","100,00%\n263,12","","50,00%\n131,56","50,00%\n131,56","",""]
[" 5.2 ","Confecção de placa de sinalização totalmente refletiva","100,00%\n234,78","","50,00%\n117,39","50,00%\n117,39","",""]
[" 6 ","SERVIÇOS COMPLEMENTARES","100,00%\n8.229,05","","","","","100,00%\n8.229,05"]
[" 6.1 ","LIMPEZA DE RUAS (VARRIÇÃO E REMOÇÃO DE ENTULHOS) - REF. ORSE 6191","100,00%\n3.367,99","","","","","100,00%\n3.367,99"]
[" 6.2 ","PINTURA DE MEIO-FIO COM TINTA BRANCA A BASE DE CAL (CAIAÇÃO). AF_05/2021","100,00%\n3.421,60","","","","","100,00%\n3.421,60"]
[" 6.3 ","TOTEM DE INAUGURAÇÃO EM CONCRETO ARMADO FCL=20MPA COM TEXTO EM BAIXO RELEVO - MODELO CODEVASF","100,00%\n1.439,46","","","","","100,00%\n1.439,46"]
["Porcentagem",null,null,"2,63%","16,34%","34,53%","36,78%","8,57%"]
["Custo",null,null,"24.390,12","151.707,98","320.554,24","341.519,21","79.598,48"]
["Porcentagem Acumulado",null,null,"2,63%","18,97%","53,49%","90,28%","98,85%"]
["Custo Acumulado",null,null,"24.390,11","176.098,09","496.652,33","838.171,54","917.770,03"]
[]
[]
["_______________________________________________________________\nGRD / UEP 2\nSetor de Engenharia"]

{"sheet":"Memória","index":4,"n_rows":216,"n_cols":15,"rows_kept":216,"cut":false,"hidden":false,"merged":[[202,13,209,13],[67,13,74,13],[128,13,135,13],[140,13,147,13],[152,13,159,13],[189,13,196,13],[3,1,3,7],[38,13,45,13],[52,13,58,13],[79,13,86,13],[87,9,87,12]]}
[]
[]
[]
["Obra:","Execução de serviços de pavimentação em paralelepíedo em ruas  no município de Penedo/AL"]
["Local: "," Penedo/AL"]
[{"$nulls":4},"MEMÓRIA DE CÁLCULO"]
["Item","Descrição","Comp. (m)","Largura (m)","Espessura (m)","Altura (m)","Área (m2)","Volume (m3)","Distância (Km)","Quantidade","Descontos","Adicionais","Unidade","Observações - critérios - justificativas.","t"]
[1,"SERVIÇOS PRELIMINARES",{"$nulls":12},1]
[]
["1.1","FORNECIMENTO E INSTALAÇÃO DE PLACA DE OBRA COM CHAPA GALVANIZADA E ESTRUTURA DE MADEIRA. AF_03/2022_PS",{"$nulls":12},2]
[]
[null,"Modelo padrão Codevasf",3.6,null,null,1.8,{"$f":"F12*C12*J12","v":12.96},null,null,2,null,null,null,"Considerado duas placas pois os locais de construção são relativamente distantes um do outro para dar maior publicidade e identificação à obra se faz necessário pelo menos duas placas."]
[null,"TOTAL 1.1",{"$nulls":4},{"$f":"SUM(G12)","v":12.96},{"$nulls":5},{"$f":"IF(C13>0,\"M\",IF(G13>0,\"M²\",IF(H13>0,\"M³\",IF(I13>0,\"KG\",IF(J13>0,\"UND\",\"\")))))","v":"M²"},null,"T"]
[]
["1.2","FORNECIMENTO E INSTALAÇÃO DE PLACA DE OBRA COM CHAPA GALVANIZADA E ESTRUTURA DE MADEIRA. AF_03/2022_PS (PLACA IMA)",{"$nulls":12},2]
[]
[null,null,1.5,null,null,1,{"$f":"F17*C17*J17","v":3},null,null,2]
[null,"TOTAL 1.2",{"$nulls":4},{"$f":"SUM(G17)","v":3},null,null,{"$f":"SUM(J16:J17)","v":2},null,null,{"$f":"IF(C18>0,\"M\",IF(G18>0,\"M²\",IF(H18>0,\"M³\",IF(I18>0,\"KG\",IF(J18>0,\"UND\",\"\")))))","v":"M²"},null,"T"]
[]
["1.3","ADMINISTRAÇÃO LOCAL",{"$nulls":12},2]
[]
[null,"Valor global (pago proporcional à execução)",{"$nulls":7},1]
[null,"TOTAL 1.3",{"$nulls":7},{"$f":"SUM(J21:J22)","v":1},null,null,{"$f":"IF(C23>0,\"M\",IF(G23>0,\"M²\",IF(H23>0,\"M³\",IF(I23>0,\"KG\",IF(J23>0,\"UND\",\"\")))))","v":"UND"},null,"T"]
[]
["1.4","DETALHAMENTO DE PROJETO EXECUTIVO",{"$nulls":12},2]
[]
[{"$nulls":9},1]
[null,"TOTAL 1.4",{"$nulls":7},{"$f":"SUM(J26:J27)","v":1},null,null,{"$f":"IF(C28>0,\"M\",IF(G28>0,\"M²\",IF(H28>0,\"M³\",IF(I28>0,\"KG\",IF(J28>0,\"UND\",\"\")))))","v":"UND"},null,"T"]
[]
["1.5","MOBILIZAÇÃO E DESMOBILIZAÇÃO DE EQUIPAMENTOS ",{"$nulls":12},2]
[]
[{"$nulls":9},2]
[null,"TOTAL 1.5",{"$nulls":7},{"$f":"SUM(J31:J32)","v":2},null,null,{"$f":"IF(C33>0,\"M\",IF(G33>0,\"M²\",IF(H33>0,\"M³\",IF(I33>0,\"KG\",IF(J33>0,\"UND\",\"\")))))","v":"UND"},null,"T"]
[]
[2,"TERRAPLENAGEM",{"$nulls":12},1]
[]
["2.1","SERVICOS TOPOGRAFICOS PARA PAVIMENTACAO, INCLUSIVE NOTA DE SERVICOS, ACOMPANHAMENTO E GREIDE",{"$nulls":12},2]
[]
[null,"Área projetada do pavimento",{"$nulls":11},"As áreas foram obtidas pela consulta as peças do Volume II - Perças gráficas  - Projetos de Pavimentação."]
[]
[null,"Rua São João ",{"$nulls":4},2052.1799999999998]
[]
[]
[]
[]
[null,"Manibu",{"$nulls":4},2157.81]
[]
[null,"TOTAL 2.1",{"$nulls":4},{"$f":"SUM(G39:G47)","v":4209.99},{"$nulls":5},{"$f":"IF(C48>0,\"M\",IF(G48>0,\"M²\",IF(H48>0,\"M³\",IF(I48>0,\"KG\",IF(J48>0,\"UND\",\"\")))))","v":"M²"},null,"T"]
[]
["2.2","REGULARIZAÇÃO DE SUPERFÍCIES COM MOTONIVELADORA. AF_11/2019",{"$nulls":12},2]
[]
[]
[{"$nulls":13},"As áreas foram obtidas pela consulta as peças do Volume II - Perças gráficas  - Projetos de Pavimentação."]
[null,"Rua São João ",{"$nulls":4},{"$f":"G41","v":2052.1799999999998}]
[]
[]
[]
[]
[null,"Manibu",{"$nulls":4},2157.81]
[]
[null,"TOTAL 2.2",{"$nulls":4},{"$f":"SUM(G52:G60)","v":4209.99},{"$nulls":5},{"$f":"IF(C61>0,\"M\",IF(G61>0,\"M²\",IF(H61>0,\"M³\",IF(I61>0,\"KG\",IF(J61>0,\"UND\",\"\")))))","v":"M²"},null,"T"]
[]
[]
["2.3","CARGA, MANOBRA E DESCARGA DE SOLOS E MATERIAIS GRANULARES EM CAMINHÃO BASCULANTE 10 M³ - CARGA COM PÁ CARREGADEIRA (CAÇAMBA DE 1,7 A 2,8 M³ / 128 HP) E DESCARGA LIVRE (UNIDADE: M3). AF_07/2020",{"$nulls":12},2]
[]
[]
[null,"Volume  - Empolamento 25%"]
[{"$nulls":13},"Os Volumes foram obtidos pela consulta as peças do Volume II - Perças gráficas  - Projetos de Pavimentação. (foi considerado um empolamento de 25%, conforme memorial descritivo do projeto na folha n.º 12)."]
[null,"Rua São João ",{"$nulls":5},140.31]
[]
[]
[]
[]
[null,"Manibu",{"$nulls":5},660.34]
[]
[null,"TOTAL 2.4",{"$nulls":5},{"$f":"SUM(H65:H75)*1.25","v":1000.8125000000001},{"$nulls":4},{"$f":"IF(C76>0,\"M\",IF(G76>0,\"M²\",IF(H76>0,\"M³\",IF(I76>0,\"KG\",IF(J76>0,\"UND\",\"\")))))","v":"M³"},null,"T"]
[]
["2.4","TRANSPORTE COM CAMINHÃO BASCULANTE DE 10 M³, EM VIA URBANA PAVIMENTADA, DMT ATÉ 30 KM (UNIDADE: M3XKM). AF_07/2020",{"$nulls":12},2]
[]
[null,"Volume  - Empolamento 25%",{"$nulls":11},"Os Volumes foram obtidos pela consulta as peças do Volume II - Perças gráficas  - Projetos de Pavimentação. (foi considerado um empolamento de 25%, conforme memorial descritivo do projeto na folha n.º 12)."]
[]
[null,"Rua São João ",{"$nulls":5},140.31]
[]
[]
[]
[]
[null,"Manibu",{"$nulls":5},{"$f":"H74","v":660.34}]
[{"$nulls":8},5,"Obs: distância média entre os trechos.",null,null,null,"from:-10.2936073461, -36.5287788739 (Bota Fora - Penedo)"]
[null,"TOTAL 2.5",{"$nulls":5},{"$f":"SUM(H79:H88)*1.25*I88","v":5004.0625000000009},{"$nulls":4},{"$f":"IF(C89>0,\"M\",IF(G89>0,\"M²\",IF(H89>0,\"M³\",IF(I89>0,\"KG\",IF(J89>0,\"UND\",\"\")))))","v":"M³"},null,"T"]
[]
[]
[3,"PAVIMENTAÇÃO",{"$nulls":12},1]
[]
["3.1","EXECUÇÃO DE PAVIMENTO EM PARALELEPÍPEDOS, REJUNTAMENTO COM ARGAMASSA TRAÇO 1:3 (CIMENTO E AREIA). AF_05/2020",{"$nulls":12},2]
[]
[null,"Área projetada do pavimento em paralelepípedo",1,null,null,null,{"$f":"G48","v":4209.99},{"$nulls":6},"Em conformidade com a área levantada pela topografia. Item 2.1."]
[]
[null,"TOTAL 3.1",{"$nulls":4},{"$f":"SUM(G95:G96)","v":4209.99},{"$nulls":5},{"$f":"IF(C98>0,\"M\",IF(G98>0,\"M²\",IF(H98>0,\"M³\",IF(I98>0,\"KG\",IF(J98>0,\"UND\",\"\")))))","v":"M²"},null,"T"]
[]
["3.2","TRANSPORTE COM CAMINHÃO BASCULANTE DE 10 M³, EM VIA URBANA PAVIMENTADA, DMT ATÉ 30 KM (UNIDADE: M3XKM). AF_07/2020 (TRANSPORTE DE PEDRA)",{"$nulls":12},2]
[]
[{"$nulls":6},"fator de empolamento:",1.4]
[null,"Área do paralelo x Esp. x Empolamento (40%) x DMT",null,null,0.12,null,{"$f":"G96","v":4209.99},{"$f":"ROUND(E103*H102*G103*I103,2)","v":21218.35},30]
[null,"TOTAL 3.2",{"$nulls":5},{"$f":"SUM(H103)","v":21218.35},{"$nulls":4},{"$f":"IF(C104>0,\"M\",IF(G104>0,\"M²\",IF(H104>0,\"M³XKM\",IF(I104>0,\"KG\",IF(J104>0,\"UND\",\"\")))))","v":"M³XKM"},null,"T"]
[]
["3.3","TRANSPORTE COM CAMINHÃO BASCULANTE DE 10 M³, EM VIA URBANA PAVIMENTADA, ADICIONAL PARA DMT EXCEDENTE A 30 KM (UNIDADE: M3XKM). AF_07/2020 (TRANSPORTE DE PEDRA)",{"$nulls":12},2]
[]
[{"$nulls":6},"fator de empolamento:",1.4]
[null,"Área do paralelo x Esp. x Empolamento (40%) x DMT",null,null,0.12,null,{"$f":"G96","v":4209.99},{"$f":"ROUND(E109*H108*G109*I109,2)","v":63655.05},90]
[null,"TOTAL 3.3",{"$nulls":5},{"$f":"SUM(H109)","v":63655.05},{"$nulls":4},{"$f":"IF(C110>0,\"M\",IF(G110>0,\"M²\",IF(H110>0,\"M³\",IF(I110>0,\"KG\",IF(J110>0,\"UND\",\"\")))))","v":"M³"},null,"T"]
[]
["3.4","TRANSPORTE COM CAMINHÃO BASCULANTE DE 10 M³, EM VIA URBANA PAVIMENTADA, DMT ATÉ 30 KM (UNIDADE: M3XKM). AF_07/2020 (TRANSPORTE DE AREIA)",{"$nulls":12},2]
[]
[{"$nulls":6},"fator de empolamento:",1.25]
[null,"Área do paralelo x Coef. X Empolamento (25%) x DMT (São Sebastião)",{"$nulls":4},{"$f":"G96","v":4209.99},{"$f":"ROUND(G115*I115*J115*H114,2)","v":18944.96},30,0.12]
[null,"TOTAL 3.4",{"$nulls":5},{"$f":"SUM(H115)","v":18944.96},{"$nulls":4},{"$f":"IF(C116>0,\"M\",IF(G116>0,\"M²\",IF(H116>0,\"M³\",IF(I116>0,\"KG\",IF(J116>0,\"UND\",\"\")))))","v":"M³"},null,"T"]
[]
["3.5","TRANSPORTE COM CAMINHÃO BASCULANTE DE 10 M³, EM VIA URBANA PAVIMENTADA, ADICIONAL PARA DMT EXCEDENTE A 30 KM (UNIDADE: M3XKM). AF_07/2020 (TRANSPORTE DE AREIA)",{"$nulls":12},2]
[]
[{"$nulls":6},"fator de empolamento:",1.25]
[null,"Área do paralelo x Coef. X Empolamento (25%) x DMT (São Sebastião)",{"$nulls":4},{"$f":"G96","v":4209.99},{"$f":"ROUND(G121*I121*J121*H120,2)","v":12629.97},20,0.12]
[null,"TOTAL 3.5",{"$nulls":5},{"$f":"SUM(H121)","v":12629.97},{"$nulls":4},{"$f":"IF(C122>0,\"M\",IF(G122>0,\"M²\",IF(H122>0,\"M³\",IF(I122>0,\"KG\",IF(J122>0,\"UND\",\"\")))))","v":"M³"},null,"T"]
[]
[]
[4,"DRENAGEM",{"$nulls":12},1]
[]
["4.1","ASSENTAMENTO DE GUIA (MEIO-FIO) EM TRECHO RETO, CONFECCIONADA EM CONCRETO PRÉ-FABRICADO, DIMENSÕES 100X15X13X30 CM (COMPRIMENTO X BASE INFERIOR X BASE SUPERIOR X ALTURA), PARA VIAS URBANAS (USO VIÁRIO). AF_06/2016",{"$nulls":12},2]
[]
[{"$nulls":13},"Os comprimentos de meio fio foram obtidos pela consulta das peças do Volume II - Perças gráficas  - Projetos de Pavimentação. Foi considerado ao final o dobro das medidas por ser considerado os dois lados da via (bordo esquerdo e direito)."]
[null,"Rua São João ",500]
[]
[]
[]
[]
[null,"Manibu",440]
[]
[null,"TOTAL 4.1",{"$f":"SUM(C129:C136)*2","v":1880},{"$nulls":9},{"$f":"IF(C137>0,\"M\",IF(G137>0,\"M²\",IF(H137>0,\"M³\",IF(I137>0,\"KG\",IF(J137>0,\"UND\",\"\")))))","v":"M"},null,"T"]
[]
["4.2","ESCORAMENTO DE MEIO FIO COM MATERIAL LOCAL COMPACTADO MANUALMENTE, EM FAIXA DE 0,50M",{"$nulls":12},2]
[]
[{"$nulls":13},"Os comprimentos de meio fio foram obtidos pela consulta das peças do Volume II - Perças gráficas  - Projetos de Pavimentação. Foi considerado ao final o dobro das medidas por ser considerado os dois lados da via (bordo esquerdo e direito)."]
[null,"Rua São João ",{"$f":"C130","v":500}]
[]
[]
[]
[]
[null,"Manibu",440]
[]
[null,"TOTAL 4.2",{"$f":"SUM(C141:C148)*2","v":1880},{"$nulls":9},{"$f":"IF(C149>0,\"M\",IF(G149>0,\"M²\",IF(H149>0,\"M³\",IF(I149>0,\"KG\",IF(J149>0,\"UND\",\"\")))))","v":"M"},null,"T"]
[]
["4.3","EXECUÇÃO DE SARJETA DE CONCRETO USINADO, MOLDADA  IN LOCO  EM TRECHO RETO, 30 CM BASE X 10 CM ALTURA. AF_06/2016",{"$nulls":12},2]
[]
[{"$nulls":13},"Os comprimentos de meio fio foram obtidos pela consulta das peças do Volume II - Perças gráficas  - Projetos de Pavimentação. Foi considerado ao final o dobro das medidas por ser considerado os dois lados da via (bordo esquerdo e direito). Foi considerado a execução de sarjetas em todos os seguimentos projetados."]
[null,"Rua São João ",{"$f":"C142","v":500}]
[]
[]
[]
[]
[null,"Manibu",440]
[]
[null,"TOTAL 4.3",{"$f":"SUM(C152:C159)*2","v":1880},{"$nulls":9},{"$f":"IF(C161>0,\"M\",IF(G161>0,\"M²\",IF(H161>0,\"M³\",IF(I161>0,\"KG\",IF(J161>0,\"UND\",\"\")))))","v":"M"},null,"T"]
[]
[5,"SINALIZAÇÃO",{"$nulls":12},1]
["5.1","FORNECIMENTO E INSTALAÇÃO DE SUPORTE DE MADEIRA  PARA PLACAS DE SINALIZAÇÃO, EM SOLO, COM H= DE 2,5 M E SEÇÃO DE 7,5 X 7,5 CM. AF_03/2022",{"$nulls":12},2]
[]
[]
[null,"Rua São João ",{"$nulls":7},1]
[]
[]
[]
[]
[null,"Manibu",{"$nulls":7},1]
[null,"TOTAL 5.1",{"$nulls":7},{"$f":"SUM(J166:J172)","v":2},null,null,{"$f":"IF(C173>0,\"M\",IF(G173>0,\"M²\",IF(H173>0,\"M³\",IF(I173>0,\"KG\",IF(J173>0,\"MÊS\",\"\")))))","v":"MÊS"},null,"T"]
[]
["5.2","Confecção de placa de sinalização totalmente refletiva",{"$nulls":12},2]
[]
[null,"Placa de sinalização",{"$nulls":4},{"$f":"J185","v":2}]
[]
[null,"Rua São João ",{"$nulls":7},1]
[]
[]
[]
[]
[null,"Manibu",{"$nulls":7},1]
[null,"TOTAL 5.2",{"$nulls":4},{"$f":"J185","v":2},null,null,{"$f":"SUM(J177:J184)","v":2},null,null,{"$f":"IF(C185>0,\"M\",IF(G185>0,\"M²\",IF(H185>0,\"M³\",IF(I185>0,\"KG\",IF(J185>0,\"MÊS\",\"\")))))","v":"M²"},null,"T"]
[]
[6,"SERVIÇOS COMPLEMENTARES",{"$nulls":12},1]
[]
["6.1","LIMPEZA DE RUAS (VARRIÇÃO E REMOÇÃO DE ENTULHOS) - REF. ORSE 6191",{"$nulls":12},2]
[null,"Área projetada do pavimento",{"$nulls":11},"As áreas foram obtidas pela consulta as peças do Volume II - Perças gráficas  - Projetos de Pavimentação."]
[]
[null,"Rua São João ",{"$nulls":4},{"$f":"G54","v":2052.1799999999998}]
[]
[]
[]
[]
[null,"Manibu",{"$nulls":4},2157.81]
[]
[null,"TOTAL 6.1",{"$nulls":4},{"$f":"SUM(G191:G197)","v":4209.99},{"$nulls":5},{"$f":"IF(C199>0,\"M\",IF(G199>0,\"M²\",IF(H199>0,\"M³\",IF(I199>0,\"KG\",IF(J199>0,\"UND\",\"\")))))","v":"M²"},null,"T"]
[]
["6.2","PINTURA DE MEIO-FIO COM TINTA BRANCA A BASE DE CAL (CAIAÇÃO). AF_05/2021",{"$nulls":12},2]
[]
[{"$nulls":13},"Os comprimentos de meio fio foram obtidos pela consulta das peças do Volume II - Perças gráficas  - Projetos de Pavimentação. Foi considerado ao final o dobro das medidas por ser considerado os dois lados da via (bordo esquerdo e direito). "]
[null,"Rua São João ",{"$f":"C142","v":500}]
[]
[]
[]
[]
[null,"Manibu",440]
[]
[null,"TOTAL 6.2",{"$f":"SUM(C202:C210)*2","v":1880},{"$nulls":9},{"$f":"IF(C211>0,\"M\",IF(G211>0,\"M²\",IF(H211>0,\"M³\",IF(I211>0,\"KG\",IF(J211>0,\"UND\",\"\")))))","v":"M"},null,"T"]
[]
["6.3","TOTEM DE INAUGURAÇÃO EM CONCRETO ARMADO FCL=20MPA COM TEXTO EM BAIXO RELEVO - MODELO CODEVASF",{"$nulls":12},3]
[]
[null,"Inauguração da obra",{"$nulls":7},2]
[null,"TOTAL 6.3",{"$nulls":7},{"$f":"J215","v":2},null,null,{"$f":"IF(C216>0,\"M\",IF(G216>0,\"M²\",IF(H216>0,\"M³\",IF(I216>0,\"KG\",IF(J216>0,\"UND\",\"\")))))","v":"UND"},null,"T"]

{"sheet":"DMTs","index":5,"n_rows":33,"n_cols":18,"rows_kept":33,"cut":false,"hidden":false,"merged":[[15,1,19,6],[5,0,5,8],[8,1,11,1],[12,1,13,1],[0,2,0,7],[1,2,1,7],[2,2,2,7],[3,2,3,7],[4,2,4,7]]}
[null,null,"Ministério do Desenvolvimento Regional - MDR"]
[null,null,"Companhia de Desenvolvimento dos Vales do São Francisco e do Parnaíba"]
[null,null,"5ª Superintendência Regional"]
[null,null,"Gerência Regional de Infraestrutura"]
[null,null,"Unidade Regional de Estudos e Projetos"]
["DISTÂNCIAS MÉDIA DE TRANSPORTE"]
[{"$nulls":13},"Boca da Mata",null,null,null,"Traipu"]
[null,"MATERIAL","MUNICÍPIO","DESTINO","DMT (Km)","FORNECEDOR","CONTATO"]
[null,"Pedra","Traipu","Penedo - ",106,"VR","(82) 99900-2861"]
[null,null,"Boca da Mata","Penedo - ",135]
[null,null,"Maribondo","Penedo - ",117,"CTEPMV (Povoado Mata Verde)","(82) 99607-6690"]
[null,null,"União dos Palmares","Penedo - ",null,"JK Serviços e Construções","82 9987-8404"]
[null,"Areia","São Sebastião","Penedo - ",51.1,"Mineradora Os Bebas","82 9945-5969"]
[null,null,"Junqueiro","Penedo - ",49.5,"JAF Transporte LTDA","82 9 9653-8877"]
[]
[]
[{"$nulls":8},"Maribondo",null,null,null,"São Sebastião "]
{"$rows_empty":15}
[{"$nulls":8},"Junqueiro"]

{"sheet":"CPUs","index":6,"n_rows":1646,"n_cols":10,"rows_kept":1646,"cut":false,"hidden":false,"merged":[[1,8,1,9],[2,0,2,9],[3,0,3,9],[4,4,4,5],[5,4,5,5],[6,4,6,5],[7,4,7,5],[8,4,8,5],[9,4,9,5],[10,4,10,5],[41,7,41,8],[43,4,43,5],[44,4,44,5],[45,4,45,5],[46,4,46,5],[47,4,47,5],[48,4,48,5],[49,4,49,5],[50,4,50,5],[52,7,52,8],[54,4,54,5],[11,4,11,5],[12,4,12,5],[14,7,14,8],[16,4,16,5],[17,4,17,5],[18,4,18,5],[19,4,19,5],[20,4,20,5],[21,4,21,5],[22,4,22,5],[23,4,23,5],[25,7,25,8],[27,4,27,5],[28,4,28,5],[29,4,29,5],[30,4,30,5],[31,4,31,5],[35,7,35,8],[86,4,86,5],[88,7,88,8],[90,4,90,5],[91,4,91,5],[92,4,92,5],[93,4,93,5],[95,7,95,8],[97,4,97,5],[98,4,98,5],[55,4,55,5],[56,4,56,5],[57,4,57,5],[58,4,58,5],[60,7,60,8],[62,4,62,5],[63,4,63,5],[64,4,64,5],[65,4,65,5],[66,4,66,5],[67,4,67,5],[69,7,69,8],[71,4,71,5],[72,4,72,5],[73,4,73,5],[74,4,74,5],[76,7,76,8],[122,7,122,8],[124,4,124,5],[125,4,125,5],[126,4,126,5],[127,4,127,5],[128,4,128,5],[129,4,129,5],[130,4,130,5],[131,4,131,5],[133,7,133,8],[135,4,135,5],[136,4,136,5],[137,4,137,5],[138,4,138,5],[139,4,139,5],[140,4,140,5],[99,4,99,5],[100,4,100,5],[101,4,101,5],[102,4,102,5],[103,4,103,5],[105,7,105,8],[107,4,107,5],[108,4,108,5],[109,4,109,5],[111,7,111,8],[113,4,113,5],[114,4,114,5],[115,4,115,5],[116,4,116,5],[117,4,117,5],[118,4,118,5],[141,4,141,5],[142,4,142,5],[143,4,143,5],[144,4,144,5],[145,4,145,5],[146,4,146,5],[147,4,147,5],[148,4,148,5],[149,4,149,5],[150,4,150,5],[151,4,151,5],[152,4,152,5],[154,7,154,8],[156,4,156,5],[157,4,157,5],[158,4,158,5],[159,4,159,5],[192,7,192,8],[194,4,194,5],[195,4,195,5],[196,4,196,5],[197,4,197,5],[198,4,198,5],[199,4,199,5],[200,4,200,5],[201,4,201,5],[165,4,165,5],[166,4,166,5],[167,4,167,5],[169,7,169,8],[171,4,171,5],[172,4,172,5],[173,4,173,5],[174,4,174,5],[175,4,175,5],[176,4,176,5],[178,7,178,8],[180,0,180,9],[181,4,181,5],[182,4,182,5],[232,7,232,8],[234,4,234,5],[235,4,235,5],[236,4,236,5],[237,4,237,5],[238,4,238,5],[239,4,239,5],[240,4,240,5],[241,4,241,5],[242,4,242,5],[243,4,243,5],[202,4,202,5],[203,4,203,5],[205,7,205,8],[207,4,207,5],[208,4,208,5],[209,4,209,5],[210,4,210,5],[211,4,211,5],[212,4,212,5],[214,7,214,8],[216,4,216,5],[217,4,217,5],[218,4,218,5],[219,4,219,5],[220,4,220,5],[222,7,222,8],[224,4,224,5],[225,4,225,5],[226,4,226,5],[227,4,227,5],[228,4,228,5],[275,7,275,8],[277,4,277,5],[278,4,278,5],[279,4,279,5],[280,4,280,5],[281,4,281,5],[282,4,282,5],[283,4,283,5],[285,7,285,8],[287,4,287,5],[245,7,245,8],[247,4,247,5],[248,4,248,5],[249,4,249,5],[250,4,250,5],[251,4,251,5],[252,4,252,5],[253,4,253,5],[255,7,255,8],[257,4,257,5],[258,4,258,5],[259,4,259,5],[260,4,260,5],[261,4,261,5],[262,4,262,5],[263,4,263,5],[265,7,265,8],[317,4,317,5],[318,4,318,5],[319,4,319,5],[320,4,320,5],[321,4,321,5],[322,4,322,5],[323,4,323,5],[325,7,325,8],[327,4,327,5],[328,4,328,5],[329,4,329,5],[288,4,288,5],[289,4,289,5],[290,4,290,5],[291,4,291,5],[292,4,292,5],[293,4,293,5],[295,7,295,8],[297,4,297,5],[298,4,298,5],[299,4,299,5],[300,4,300,5],[301,4,301,5],[302,4,302,5],[303,4,303,5],[305,7,305,8],[307,4,307,5],[308,4,308,5],[375,7,375,8],[377,4,377,5],[378,4,378,5],[379,4,379,5],[380,4,380,5],[381,4,381,5],[382,4,382,5],[383,4,383,5],[385,7,385,8],[387,4,387,5],[388,4,388,5],[389,4,389,5],[390,4,390,5],[391,4,391,5],[392,4,392,5],[351,4,351,5],[352,4,352,5],[353,4,353,5],[355,7,355,8],[357,4,357,5],[358,4,358,5],[359,4,359,5],[360,4,360,5],[361,4,361,5],[362,4,362,5],[363,4,363,5],[365,7,365,8],[367,4,367,5],[368,4,368,5],[369,4,369,5],[370,4,370,5],[371,4,371,5],[428,4,428,5],[429,4,429,5],[430,4,430,5],[431,4,431,5],[433,7,433,8],[435,4,435,5],[436,4,436,5],[393,4,393,5],[395,7,395,8],[397,4,397,5],[398,4,398,5],[399,4,399,5],[400,4,400,5],[401,4,401,5],[402,4,402,5],[403,4,403,5],[404,4,404,5],[406,7,406,8],[408,4,408,5],[409,4,409,5],[410,4,410,5],[411,4,411,5],[412,4,412,5],[413,4,413,5],[465,4,465,5],[466,4,466,5],[467,4,467,5],[468,4,468,5],[470,7,470,8],[472,4,472,5],[473,4,473,5],[474,4,474,5],[475,4,475,5],[476,4,476,5],[477,4,477,5],[478,4,478,5],[479,4,479,5],[481,7,481,8],[437,4,437,5],[439,7,439,8],[441,4,441,5],[442,4,442,5],[443,4,443,5],[445,7,445,8],[447,4,447,5],[448,4,448,5],[449,4,449,5],[451,7,451,8],[453,4,453,5],[454,4,454,5],[455,4,455,5],[457,7,457,8],[459,4,459,5],[460,4,460,5],[461,4,461,5],[522,4,522,5],[523,4,523,5],[524,4,524,5],[525,4,525,5],[526,4,526,5],[527,4,527,5],[528,4,528,5],[483,4,483,5],[484,4,484,5],[485,4,485,5],[487,7,487,8],[489,4,489,5],[490,4,490,5],[491,4,491,5],[493,7,493,8],[495,4,495,5],[496,4,496,5],[497,4,497,5],[499,7,499,8],[501,4,501,5],[502,4,502,5],[503,4,503,5],[505,7,505,8],[507,4,507,5],[565,7,565,8],[567,4,567,5],[568,4,568,5],[569,4,569,5],[570,4,570,5],[571,4,571,5],[572,4,572,5],[573,4,573,5],[574,4,574,5],[529,4,529,5],[531,7,531,8],[533,4,533,5],[534,4,534,5],[535,4,535,5],[536,4,536,5],[538,7,538,8],[540,4,540,5],[541,4,541,5],[542,4,542,5],[543,4,543,5],[545,7,545,8],[547,4,547,5],[548,4,548,5],[549,4,549,5],[550,4,550,5],[552,7,552,8],[604,7,604,8],[606,4,606,5],[607,4,607,5],[608,4,608,5],[610,7,610,8],[612,4,612,5],[613,4,613,5],[614,4,614,5],[615,4,615,5],[616,4,616,5],[617,4,617,5],[618,4,618,5],[619,4,619,5],[621,7,621,8],[576,7,576,8],[578,4,578,5],[579,4,579,5],[580,4,580,5],[581,4,581,5],[583,7,583,8],[585,4,585,5],[586,4,586,5],[587,4,587,5],[588,4,588,5],[590,7,590,8],[592,4,592,5],[593,4,593,5],[594,4,594,5],[595,4,595,5],[597,7,597,8],[599,4,599,5],[600,4,600,5],[657,4,657,5],[658,4,658,5],[659,4,659,5],[660,4,660,5],[661,4,661,5],[662,4,662,5],[663,4,663,5],[664,4,664,5],[665,4,665,5],[666,4,666,5],[623,4,623,5],[624,4,624,5],[625,4,625,5],[626,4,626,5],[628,7,628,8],[630,4,630,5],[631,4,631,5],[632,4,632,5],[633,4,633,5],[635,7,635,8],[637,4,637,5],[638,4,638,5],[639,4,639,5],[640,4,640,5],[642,7,642,8],[644,4,644,5],[645,4,645,5],[646,4,646,5],[647,4,647,5],[649,7,649,8],[651,4,651,5],[652,4,652,5],[703,4,703,5],[705,7,705,8],[668,7,668,8],[670,4,670,5],[671,4,671,5],[672,4,672,5],[673,4,673,5],[674,4,674,5],[675,4,675,5],[676,4,676,5],[677,4,677,5],[678,4,678,5],[679,4,679,5],[680,4,680,5],[681,4,681,5],[682,4,682,5],[683,4,683,5],[684,4,684,5],[685,4,685,5],[686,4,686,5],[748,4,748,5],[707,4,707,5],[708,4,708,5],[709,4,709,5],[710,4,710,5],[711,4,711,5],[712,4,712,5],[713,4,713,5],[714,4,714,5],[716,7,716,8],[718,4,718,5],[719,4,719,5],[720,4,720,5],[721,4,721,5],[722,4,722,5],[723,4,723,5],[724,4,724,5],[725,4,725,5],[776,4,776,5],[777,4,777,5],[778,4,778,5],[779,4,779,5],[780,4,780,5],[782,7,782,8],[784,4,784,5],[785,4,785,5],[786,4,786,5],[787,4,787,5],[788,4,788,5],[790,7,790,8],[792,4,792,5],[793,4,793,5],[794,4,794,5],[749,4,749,5],[750,4,750,5],[752,7,752,8],[754,4,754,5],[755,4,755,5],[756,4,756,5],[757,4,757,5],[759,7,759,8],[761,4,761,5],[762,4,762,5],[763,4,763,5],[764,4,764,5],[766,7,766,8],[768,4,768,5],[769,4,769,5],[770,4,770,5],[771,4,771,5],[840,4,840,5],[841,4,841,5],[842,4,842,5],[844,7,844,8],[846,4,846,5],[796,7,796,8],[798,4,798,5],[799,4,799,5],[800,4,800,5],[802,7,802,8],[804,4,804,5],[805,4,805,5],[806,4,806,5],[808,7,808,8],[810,4,810,5],[811,4,811,5],[812,4,812,5],[814,7,814,8],[816,4,816,5],[817,4,817,5],[818,4,818,5],[820,7,820,8],[877,4,877,5],[878,4,878,5],[880,7,880,8],[882,4,882,5],[883,4,883,5],[884,4,884,5],[886,7,886,8],[888,4,888,5],[889,4,889,5],[890,4,890,5],[892,7,892,8],[894,4,894,5],[895,4,895,5],[896,4,896,5],[847,4,847,5],[848,4,848,5],[850,7,850,8],[852,4,852,5],[853,4,853,5],[854,4,854,5],[856,7,856,8],[858,4,858,5],[859,4,859,5],[860,4,860,5],[862,7,862,8],[864,4,864,5],[865,4,865,5],[866,4,866,5],[868,7,868,8],[870,4,870,5],[871,4,871,5],[898,7,898,8],[900,4,900,5],[901,4,901,5],[902,4,902,5],[904,7,904,8],[906,4,906,5],[907,4,907,5],[908,4,908,5],[910,7,910,8],[912,4,912,5],[913,4,913,5],[914,4,914,5],[916,7,916,8],[918,4,918,5],[919,4,919,5],[920,4,920,5],[922,7,922,8],[964,4,964,5],[965,4,965,5],[924,4,924,5],[925,4,925,5],[926,4,926,5],[928,7,928,8],[930,4,930,5],[931,4,931,5],[932,4,932,5],[934,7,934,8],[936,4,936,5],[937,4,937,5],[938,4,938,5],[939,4,939,5],[940,4,940,5],[941,4,941,5],[942,4,942,5],[943,4,943,5],[945,7,945,8],[996,7,996,8],[998,4,998,5],[999,4,999,5],[1000,4,1000,5],[1001,4,1001,5],[1002,4,1002,5],[1003,4,1003,5],[1004,4,1004,5],[1005,4,1005,5],[967,7,967,8],[969,4,969,5],[970,4,970,5],[971,4,971,5],[973,7,973,8],[975,4,975,5],[976,4,976,5],[977,4,977,5],[978,4,978,5],[979,4,979,5],[980,4,980,5],[981,4,981,5],[982,4,982,5],[983,4,983,5],[984,4,984,5],[985,4,985,5],[986,4,986,5],[992,4,992,5],[993,4,993,5],[994,4,994,5],[987,4,987,5],[988,4,988,5],[989,4,989,5],[1032,7,1032,8],[1034,4,1034,5],[1035,4,1035,5],[1036,4,1036,5],[1037,4,1037,5],[1038,4,1038,5],[1039,4,1039,5],[1040,4,1040,5],[1041,4,1041,5],[1006,4,1006,5],[1007,4,1007,5],[1008,4,1008,5],[1009,4,1009,5],[1010,4,1010,5],[1011,4,1011,5],[1012,4,1012,5],[1013,4,1013,5],[1014,4,1014,5],[1015,4,1015,5],[1016,4,1016,5],[1017,4,1017,5],[1018,4,1018,5],[1019,4,1019,5],[1020,4,1020,5],[1021,4,1021,5],[1022,4,1022,5],[1066,4,1066,5],[1067,4,1067,5],[1068,4,1068,5],[1069,4,1069,5],[1070,4,1070,5],[1071,4,1071,5],[1072,4,1072,5],[1073,4,1073,5],[1074,4,1074,5],[1075,4,1075,5],[1076,4,1076,5],[1078,7,1078,8],[1042,4,1042,5],[1043,4,1043,5],[1044,4,1044,5],[1045,4,1045,5],[1046,4,1046,5],[1047,4,1047,5],[1048,4,1048,5],[1049,4,1049,5],[1050,4,1050,5],[1051,4,1051,5],[1052,4,1052,5],[1053,4,1053,5],[1054,4,1054,5],[1055,4,1055,5],[1057,7,1057,8],[1059,4,1059,5],[1060,4,1060,5],[1129,4,1129,5],[1130,4,1130,5],[1131,4,1131,5],[1132,4,1132,5],[1133,4,1133,5],[1134,4,1134,5],[1135,4,1135,5],[1136,4,1136,5],[1137,4,1137,5],[1138,4,1138,5],[1100,7,1100,8],[1102,4,1102,5],[1103,4,1103,5],[1104,4,1104,5],[1105,4,1105,5],[1106,4,1106,5],[1107,4,1107,5],[1108,4,1108,5],[1109,4,1109,5],[1110,4,1110,5],[1111,4,1111,5],[1113,7,1113,8],[1115,4,1115,5],[1116,4,1116,5],[1117,4,1117,5],[1118,4,1118,5],[1119,4,1119,5],[1120,4,1120,5],[1121,4,1121,5],[1122,4,1122,5],[1123,4,1123,5],[1124,4,1124,5],[1199,4,1199,5],[1200,4,1200,5],[1202,7,1202,8],[1160,4,1160,5],[1161,4,1161,5],[1162,4,1162,5],[1163,4,1163,5],[1164,4,1164,5],[1166,7,1166,8],[1168,4,1168,5],[1169,4,1169,5],[1170,4,1170,5],[1171,4,1171,5],[1172,4,1172,5],[1173,4,1173,5],[1174,4,1174,5],[1175,4,1175,5],[1176,4,1176,5],[1178,7,1178,8],[1180,4,1180,5],[1204,4,1204,5],[1205,4,1205,5],[1206,4,1206,5],[1208,7,1208,8],[1210,4,1210,5],[1211,4,1211,5],[1212,4,1212,5],[1214,7,1214,8],[1216,4,1216,5],[1217,4,1217,5],[1218,4,1218,5],[1220,7,1220,8],[1222,4,1222,5],[1223,4,1223,5],[1224,4,1224,5],[1225,4,1225,5],[1226,4,1226,5],[1227,4,1227,5],[1228,4,1228,5],[1229,4,1229,5],[1230,4,1230,5],[1231,4,1231,5],[1233,7,1233,8],[1235,4,1235,5],[1236,4,1236,5],[1237,4,1237,5],[1238,4,1238,5],[1239,4,1239,5],[1240,4,1240,5],[1241,4,1241,5],[1242,4,1242,5],[1243,4,1243,5],[1244,4,1244,5],[1246,7,1246,8],[1248,4,1248,5],[1249,4,1249,5],[1250,4,1250,5],[1251,4,1251,5],[1252,4,1252,5],[1253,4,1253,5],[1254,4,1254,5],[1255,4,1255,5],[1256,4,1256,5],[1257,4,1257,5],[1259,7,1259,8],[1261,4,1261,5],[1262,4,1262,5],[1263,4,1263,5],[1264,4,1264,5],[1265,4,1265,5],[1266,4,1266,5],[1267,4,1267,5],[1268,4,1268,5],[1270,7,1270,8],[1272,4,1272,5],[1273,4,1273,5],[1274,4,1274,5],[1275,4,1275,5],[1276,4,1276,5],[1277,4,1277,5],[1278,4,1278,5],[1279,4,1279,5],[1280,4,1280,5],[1281,4,1281,5],[1283,7,1283,8],[1285,4,1285,5],[1286,4,1286,5],[1287,4,1287,5],[1327,4,1327,5],[1288,4,1288,5],[1289,4,1289,5],[1290,4,1290,5],[1291,4,1291,5],[1292,4,1292,5],[1293,4,1293,5],[1294,4,1294,5],[1296,7,1296,8],[1298,4,1298,5],[1299,4,1299,5],[1300,4,1300,5],[1301,4,1301,5],[1302,4,1302,5],[1303,4,1303,5],[1304,4,1304,5],[1305,4,1305,5],[1306,4,1306,5],[1353,4,1353,5],[1354,4,1354,5],[1355,4,1355,5],[1356,4,1356,5],[1357,4,1357,5],[1358,4,1358,5],[1359,4,1359,5],[1361,7,1361,8],[1363,4,1363,5],[1364,4,1364,5],[1365,4,1365,5],[1366,4,1366,5],[1367,4,1367,5],[1328,4,1328,5],[1329,4,1329,5],[1330,4,1330,5],[1331,4,1331,5],[1332,4,1332,5],[1333,4,1333,5],[1335,7,1335,8],[1337,4,1337,5],[1338,4,1338,5],[1339,4,1339,5],[1340,4,1340,5],[1341,4,1341,5],[1342,4,1342,5],[1343,4,1343,5],[1344,4,1344,5],[1345,4,1345,5],[1346,4,1346,5],[1348,7,1348,8],[1350,4,1350,5],[1424,7,1424,8],[1426,4,1426,5],[1427,4,1427,5],[1428,4,1428,5],[1430,7,1430,8],[1432,4,1432,5],[1433,4,1433,5],[1434,4,1434,5],[1436,7,1436,8],[1438,4,1438,5],[1391,4,1391,5],[1392,4,1392,5],[1394,7,1394,8],[1396,4,1396,5],[1397,4,1397,5],[1398,4,1398,5],[1399,4,1399,5],[1400,4,1400,5],[1402,7,1402,8],[1404,4,1404,5],[1405,4,1405,5],[1406,4,1406,5],[1407,4,1407,5],[1408,4,1408,5],[1409,4,1409,5],[1410,4,1410,5],[1412,7,1412,8],[1421,4,1421,5],[1422,4,1422,5],[1466,7,1466,8],[1468,4,1468,5],[1469,4,1469,5],[1470,4,1470,5],[1472,7,1472,8],[1474,4,1474,5],[1475,4,1475,5],[1476,4,1476,5],[1478,7,1478,8],[1480,4,1480,5],[1481,4,1481,5],[1482,4,1482,5],[1483,4,1483,5],[1484,4,1484,5],[1439,4,1439,5],[1440,4,1440,5],[1441,4,1441,5],[1442,4,1442,5],[1444,7,1444,8],[1446,4,1446,5],[1447,4,1447,5],[1448,4,1448,5],[1449,4,1449,5],[1450,4,1450,5],[1451,4,1451,5],[1452,4,1452,5],[1454,7,1454,8],[1456,4,1456,5],[1457,4,1457,5],[1458,4,1458,5],[1460,7,1460,8],[1530,4,1530,5],[1486,7,1486,8],[1488,4,1488,5],[1489,4,1489,5],[1490,4,1490,5],[1491,4,1491,5],[1492,4,1492,5],[1493,4,1493,5],[1494,4,1494,5],[1496,7,1496,8],[1498,4,1498,5],[1499,4,1499,5],[1500,4,1500,5],[1502,7,1502,8],[1504,4,1504,5],[1505,4,1505,5],[1506,4,1506,5],[1508,7,1508,8],[1558,4,1558,5],[1559,4,1559,5],[1560,4,1560,5],[1562,7,1562,8],[1564,4,1564,5],[1565,4,1565,5],[1566,4,1566,5],[1568,7,1568,8],[1570,4,1570,5],[1571,4,1571,5],[1572,4,1572,5],[1574,7,1574,8],[1576,4,1576,5],[1577,4,1577,5],[1578,4,1578,5],[1531,4,1531,5],[1533,7,1533,8],[1535,4,1535,5],[1536,4,1536,5],[1537,4,1537,5],[1538,4,1538,5],[1540,7,1540,8],[1542,4,1542,5],[1543,4,1543,5],[1544,4,1544,5],[1545,4,1545,5],[1546,4,1546,5],[1547,4,1547,5],[1548,4,1548,5],[1550,7,1550,8],[1552,4,1552,5],[1553,4,1553,5],[1579,4,1579,5],[1580,4,1580,5],[1581,4,1581,5],[1582,4,1582,5],[1583,4,1583,5],[1584,4,1584,5],[1585,4,1585,5],[1587,7,1587,8],[1589,4,1589,5],[1590,4,1590,5],[1591,4,1591,5],[1592,4,1592,5],[1593,4,1593,5],[1594,4,1594,5],[1595,4,1595,5],[1596,4,1596,5],[1598,7,1598,8],[1600,4,1600,5],[1601,4,1601,5],[1602,4,1602,5],[1603,4,1603,5],[1605,7,1605,8],[1607,4,1607,5],[1608,4,1608,5],[1609,4,1609,5],[1610,4,1610,5],[1611,4,1611,5],[1612,4,1612,5],[1614,7,1614,8],[1616,4,1616,5],[1617,4,1617,5],[1618,4,1618,5],[1620,7,1620,8],[1622,4,1622,5],[1643,0,1643,2],[1643,5,1643,6],[1643,7,1643,9],[1645,0,1645,9],[1623,4,1623,5],[1624,4,1624,5],[1626,7,1626,8],[1628,4,1628,5],[1629,4,1629,5],[1630,4,1630,5],[1632,7,1632,8],[1634,4,1634,5],[1635,4,1635,5],[1636,4,1636,5],[1638,7,1638,8]],"merged_total":1296,"flags":["merged_cut"]}
[null,null,"Composições Analíticas com Preço Unitário",null,"Bancos",null,"B.D.I.",null,"Encargos Sociais"]
[null,null,"SEM DESONERAÇÃO -Execução de serviços de pavimentação em paralelepípedo em ruas do município de Penedo/AL ",null,"SINAPI - 04/2024 - Alagoas\nSICRO3 - 01/2024 - Alagoas\nORSE - 03/2024 - Sergipe\n",null,"21,35%",null,"Não Desonerado: \nHorista: 115,22%\nMensalista: 70,31%"]
["Composições Analíticas com Preço Unitário"]
["Composições Principais"]
[" 1.1 ","Código","Banco","Descrição","Tipo",null,"Und","Quant.","Valor Unit","Total"]
["Composição"," 103689 ","SINAPI","FORNECIMENTO E INSTALAÇÃO DE PLACA DE OBRA COM CHAPA GALVANIZADA E ESTRUTURA DE MADEIRA. AF_03/2022_PS","PAVI - PAVIMENTAÇÃO",null,"m²",1,312.7,312.7]
["Composição Auxiliar"," 102234 ","SINAPI","PINTURA IMUNIZANTE PARA MADEIRA, 2 DEMÃOS. AF_01/2021","PINT - PINTURAS",null,"m²",0.5,24.18,12.09]
["Composição Auxiliar"," 88262 ","SINAPI","CARPINTEIRO DE FORMAS COM ENCARGOS COMPLEMENTARES","SEDI - SERVIÇOS DIVERSOS",null,"H",0.37290000000000001,24.5,9.1300000000000008]
["Composição Auxiliar"," 88316 ","SINAPI","SERVENTE COM ENCARGOS COMPLEMENTARES","SEDI - SERVIÇOS DIVERSOS",null,"H",1.1186,20.28,22.68]
["Insumo"," 00004509 ","SINAPI","SARRAFO *2,5 X 10* CM EM PINUS, MISTA OU EQUIVALENTE DA REGIAO - BRUTA","Material",null,"M",3.2082999999999999,5.61,17.989999999999998]
["Insumo"," 00004813 ","SINAPI","PLACA DE OBRA (PARA CONSTRUCAO CIVIL) EM CHAPA GALVANIZADA *N. 22*, ADESIVADA, DE *2,4 X 1,2* M (SEM POSTES PARA FIXACAO)","Material",null,"m²",1,250,250]
["Insumo"," 00005065 ","SINAPI","PREGO DE ACO POLIDO COM CABECA 10 X 10 (7/8 X 17)","Material",null,"KG",1.1299999999999999E-2,44.5,0.5]
["Insumo"," 00005069 ","SINAPI","PREGO DE ACO POLIDO COM CABECA 17 X 27 (2 1/2 X 11)","Material",null,"KG",1.32E-2,23.85,0.31]
[{"$nulls":4},"MO sem LS =>",12.466313539633862,"LS =>",14.36,"MO com LS =>",26.83]
[{"$nulls":4},"Valor do BDI =>",66.760000000000005,null,"Valor com BDI =>",null,379.46]
[]
[" 1.3 ","Código","Banco","Descrição","Tipo",null,"Und","Quant.","Valor Unit","Total"]
["Composição"," GRD-2023-12-SP1 ","Próprio","ADMINISTRAÇÃO LOCAL","SERP - SERVIÇOS PRELIMINARES",null,"UND",1,64096.800000000003,64096.800000000003]
["Composição Auxiliar"," 90777 ","SINAPI","ENGENHEIRO CIVIL DE OBRA JUNIOR COM ENCARGOS COMPLEMENTARES","SEDI - SERVIÇOS DIVERSOS",null,"H",120,125.04,15004.8]
["Composição Auxiliar"," 90776 ","SINAPI","ENCARREGADO GERAL COM ENCARGOS COMPLEMENTARES","SEDI - SERVIÇOS DIVERSOS",null,"H",480,26.2,12576]
["Composição Auxiliar"," 90772 ","SINAPI","AUXILIAR DE ESCRITORIO COM ENCARGOS COMPLEMENTARES","SEDI - SERVIÇOS DIVERSOS",null,"H",480,16.66,7996.8]
["Composição Auxiliar"," 100309 ","SINAPI","TÉCNICO EM SEGURANÇA DO TRABALHO COM ENCARGOS COMPLEMENTARES","SEDI - SERVIÇOS DIVERSOS",null,"H",480,27.79,13339.2]
["Insumo"," 2789 ","ORSE","Veículo leve - pick up (97kw) h","Equipamento",null,"un",1200,10.35,12420]
["Insumo"," 00004222 ","SINAPI","GASOLINA COMUM","Material",null,"L",480,5.75,2760]
[{"$nulls":4},"MO sem LS =>",21006.4120435,"LS =>",24203.59,"MO com LS =>",45210]
[{"$nulls":4},"Valor do BDI =>",13684.66,null,"Valor com BDI =>",null,77781.460000000006]
[]
[" 1.4 ","Código","Banco","Descrição","Tipo",null,"Und","Quant.","Valor Unit","Total"]
["Composição"," GRD-2023-12-SP2 ","Próprio","MOBILIZAÇÃO E DESMOBILIZAÇÃO - POVOADO MARCAÇÃO","ASTU - ASSENTAMENTO DE TUBOS E PECAS",null,"UND",1,2410.86,2410.86]
["Composição Auxiliar"," 91386 ","SINAPI","CAMINHÃO BASCULANTE 10 M3, TRUCADO CABINE SIMPLES, PESO BRUTO TOTAL 23.000 KG, CARGA ÚTIL MÁXIMA 15.935 KG, DISTÂNCIA ENTRE EIXOS 4,80 M, POTÊNCIA 230 CV INCLUSIVE CAÇAMBA METÁLICA - CHP DIURNO. AF_06/2014","CHOR - CUSTOS HORÁRIOS DE MÁQUINAS E EQUIPAMENTOS",null,"CHP",2,264.18,528.36]
["Composição Auxiliar"," 5901 ","SINAPI","CAMINHÃO PIPA 10.000 L TRUCADO, PESO BRUTO TOTAL 23.000 KG, CARGA ÚTIL MÁXIMA 15.935 KG, DISTÂNCIA ENTRE EIXOS 4,8 M, POTÊNCIA 230 CV, INCLUSIVE TANQUE DE AÇO PARA TRANSPORTE DE ÁGUA - CHP DIURNO. AF_06/2014","CHOR - CUSTOS HORÁRIOS DE MÁQUINAS E EQUIPAMENTOS",null,"CHP",2,314.62,629.24]
["Composição Auxiliar"," 5932 ","SINAPI","MOTONIVELADORA POTÊNCIA BÁSICA LÍQUIDA (PRIMEIRA MARCHA) 125 HP, PESO BRUTO 13032 KG, LARGURA DA LÂMINA DE 3,7 M - CHP DIURNO. AF_06/2014","CHOR - CUSTOS HORÁRIOS DE MÁQUINAS E EQUIPAMENTOS",null,"CHP",2,249.6,499.2]
["Composição Auxiliar"," 91031 ","SINAPI","CAMINHÃO TRUCADO (C/ TERCEIRO EIXO) ELETRÔNICO - POTÊNCIA 231CV - PBT = 22000KG - DIST. ENTRE EIXOS 5170 MM - INCLUI CARROCERIA FIXA ABERTA DE MADEIRA - CHP DIURNO. AF_06/2015","CHOR - CUSTOS HORÁRIOS DE MÁQUINAS E EQUIPAMENTOS",null,"CHP",2,255.86,511.72]
["Composição Auxiliar"," 89035 ","SINAPI","TRATOR DE PNEUS, POTÊNCIA 85 CV, TRAÇÃO 4X4, PESO COM LASTRO DE 4.675 KG - CHP DIURNO. AF_06/2014","CHOR - CUSTOS HORÁRIOS DE MÁQUINAS E EQUIPAMENTOS",null,"CHP",2,121.17,242.34]
[{"$nulls":4},"MO sem LS =>",94.191989599999999,"LS =>",108.53,"MO com LS =>",202.72]
[{"$nulls":4},"Valor do BDI =>",514.71,null,"Valor com BDI =>",null,2925.57]
[]
[" 1.5 ","Código","Banco","Descrição","Tipo",null,"Und","Quant.","Valor Unit","Total"]
["Composição"," GRD-2023-12-SP3 ","Próprio","PROJETO EXECUTIVO - POVOADO MARCAÇÃO","SERP - SERVIÇOS PRELIMINARES",null,"UND",1,5900,5900]
["Insumo"," 13587 ","ORSE","Projeto de Pavimentação Km","Serviços",null,"Km",1,5900,5900]
[{"$nulls":4},"MO sem LS =>",0,"LS =>",0,"MO com LS =>",0]
[{"$nulls":4},"Valor do BDI =>",1259.6500000000001,null,"Valor com BDI =>",null,7159.65]
[]
[" 2.1 ","Código","Banco","Descrição","Tipo",null,"Und","Quant.","Valor Unit","Total"]
["Composição"," 78472 ","SINAPI","SERVICOS TOPOGRAFICOS PARA PAVIMENTACAO, INCLUSIVE NOTA DE SERVICOS, ACOMPANHAMENTO E GREIDE","SERT - SERVIÇOS TÉCNICOS",null,"m²",1,0.4,0.4]
["Composição Auxiliar"," 88253 ","SINAPI","AUXILIAR DE TOPÓGRAFO COM ENCARGOS COMPLEMENTARES","SEDI - SERVIÇOS DIVERSOS",null,"H",2.5000000000000001E-3,19.79,0.04]
["Composição Auxiliar"," 88288 ","SINAPI","NIVELADOR COM ENCARGOS COMPLEMENTARES","SEDI - SERVIÇOS DIVERSOS",null,"H",2.5000000000000001E-3,17.100000000000001,0.04]
["Composição Auxiliar"," 88316 ","SINAPI","SERVENTE COM ENCARGOS COMPLEMENTARES","SEDI - SERVIÇOS DIVERSOS",null,"H",7.4999999999999997E-3,20.28,0.15]
["Composição Auxiliar"," 88597 ","SINAPI","DESENHISTA DETALHISTA COM ENCARGOS COMPLEMENTARES","SEDI - SERVIÇOS DIVERSOS",null,"H",2E-3,37.729999999999997,7.0000000000000007E-2]
["Composição Auxiliar"," 92145 ","SINAPI","CAMINHONETE CABINE SIMPLES COM MOTOR 1.6 FLEX, CÂMBIO MANUAL, POTÊNCIA 101/104 CV, 2 PORTAS - CHP DIURNO. AF_11/2015","CHOR - CUSTOS HORÁRIOS DE MÁQUINAS E EQUIPAMENTOS",null,"CHP",1E-3,73.48,7.0000000000000007E-2]
["Insumo"," 00006204 ","SINAPI","SARRAFO DE MADEIRA NAO APARELHADA *2,5 X 15* CM, MACARANDUBA, ANGELIM OU EQUIVALENTE DA REGIAO","Material",null,"M",2.8860000000000001E-3,12.31,0.03]
[{"$nulls":4},"MO sem LS =>",0.11616020815909303,"LS =>",0.13,"MO com LS =>",0.25]
[{"$nulls":4},"Valor do BDI =>",0.08,null,"Valor com BDI =>",null,0.48]
[]
[" 2.2 ","Código","Banco","Descrição","Tipo",null,"Und","Quant.","Valor Unit","Total"]
["Composição"," 100575 ","SINAPI","REGULARIZAÇÃO DE SUPERFÍCIES COM MOTONIVELADORA. AF_11/2019","PAVI - PAVIMENTAÇÃO",null,"m²",1,0.13,0.13]
["Composição Auxiliar"," 5932 ","SINAPI","MOTONIVELADORA POTÊNCIA BÁSICA LÍQUIDA (PRIMEIRA MARCHA) 125 HP, PESO BRUTO 13032 KG, LARGURA DA LÂMINA DE 3,7 M - CHP DIURNO. AF_06/2014","CHOR - CUSTOS HORÁRIOS DE MÁQUINAS E EQUIPAMENTOS",null,"CHP",1E-4,249.6,0.02]
["Composição Auxiliar"," 5934 ","SINAPI","MOTONIVELADORA POTÊNCIA BÁSICA LÍQUIDA (PRIMEIRA MARCHA) 125 HP, PESO BRUTO 13032 KG, LARGURA DA LÂMINA DE 3,7 M - CHI DIURNO. AF_06/2014","CHOR - CUSTOS HORÁRIOS DE MÁQUINAS E EQUIPAMENTOS",null,"CHI",1E-3,93.96,0.09]
["Composição Auxiliar"," 88316 ","SINAPI","SERVENTE COM ENCARGOS COMPLEMENTARES","SEDI - SERVIÇOS DIVERSOS",null,"H",1E-3,20.28,0.02]
[{"$nulls":4},"MO sem LS =>",1.3939224979091162E-2,"LS =>",0.02,"MO com LS =>",0.03]
[{"$nulls":4},"Valor do BDI =>",0.02,null,"Valor com BDI =>",null,0.15]
[]
[" 2.3 ","Código","Banco","Descrição","Tipo",null,"Und","Quant.","Valor Unit","Total"]
["Composição"," 100974 ","SINAPI","CARGA, MANOBRA E DESCARGA DE SOLOS E MATERIAIS GRANULARES EM CAMINHÃO BASCULANTE 10 M³ - CARGA COM PÁ CARREGADEIRA (CAÇAMBA DE 1,7 A 2,8 M³ / 128 HP) E DESCARGA LIVRE (UNIDADE: M3). AF_07/2020","TRAN - TRANSPORTES, CARGAS E DESCARGAS",null,"m³",1,8.2799999999999994,8.2799999999999994]
["Composição Auxiliar"," 5940 ","SINAPI","PÁ CARREGADEIRA SOBRE RODAS, POTÊNCIA LÍQUIDA 128 HP, CAPACIDADE DA CAÇAMBA 1,7 A 2,8 M3, PESO OPERACIONAL 11632 KG - CHP DIURNO. AF_06/2014","CHOR - CUSTOS HORÁRIOS DE MÁQUINAS E EQUIPAMENTOS",null,"CHP",8.3000000000000001E-3,172.51,1.43]
["Composição Auxiliar"," 5942 ","SINAPI","PÁ CARREGADEIRA SOBRE RODAS, POTÊNCIA LÍQUIDA 128 HP, CAPACIDADE DA CAÇAMBA 1,7 A 2,8 M3, PESO OPERACIONAL 11632 KG - CHI DIURNO. AF_06/2014","CHOR - CUSTOS HORÁRIOS DE MÁQUINAS E EQUIPAMENTOS",null,"CHI",1.0500000000000001E-2,64.89,0.68]
["Composição Auxiliar"," 91386 ","SINAPI","CAMINHÃO BASCULANTE 10 M3, TRUCADO CABINE SIMPLES, PESO BRUTO TOTAL 23.000 KG, CARGA ÚTIL MÁXIMA 15.935 KG, DISTÂNCIA ENTRE EIXOS 4,80 M, POTÊNCIA 230 CV INCLUSIVE CAÇAMBA METÁLICA - CHP DIURNO. AF_06/2014","CHOR - CUSTOS HORÁRIOS DE MÁQUINAS E EQUIPAMENTOS",null,"CHP",1.9800000000000002E-2,264.18,5.23]
["Composição Auxiliar"," 91387 ","SINAPI","CAMINHÃO BASCULANTE 10 M3, TRUCADO CABINE SIMPLES, PESO BRUTO TOTAL 23.000 KG, CARGA ÚTIL MÁXIMA 15.935 KG, DISTÂNCIA ENTRE EIXOS 4,80 M, POTÊNCIA 230 CV INCLUSIVE CAÇAMBA METÁLICA - CHI DIURNO. AF_06/2014","CHOR - CUSTOS HORÁRIOS DE MÁQUINAS E EQUIPAMENTOS",null,"CHI",1.38E-2,68.39,0.94]
[{"$nulls":4},"MO sem LS =>",0.43211597435182603,"LS =>",0.5,"MO com LS =>",0.93]
[{"$nulls":4},"Valor do BDI =>",1.76,null,"Valor com BDI =>",null,10.039999999999999]
[]
[" 2.4 ","Código","Banco","Descrição","Tipo",null,"Und","Quant.","Valor Unit","Total"]
["Composição"," 95875 ","SINAPI","TRANSPORTE COM CAMINHÃO BASCULANTE DE 10 M³, EM VIA URBANA PAVIMENTADA, DMT ATÉ 30 KM (UNIDADE: M3XKM). AF_07/2020","TRAN - TRANSPORTES, CARGAS E DESCARGAS",null,"M3XKM",1,2.4300000000000002,2.4300000000000002]
["Composição Auxiliar"," 91386 ","SINAPI","CAMINHÃO BASCULANTE 10 M3, TRUCADO CABINE SIMPLES, PESO BRUTO TOTAL 23.000 KG, CARGA ÚTIL MÁXIMA 15.935 KG, DISTÂNCIA ENTRE EIXOS 4,80 M, POTÊNCIA 230 CV INCLUSIVE CAÇAMBA METÁLICA - CHP DIURNO. AF_06/2014","CHOR - CUSTOS HORÁRIOS DE MÁQUINAS E EQUIPAMENTOS",null,"CHP",8.3000000000000001E-3,264.18,2.19]
["Composição Auxiliar"," 91387 ","SINAPI","CAMINHÃO BASCULANTE 10 M3, TRUCADO CABINE SIMPLES, PESO BRUTO TOTAL 23.000 KG, CARGA ÚTIL MÁXIMA 15.935 KG, DISTÂNCIA ENTRE EIXOS 4,80 M, POTÊNCIA 230 CV INCLUSIVE CAÇAMBA METÁLICA - CHI DIURNO. AF_06/2014","CHOR - CUSTOS HORÁRIOS DE MÁQUINAS E EQUIPAMENTOS",null,"CHI",3.5999999999999999E-3,68.39,0.24]
[{"$nulls":4},"MO sem LS =>",9.7574574853638144E-2,"LS =>",0.11,"MO com LS =>",0.21]
[{"$nulls":4},"Valor do BDI =>",0.51,null,"Valor com BDI =>",null,2.94]
[]
[" 3.1 ","Código","Banco","Descrição","Tipo",null,"Und","Quant.","Valor Unit","Total"]
["Composição"," 101169 ","SINAPI","EXECUÇÃO DE PAVIMENTO EM PARALELEPÍPEDOS, REJUNTAMENTO COM ARGAMASSA TRAÇO 1:3 (CIMENTO E AREIA). AF_05/2020","PAVI - PAVIMENTAÇÃO",null,"m²",1,73.75,73.75]
["Composição Auxiliar"," 5684 ","SINAPI","ROLO COMPACTADOR VIBRATÓRIO DE UM CILINDRO AÇO LISO, POTÊNCIA 80 HP, PESO OPERACIONAL MÁXIMO 8,1 T, IMPACTO DINÂMICO 16,15 / 9,5 T, LARGURA DE TRABALHO 1,68 M - CHP DIURNO. AF_06/2014","CHOR - CUSTOS HORÁRIOS DE MÁQUINAS E EQUIPAMENTOS",null,"CHP",3.0999999999999999E-3,157.63999999999999,0.48]
["Composição Auxiliar"," 5685 ","SINAPI","ROLO COMPACTADOR VIBRATÓRIO DE UM CILINDRO AÇO LISO, POTÊNCIA 80 HP, PESO OPERACIONAL MÁXIMO 8,1 T, IMPACTO DINÂMICO 16,15 / 9,5 T, LARGURA DE TRABALHO 1,68 M - CHI DIURNO. AF_06/2014","CHOR - CUSTOS HORÁRIOS DE MÁQUINAS E EQUIPAMENTOS",null,"CHI",0.13089999999999999,61.36,8.0299999999999994]
["Composição Auxiliar"," 88260 ","SINAPI","CALCETEIRO COM ENCARGOS COMPLEMENTARES","SEDI - SERVIÇOS DIVERSOS",null,"H",0.40210000000000001,24.64,9.9]
["Composição Auxiliar"," 88316 ","SINAPI","SERVENTE COM ENCARGOS COMPLEMENTARES","SEDI - SERVIÇOS DIVERSOS",null,"H",0.40210000000000001,20.28,8.15]
["Composição Auxiliar"," 88628 ","SINAPI","ARGAMASSA TRAÇO 1:3 (EM VOLUME DE CIMENTO E AREIA MÉDIA ÚMIDA), PREPARO MECÂNICO COM BETONEIRA 400 L. AF_08/2019","SEDI - SERVIÇOS DIVERSOS",null,"m³",2.0400000000000001E-2,530.35,10.81]
["Insumo"," 00000367 ","SINAPI","AREIA GROSSA - POSTO JAZIDA/FORNECEDOR (RETIRADO NA JAZIDA, SEM TRANSPORTE)","Material",null,"m³",0.114,96.24,10.97]
["Insumo"," 00004385 ","SINAPI","PARALELEPIPEDO GRANITICO OU BASALTICO, PARA PAVIMENTACAO, SEM FRETE (VARIACAO REGIONAL DE PECAS POR M2)","Material",null,"MIL",3.3000000000000002E-2,770.3,25.41]
[{"$nulls":4},"MO sem LS =>",7.5411207136883185,"LS =>",8.69,"MO com LS =>",16.23]
[{"$nulls":4},"Valor do BDI =>",15.74,null,"Valor com BDI =>",null,89.49]
[]
[" 3.3 ","Código","Banco","Descrição","Tipo",null,"Und","Quant.","Valor Unit","Total"]
["Composição"," 93590 ","SINAPI","TRANSPORTE COM CAMINHÃO BASCULANTE DE 10 M³, EM VIA URBANA PAVIMENTADA, ADICIONAL PARA DMT EXCEDENTE A 30 KM (UNIDADE: M3XKM). AF_07/2020 (TRANSPORTE DE PEDRA)","TRAN - TRANSPORTES, CARGAS E DESCARGAS",null,"M3XKM",1,0.96,0.96]
["Composição Auxiliar"," 91386 ","SINAPI","CAMINHÃO BASCULANTE 10 M3, TRUCADO CABINE SIMPLES, PESO BRUTO TOTAL 23.000 KG, CARGA ÚTIL MÁXIMA 15.935 KG, DISTÂNCIA ENTRE EIXOS 4,80 M, POTÊNCIA 230 CV INCLUSIVE CAÇAMBA METÁLICA - CHP DIURNO. AF_06/2014","CHOR - CUSTOS HORÁRIOS DE MÁQUINAS E EQUIPAMENTOS",null,"CHP",3.3E-3,264.18,0.87]
["Composição Auxiliar"," 91387 ","SINAPI","CAMINHÃO BASCULANTE 10 M3, TRUCADO CABINE SIMPLES, PESO BRUTO TOTAL 23.000 KG, CARGA ÚTIL MÁXIMA 15.935 KG, DISTÂNCIA ENTRE EIXOS 4,80 M, POTÊNCIA 230 CV INCLUSIVE CAÇAMBA METÁLICA - CHI DIURNO. AF_06/2014","CHOR - CUSTOS HORÁRIOS DE MÁQUINAS E EQUIPAMENTOS",null,"CHI",1.4E-3,68.39,0.09]
[{"$nulls":4},"MO sem LS =>",3.7171266610909769E-2,"LS =>",0.04,"MO com LS =>",0.08]
[{"$nulls":4},"Valor do BDI =>",0.2,null,"Valor com BDI =>",null,1.1599999999999999]
[]
[" 4.1 ","Código","Banco","Descrição","Tipo",null,"Und","Quant.","Valor Unit","Total"]
["Composição"," 94273 ","SINAPI","ASSENTAMENTO DE GUIA (MEIO-FIO) EM TRECHO RETO, CONFECCIONADA EM CONCRETO PRÉ-FABRICADO, DIMENSÕES 100X15X13X30 CM (COMPRIMENTO X BASE INFERIOR X BASE SUPERIOR X ALTURA), PARA VIAS URBANAS (USO VIÁRIO). AF_06/2016","DROP - DRENAGEM/OBRAS DE CONTENÇÃO / POÇOS DE VISITA E CAIXAS",null,"M",1,56.59,56.59]
["Composição Auxiliar"," 88309 ","SINAPI","PEDREIRO COM ENCARGOS COMPLEMENTARES","SEDI - SERVIÇOS DIVERSOS",null,"H",0.2296,24.84,5.7]
["Composição Auxiliar"," 88316 ","SINAPI","SERVENTE COM ENCARGOS COMPLEMENTARES","SEDI - SERVIÇOS DIVERSOS",null,"H",0.2296,20.28,4.6500000000000004]
["Composição Auxiliar"," 88629 ","SINAPI","ARGAMASSA TRAÇO 1:3 (EM VOLUME DE CIMENTO E AREIA MÉDIA ÚMIDA), PREPARO MANUAL. AF_08/2019","SEDI - SERVIÇOS DIVERSOS",null,"m³",1.8E-3,642.48,1.1499999999999999]
["Insumo"," 00000370 ","SINAPI","AREIA MEDIA - POSTO JAZIDA/FORNECEDOR (RETIRADO NA JAZIDA, SEM TRANSPORTE)","Material",null,"m³",6.6E-3,95,0.62]
["Insumo"," 00004059 ","SINAPI","MEIO-FIO OU GUIA DE CONCRETO, PRE-MOLDADO, COMP 1 M, *30 X 12/15* CM (H X L1/L2)","Material",null,"M",1.0049999999999999,44.25,44.47]
[{"$nulls":4},"MO sem LS =>",3.5823808196264286,"LS =>",4.13,"MO com LS =>",7.71]
[{"$nulls":4},"Valor do BDI =>",12.08,null,"Valor com BDI =>",null,68.67]
[]
[" 4.2 ","Código","Banco","Descrição","Tipo",null,"Und","Quant.","Valor Unit","Total"]
["Composição"," 83718 ","SINAPI","ESCORAMENTO DE MEIO FIO COM MATERIAL LOCAL COMPACTADO MANUALMENTE, EM FAIXA DE 0,50M","DROP - DRENAGEM/OBRAS DE CONTENÇÃO / POÇOS DE VISITA E CAIXAS",null,"M",1,4.66,4.66]
["Composição Auxiliar"," 88316 ","SINAPI","SERVENTE COM ENCARGOS COMPLEMENTARES","SEDI - SERVIÇOS DIVERSOS",null,"H",0.23,20.28,4.66]
[{"$nulls":4},"MO sem LS =>",1.5100827060682094,"LS =>",1.74,"MO com LS =>",3.25]
[{"$nulls":4},"Valor do BDI =>",0.99,null,"Valor com BDI =>",null,5.65]
[]
[" 4.3 ","Código","Banco","Descrição","Tipo",null,"Und","Quant.","Valor Unit","Total"]
["Composição"," 94287 ","SINAPI","EXECUÇÃO DE SARJETA DE CONCRETO USINADO, MOLDADA  IN LOCO  EM TRECHO RETO, 30 CM BASE X 10 CM ALTURA. AF_06/2016","DROP - DRENAGEM/OBRAS DE CONTENÇÃO / POÇOS DE VISITA E CAIXAS",null,"M",1,31.75,31.75]
["Composição Auxiliar"," 88309 ","SINAPI","PEDREIRO COM ENCARGOS COMPLEMENTARES","SEDI - SERVIÇOS DIVERSOS",null,"H",0.2326,24.84,5.77]
["Composição Auxiliar"," 88316 ","SINAPI","SERVENTE COM ENCARGOS COMPLEMENTARES","SEDI - SERVIÇOS DIVERSOS",null,"H",0.2326,20.28,4.71]
["Insumo"," 00000370 ","SINAPI","AREIA MEDIA - POSTO JAZIDA/FORNECEDOR (RETIRADO NA JAZIDA, SEM TRANSPORTE)","Material",null,"m³",9.9000000000000008E-3,95,0.94]
["Insumo"," 00004517 ","SINAPI","SARRAFO *2,5 X 7,5* CM EM PINUS, MISTA OU EQUIVALENTE DA REGIAO - BRUTA","Material",null,"M",0.2,3.87,0.77]
["Insumo"," 00006212 ","SINAPI","TABUA *2,5 X 30 CM EM PINUS, MISTA OU EQUIVALENTE DA REGIAO - BRUTA","Material",null,"M",8.3299999999999999E-2,18.329999999999998,1.52]
["Insumo"," 00034492 ","SINAPI","CONCRETO USINADO BOMBEAVEL, CLASSE DE RESISTENCIA C20, COM BRITA 0 E 1, SLUMP = 100 +/- 20 MM, EXCLUI SERVICO DE BOMBEAMENTO (NBR 8953)","Material",null,"m³",3.7600000000000001E-2,480,18.04]
[{"$nulls":4},"MO sem LS =>",3.5312703280364279,"LS =>",4.07,"MO com LS =>",7.6]
[{"$nulls":4},"Valor do BDI =>",6.77,null,"Valor com BDI =>",null,38.520000000000003]
[]
[" 5.1 ","Código","Banco","Descrição","Tipo",null,"Und","Quant.","Valor Unit","Total"]
["Composição"," 103694 ","SINAPI","FORNECIMENTO E INSTALAÇÃO DE SUPORTE DE MADEIRA  PARA PLACAS DE SINALIZAÇÃO, EM SOLO, COM H= DE 2,5 M E SEÇÃO DE 7,5 X 7,5 CM. AF_03/2022","PAVI - PAVIMENTAÇÃO",null,"UN",1,108.42,108.42]
["Composição Auxiliar"," 102197 ","SINAPI","PINTURA FUNDO NIVELADOR ALQUÍDICO BRANCO EM MADEIRA. AF_01/2021","PINT - PINTURAS",null,"m²",0.99,21.77,21.55]
["Composição Auxiliar"," 102218 ","SINAPI","PINTURA TINTA DE ACABAMENTO (PIGMENTADA) ESMALTE SINTÉTICO FOSCO EM MADEIRA, 2 DEMÃOS. AF_01/2021","PINT - PINTURAS",null,"m²",0.99,15.65,15.49]
["Composição Auxiliar"," 102486 ","SINAPI","CONCRETO FCK = 15MPA, TRAÇO 1:3,4:3,4 (EM MASSA SECA DE CIMENTO/ AREIA MÉDIA/ SEIXO ROLADO) - PREPARO MANUAL. AF_05/2021","FUES - FUNDAÇÕES E ESTRUTURAS",null,"m³",2.24E-2,582.5,13.04]
["Composição Auxiliar"," 88262 ","SINAPI","CARPINTEIRO DE FORMAS COM ENCARGOS COMPLEMENTARES","SEDI - SERVIÇOS DIVERSOS",null,"H",0.21379999999999999,24.5,5.23]
["Composição Auxiliar"," 88316 ","SINAPI","SERVENTE COM ENCARGOS COMPLEMENTARES","SEDI - SERVIÇOS DIVERSOS",null,"H",0.64129999999999998,20.28,13]
["Insumo"," 00004491 ","SINAPI","PONTALETE *7,5 X 7,5* CM EM PINUS, MISTA OU EQUIVALENTE DA REGIAO - BRUTA","Material",null,"M",3.63,11.05,40.11]
[{"$nulls":4},"MO sem LS =>",12.540656072855683,"LS =>",14.45,"MO com LS =>",26.99]
[{"$nulls":4},"Valor do BDI =>",23.14,null,"Valor com BDI =>",null,131.56]
[]
[" 5.2 ","Código","Banco","Descrição","Tipo",null,"Und","Quant.","Valor Unit","Total"]
["Composição"," 10712 ","ORSE","Confecção de placa de sinalização totalmente refletiva","Sinalização Vertical",null,"m²",1,96.74,96.74]
["Composição Auxiliar"," 10553 ","ORSE","Encargos Complementares - Pintor","Provisórios",null,"h",0.05,3.79,0.18]
["Composição Auxiliar"," 10576 ","ORSE","Encargos Complementares - Ajudante Pratico","Provisórios",null,"h",0.66659999999999997,3.72,2.4700000000000002]
["Composição Auxiliar"," 10594 ","ORSE","Encargos Complementares - Serralheiro ou Operador de Equipamento Leve","Provisórios",null,"h",0.1666,3.56,0.59]
["Composição Auxiliar"," 10605 ","ORSE","Encargos Complementares - Montador","Provisórios",null,"h",0.33329999999999999,4.2699999999999996,1.42]
["Insumo"," 54 ","ORSE","Encarregado de turma - SICRO h","Mão de Obra",null,"h",8.3333299999999999E-2,18.28,1.52]
["Insumo"," 8820 ","ORSE","Chapa de aço galvanizado nº 16 - e=1,55mm - dimensões 2,00x1,00m m2","Material",null,"un",0.1666667,148.83000000000001,24.8]
["Insumo"," 10454 ","ORSE","Ajudante-pratico/Meio-Oficial h","Mão de Obra",null,"h",0.66666669999999995,13.9,9.26]
["Insumo"," 11420 ","ORSE","Compressor de ar p/ pintura c/ filtro (2 kW) h","Equipamento",null,"h",0.1666667,6.55,1.0900000000000001]
["Insumo"," 11421 ","ORSE","Prensa excêntrica - (1kW) h","Equipamento",null,"h",0.1666667,13.23,2.2000000000000002]
["Insumo"," 11422 ","ORSE","Máquina universal de corte de chapa, de bancada, 4kw - C-6A h","Equipamento",null,"h",0.1666667,12.1,2.0099999999999998]
["Insumo"," 11423 ","ORSE","Guilhotina de bancada - (4kW) h","Equipamento",null,"h",0.1666667,15.19,2.5299999999999998]
["Insumo"," 11424 ","ORSE","Pelicula refletiva lentes inclusas m2","Material",null,"m²",0.23333329999999999,152.08000000000001,35.479999999999997]
["Insumo"," 00004783/SINAPI ","ORSE","Pintor (horista)","Mão de Obra",null,"h",0.05,18.21,0.91]
["Insumo"," 00006110/SINAPI ","ORSE","Serralheiro (horista)","Mão de Obra",null,"h",0.1666667,18.21,3.03]
["Insumo"," 00007288/SINAPI ","ORSE","Tinta esmalte sintetico premium fosco","Material",null,"l",8.8333300000000003E-2,41.12,3.63]
["Insumo"," 00044497/SINAPI ","ORSE","Montador de estruturas metalicas horista","Mão de Obra",null,"h",0.3333333,16.88,5.62]
[{"$nulls":4},"MO sem LS =>",9.4507945000000007,"LS =>",10.89,"MO com LS =>",20.34]
[{"$nulls":4},"Valor do BDI =>",20.65,null,"Valor com BDI =>",null,117.39]
[]
[" 6.1 ","Código","Banco","Descrição","Tipo",null,"Und","Quant.","Valor Unit","Total"]
["Composição"," C-22-0117 ","Próprio","LIMPEZA DE RUAS (VARRIÇÃO E REMOÇÃO DE ENTULHOS) - REF. ORSE 6191","ASTU - ASSENTAMENTO DE TUBOS E PECAS",null,"m²",1,0.66,0.66]
["Composição Auxiliar"," 88316 ","SINAPI","SERVENTE COM ENCARGOS COMPLEMENTARES","SEDI - SERVIÇOS DIVERSOS",null,"H",2.7799999999999998E-2,20.28,0.56000000000000005]
["Composição Auxiliar"," 95878 ","SINAPI","TRANSPORTE COM CAMINHÃO BASCULANTE DE 10 M³, EM VIA URBANA PAVIMENTADA, DMT ATÉ 30 KM (UNIDADE: TXKM). AF_07/2020","TRAN - TRANSPORTES, CARGAS E DESCARGAS",null,"TXKM",6.2600000000000003E-2,1.63,0.1]
[{"$nulls":4},"MO sem LS =>",0.18120992472818512,"LS =>",0.21,"MO com LS =>",0.39]
[{"$nulls":4},"Valor do BDI =>",0.14000000000000001,null,"Valor com BDI =>",null,0.8]
[]
[" 6.2 ","Código","Banco","Descrição","Tipo",null,"Und","Quant.","Valor Unit","Total"]
["Composição"," 102498 ","SINAPI","PINTURA DE MEIO-FIO COM TINTA BRANCA A BASE DE CAL (CAIAÇÃO). AF_05/2021","PINT - PINTURAS",null,"M",1,1.5,1.5]
["Composição Auxiliar"," 88310 ","SINAPI","PINTOR COM ENCARGOS COMPLEMENTARES","SEDI - SERVIÇOS DIVERSOS",null,"H",3.6999999999999998E-2,26.34,0.97]
["Composição Auxiliar"," 88316 ","SINAPI","SERVENTE COM ENCARGOS COMPLEMENTARES","SEDI - SERVIÇOS DIVERSOS",null,"H",1.6E-2,20.28,0.32]
["Insumo"," 00011161 ","SINAPI","CAL HIDRATADA PARA PINTURA","Material",null,"KG",0.106,2,0.21]
[{"$nulls":4},"MO sem LS =>",0.41817674937273486,"LS =>",0.48,"MO com LS =>",0.9]
[{"$nulls":4},"Valor do BDI =>",0.32,null,"Valor com BDI =>",null,1.82]
[]
[" 6.3 ","Código","Banco","Descrição","Tipo",null,"Und","Quant.","Valor Unit","Total"]
["Composição"," C-23-0016 ","Próprio","TOTEM DE INAUGURAÇÃO EM CONCRETO ARMADO FCL=20MPA COM TEXTO EM BAIXO RELEVO - MODELO CODEVASF","ASTU - ASSENTAMENTO DE TUBOS E PECAS",null,"UND",1,593.11,593.11]
["Composição Auxiliar"," 104488 ","SINAPI","COMPOSIÇÃO PARAMÉTRICA PARA EXECUÇÃO DE ESTRUTURAS DE CONCRETO ARMADO, PARA EDIFICAÇÃO INSTITUCIONAL TÉRREA, FCK = 25 MPA. AF_11/2022","FUES - FUNDAÇÕES E ESTRUTURAS",null,"m³",0.14000000000000001,2657.13,371.99]
["Composição Auxiliar"," 102513 ","SINAPI","PINTURA DE SÍMBOLOS E TEXTOS COM TINTA ACRÍLICA, DEMARCAÇÃO COM FITA ADESIVA E APLICAÇÃO COM ROLO. AF_05/2021","PINT - PINTURAS",null,"m²",2,44.13,88.26]
["Composição Auxiliar"," 93358 ","SINAPI","ESCAVAÇÃO MANUAL DE VALA COM PROFUNDIDADE MENOR OU IGUAL A 1,30 M. AF_02/2021","MOVT - MOVIMENTO DE TERRA",null,"m³",0.15,80.22,12.03]
["Composição Auxiliar"," 96135 ","SINAPI","APLICAÇÃO MANUAL DE MASSA ACRÍLICA EM PAREDES EXTERNAS DE CASAS, DUAS DEMÃOS. AF_05/2017","PINT - PINTURAS",null,"m²",4.7,25.71,120.83]
[{"$nulls":4},"MO sem LS =>",79.495400055756903,"LS =>",91.59,"MO com LS =>",171.09]
[{"$nulls":4},"Valor do BDI =>",126.62,null,"Valor com BDI =>",null,719.73]
[]
["Composições Auxiliares"]
[null,"Código","Banco","Descrição","Tipo",null,"Und","Quant.","Valor Unit","Total"]
["Composição"," 88238 ","SINAPI","AJUDANTE DE ARMADOR COM ENCARGOS COMPLEMENTARES","SEDI - SERVIÇOS DIVERSOS",null,"H",1,21.25,21.25]
["Composição Auxiliar"," 95308 ","SINAPI","CURSO DE CAPACITAÇÃO PARA AJUDANTE DE ARMADOR (ENCARGOS COMPLEMENTARES) - HORISTA","SEDI - SERVIÇOS DIVERSOS",null,"H",1,0.19,0.19]
["Insumo"," 00006114 ","SINAPI","AJUDANTE DE ARMADOR (HORISTA)","Mão de Obra",null,"H",1,14.8,14.8]
["Insumo"," 00037370 ","SINAPI","ALIMENTACAO - HORISTA (COLETADO CAIXA - ENCARGOS COMPLEMENTARES)","Outros",null,"H",1,2.2200000000000002,2.2200000000000002]
["Insumo"," 00037371 ","SINAPI","TRANSPORTE - HORISTA (COLETADO CAIXA - ENCARGOS COMPLEMENTARES)","Serviços",null,"H",1,0.6,0.6]
["Insumo"," 00037372 ","SINAPI","EXAMES - HORISTA (COLETADO CAIXA - ENCARGOS COMPLEMENTARES)","Outros",null,"H",1,1.34,1.34]
["Insumo"," 00037373 ","SINAPI","SEGURO - HORISTA (COLETADO CAIXA - ENCARGOS COMPLEMENTARES)","Taxas",null,"H",1,0.04,0.04]
["Insumo"," 00043465 ","SINAPI","FERRAMENTAS - FAMILIA PEDREIRO - HORISTA (ENCARGOS COMPLEMENTARES - COLETADO CAIXA)","Equipamento",null,"H",1,0.82,0.82]
["Insumo"," 00043489 ","SINAPI","EPI - FAMILIA PEDREIRO - HORISTA (ENCARGOS COMPLEMENTARES - COLETADO CAIXA)","Equipamento",null,"H",1,1.24,1.24]
[{"$nulls":4},"MO sem LS =>",6.9649660999999998,"LS =>",8.0299999999999994,"MO com LS =>",14.99]
[{"$nulls":4},"Valor do BDI =>",4.53,null,"Valor com BDI =>",null,25.78]
[]
[null,"Código","Banco","Descrição","Tipo",null,"Und","Quant.","Valor Unit","Total"]
["Composição"," 88239 ","SINAPI","AJUDANTE DE CARPINTEIRO COM ENCARGOS COMPLEMENTARES","SEDI - SERVIÇOS DIVERSOS",null,"H",1,21.17,21.17]
["Composição Auxiliar"," 95309 ","SINAPI","CURSO DE CAPACITAÇÃO PARA AJUDANTE DE CARPINTEIRO (ENCARGOS COMPLEMENTARES) - HORISTA","SEDI - SERVIÇOS DIVERSOS",null,"H",1,0.25,0.25]
["Insumo"," 00006117 ","SINAPI","CARPINTEIRO AUXILIAR (HORISTA)","Mão de Obra",null,"H",1,14.8,14.8]
["Insumo"," 00037370 ","SINAPI","ALIMENTACAO - HORISTA (COLETADO CAIXA - ENCARGOS COMPLEMENTARES)","Outros",null,"H",1,2.2200000000000002,2.2200000000000002]
["Insumo"," 00037371 ","SINAPI","TRANSPORTE - HORISTA (COLETADO CAIXA - ENCARGOS COMPLEMENTARES)","Serviços",null,"H",1,0.6,0.6]
["Insumo"," 00037372 ","SINAPI","EXAMES - HORISTA (COLETADO CAIXA - ENCARGOS COMPLEMENTARES)","Outros",null,"H",1,1.34,1.34]
["Insumo"," 00037373 ","SINAPI","SEGURO - HORISTA (COLETADO CAIXA - ENCARGOS COMPLEMENTARES)","Taxas",null,"H",1,0.04,0.04]
["Insumo"," 00043459 ","SINAPI","FERRAMENTAS - FAMILIA CARPINTEIRO DE FORMAS - HORISTA (ENCARGOS COMPLEMENTARES - COLETADO CAIXA)","Equipamento",null,"H",1,0.49,0.49]
["Insumo"," 00043483 ","SINAPI","EPI - FAMILIA CARPINTEIRO DE FORMAS - HORISTA (ENCARGOS COMPLEMENTARES - COLETADO CAIXA)","Equipamento",null,"H",1,1.43,1.43]
[{"$nulls":4},"MO sem LS =>",6.9928445000000004,"LS =>",8.06,"MO com LS =>",15.05]
[{"$nulls":4},"Valor do BDI =>",4.51,null,"Valor com BDI =>",null,25.68]
[]
[null,"Código","Banco","Descrição","Tipo",null,"Und","Quant.","Valor Unit","Total"]
["Composição"," 96135 ","SINAPI","APLICAÇÃO MANUAL DE MASSA ACRÍLICA EM PAREDES EXTERNAS DE CASAS, DUAS DEMÃOS. AF_05/2017","PINT - PINTURAS",null,"m²",1,25.71,25.71]
["Composição Auxiliar"," 88310 ","SINAPI","PINTOR COM ENCARGOS COMPLEMENTARES","SEDI - SERVIÇOS DIVERSOS",null,"H",0.63439999999999996,26.34,16.71]
["Composição Auxiliar"," 88316 ","SINAPI","SERVENTE COM ENCARGOS COMPLEMENTARES","SEDI - SERVIÇOS DIVERSOS",null,"H",0.1036,20.28,2.1]
["Insumo"," 00003767 ","SINAPI","LIXA EM FOLHA PARA PAREDE OU MADEIRA, NUMERO 120, COR VERMELHA","Material",null,"UN",8.2869999999999999E-2,0.92,7.0000000000000007E-2]
["Insumo"," 00043651 ","SINAPI","MASSA ACRILICA PARA SUPERFICIES INTERNAS E EXTERNAS","Material",null,"KG",1.3870899999999999,4.93,6.83]
[{"$nulls":4},"MO sem LS =>",6.1100269491682928,"LS =>",7.04,"MO com LS =>",13.15]
[{"$nulls":4},"Valor do BDI =>",5.48,null,"Valor com BDI =>",null,31.19]
[]
[null,"Código","Banco","Descrição","Tipo",null,"Und","Quant.","Valor Unit","Total"]
["Composição"," 88629 ","SINAPI","ARGAMASSA TRAÇO 1:3 (EM VOLUME DE CIMENTO E AREIA MÉDIA ÚMIDA), PREPARO MANUAL. AF_08/2019","SEDI - SERVIÇOS DIVERSOS",null,"m³",1,642.48,642.48]
["Composição Auxiliar"," 88316 ","SINAPI","SERVENTE COM ENCARGOS COMPLEMENTARES","SEDI - SERVIÇOS DIVERSOS",null,"H",8.57,20.28,173.79]
["Insumo"," 00000370 ","SINAPI","AREIA MEDIA - POSTO JAZIDA/FORNECEDOR (RETIRADO NA JAZIDA, SEM TRANSPORTE)","Material",null,"m³",1.07,95,101.65]
["Insumo"," 00001379 ","SINAPI","CIMENTO PORTLAND COMPOSTO CP II-32","Material",null,"KG",482.96,0.76,367.04]
[{"$nulls":4},"MO sem LS =>",56.300529690549205,"LS =>",64.87,"MO com LS =>",121.17]
[{"$nulls":4},"Valor do BDI =>",137.16,null,"Valor com BDI =>",null,779.64]
[]
[null,"Código","Banco","Descrição","Tipo",null,"Und","Quant.","Valor Unit","Total"]
["Composição"," 88628 ","SINAPI","ARGAMASSA TRAÇO 1:3 (EM VOLUME DE CIMENTO E AREIA MÉDIA ÚMIDA), PREPARO MECÂNICO COM BETONEIRA 400 L. AF_08/2019","SEDI - SERVIÇOS DIVERSOS",null,"m³",1,530.35,530.35]
["Composição Auxiliar"," 88377 ","SINAPI","OPERADOR DE BETONEIRA ESTACIONÁRIA/MISTURADOR COM ENCARGOS COMPLEMENTARES","SEDI - SERVIÇOS DIVERSOS",null,"H",3.42,17.100000000000001,58.48]
["Composição Auxiliar"," 88830 ","SINAPI","BETONEIRA CAPACIDADE NOMINAL DE 400 L, CAPACIDADE DE MISTURA 280 L, MOTOR ELÉTRICO TRIFÁSICO POTÊNCIA DE 2 CV, SEM CARREGADOR - CHP DIURNO. AF_10/2014","CHOR - CUSTOS HORÁRIOS DE MÁQUINAS E EQUIPAMENTOS",null,"CHP",0.8,2.0699999999999998,1.65]
["Composição Auxiliar"," 88831 ","SINAPI","BETONEIRA CAPACIDADE NOMINAL DE 400 L, CAPACIDADE DE MISTURA 280 L, MOTOR ELÉTRICO TRIFÁSICO POTÊNCIA DE 2 CV, SEM CARREGADOR - CHI DIURNO. AF_10/2014","CHOR - CUSTOS HORÁRIOS DE MÁQUINAS E EQUIPAMENTOS",null,"CHI",2.62,0.37,0.96]
["Insumo"," 00000370 ","SINAPI","AREIA MEDIA - POSTO JAZIDA/FORNECEDOR (RETIRADO NA JAZIDA, SEM TRANSPORTE)","Material",null,"m³",1.07,95,101.65]
["Insumo"," 00001379 ","SINAPI","CIMENTO PORTLAND COMPOSTO CP II-32","Material",null,"KG",483.7,0.76,367.61]
[{"$nulls":4},"MO sem LS =>",19.115323854660346,"LS =>",22.02,"MO com LS =>",41.14]
[{"$nulls":4},"Valor do BDI =>",113.22,null,"Valor com BDI =>",null,643.57000000000005]
[]
[null,"Código","Banco","Descrição","Tipo",null,"Und","Quant.","Valor Unit","Total"]
["Composição"," 88245 ","SINAPI","ARMADOR COM ENCARGOS COMPLEMENTARES","SEDI - SERVIÇOS DIVERSOS",null,"H",1,24.64,24.64]
["Composição Auxiliar"," 95314 ","SINAPI","CURSO DE CAPACITAÇÃO PARA ARMADOR (ENCARGOS COMPLEMENTARES) - HORISTA","SEDI - SERVIÇOS DIVERSOS",null,"H",1,0.24,0.24]
["Insumo"," 00000378 ","SINAPI","ARMADOR (HORISTA)","Mão de Obra",null,"H",1,18.14,18.14]
["Insumo"," 00037370 ","SINAPI","ALIMENTACAO - HORISTA (COLETADO CAIXA - ENCARGOS COMPLEMENTARES)","Outros",null,"H",1,2.2200000000000002,2.2200000000000002]
["Insumo"," 00037371 ","SINAPI","TRANSPORTE - HORISTA (COLETADO CAIXA - ENCARGOS COMPLEMENTARES)","Serviços",null,"H",1,0.6,0.6]
["Insumo"," 00037372 ","SINAPI","EXAMES - HORISTA (COLETADO CAIXA - ENCARGOS COMPLEMENTARES)","Outros",null,"H",1,1.34,1.34]
["Insumo"," 00037373 ","SINAPI","SEGURO - HORISTA (COLETADO CAIXA - ENCARGOS COMPLEMENTARES)","Taxas",null,"H",1,0.04,0.04]
["Insumo"," 00043465 ","SINAPI","FERRAMENTAS - FAMILIA PEDREIRO - HORISTA (ENCARGOS COMPLEMENTARES - COLETADO CAIXA)","Equipamento",null,"H",1,0.82,0.82]
["Insumo"," 00043489 ","SINAPI","EPI - FAMILIA PEDREIRO - HORISTA (ENCARGOS COMPLEMENTARES - COLETADO CAIXA)","Equipamento",null,"H",1,1.24,1.24]
[{"$nulls":4},"MO sem LS =>",8.5400984999999991,"LS =>",9.84,"MO com LS =>",18.38]
[{"$nulls":4},"Valor do BDI =>",5.26,null,"Valor com BDI =>",null,29.9]
[]
[null,"Código","Banco","Descrição","Tipo",null,"Und","Quant.","Valor Unit","Total"]
["Composição"," 96543 ","SINAPI","ARMAÇÃO DE BLOCO, VIGA BALDRAME E SAPATA UTILIZANDO AÇO CA-60 DE 5 MM - MONTAGEM. AF_06/2017","FUES - FUNDAÇÕES E ESTRUTURAS",null,"KG",1,19.84,19.84]
["Composição Auxiliar"," 88238 ","SINAPI","AJUDANTE DE ARMADOR COM ENCARGOS COMPLEMENTARES","SEDI - SERVIÇOS DIVERSOS",null,"H",9.7000000000000003E-2,21.25,2.06]
["Composição Auxiliar"," 88245 ","SINAPI","ARMADOR COM ENCARGOS COMPLEMENTARES","SEDI - SERVIÇOS DIVERSOS",null,"H",0.252,24.64,6.2]
["Composição Auxiliar"," 92800 ","SINAPI","CORTE E DOBRA DE AÇO CA-60, DIÂMETRO DE 5,0 MM. AF_06/2022","FUES - FUNDAÇÕES E ESTRUTURAS",null,"KG",1,10.6,10.6]
["Insumo"," 00039017 ","SINAPI","ESPACADOR / DISTANCIADOR CIRCULAR COM ENTRADA LATERAL, EM PLASTICO, PARA VERGALHAO *4,2 A 12,5* MM, COBRIMENTO 20 MM","Material",null,"UN",1.143,0.22,0.25]
["Insumo"," 00043132 ","SINAPI","ARAME RECOZIDO 16 BWG, D = 1,65 MM (0,016 KG/M) OU 18 BWG, D = 1,25 MM (0,01 KG/M)","Material",null,"KG",2.5000000000000001E-2,29.5,0.73]
[{"$nulls":4},"MO sem LS =>",3.3825852615927889,"LS =>",3.9,"MO com LS =>",7.28]
[{"$nulls":4},"Valor do BDI =>",4.2300000000000004,null,"Valor com BDI =>",null,24.07]
[]
[null,"Código","Banco","Descrição","Tipo",null,"Und","Quant.","Valor Unit","Total"]
["Composição"," 96546 ","SINAPI","ARMAÇÃO DE BLOCO, VIGA BALDRAME OU SAPATA UTILIZANDO AÇO CA-50 DE 10 MM - MONTAGEM. AF_06/2017","FUES - FUNDAÇÕES E ESTRUTURAS",null,"KG",1,14.67,14.67]
["Composição Auxiliar"," 88238 ","SINAPI","AJUDANTE DE ARMADOR COM ENCARGOS COMPLEMENTARES","SEDI - SERVIÇOS DIVERSOS",null,"H",4.3999999999999997E-2,21.25,0.93]
["Composição Auxiliar"," 88245 ","SINAPI","ARMADOR COM ENCARGOS COMPLEMENTARES","SEDI - SERVIÇOS DIVERSOS",null,"H",0.11600000000000001,24.64,2.85]
["Composição Auxiliar"," 92803 ","SINAPI","CORTE E DOBRA DE AÇO CA-50, DIÂMETRO DE 10,0 MM. AF_06/2022","FUES - FUNDAÇÕES E ESTRUTURAS",null,"KG",1,10.06,10.06]
["Insumo"," 00039017 ","SINAPI","ESPACADOR / DISTANCIADOR CIRCULAR COM ENTRADA LATERAL, EM PLASTICO, PARA VERGALHAO *4,2 A 12,5* MM, COBRIMENTO 20 MM","Material",null,"UN",0.48,0.22,0.1]
["Insumo"," 00043132 ","SINAPI","ARAME RECOZIDO 16 BWG, D = 1,65 MM (0,016 KG/M) OU 18 BWG, D = 1,25 MM (0,01 KG/M)","Material",null,"KG",2.5000000000000001E-2,29.5,0.73]
[{"$nulls":4},"MO sem LS =>",1.3753368646036614,"LS =>",1.58,"MO com LS =>",2.96]
[{"$nulls":4},"Valor do BDI =>",3.13,null,"Valor com BDI =>",null,17.8]
[]
[null,"Código","Banco","Descrição","Tipo",null,"Und","Quant.","Valor Unit","Total"]
["Composição"," 96547 ","SINAPI","ARMAÇÃO DE BLOCO, VIGA BALDRAME OU SAPATA UTILIZANDO AÇO CA-50 DE 12,5 MM - MONTAGEM. AF_06/2017","FUES - FUNDAÇÕES E ESTRUTURAS",null,"KG",1,11.56,11.56]
["Composição Auxiliar"," 88238 ","SINAPI","AJUDANTE DE ARMADOR COM ENCARGOS COMPLEMENTARES","SEDI - SERVIÇOS DIVERSOS",null,"H",2.1999999999999999E-2,21.25,0.46]
["Composição Auxiliar"," 88245 ","SINAPI","ARMADOR COM ENCARGOS COMPLEMENTARES","SEDI - SERVIÇOS DIVERSOS",null,"H",6.8000000000000005E-2,24.64,1.67]
["Composição Auxiliar"," 92804 ","SINAPI","CORTE E DOBRA DE AÇO CA-50, DIÂMETRO DE 12,5 MM. AF_06/2022","FUES - FUNDAÇÕES E ESTRUTURAS",null,"KG",1,8.64,8.64]
["Insumo"," 00039017 ","SINAPI","ESPACADOR / DISTANCIADOR CIRCULAR COM ENTRADA LATERAL, EM PLASTICO, PARA VERGALHAO *4,2 A 12,5* MM, COBRIMENTO 20 MM","Material",null,"UN",0.30599999999999999,0.22,0.06]
["Insumo"," 00043132 ","SINAPI","ARAME RECOZIDO 16 BWG, D = 1,65 MM (0,016 KG/M) OU 18 BWG, D = 1,25 MM (0,01 KG/M)","Material",null,"KG",2.5000000000000001E-2,29.5,0.73]
[{"$nulls":4},"MO sem LS =>",0.76665737385001398,"LS =>",0.88,"MO com LS =>",1.65]
[{"$nulls":4},"Valor do BDI =>",2.46,null,"Valor com BDI =>",null,14.02]
[]
[null,"Código","Banco","Descrição","Tipo",null,"Und","Quant.","Valor Unit","Total"]
["Composição"," 96544 ","SINAPI","ARMAÇÃO DE BLOCO, VIGA BALDRAME OU SAPATA UTILIZANDO AÇO CA-50 DE 6,3 MM - MONTAGEM. AF_06/2017","FUES - FUNDAÇÕES E ESTRUTURAS",null,"KG",1,18.18,18.18]
["Composição Auxiliar"," 88238 ","SINAPI","AJUDANTE DE ARMADOR COM ENCARGOS COMPLEMENTARES","SEDI - SERVIÇOS DIVERSOS",null,"H",7.4999999999999997E-2,21.25,1.59]
["Composição Auxiliar"," 88245 ","SINAPI","ARMADOR COM ENCARGOS COMPLEMENTARES","SEDI - SERVIÇOS DIVERSOS",null,"H",0.19600000000000001,24.64,4.82]
["Composição Auxiliar"," 92801 ","SINAPI","CORTE E DOBRA DE AÇO CA-50, DIÂMETRO DE 6,3 MM. AF_06/2022","FUES - FUNDAÇÕES E ESTRUTURAS",null,"KG",1,10.86,10.86]
["Insumo"," 00039017 ","SINAPI","ESPACADOR / DISTANCIADOR CIRCULAR COM ENTRADA LATERAL, EM PLASTICO, PARA VERGALHAO *4,2 A 12,5* MM, COBRIMENTO 20 MM","Material",null,"UN",0.85599999999999998,0.22,0.18]
["Insumo"," 00043132 ","SINAPI","ARAME RECOZIDO 16 BWG, D = 1,65 MM (0,016 KG/M) OU 18 BWG, D = 1,25 MM (0,01 KG/M)","Material",null,"KG",2.5000000000000001E-2,29.5,0.73]
[{"$nulls":4},"MO sem LS =>",2.4858284546045906,"LS =>",2.86,"MO com LS =>",5.35]
[{"$nulls":4},"Valor do BDI =>",3.88,null,"Valor com BDI =>",null,22.06]
[]
[null,"Código","Banco","Descrição","Tipo",null,"Und","Quant.","Valor Unit","Total"]
["Composição"," 96545 ","SINAPI","ARMAÇÃO DE BLOCO, VIGA BALDRAME OU SAPATA UTILIZANDO AÇO CA-50 DE 8 MM - MONTAGEM. AF_06/2017","FUES - FUNDAÇÕES E ESTRUTURAS",null,"KG",1,16.64,16.64]
["Composição Auxiliar"," 88238 ","SINAPI","AJUDANTE DE ARMADOR COM ENCARGOS COMPLEMENTARES","SEDI - SERVIÇOS DIVERSOS",null,"H",5.7000000000000002E-2,21.25,1.21]
["Composição Auxiliar"," 88245 ","SINAPI","ARMADOR COM ENCARGOS COMPLEMENTARES","SEDI - SERVIÇOS DIVERSOS",null,"H",0.15,24.64,3.69]
["Composição Auxiliar"," 92802 ","SINAPI","CORTE E DOBRA DE AÇO CA-50, DIÂMETRO DE 8,0 MM. AF_06/2022","FUES - FUNDAÇÕES E ESTRUTURAS",null,"KG",1,10.88,10.88]
["Insumo"," 00039017 ","SINAPI","ESPACADOR / DISTANCIADOR CIRCULAR COM ENTRADA LATERAL, EM PLASTICO, PARA VERGALHAO *4,2 A 12,5* MM, COBRIMENTO 20 MM","Material",null,"UN",0.63500000000000001,0.22,0.13]
["Insumo"," 00043132 ","SINAPI","ARAME RECOZIDO 16 BWG, D = 1,65 MM (0,016 KG/M) OU 18 BWG, D = 1,25 MM (0,01 KG/M)","Material",null,"KG",2.5000000000000001E-2,29.5,0.73]
[{"$nulls":4},"MO sem LS =>",1.8213920639345786,"LS =>",2.1,"MO com LS =>",3.92]
[{"$nulls":4},"Valor do BDI =>",3.55,null,"Valor com BDI =>",null,20.190000000000001]
[]
[null,"Código","Banco","Descrição","Tipo",null,"Und","Quant.","Valor Unit","Total"]
["Composição"," 92769 ","SINAPI","ARMAÇÃO DE LAJE DE ESTRUTURA CONVENCIONAL DE CONCRETO ARMADO UTILIZANDO AÇO CA-50 DE 6,3 MM - MONTAGEM. AF_06/2022","FUES - FUNDAÇÕES E ESTRUTURAS",null,"KG",1,13.55,13.55]
["Composição Auxiliar"," 88238 ","SINAPI","AJUDANTE DE ARMADOR COM ENCARGOS COMPLEMENTARES","SEDI - SERVIÇOS DIVERSOS",null,"H",9.7999999999999997E-3,21.25,0.2]
["Composição Auxiliar"," 88245 ","SINAPI","ARMADOR COM ENCARGOS COMPLEMENTARES","SEDI - SERVIÇOS DIVERSOS",null,"H",5.9700000000000003E-2,24.64,1.47]
["Composição Auxiliar"," 92801 ","SINAPI","CORTE E DOBRA DE AÇO CA-50, DIÂMETRO DE 6,3 MM. AF_06/2022","FUES - FUNDAÇÕES E ESTRUTURAS",null,"KG",1,10.86,10.86]
["Insumo"," 00039017 ","SINAPI","ESPACADOR / DISTANCIADOR CIRCULAR COM ENTRADA LATERAL, EM PLASTICO, PARA VERGALHAO *4,2 A 12,5* MM, COBRIMENTO 20 MM","Material",null,"UN",1.333,0.22,0.28999999999999998]
["Insumo"," 00043132 ","SINAPI","ARAME RECOZIDO 16 BWG, D = 1,65 MM (0,016 KG/M) OU 18 BWG, D = 1,25 MM (0,01 KG/M)","Material",null,"KG",2.5000000000000001E-2,29.5,0.73]
[{"$nulls":4},"MO sem LS =>",0.86423194870365205,"LS =>",1,"MO com LS =>",1.86]
[{"$nulls":4},"Valor do BDI =>",2.89,null,"Valor com BDI =>",null,16.440000000000001]
[]
[null,"Código","Banco","Descrição","Tipo",null,"Und","Quant.","Valor Unit","Total"]
["Composição"," 92770 ","SINAPI","ARMAÇÃO DE LAJE DE ESTRUTURA CONVENCIONAL DE CONCRETO ARMADO UTILIZANDO AÇO CA-50 DE 8,0 MM - MONTAGEM. AF_06/2022","FUES - FUNDAÇÕES E ESTRUTURAS",null,"KG",1,12.9,12.9]
["Composição Auxiliar"," 88238 ","SINAPI","AJUDANTE DE ARMADOR COM ENCARGOS COMPLEMENTARES","SEDI - SERVIÇOS DIVERSOS",null,"H",6.6E-3,21.25,0.14000000000000001]
["Composição Auxiliar"," 88245 ","SINAPI","ARMADOR COM ENCARGOS COMPLEMENTARES","SEDI - SERVIÇOS DIVERSOS",null,"H",4.0300000000000002E-2,24.64,0.99]
["Composição Auxiliar"," 92802 ","SINAPI","CORTE E DOBRA DE AÇO CA-50, DIÂMETRO DE 8,0 MM. AF_06/2022","FUES - FUNDAÇÕES E ESTRUTURAS",null,"KG",1,10.88,10.88]
["Insumo"," 00039017 ","SINAPI","ESPACADOR / DISTANCIADOR CIRCULAR COM ENTRADA LATERAL, EM PLASTICO, PARA VERGALHAO *4,2 A 12,5* MM, COBRIMENTO 20 MM","Material",null,"UN",0.72799999999999998,0.22,0.16]
["Insumo"," 00043132 ","SINAPI","ARAME RECOZIDO 16 BWG, D = 1,65 MM (0,016 KG/M) OU 18 BWG, D = 1,25 MM (0,01 KG/M)","Material",null,"KG",2.5000000000000001E-2,29.5,0.73]
[{"$nulls":4},"MO sem LS =>",0.53433695753182786,"LS =>",0.62,"MO com LS =>",1.1499999999999999]
[{"$nulls":4},"Valor do BDI =>",2.75,null,"Valor com BDI =>",null,15.65]
[]
[null,"Código","Banco","Descrição","Tipo",null,"Und","Quant.","Valor Unit","Total"]
["Composição"," 92768 ","SINAPI","ARMAÇÃO DE LAJE DE ESTRUTURA CONVENCIONAL DE CONCRETO ARMADO UTILIZANDO AÇO CA-60 DE 5,0 MM - MONTAGEM. AF_06/2022","FUES - FUNDAÇÕES E ESTRUTURAS",null,"KG",1,14.12,14.12]
["Composição Auxiliar"," 88238 ","SINAPI","AJUDANTE DE ARMADOR COM ENCARGOS COMPLEMENTARES","SEDI - SERVIÇOS DIVERSOS",null,"H",1.3599999999999999E-2,21.25,0.28000000000000003]
["Composição Auxiliar"," 88245 ","SINAPI","ARMADOR COM ENCARGOS COMPLEMENTARES","SEDI - SERVIÇOS DIVERSOS",null,"H",8.3599999999999994E-2,24.64,2.0499999999999998]
["Composição Auxiliar"," 92800 ","SINAPI","CORTE E DOBRA DE AÇO CA-60, DIÂMETRO DE 5,0 MM. AF_06/2022","FUES - FUNDAÇÕES E ESTRUTURAS",null,"KG",1,10.6,10.6]
["Insumo"," 00039017 ","SINAPI","ESPACADOR / DISTANCIADOR CIRCULAR COM ENTRADA LATERAL, EM PLASTICO, PARA VERGALHAO *4,2 A 12,5* MM, COBRIMENTO 20 MM","Material",null,"UN",2.1179999999999999,0.22,0.46]
["Insumo"," 00043132 ","SINAPI","ARAME RECOZIDO 16 BWG, D = 1,65 MM (0,016 KG/M) OU 18 BWG, D = 1,25 MM (0,01 KG/M)","Material",null,"KG",2.5000000000000001E-2,29.5,0.73]
[{"$nulls":4},"MO sem LS =>",1.3613976396245702,"LS =>",1.57,"MO com LS =>",2.93]
[{"$nulls":4},"Valor do BDI =>",3.01,null,"Valor com BDI =>",null,17.13]
[]
[null,"Código","Banco","Descrição","Tipo",null,"Und","Quant.","Valor Unit","Total"]
["Composição"," 92762 ","SINAPI","ARMAÇÃO DE PILAR OU VIGA DE ESTRUTURA CONVENCIONAL DE CONCRETO ARMADO UTILIZANDO AÇO CA-50 DE 10,0 MM - MONTAGEM. AF_06/2022","FUES - FUNDAÇÕES E ESTRUTURAS",null,"KG",1,11.99,11.99]
["Composição Auxiliar"," 88238 ","SINAPI","AJUDANTE DE ARMADOR COM ENCARGOS COMPLEMENTARES","SEDI - SERVIÇOS DIVERSOS",null,"H",6.4000000000000003E-3,21.25,0.13]
["Composição Auxiliar"," 88245 ","SINAPI","ARMADOR COM ENCARGOS COMPLEMENTARES","SEDI - SERVIÇOS DIVERSOS",null,"H",3.9199999999999999E-2,24.64,0.96]
["Composição Auxiliar"," 92803 ","SINAPI","CORTE E DOBRA DE AÇO CA-50, DIÂMETRO DE 10,0 MM. AF_06/2022","FUES - FUNDAÇÕES E ESTRUTURAS",null,"KG",1,10.06,10.06]
["Insumo"," 00039017 ","SINAPI","ESPACADOR / DISTANCIADOR CIRCULAR COM ENTRADA LATERAL, EM PLASTICO, PARA VERGALHAO *4,2 A 12,5* MM, COBRIMENTO 20 MM","Material",null,"UN",0.54300000000000004,0.22,0.11]
["Insumo"," 00043132 ","SINAPI","ARAME RECOZIDO 16 BWG, D = 1,65 MM (0,016 KG/M) OU 18 BWG, D = 1,25 MM (0,01 KG/M)","Material",null,"KG",2.5000000000000001E-2,29.5,0.73]
[{"$nulls":4},"MO sem LS =>",0.45999442431000837,"LS =>",0.53,"MO com LS =>",0.99]
[{"$nulls":4},"Valor do BDI =>",2.5499999999999998,null,"Valor com BDI =>",null,14.54]
[]
[null,"Código","Banco","Descrição","Tipo",null,"Und","Quant.","Valor Unit","Total"]
["Composição"," 92763 ","SINAPI","ARMAÇÃO DE PILAR OU VIGA DE ESTRUTURA CONVENCIONAL DE CONCRETO ARMADO UTILIZANDO AÇO CA-50 DE 12,5 MM - MONTAGEM. AF_06/2022","FUES - FUNDAÇÕES E ESTRUTURAS",null,"KG",1,10.16,10.16]
["Composição Auxiliar"," 88238 ","SINAPI","AJUDANTE DE ARMADOR COM ENCARGOS COMPLEMENTARES","SEDI - SERVIÇOS DIVERSOS",null,"H",4.1999999999999997E-3,21.25,0.08]
["Composição Auxiliar"," 88245 ","SINAPI","ARMADOR COM ENCARGOS COMPLEMENTARES","SEDI - SERVIÇOS DIVERSOS",null,"H",2.5700000000000001E-2,24.64,0.63]
["Composição Auxiliar"," 92804 ","SINAPI","CORTE E DOBRA DE AÇO CA-50, DIÂMETRO DE 12,5 MM. AF_06/2022","FUES - FUNDAÇÕES E ESTRUTURAS",null,"KG",1,8.64,8.64]
["Insumo"," 00039017 ","SINAPI","ESPACADOR / DISTANCIADOR CIRCULAR COM ENTRADA LATERAL, EM PLASTICO, PARA VERGALHAO *4,2 A 12,5* MM, COBRIMENTO 20 MM","Material",null,"UN",0.36699999999999999,0.22,0.08]
["Insumo"," 00043132 ","SINAPI","ARAME RECOZIDO 16 BWG, D = 1,65 MM (0,016 KG/M) OU 18 BWG, D = 1,25 MM (0,01 KG/M)","Material",null,"KG",2.5000000000000001E-2,29.5,0.73]
[{"$nulls":4},"MO sem LS =>",0.28807731623455068,"LS =>",0.33,"MO com LS =>",0.62]
[{"$nulls":4},"Valor do BDI =>",2.16,null,"Valor com BDI =>",null,12.32]
[]
[null,"Código","Banco","Descrição","Tipo",null,"Und","Quant.","Valor Unit","Total"]
["Composição"," 92764 ","SINAPI","ARMAÇÃO DE PILAR OU VIGA DE ESTRUTURA CONVENCIONAL DE CONCRETO ARMADO UTILIZANDO AÇO CA-50 DE 16,0 MM - MONTAGEM. AF_06/2022","FUES - FUNDAÇÕES E ESTRUTURAS",null,"KG",1,9.8800000000000008,9.8800000000000008]
["Composição Auxiliar"," 88238 ","SINAPI","AJUDANTE DE ARMADOR COM ENCARGOS COMPLEMENTARES","SEDI - SERVIÇOS DIVERSOS",null,"H",3.2000000000000002E-3,21.25,0.06]
["Composição Auxiliar"," 88245 ","SINAPI","ARMADOR COM ENCARGOS COMPLEMENTARES","SEDI - SERVIÇOS DIVERSOS",null,"H",1.9400000000000001E-2,24.64,0.47]
["Composição Auxiliar"," 92805 ","SINAPI","CORTE E DOBRA DE AÇO CA-50, DIÂMETRO DE 16,0 MM. AF_06/2022","FUES - FUNDAÇÕES E ESTRUTURAS",null,"KG",1,8.58,8.58]
["Insumo"," 00039017 ","SINAPI","ESPACADOR / DISTANCIADOR CIRCULAR COM ENTRADA LATERAL, EM PLASTICO, PARA VERGALHAO *4,2 A 12,5* MM, COBRIMENTO 20 MM","Material",null,"UN",0.21199999999999999,0.22,0.04]
["Insumo"," 00043132 ","SINAPI","ARAME RECOZIDO 16 BWG, D = 1,65 MM (0,016 KG/M) OU 18 BWG, D = 1,25 MM (0,01 KG/M)","Material",null,"KG",2.5000000000000001E-2,29.5,0.73]
[{"$nulls":4},"MO sem LS =>",0.19979555803363999,"LS =>",0.23,"MO com LS =>",0.43]
[{"$nulls":4},"Valor do BDI =>",2.1,null,"Valor com BDI =>",null,11.98]
[]
[null,"Código","Banco","Descrição","Tipo",null,"Und","Quant.","Valor Unit","Total"]
["Composição"," 92765 ","SINAPI","ARMAÇÃO DE PILAR OU VIGA DE ESTRUTURA CONVENCIONAL DE CONCRETO ARMADO UTILIZANDO AÇO CA-50 DE 20,0 MM - MONTAGEM. AF_06/2022","FUES - FUNDAÇÕES E ESTRUTURAS",null,"KG",1,11.28,11.28]
["Composição Auxiliar"," 88238 ","SINAPI","AJUDANTE DE ARMADOR COM ENCARGOS COMPLEMENTARES","SEDI - SERVIÇOS DIVERSOS",null,"H",2.5000000000000001E-3,21.25,0.05]
["Composição Auxiliar"," 88245 ","SINAPI","ARMADOR COM ENCARGOS COMPLEMENTARES","SEDI - SERVIÇOS DIVERSOS",null,"H",1.52E-2,24.64,0.37]
["Composição Auxiliar"," 92806 ","SINAPI","CORTE E DOBRA DE AÇO CA-50, DIÂMETRO DE 20,0 MM. AF_06/2022","FUES - FUNDAÇÕES E ESTRUTURAS",null,"KG",1,10.11,10.11]
["Insumo"," 00039017 ","SINAPI","ESPACADOR / DISTANCIADOR CIRCULAR COM ENTRADA LATERAL, EM PLASTICO, PARA VERGALHAO *4,2 A 12,5* MM, COBRIMENTO 20 MM","Material",null,"UN",0.113,0.22,0.02]
["Insumo"," 00043132 ","SINAPI","ARAME RECOZIDO 16 BWG, D = 1,65 MM (0,016 KG/M) OU 18 BWG, D = 1,25 MM (0,01 KG/M)","Material",null,"KG",2.5000000000000001E-2,29.5,0.73]
[{"$nulls":4},"MO sem LS =>",0.14868506644363907,"LS =>",0.17,"MO com LS =>",0.32]
[{"$nulls":4},"Valor do BDI =>",2.4,null,"Valor com BDI =>",null,13.68]
[]
[null,"Código","Banco","Descrição","Tipo",null,"Und","Quant.","Valor Unit","Total"]
["Composição"," 92760 ","SINAPI","ARMAÇÃO DE PILAR OU VIGA DE ESTRUTURA CONVENCIONAL DE CONCRETO ARMADO UTILIZANDO AÇO CA-50 DE 6,3 MM - MONTAGEM. AF_06/2022","FUES - FUNDAÇÕES E ESTRUTURAS",null,"KG",1,14.01,14.01]
["Composição Auxiliar"," 88238 ","SINAPI","AJUDANTE DE ARMADOR COM ENCARGOS COMPLEMENTARES","SEDI - SERVIÇOS DIVERSOS",null,"H",1.29E-2,21.25,0.27]
["Composição Auxiliar"," 88245 ","SINAPI","ARMADOR COM ENCARGOS COMPLEMENTARES","SEDI - SERVIÇOS DIVERSOS",null,"H",7.9000000000000001E-2,24.64,1.94]
["Composição Auxiliar"," 92801 ","SINAPI","CORTE E DOBRA DE AÇO CA-50, DIÂMETRO DE 6,3 MM. AF_06/2022","FUES - FUNDAÇÕES E ESTRUTURAS",null,"KG",1,10.86,10.86]
["Insumo"," 00039017 ","SINAPI","ESPACADOR / DISTANCIADOR CIRCULAR COM ENTRADA LATERAL, EM PLASTICO, PARA VERGALHAO *4,2 A 12,5* MM, COBRIMENTO 20 MM","Material",null,"UN",0.97,0.22,0.21]
["Insumo"," 00043132 ","SINAPI","ARAME RECOZIDO 16 BWG, D = 1,65 MM (0,016 KG/M) OU 18 BWG, D = 1,25 MM (0,01 KG/M)","Material",null,"KG",2.5000000000000001E-2,29.5,0.73]
[{"$nulls":4},"MO sem LS =>",1.0547346900845647,"LS =>",1.22,"MO com LS =>",2.27]
[{"$nulls":4},"Valor do BDI =>",2.99,null,"Valor com BDI =>",null,17]
[]
[null,"Código","Banco","Descrição","Tipo",null,"Und","Quant.","Valor Unit","Total"]
["Composição"," 92761 ","SINAPI","ARMAÇÃO DE PILAR OU VIGA DE ESTRUTURA CONVENCIONAL DE CONCRETO ARMADO UTILIZANDO AÇO CA-50 DE 8,0 MM - MONTAGEM. AF_06/2022","FUES - FUNDAÇÕES E ESTRUTURAS",null,"KG",1,13.34,13.34]
["Composição Auxiliar"," 88238 ","SINAPI","AJUDANTE DE ARMADOR COM ENCARGOS COMPLEMENTARES","SEDI - SERVIÇOS DIVERSOS",null,"H",9.1999999999999998E-3,21.25,0.19]
["Composição Auxiliar"," 88245 ","SINAPI","ARMADOR COM ENCARGOS COMPLEMENTARES","SEDI - SERVIÇOS DIVERSOS",null,"H",5.6099999999999997E-2,24.64,1.38]
["Composição Auxiliar"," 92802 ","SINAPI","CORTE E DOBRA DE AÇO CA-50, DIÂMETRO DE 8,0 MM. AF_06/2022","FUES - FUNDAÇÕES E ESTRUTURAS",null,"KG",1,10.88,10.88]
["Insumo"," 00039017 ","SINAPI","ESPACADOR / DISTANCIADOR CIRCULAR COM ENTRADA LATERAL, EM PLASTICO, PARA VERGALHAO *4,2 A 12,5* MM, COBRIMENTO 20 MM","Material",null,"UN",0.74299999999999999,0.22,0.16]
["Insumo"," 00043132 ","SINAPI","ARAME RECOZIDO 16 BWG, D = 1,65 MM (0,016 KG/M) OU 18 BWG, D = 1,25 MM (0,01 KG/M)","Material",null,"KG",2.5000000000000001E-2,29.5,0.73]
[{"$nulls":4},"MO sem LS =>",0.68766843230183072,"LS =>",0.79,"MO com LS =>",1.48]
[{"$nulls":4},"Valor do BDI =>",2.84,null,"Valor com BDI =>",null,16.18]
[]
[null,"Código","Banco","Descrição","Tipo",null,"Und","Quant.","Valor Unit","Total"]
["Composição"," 92759 ","SINAPI","ARMAÇÃO DE PILAR OU VIGA DE ESTRUTURA CONVENCIONAL DE CONCRETO ARMADO UTILIZANDO AÇO CA-60 DE 5,0 MM - MONTAGEM. AF_06/2022","FUES - FUNDAÇÕES E ESTRUTURAS",null,"KG",1,14.59,14.59]
["Composição Auxiliar"," 88238 ","SINAPI","AJUDANTE DE ARMADOR COM ENCARGOS COMPLEMENTARES","SEDI - SERVIÇOS DIVERSOS",null,"H",1.7500000000000002E-2,21.25,0.37]
["Composição Auxiliar"," 88245 ","SINAPI","ARMADOR COM ENCARGOS COMPLEMENTARES","SEDI - SERVIÇOS DIVERSOS",null,"H",0.1069,24.64,2.63]
["Composição Auxiliar"," 92800 ","SINAPI","CORTE E DOBRA DE AÇO CA-60, DIÂMETRO DE 5,0 MM. AF_06/2022","FUES - FUNDAÇÕES E ESTRUTURAS",null,"KG",1,10.6,10.6]
["Insumo"," 00039017 ","SINAPI","ESPACADOR / DISTANCIADOR CIRCULAR COM ENTRADA LATERAL, EM PLASTICO, PARA VERGALHAO *4,2 A 12,5* MM, COBRIMENTO 20 MM","Material",null,"UN",1.19,0.22,0.26]
["Insumo"," 00043132 ","SINAPI","ARAME RECOZIDO 16 BWG, D = 1,65 MM (0,016 KG/M) OU 18 BWG, D = 1,25 MM (0,01 KG/M)","Material",null,"KG",2.5000000000000001E-2,29.5,0.73]
[{"$nulls":4},"MO sem LS =>",1.5890716476163926,"LS =>",1.83,"MO com LS =>",3.42]
[{"$nulls":4},"Valor do BDI =>",3.11,null,"Valor com BDI =>",null,17.7]
[]
[null,"Código","Banco","Descrição","Tipo",null,"Und","Quant.","Valor Unit","Total"]
["Composição"," 90772 ","SINAPI","AUXILIAR DE ESCRITORIO COM ENCARGOS COMPLEMENTARES","SEDI - SERVIÇOS DIVERSOS",null,"H",1,16.66,16.66]
["Composição Auxiliar"," 95398 ","SINAPI","CURSO DE CAPACITAÇÃO PARA AUXILIAR DE ESCRITÓRIO (ENCARGOS COMPLEMENTARES) - HORISTA","SEDI - SERVIÇOS DIVERSOS",null,"H",1,0.08,0.08]
["Insumo"," 00002350 ","SINAPI","AUXILIAR DE ESCRITORIO (HORISTA)","Mão de Obra",null,"H",1,14.35,14.35]
["Insumo"," 00037372 ","SINAPI","EXAMES - HORISTA (COLETADO CAIXA - ENCARGOS COMPLEMENTARES)","Outros",null,"H",1,1.34,1.34]
["Insumo"," 00037373 ","SINAPI","SEGURO - HORISTA (COLETADO CAIXA - ENCARGOS COMPLEMENTARES)","Taxas",null,"H",1,0.04,0.04]
["Insumo"," 00043458 ","SINAPI","FERRAMENTAS - FAMILIA ALMOXARIFE - HORISTA (ENCARGOS COMPLEMENTARES - COLETADO CAIXA)","Equipamento",null,"H",1,0.06,0.06]
["Insumo"," 00043482 ","SINAPI","EPI - FAMILIA ALMOXARIFE - HORISTA (ENCARGOS COMPLEMENTARES - COLETADO CAIXA)","Equipamento",null,"H",1,0.79,0.79]
[{"$nulls":4},"MO sem LS =>",6.7047672,"LS =>",7.73,"MO com LS =>",14.43]
[{"$nulls":4},"Valor do BDI =>",3.55,null,"Valor com BDI =>",null,20.21]
[]
[null,"Código","Banco","Descrição","Tipo",null,"Und","Quant.","Valor Unit","Total"]
["Composição"," 88253 ","SINAPI","AUXILIAR DE TOPÓGRAFO COM ENCARGOS COMPLEMENTARES","SEDI - SERVIÇOS DIVERSOS",null,"H",1,19.79,19.79]
["Composição Auxiliar"," 95322 ","SINAPI","CURSO DE CAPACITAÇÃO PARA AUXILIAR DE TOPÓGRAFO (ENCARGOS COMPLEMENTARES) - HORISTA","SEDI - SERVIÇOS DIVERSOS",null,"H",1,0.16,0.16]
["Insumo"," 00000244 ","SINAPI","AUXILIAR DE TOPOGRAFO (HORISTA)","Mão de Obra",null,"H",1,17.47,17.47]
["Insumo"," 00037372 ","SINAPI","EXAMES - HORISTA (COLETADO CAIXA - ENCARGOS COMPLEMENTARES)","Outros",null,"H",1,1.34,1.34]
["Insumo"," 00037373 ","SINAPI","SEGURO - HORISTA (COLETADO CAIXA - ENCARGOS COMPLEMENTARES)","Taxas",null,"H",1,0.04,0.04]
["Insumo"," 00043469 ","SINAPI","FERRAMENTAS - FAMILIA TOPOGRAFO - HORISTA (ENCARGOS COMPLEMENTARES - COLETADO CAIXA)","Equipamento",null,"H",1,7.0000000000000007E-2,7.0000000000000007E-2]
["Insumo"," 00043493 ","SINAPI","EPI - FAMILIA TOPOGRAFO - HORISTA (ENCARGOS COMPLEMENTARES - COLETADO CAIXA)","Equipamento",null,"H",1,0.71,0.71]
[{"$nulls":4},"MO sem LS =>",8.1916179000000007,"LS =>",9.44,"MO com LS =>",17.63]
[{"$nulls":4},"Valor do BDI =>",4.22,null,"Valor com BDI =>",null,24.01]
[]
[null,"Código","Banco","Descrição","Tipo",null,"Und","Quant.","Valor Unit","Total"]
["Composição"," 88831 ","SINAPI","BETONEIRA CAPACIDADE NOMINAL DE 400 L, CAPACIDADE DE MISTURA 280 L, MOTOR ELÉTRICO TRIFÁSICO POTÊNCIA DE 2 CV, SEM CARREGADOR - CHI DIURNO. AF_10/2014","CHOR - CUSTOS HORÁRIOS DE MÁQUINAS E EQUIPAMENTOS",null,"CHI",1,0.37,0.37]
["Composição Auxiliar"," 88826 ","SINAPI","BETONEIRA CAPACIDADE NOMINAL DE 400 L, CAPACIDADE DE MISTURA 280 L, MOTOR ELÉTRICO TRIFÁSICO POTÊNCIA DE 2 CV, SEM CARREGADOR - DEPRECIAÇÃO. AF_10/2014","CHOR - CUSTOS HORÁRIOS DE MÁQUINAS E EQUIPAMENTOS",null,"H",1,0.3,0.3]
["Composição Auxiliar"," 88827 ","SINAPI","BETONEIRA CAPACIDADE NOMINAL DE 400 L, CAPACIDADE DE MISTURA 280 L, MOTOR ELÉTRICO TRIFÁSICO POTÊNCIA DE 2 CV, SEM CARREGADOR - JUROS. AF_10/2014","CHOR - CUSTOS HORÁRIOS DE MÁQUINAS E EQUIPAMENTOS",null,"H",1,7.0000000000000007E-2,7.0000000000000007E-2]
[{"$nulls":4},"MO sem LS =>",0,"LS =>",0,"MO com LS =>",0]
[{"$nulls":4},"Valor do BDI =>",7.0000000000000007E-2,null,"Valor com BDI =>",null,0.44]
[]
[null,"Código","Banco","Descrição","Tipo",null,"Und","Quant.","Valor Unit","Total"]
["Composição"," 88830 ","SINAPI","BETONEIRA CAPACIDADE NOMINAL DE 400 L, CAPACIDADE DE MISTURA 280 L, MOTOR ELÉTRICO TRIFÁSICO POTÊNCIA DE 2 CV, SEM CARREGADOR - CHP DIURNO. AF_10/2014","CHOR - CUSTOS HORÁRIOS DE MÁQUINAS E EQUIPAMENTOS",null,"CHP",1,2.0699999999999998,2.0699999999999998]
["Composição Auxiliar"," 88826 ","SINAPI","BETONEIRA CAPACIDADE NOMINAL DE 400 L, CAPACIDADE DE MISTURA 280 L, MOTOR ELÉTRICO TRIFÁSICO POTÊNCIA DE 2 CV, SEM CARREGADOR - DEPRECIAÇÃO. AF_10/2014","CHOR - CUSTOS HORÁRIOS DE MÁQUINAS E EQUIPAMENTOS",null,"H",1,0.3,0.3]
["Composição Auxiliar"," 88827 ","SINAPI","BETONEIRA CAPACIDADE NOMINAL DE 400 L, CAPACIDADE DE MISTURA 280 L, MOTOR ELÉTRICO TRIFÁSICO POTÊNCIA DE 2 CV, SEM CARREGADOR - JUROS. AF_10/2014","CHOR - CUSTOS HORÁRIOS DE MÁQUINAS E EQUIPAMENTOS",null,"H",1,7.0000000000000007E-2,7.0000000000000007E-2]
["Composição Auxiliar"," 88828 ","SINAPI","BETONEIRA CAPACIDADE NOMINAL DE 400 L, CAPACIDADE DE MISTURA 280 L, MOTOR ELÉTRICO TRIFÁSICO POTÊNCIA DE 2 CV, SEM CARREGADOR - MANUTENÇÃO. AF_10/2014","CHOR - CUSTOS HORÁRIOS DE MÁQUINAS E EQUIPAMENTOS",null,"H",1,0.35,0.35]
["Composição Auxiliar"," 88829 ","SINAPI","BETONEIRA CAPACIDADE NOMINAL DE 400 L, CAPACIDADE DE MISTURA 280 L, MOTOR ELÉTRICO TRIFÁSICO POTÊNCIA DE 2 CV, SEM CARREGADOR - MATERIAIS NA OPERAÇÃO. AF_10/2014","CHOR - CUSTOS HORÁRIOS DE MÁQUINAS E EQUIPAMENTOS",null,"H",1,1.35,1.35]
[{"$nulls":4},"MO sem LS =>",0,"LS =>",0,"MO com LS =>",0]
[{"$nulls":4},"Valor do BDI =>",0.44,null,"Valor com BDI =>",null,2.5099999999999998]
[]
[null,"Código","Banco","Descrição","Tipo",null,"Und","Quant.","Valor Unit","Total"]
["Composição"," 88826 ","SINAPI","BETONEIRA CAPACIDADE NOMINAL DE 400 L, CAPACIDADE DE MISTURA 280 L, MOTOR ELÉTRICO TRIFÁSICO POTÊNCIA DE 2 CV, SEM CARREGADOR - DEPRECIAÇÃO. AF_10/2014","CHOR - CUSTOS HORÁRIOS DE MÁQUINAS E EQUIPAMENTOS",null,"H",1,0.3,0.3]
["Insumo"," 00010535 ","SINAPI","BETONEIRA CAPACIDADE NOMINAL 400 L, CAPACIDADE DE MISTURA  280 L, MOTOR ELETRICO TRIFASICO 220/380 V POTENCIA 2 CV, SEM CARREGADOR","Equipamento",null,"UN",6.0000000000000002E-5,5099.5,0.3]
[{"$nulls":4},"MO sem LS =>",0,"LS =>",0,"MO com LS =>",0]
[{"$nulls":4},"Valor do BDI =>",0.06,null,"Valor com BDI =>",null,0.36]
[]
[null,"Código","Banco","Descrição","Tipo",null,"Und","Quant.","Valor Unit","Total"]
["Composição"," 88827 ","SINAPI","BETONEIRA CAPACIDADE NOMINAL DE 400 L, CAPACIDADE DE MISTURA 280 L, MOTOR ELÉTRICO TRIFÁSICO POTÊNCIA DE 2 CV, SEM CARREGADOR - JUROS. AF_10/2014","CHOR - CUSTOS HORÁRIOS DE MÁQUINAS E EQUIPAMENTOS",null,"H",1,7.0000000000000007E-2,7.0000000000000007E-2]
["Insumo"," 00010535 ","SINAPI","BETONEIRA CAPACIDADE NOMINAL 400 L, CAPACIDADE DE MISTURA  280 L, MOTOR ELETRICO TRIFASICO 220/380 V POTENCIA 2 CV, SEM CARREGADOR","Equipamento",null,"UN",1.4800000000000001E-5,5099.5,7.0000000000000007E-2]
[{"$nulls":4},"MO sem LS =>",0,"LS =>",0,"MO com LS =>",0]
[{"$nulls":4},"Valor do BDI =>",0.01,null,"Valor com BDI =>",null,0.08]
[]
[null,"Código","Banco","Descrição","Tipo",null,"Und","Quant.","Valor Unit","Total"]
["Composição"," 88828 ","SINAPI","BETONEIRA CAPACIDADE NOMINAL DE 400 L, CAPACIDADE DE MISTURA 280 L, MOTOR ELÉTRICO TRIFÁSICO POTÊNCIA DE 2 CV, SEM CARREGADOR - MANUTENÇÃO. AF_10/2014","CHOR - CUSTOS HORÁRIOS DE MÁQUINAS E EQUIPAMENTOS",null,"H",1,0.35,0.35]
["Insumo"," 00010535 ","SINAPI","BETONEIRA CAPACIDADE NOMINAL 400 L, CAPACIDADE DE MISTURA  280 L, MOTOR ELETRICO TRIFASICO 220/380 V POTENCIA 2 CV, SEM CARREGADOR","Equipamento",null,"UN",6.9999999999999994E-5,5099.5,0.35]
[{"$nulls":4},"MO sem LS =>",0,"LS =>",0,"MO com LS =>",0]
[{"$nulls":4},"Valor do BDI =>",7.0000000000000007E-2,null,"Valor com BDI =>",null,0.42]
[]
[null,"Código","Banco","Descrição","Tipo",null,"Und","Quant.","Valor Unit","Total"]
["Composição"," 88829 ","SINAPI","BETONEIRA CAPACIDADE NOMINAL DE 400 L, CAPACIDADE DE MISTURA 280 L, MOTOR ELÉTRICO TRIFÁSICO POTÊNCIA DE 2 CV, SEM CARREGADOR - MATERIAIS NA OPERAÇÃO. AF_10/2014","CHOR - CUSTOS HORÁRIOS DE MÁQUINAS E EQUIPAMENTOS",null,"H",1,1.35,1.35]
["Insumo"," 00002705 ","SINAPI","ENERGIA ELETRICA ATE 2000 KWH INDUSTRIAL, SEM DEMANDA","Material",null,"KWH",1.2512000000000001,1.08,1.35]
[{"$nulls":4},"MO sem LS =>",0,"LS =>",0,"MO com LS =>",0]
[{"$nulls":4},"Valor do BDI =>",0.28000000000000003,null,"Valor com BDI =>",null,1.63]
[]
[null,"Código","Banco","Descrição","Tipo",null,"Und","Quant.","Valor Unit","Total"]
["Composição"," 88260 ","SINAPI","CALCETEIRO COM ENCARGOS COMPLEMENTARES","SEDI - SERVIÇOS DIVERSOS",null,"H",1,24.64,24.64]
["Composição Auxiliar"," 95328 ","SINAPI","CURSO DE CAPACITAÇÃO PARA CALCETEIRO (ENCARGOS COMPLEMENTARES) - HORISTA","SEDI - SERVIÇOS DIVERSOS",null,"H",1,0.24,0.24]
["Insumo"," 00004759 ","SINAPI","CALCETEIRO (HORISTA)","Mão de Obra",null,"H",1,18.14,18.14]
["Insumo"," 00037370 ","SINAPI","ALIMENTACAO - HORISTA (COLETADO CAIXA - ENCARGOS COMPLEMENTARES)","Outros",null,"H",1,2.2200000000000002,2.2200000000000002]
["Insumo"," 00037371 ","SINAPI","TRANSPORTE - HORISTA (COLETADO CAIXA - ENCARGOS COMPLEMENTARES)","Serviços",null,"H",1,0.6,0.6]
["Insumo"," 00037372 ","SINAPI","EXAMES - HORISTA (COLETADO CAIXA - ENCARGOS COMPLEMENTARES)","Outros",null,"H",1,1.34,1.34]
["Insumo"," 00037373 ","SINAPI","SEGURO - HORISTA (COLETADO CAIXA - ENCARGOS COMPLEMENTARES)","Taxas",null,"H",1,0.04,0.04]
["Insumo"," 00043465 ","SINAPI","FERRAMENTAS - FAMILIA PEDREIRO - HORISTA (ENCARGOS COMPLEMENTARES - COLETADO CAIXA)","Equipamento",null,"H",1,0.82,0.82]
["Insumo"," 00043489 ","SINAPI","EPI - FAMILIA PEDREIRO - HORISTA (ENCARGOS COMPLEMENTARES - COLETADO CAIXA)","Equipamento",null,"H",1,1.24,1.24]
[{"$nulls":4},"MO sem LS =>",8.5400984999999991,"LS =>",9.84,"MO com LS =>",18.38]
[{"$nulls":4},"Valor do BDI =>",5.26,null,"Valor com BDI =>",null,29.9]
[]
[null,"Código","Banco","Descrição","Tipo",null,"Und","Quant.","Valor Unit","Total"]
["Composição"," 92145 ","SINAPI","CAMINHONETE CABINE SIMPLES COM MOTOR 1.6 FLEX, CÂMBIO MANUAL, POTÊNCIA 101/104 CV, 2 PORTAS - CHP DIURNO. AF_11/2015","CHOR - CUSTOS HORÁRIOS DE MÁQUINAS E EQUIPAMENTOS",null,"CHP",1,73.48,73.48]
["Composição Auxiliar"," 88284 ","SINAPI","MOTORISTA DE VEIÍCULO LEVE COM ENCARGOS COMPLEMENTARES","SEDI - SERVIÇOS DIVERSOS",null,"H",1,22.47,22.47]
["Composição Auxiliar"," 92140 ","SINAPI","CAMINHONETE CABINE SIMPLES COM MOTOR 1.6 FLEX, CÂMBIO MANUAL, POTÊNCIA 101/104 CV, 2 PORTAS - DEPRECIAÇÃO. AF_11/2015","CHOR - CUSTOS HORÁRIOS DE MÁQUINAS E EQUIPAMENTOS",null,"H",1,4.68,4.68]
["Composição Auxiliar"," 92141 ","SINAPI","CAMINHONETE CABINE SIMPLES COM MOTOR 1.6 FLEX, CÂMBIO MANUAL, POTÊNCIA 101/104 CV, 2 PORTAS - JUROS. AF_11/2015","CHOR - CUSTOS HORÁRIOS DE MÁQUINAS E EQUIPAMENTOS",null,"H",1,1.44,1.44]
["Composição Auxiliar"," 92142 ","SINAPI","CAMINHONETE CABINE SIMPLES COM MOTOR 1.6 FLEX, CÂMBIO MANUAL, POTÊNCIA 101/104 CV, 2 PORTAS - IMPOSTOS E SEGUROS. AF_11/2015","CHOR - CUSTOS HORÁRIOS DE MÁQUINAS E EQUIPAMENTOS",null,"H",1,0.57999999999999996,0.57999999999999996]
["Composição Auxiliar"," 92143 ","SINAPI","CAMINHONETE CABINE SIMPLES COM MOTOR 1.6 FLEX, CÂMBIO MANUAL, POTÊNCIA 101/104 CV, 2 PORTAS - MANUTENÇÃO. AF_11/2015","CHOR - CUSTOS HORÁRIOS DE MÁQUINAS E EQUIPAMENTOS",null,"H",1,5.85,5.85]
["Composição Auxiliar"," 92144 ","SINAPI","CAMINHONETE CABINE SIMPLES COM MOTOR 1.6 FLEX, CÂMBIO MANUAL, POTÊNCIA 101/104 CV, 2 PORTAS - MATERIAIS NA OPERAÇÃO. AF_11/2015","CHOR - CUSTOS HORÁRIOS DE MÁQUINAS E EQUIPAMENTOS",null,"H",1,38.46,38.46]
[{"$nulls":4},"MO sem LS =>",8.0847505000000002,"LS =>",9.32,"MO com LS =>",17.399999999999999]
[{"$nulls":4},"Valor do BDI =>",15.68,null,"Valor com BDI =>",null,89.16]
[]
[null,"Código","Banco","Descrição","Tipo",null,"Und","Quant.","Valor Unit","Total"]
["Composição"," 92140 ","SINAPI","CAMINHONETE CABINE SIMPLES COM MOTOR 1.6 FLEX, CÂMBIO MANUAL, POTÊNCIA 101/104 CV, 2 PORTAS - DEPRECIAÇÃO. AF_11/2015","CHOR - CUSTOS HORÁRIOS DE MÁQUINAS E EQUIPAMENTOS",null,"H",1,4.68,4.68]
["Insumo"," 00013617 ","SINAPI","PICAPE CABINE SIMPLES COM MOTOR 1.6 FLEX, CAMBIO MANUAL, POTENCIA 101/104 CV, 2 PORTAS","Equipamento",null,"UN",4.8000000000000001E-5,97595.79,4.68]
[{"$nulls":4},"MO sem LS =>",0,"LS =>",0,"MO com LS =>",0]
[{"$nulls":4},"Valor do BDI =>",0.99,null,"Valor com BDI =>",null,5.67]
[]
[null,"Código","Banco","Descrição","Tipo",null,"Und","Quant.","Valor Unit","Total"]
["Composição"," 92142 ","SINAPI","CAMINHONETE CABINE SIMPLES COM MOTOR 1.6 FLEX, CÂMBIO MANUAL, POTÊNCIA 101/104 CV, 2 PORTAS - IMPOSTOS E SEGUROS. AF_11/2015","CHOR - CUSTOS HORÁRIOS DE MÁQUINAS E EQUIPAMENTOS",null,"H",1,0.57999999999999996,0.57999999999999996]
["Insumo"," 00013617 ","SINAPI","PICAPE CABINE SIMPLES COM MOTOR 1.6 FLEX, CAMBIO MANUAL, POTENCIA 101/104 CV, 2 PORTAS","Equipamento",null,"UN",6.0000000000000002E-6,97595.79,0.57999999999999996]
[{"$nulls":4},"MO sem LS =>",0,"LS =>",0,"MO com LS =>",0]
[{"$nulls":4},"Valor do BDI =>",0.12,null,"Valor com BDI =>",null,0.7]
[]
[null,"Código","Banco","Descrição","Tipo",null,"Und","Quant.","Valor Unit","Total"]
["Composição"," 92141 ","SINAPI","CAMINHONETE CABINE SIMPLES COM MOTOR 1.6 FLEX, CÂMBIO MANUAL, POTÊNCIA 101/104 CV, 2 PORTAS - JUROS. AF_11/2015","CHOR - CUSTOS HORÁRIOS DE MÁQUINAS E EQUIPAMENTOS",null,"H",1,1.44,1.44]
["Insumo"," 00013617 ","SINAPI","PICAPE CABINE SIMPLES COM MOTOR 1.6 FLEX, CAMBIO MANUAL, POTENCIA 101/104 CV, 2 PORTAS","Equipamento",null,"UN",1.4800000000000001E-5,97595.79,1.44]
[{"$nulls":4},"MO sem LS =>",0,"LS =>",0,"MO com LS =>",0]
[{"$nulls":4},"Valor do BDI =>",0.3,null,"Valor com BDI =>",null,1.74]
[]
[null,"Código","Banco","Descrição","Tipo",null,"Und","Quant.","Valor Unit","Total"]
["Composição"," 92143 ","SINAPI","CAMINHONETE CABINE SIMPLES COM MOTOR 1.6 FLEX, CÂMBIO MANUAL, POTÊNCIA 101/104 CV, 2 PORTAS - MANUTENÇÃO. AF_11/2015","CHOR - CUSTOS HORÁRIOS DE MÁQUINAS E EQUIPAMENTOS",null,"H",1,5.85,5.85]
["Insumo"," 00013617 ","SINAPI","PICAPE CABINE SIMPLES COM MOTOR 1.6 FLEX, CAMBIO MANUAL, POTENCIA 101/104 CV, 2 PORTAS","Equipamento",null,"UN",6.0000000000000002E-5,97595.79,5.85]
[{"$nulls":4},"MO sem LS =>",0,"LS =>",0,"MO com LS =>",0]
[{"$nulls":4},"Valor do BDI =>",1.24,null,"Valor com BDI =>",null,7.09]
[]
[null,"Código","Banco","Descrição","Tipo",null,"Und","Quant.","Valor Unit","Total"]
["Composição"," 92144 ","SINAPI","CAMINHONETE CABINE SIMPLES COM MOTOR 1.6 FLEX, CÂMBIO MANUAL, POTÊNCIA 101/104 CV, 2 PORTAS - MATERIAIS NA OPERAÇÃO. AF_11/2015","CHOR - CUSTOS HORÁRIOS DE MÁQUINAS E EQUIPAMENTOS",null,"H",1,38.46,38.46]
["Insumo"," 00004222 ","SINAPI","GASOLINA COMUM","Material",null,"L",6.69,5.75,38.46]
[{"$nulls":4},"MO sem LS =>",0,"LS =>",0,"MO com LS =>",0]
[{"$nulls":4},"Valor do BDI =>",8.2100000000000009,null,"Valor com BDI =>",null,46.67]
[]
[null,"Código","Banco","Descrição","Tipo",null,"Und","Quant.","Valor Unit","Total"]
["Composição"," 91387 ","SINAPI","CAMINHÃO BASCULANTE 10 M3, TRUCADO CABINE SIMPLES, PESO BRUTO TOTAL 23.000 KG, CARGA ÚTIL MÁXIMA 15.935 KG, DISTÂNCIA ENTRE EIXOS 4,80 M, POTÊNCIA 230 CV INCLUSIVE CAÇAMBA METÁLICA - CHI DIURNO. AF_06/2014","CHOR - CUSTOS HORÁRIOS DE MÁQUINAS E EQUIPAMENTOS",null,"CHI",1,68.39,68.39]
["Composição Auxiliar"," 88281 ","SINAPI","MOTORISTA DE BASCULANTE COM ENCARGOS COMPLEMENTARES","SEDI - SERVIÇOS DIVERSOS",null,"H",1,24.03,24.03]
["Composição Auxiliar"," 91380 ","SINAPI","CAMINHÃO BASCULANTE 10 M3, TRUCADO CABINE SIMPLES, PESO BRUTO TOTAL 23.000 KG, CARGA ÚTIL MÁXIMA 15.935 KG, DISTÂNCIA ENTRE EIXOS 4,80 M, POTÊNCIA 230 CV INCLUSIVE CAÇAMBA METÁLICA - DEPRECIAÇÃO. AF_06/2014","CHOR - CUSTOS HORÁRIOS DE MÁQUINAS E EQUIPAMENTOS",null,"H",1,28.78,28.78]
["Composição Auxiliar"," 91381 ","SINAPI","CAMINHÃO BASCULANTE 10 M3, TRUCADO CABINE SIMPLES, PESO BRUTO TOTAL 23.000 KG, CARGA ÚTIL MÁXIMA 15.935 KG, DISTÂNCIA ENTRE EIXOS 4,80 M, POTÊNCIA 230 CV INCLUSIVE CAÇAMBA METÁLICA - JUROS. AF_06/2014","CHOR - CUSTOS HORÁRIOS DE MÁQUINAS E EQUIPAMENTOS",null,"H",1,11.1,11.1]
["Composição Auxiliar"," 91382 ","SINAPI","CAMINHÃO BASCULANTE 10 M3, TRUCADO CABINE SIMPLES, PESO BRUTO TOTAL 23.000 KG, CARGA ÚTIL MÁXIMA 15.935 KG, DISTÂNCIA ENTRE EIXOS 4,80 M, POTÊNCIA 230 CV INCLUSIVE CAÇAMBA METÁLICA - IMPOSTOS E SEGUROS. AF_06/2014","CHOR - CUSTOS HORÁRIOS DE MÁQUINAS E EQUIPAMENTOS",null,"H",1,4.4800000000000004,4.4800000000000004]
[{"$nulls":4},"MO sem LS =>",8.8095902000000006,"LS =>",10.15,"MO com LS =>",18.96]
[{"$nulls":4},"Valor do BDI =>",14.6,null,"Valor com BDI =>",null,82.99]
[]
[null,"Código","Banco","Descrição","Tipo",null,"Und","Quant.","Valor Unit","Total"]
["Composição"," 91386 ","SINAPI","CAMINHÃO BASCULANTE 10 M3, TRUCADO CABINE SIMPLES, PESO BRUTO TOTAL 23.000 KG, CARGA ÚTIL MÁXIMA 15.935 KG, DISTÂNCIA ENTRE EIXOS 4,80 M, POTÊNCIA 230 CV INCLUSIVE CAÇAMBA METÁLICA - CHP DIURNO. AF_06/2014","CHOR - CUSTOS HORÁRIOS DE MÁQUINAS E EQUIPAMENTOS",null,"CHP",1,264.18,264.18]
["Composição Auxiliar"," 88281 ","SINAPI","MOTORISTA DE BASCULANTE COM ENCARGOS COMPLEMENTARES","SEDI - SERVIÇOS DIVERSOS",null,"H",1,24.03,24.03]
["Composição Auxiliar"," 91380 ","SINAPI","CAMINHÃO BASCULANTE 10 M3, TRUCADO CABINE SIMPLES, PESO BRUTO TOTAL 23.000 KG, CARGA ÚTIL MÁXIMA 15.935 KG, DISTÂNCIA ENTRE EIXOS 4,80 M, POTÊNCIA 230 CV INCLUSIVE CAÇAMBA METÁLICA - DEPRECIAÇÃO. AF_06/2014","CHOR - CUSTOS HORÁRIOS DE MÁQUINAS E EQUIPAMENTOS",null,"H",1,28.78,28.78]
["Composição Auxiliar"," 91381 ","SINAPI","CAMINHÃO BASCULANTE 10 M3, TRUCADO CABINE SIMPLES, PESO BRUTO TOTAL 23.000 KG, CARGA ÚTIL MÁXIMA 15.935 KG, DISTÂNCIA ENTRE EIXOS 4,80 M, POTÊNCIA 230 CV INCLUSIVE CAÇAMBA METÁLICA - JUROS. AF_06/2014","CHOR - CUSTOS HORÁRIOS DE MÁQUINAS E EQUIPAMENTOS",null,"H",1,11.1,11.1]
["Composição Auxiliar"," 91382 ","SINAPI","CAMINHÃO BASCULANTE 10 M3, TRUCADO CABINE SIMPLES, PESO BRUTO TOTAL 23.000 KG, CARGA ÚTIL MÁXIMA 15.935 KG, DISTÂNCIA ENTRE EIXOS 4,80 M, POTÊNCIA 230 CV INCLUSIVE CAÇAMBA METÁLICA - IMPOSTOS E SEGUROS. AF_06/2014","CHOR - CUSTOS HORÁRIOS DE MÁQUINAS E EQUIPAMENTOS",null,"H",1,4.4800000000000004,4.4800000000000004]
["Composição Auxiliar"," 91383 ","SINAPI","CAMINHÃO BASCULANTE 10 M3, TRUCADO CABINE SIMPLES, PESO BRUTO TOTAL 23.000 KG, CARGA ÚTIL MÁXIMA 15.935 KG, DISTÂNCIA ENTRE EIXOS 4,80 M, POTÊNCIA 230 CV INCLUSIVE CAÇAMBA METÁLICA - MANUTENÇÃO. AF_06/2014","CHOR - CUSTOS HORÁRIOS DE MÁQUINAS E EQUIPAMENTOS",null,"H",1,51.94,51.94]
["Composição Auxiliar"," 91384 ","SINAPI","CAMINHÃO BASCULANTE 10 M3, TRUCADO CABINE SIMPLES, PESO BRUTO TOTAL 23.000 KG, CARGA ÚTIL MÁXIMA 15.935 KG, DISTÂNCIA ENTRE EIXOS 4,80 M, POTÊNCIA 230 CV INCLUSIVE CAÇAMBA METÁLICA - MATERIAIS NA OPERAÇÃO. AF_06/2014","CHOR - CUSTOS HORÁRIOS DE MÁQUINAS E EQUIPAMENTOS",null,"H",1,143.85,143.85]
[{"$nulls":4},"MO sem LS =>",8.8095902000000006,"LS =>",10.15,"MO com LS =>",18.96]
[{"$nulls":4},"Valor do BDI =>",56.4,null,"Valor com BDI =>",null,320.58]
[]
[null,"Código","Banco","Descrição","Tipo",null,"Und","Quant.","Valor Unit","Total"]
["Composição"," 91380 ","SINAPI","CAMINHÃO BASCULANTE 10 M3, TRUCADO CABINE SIMPLES, PESO BRUTO TOTAL 23.000 KG, CARGA ÚTIL MÁXIMA 15.935 KG, DISTÂNCIA ENTRE EIXOS 4,80 M, POTÊNCIA 230 CV INCLUSIVE CAÇAMBA METÁLICA - DEPRECIAÇÃO. AF_06/2014","CHOR - CUSTOS HORÁRIOS DE MÁQUINAS E EQUIPAMENTOS",null,"H",1,28.78,28.78]
["Insumo"," 00037734 ","SINAPI","CACAMBA METALICA BASCULANTE COM CAPACIDADE DE 10 M3 (INCLUI MONTAGEM, NAO INCLUI CAMINHAO)","Material",null,"UN",6.0300000000000002E-5,74370.78,4.4800000000000004]
["Insumo"," 00037758 ","SINAPI","CAMINHAO TRUCADO, PESO BRUTO TOTAL 23000 KG, CARGA UTIL MAXIMA 15285 KG, DISTANCIA ENTRE EIXOS 4,80 M, POTENCIA 326 CV (INCLUI CABINE E CHASSI, NAO INCLUI CARROCERIA)","Equipamento",null,"UN",3.4199999999999998E-5,710806.66,24.3]
[{"$nulls":4},"MO sem LS =>",0,"LS =>",0,"MO com LS =>",0]
[{"$nulls":4},"Valor do BDI =>",6.14,null,"Valor com BDI =>",null,34.92]
[]
[null,"Código","Banco","Descrição","Tipo",null,"Und","Quant.","Valor Unit","Total"]
["Composição"," 91382 ","SINAPI","CAMINHÃO BASCULANTE 10 M3, TRUCADO CABINE SIMPLES, PESO BRUTO TOTAL 23.000 KG, CARGA ÚTIL MÁXIMA 15.935 KG, DISTÂNCIA ENTRE EIXOS 4,80 M, POTÊNCIA 230 CV INCLUSIVE CAÇAMBA METÁLICA - IMPOSTOS E SEGUROS. AF_06/2014","CHOR - CUSTOS HORÁRIOS DE MÁQUINAS E EQUIPAMENTOS",null,"H",1,4.4800000000000004,4.4800000000000004]
["Insumo"," 00037734 ","SINAPI","CACAMBA METALICA BASCULANTE COM CAPACIDADE DE 10 M3 (INCLUI MONTAGEM, NAO INCLUI CAMINHAO)","Material",null,"UN",5.9000000000000003E-6,74370.78,0.43]
["Insumo"," 00037758 ","SINAPI","CAMINHAO TRUCADO, PESO BRUTO TOTAL 23000 KG, CARGA UTIL MAXIMA 15285 KG, DISTANCIA ENTRE EIXOS 4,80 M, POTENCIA 326 CV (INCLUI CABINE E CHASSI, NAO INCLUI CARROCERIA)","Equipamento",null,"UN",5.6999999999999996E-6,710806.66,4.05]
[{"$nulls":4},"MO sem LS =>",0,"LS =>",0,"MO com LS =>",0]
[{"$nulls":4},"Valor do BDI =>",0.95,null,"Valor com BDI =>",null,5.43]
[]
[null,"Código","Banco","Descrição","Tipo",null,"Und","Quant.","Valor Unit","Total"]
["Composição"," 91381 ","SINAPI","CAMINHÃO BASCULANTE 10 M3, TRUCADO CABINE SIMPLES, PESO BRUTO TOTAL 23.000 KG, CARGA ÚTIL MÁXIMA 15.935 KG, DISTÂNCIA ENTRE EIXOS 4,80 M, POTÊNCIA 230 CV INCLUSIVE CAÇAMBA METÁLICA - JUROS. AF_06/2014","CHOR - CUSTOS HORÁRIOS DE MÁQUINAS E EQUIPAMENTOS",null,"H",1,11.1,11.1]
["Insumo"," 00037734 ","SINAPI","CACAMBA METALICA BASCULANTE COM CAPACIDADE DE 10 M3 (INCLUI MONTAGEM, NAO INCLUI CAMINHAO)","Material",null,"UN",1.4600000000000001E-5,74370.78,1.08]
["Insumo"," 00037758 ","SINAPI","CAMINHAO TRUCADO, PESO BRUTO TOTAL 23000 KG, CARGA UTIL MAXIMA 15285 KG, DISTANCIA ENTRE EIXOS 4,80 M, POTENCIA 326 CV (INCLUI CABINE E CHASSI, NAO INCLUI CARROCERIA)","Equipamento",null,"UN",1.4100000000000001E-5,710806.66,10.02]
[{"$nulls":4},"MO sem LS =>",0,"LS =>",0,"MO com LS =>",0]
[{"$nulls":4},"Valor do BDI =>",2.36,null,"Valor com BDI =>",null,13.46]
[]
[null,"Código","Banco","Descrição","Tipo",null,"Und","Quant.","Valor Unit","Total"]
["Composição"," 91383 ","SINAPI","CAMINHÃO BASCULANTE 10 M3, TRUCADO CABINE SIMPLES, PESO BRUTO TOTAL 23.000 KG, CARGA ÚTIL MÁXIMA 15.935 KG, DISTÂNCIA ENTRE EIXOS 4,80 M, POTÊNCIA 230 CV INCLUSIVE CAÇAMBA METÁLICA - MANUTENÇÃO. AF_06/2014","CHOR - CUSTOS HORÁRIOS DE MÁQUINAS E EQUIPAMENTOS",null,"H",1,51.94,51.94]
["Insumo"," 00037734 ","SINAPI","CACAMBA METALICA BASCULANTE COM CAPACIDADE DE 10 M3 (INCLUI MONTAGEM, NAO INCLUI CAMINHAO)","Material",null,"UN",8.4900000000000004E-5,74370.78,6.31]
["Insumo"," 00037758 ","SINAPI","CAMINHAO TRUCADO, PESO BRUTO TOTAL 23000 KG, CARGA UTIL MAXIMA 15285 KG, DISTANCIA ENTRE EIXOS 4,80 M, POTENCIA 326 CV (INCLUI CABINE E CHASSI, NAO INCLUI CARROCERIA)","Equipamento",null,"UN",6.4200000000000002E-5,710806.66,45.63]
[{"$nulls":4},"MO sem LS =>",0,"LS =>",0,"MO com LS =>",0]
[{"$nulls":4},"Valor do BDI =>",11.08,null,"Valor com BDI =>",null,63.02]
[]
[null,"Código","Banco","Descrição","Tipo",null,"Und","Quant.","Valor Unit","Total"]
["Composição"," 91384 ","SINAPI","CAMINHÃO BASCULANTE 10 M3, TRUCADO CABINE SIMPLES, PESO BRUTO TOTAL 23.000 KG, CARGA ÚTIL MÁXIMA 15.935 KG, DISTÂNCIA ENTRE EIXOS 4,80 M, POTÊNCIA 230 CV INCLUSIVE CAÇAMBA METÁLICA - MATERIAIS NA OPERAÇÃO. AF_06/2014","CHOR - CUSTOS HORÁRIOS DE MÁQUINAS E EQUIPAMENTOS",null,"H",1,143.85,143.85]
["Insumo"," 00004221 ","SINAPI","OLEO DIESEL COMBUSTIVEL COMUM","Material",null,"L",23.7,6.07,143.85]
[{"$nulls":4},"MO sem LS =>",0,"LS =>",0,"MO com LS =>",0]
[{"$nulls":4},"Valor do BDI =>",30.71,null,"Valor com BDI =>",null,174.56]
[]
[null,"Código","Banco","Descrição","Tipo",null,"Und","Quant.","Valor Unit","Total"]
["Composição"," 5901 ","SINAPI","CAMINHÃO PIPA 10.000 L TRUCADO, PESO BRUTO TOTAL 23.000 KG, CARGA ÚTIL MÁXIMA 15.935 KG, DISTÂNCIA ENTRE EIXOS 4,8 M, POTÊNCIA 230 CV, INCLUSIVE TANQUE DE AÇO PARA TRANSPORTE DE ÁGUA - CHP DIURNO. AF_06/2014","CHOR - CUSTOS HORÁRIOS DE MÁQUINAS E EQUIPAMENTOS",null,"CHP",1,314.62,314.62]
["Composição Auxiliar"," 53831 ","SINAPI","CAMINHÃO PIPA 10.000 L TRUCADO, PESO BRUTO TOTAL 23.000 KG, CARGA ÚTIL MÁXIMA 15.935 KG, DISTÂNCIA ENTRE EIXOS 4,8 M, POTÊNCIA 230 CV, INCLUSIVE TANQUE DE AÇO PARA TRANSPORTE DE ÁGUA - MATERIAIS NA OPERAÇÃO. AF_06/2014","CHOR - CUSTOS HORÁRIOS DE MÁQUINAS E EQUIPAMENTOS",null,"H",1,195.21,195.21]
["Composição Auxiliar"," 5763 ","SINAPI","CAMINHÃO PIPA 10.000 L TRUCADO, PESO BRUTO TOTAL 23.000 KG, CARGA ÚTIL MÁXIMA 15.935 KG, DISTÂNCIA ENTRE EIXOS 4,8 M, POTÊNCIA 230 CV, INCLUSIVE TANQUE DE AÇO PARA TRANSPORTE DE ÁGUA - MANUTENÇÃO. AF_06/2014","CHOR - CUSTOS HORÁRIOS DE MÁQUINAS E EQUIPAMENTOS",null,"H",1,51.41,51.41]
["Composição Auxiliar"," 88282 ","SINAPI","MOTORISTA DE CAMINHÃO COM ENCARGOS COMPLEMENTARES","SEDI - SERVIÇOS DIVERSOS",null,"H",1,23.31,23.31]
["Composição Auxiliar"," 91396 ","SINAPI","CAMINHÃO PIPA 10.000 L TRUCADO, PESO BRUTO TOTAL 23.000 KG, CARGA ÚTIL MÁXIMA 15.935 KG, DISTÂNCIA ENTRE EIXOS 4,8 M, POTÊNCIA 230 CV, INCLUSIVE TANQUE DE AÇO PARA TRANSPORTE DE ÁGUA - DEPRECIAÇÃO. AF_06/2014","CHOR - CUSTOS HORÁRIOS DE MÁQUINAS E EQUIPAMENTOS",null,"H",1,28.95,28.95]
["Composição Auxiliar"," 91397 ","SINAPI","CAMINHÃO PIPA 10.000 L TRUCADO, PESO BRUTO TOTAL 23.000 KG, CARGA ÚTIL MÁXIMA 15.935 KG, DISTÂNCIA ENTRE EIXOS 4,8 M, POTÊNCIA 230 CV, INCLUSIVE TANQUE DE AÇO PARA TRANSPORTE DE ÁGUA - JUROS. AF_06/2014","CHOR - CUSTOS HORÁRIOS DE MÁQUINAS E EQUIPAMENTOS",null,"H",1,11.21,11.21]
["Composição Auxiliar"," 91398 ","SINAPI","CAMINHÃO PIPA 10.000 L TRUCADO, PESO BRUTO TOTAL 23.000 KG, CARGA ÚTIL MÁXIMA 15.935 KG, DISTÂNCIA ENTRE EIXOS 4,8 M, POTÊNCIA 230 CV, INCLUSIVE TANQUE DE AÇO PARA TRANSPORTE DE ÁGUA - IMPOSTOS E SEGUROS. AF_06/2014","CHOR - CUSTOS HORÁRIOS DE MÁQUINAS E EQUIPAMENTOS",null,"H",1,4.53,4.53]
[{"$nulls":4},"MO sem LS =>",8.4750487999999997,"LS =>",9.76,"MO com LS =>",18.239999999999998]
[{"$nulls":4},"Valor do BDI =>",67.17,null,"Valor com BDI =>",null,381.79]
[]
[null,"Código","Banco","Descrição","Tipo",null,"Und","Quant.","Valor Unit","Total"]
["Composição"," 91396 ","SINAPI","CAMINHÃO PIPA 10.000 L TRUCADO, PESO BRUTO TOTAL 23.000 KG, CARGA ÚTIL MÁXIMA 15.935 KG, DISTÂNCIA ENTRE EIXOS 4,8 M, POTÊNCIA 230 CV, INCLUSIVE TANQUE DE AÇO PARA TRANSPORTE DE ÁGUA - DEPRECIAÇÃO. AF_06/2014","CHOR - CUSTOS HORÁRIOS DE MÁQUINAS E EQUIPAMENTOS",null,"H",1,28.95,28.95]
["Insumo"," 00037736 ","SINAPI","TANQUE DE ACO CARBONO NAO REVESTIDO, PARA TRANSPORTE DE AGUA COM CAPACIDADE DE 10 M3, COM BOMBA CENTRIFUGA POR TOMADA DE FORCA, VAZAO MAXIMA *75* M3/H (INCLUI MONTAGEM, NAO INCLUI CAMINHAO)","Material",null,"UN",5.5099999999999998E-5,82950,4.57]
["Insumo"," 00037758 ","SINAPI","CAMINHAO TRUCADO, PESO BRUTO TOTAL 23000 KG, CARGA UTIL MAXIMA 15285 KG, DISTANCIA ENTRE EIXOS 4,80 M, POTENCIA 326 CV (INCLUI CABINE E CHASSI, NAO INCLUI CARROCERIA)","Equipamento",null,"UN",3.43E-5,710806.66,24.38]
[{"$nulls":4},"MO sem LS =>",0,"LS =>",0,"MO com LS =>",0]
[{"$nulls":4},"Valor do BDI =>",6.18,null,"Valor com BDI =>",null,35.130000000000003]
[]
[null,"Código","Banco","Descrição","Tipo",null,"Und","Quant.","Valor Unit","Total"]
["Composição"," 91398 ","SINAPI","CAMINHÃO PIPA 10.000 L TRUCADO, PESO BRUTO TOTAL 23.000 KG, CARGA ÚTIL MÁXIMA 15.935 KG, DISTÂNCIA ENTRE EIXOS 4,8 M, POTÊNCIA 230 CV, INCLUSIVE TANQUE DE AÇO PARA TRANSPORTE DE ÁGUA - IMPOSTOS E SEGUROS. AF_06/2014","CHOR - CUSTOS HORÁRIOS DE MÁQUINAS E EQUIPAMENTOS",null,"H",1,4.53,4.53]
["Insumo"," 00037736 ","SINAPI","TANQUE DE ACO CARBONO NAO REVESTIDO, PARA TRANSPORTE DE AGUA COM CAPACIDADE DE 10 M3, COM BOMBA CENTRIFUGA POR TOMADA DE FORCA, VAZAO MAXIMA *75* M3/H (INCLUI MONTAGEM, NAO INCLUI CAMINHAO)","Material",null,"UN",5.8000000000000004E-6,82950,0.48]
["Insumo"," 00037758 ","SINAPI","CAMINHAO TRUCADO, PESO BRUTO TOTAL 23000 KG, CARGA UTIL MAXIMA 15285 KG, DISTANCIA ENTRE EIXOS 4,80 M, POTENCIA 326 CV (INCLUI CABINE E CHASSI, NAO INCLUI CARROCERIA)","Equipamento",null,"UN",5.6999999999999996E-6,710806.66,4.05]
[{"$nulls":4},"MO sem LS =>",0,"LS =>",0,"MO com LS =>",0]
[{"$nulls":4},"Valor do BDI =>",0.96,null,"Valor com BDI =>",null,5.49]
[]
[null,"Código","Banco","Descrição","Tipo",null,"Und","Quant.","Valor Unit","Total"]
["Composição"," 91397 ","SINAPI","CAMINHÃO PIPA 10.000 L TRUCADO, PESO BRUTO TOTAL 23.000 KG, CARGA ÚTIL MÁXIMA 15.935 KG, DISTÂNCIA ENTRE EIXOS 4,8 M, POTÊNCIA 230 CV, INCLUSIVE TANQUE DE AÇO PARA TRANSPORTE DE ÁGUA - JUROS. AF_06/2014","CHOR - CUSTOS HORÁRIOS DE MÁQUINAS E EQUIPAMENTOS",null,"H",1,11.21,11.21]
["Insumo"," 00037736 ","SINAPI","TANQUE DE ACO CARBONO NAO REVESTIDO, PARA TRANSPORTE DE AGUA COM CAPACIDADE DE 10 M3, COM BOMBA CENTRIFUGA POR TOMADA DE FORCA, VAZAO MAXIMA *75* M3/H (INCLUI MONTAGEM, NAO INCLUI CAMINHAO)","Material",null,"UN",1.4399999999999999E-5,82950,1.19]
["Insumo"," 00037758 ","SINAPI","CAMINHAO TRUCADO, PESO BRUTO TOTAL 23000 KG, CARGA UTIL MAXIMA 15285 KG, DISTANCIA ENTRE EIXOS 4,80 M, POTENCIA 326 CV (INCLUI CABINE E CHASSI, NAO INCLUI CARROCERIA)","Equipamento",null,"UN",1.4100000000000001E-5,710806.66,10.02]
[{"$nulls":4},"MO sem LS =>",0,"LS =>",0,"MO com LS =>",0]
[{"$nulls":4},"Valor do BDI =>",2.39,null,"Valor com BDI =>",null,13.6]
[]
[null,"Código","Banco","Descrição","Tipo",null,"Und","Quant.","Valor Unit","Total"]
["Composição"," 5763 ","SINAPI","CAMINHÃO PIPA 10.000 L TRUCADO, PESO BRUTO TOTAL 23.000 KG, CARGA ÚTIL MÁXIMA 15.935 KG, DISTÂNCIA ENTRE EIXOS 4,8 M, POTÊNCIA 230 CV, INCLUSIVE TANQUE DE AÇO PARA TRANSPORTE DE ÁGUA - MANUTENÇÃO. AF_06/2014","CHOR - CUSTOS HORÁRIOS DE MÁQUINAS E EQUIPAMENTOS",null,"H",1,51.41,51.41]
["Insumo"," 00037736 ","SINAPI","TANQUE DE ACO CARBONO NAO REVESTIDO, PARA TRANSPORTE DE AGUA COM CAPACIDADE DE 10 M3, COM BOMBA CENTRIFUGA POR TOMADA DE FORCA, VAZAO MAXIMA *75* M3/H (INCLUI MONTAGEM, NAO INCLUI CAMINHAO)","Material",null,"UN",6.8899999999999994E-5,82950,5.71]
["Insumo"," 00037758 ","SINAPI","CAMINHAO TRUCADO, PESO BRUTO TOTAL 23000 KG, CARGA UTIL MAXIMA 15285 KG, DISTANCIA ENTRE EIXOS 4,80 M, POTENCIA 326 CV (INCLUI CABINE E CHASSI, NAO INCLUI CARROCERIA)","Equipamento",null,"UN",6.4300000000000004E-5,710806.66,45.7]
[{"$nulls":4},"MO sem LS =>",0,"LS =>",0,"MO com LS =>",0]
[{"$nulls":4},"Valor do BDI =>",10.97,null,"Valor com BDI =>",null,62.38]
[]
[null,"Código","Banco","Descrição","Tipo",null,"Und","Quant.","Valor Unit","Total"]
["Composição"," 53831 ","SINAPI","CAMINHÃO PIPA 10.000 L TRUCADO, PESO BRUTO TOTAL 23.000 KG, CARGA ÚTIL MÁXIMA 15.935 KG, DISTÂNCIA ENTRE EIXOS 4,8 M, POTÊNCIA 230 CV, INCLUSIVE TANQUE DE AÇO PARA TRANSPORTE DE ÁGUA - MATERIAIS NA OPERAÇÃO. AF_06/2014","CHOR - CUSTOS HORÁRIOS DE MÁQUINAS E EQUIPAMENTOS",null,"H",1,195.21,195.21]
["Insumo"," 00004221 ","SINAPI","OLEO DIESEL COMBUSTIVEL COMUM","Material",null,"L",32.159999999999997,6.07,195.21]
[{"$nulls":4},"MO sem LS =>",0,"LS =>",0,"MO com LS =>",0]
[{"$nulls":4},"Valor do BDI =>",41.67,null,"Valor com BDI =>",null,236.88]
[]
[null,"Código","Banco","Descrição","Tipo",null,"Und","Quant.","Valor Unit","Total"]
["Composição"," 91031 ","SINAPI","CAMINHÃO TRUCADO (C/ TERCEIRO EIXO) ELETRÔNICO - POTÊNCIA 231CV - PBT = 22000KG - DIST. ENTRE EIXOS 5170 MM - INCLUI CARROCERIA FIXA ABERTA DE MADEIRA - CHP DIURNO. AF_06/2015","CHOR - CUSTOS HORÁRIOS DE MÁQUINAS E EQUIPAMENTOS",null,"CHP",1,255.86,255.86]
["Composição Auxiliar"," 88282 ","SINAPI","MOTORISTA DE CAMINHÃO COM ENCARGOS COMPLEMENTARES","SEDI - SERVIÇOS DIVERSOS",null,"H",1,23.31,23.31]
["Composição Auxiliar"," 91026 ","SINAPI","CAMINHÃO TRUCADO (C/ TERCEIRO EIXO) ELETRÔNICO - POTÊNCIA 231CV - PBT = 22000KG - DIST. ENTRE EIXOS 5170 MM - INCLUI CARROCERIA FIXA ABERTA DE MADEIRA - DEPRECIAÇÃO. AF_06/2015","CHOR - CUSTOS HORÁRIOS DE MÁQUINAS E EQUIPAMENTOS",null,"H",1,24.62,24.62]
["Composição Auxiliar"," 91027 ","SINAPI","CAMINHÃO TRUCADO (C/ TERCEIRO EIXO) ELETRÔNICO - POTÊNCIA 231CV - PBT = 22000KG - DIST. ENTRE EIXOS 5170 MM - INCLUI CARROCERIA FIXA ABERTA DE MADEIRA - JUROS. AF_06/2015","CHOR - CUSTOS HORÁRIOS DE MÁQUINAS E EQUIPAMENTOS",null,"H",1,9.89,9.89]
["Composição Auxiliar"," 91028 ","SINAPI","CAMINHÃO TRUCADO (C/ TERCEIRO EIXO) ELETRÔNICO - POTÊNCIA 231CV - PBT = 22000KG - DIST. ENTRE EIXOS 5170 MM - INCLUI CARROCERIA FIXA ABERTA DE MADEIRA - IMPOSTOS E SEGUROS. AF_06/2015","CHOR - CUSTOS HORÁRIOS DE MÁQUINAS E EQUIPAMENTOS",null,"H",1,3.99,3.99]
["Composição Auxiliar"," 91029 ","SINAPI","CAMINHÃO TRUCADO (C/ TERCEIRO EIXO) ELETRÔNICO - POTÊNCIA 231CV - PBT = 22000KG - DIST. ENTRE EIXOS 5170 MM - INCLUI CARROCERIA FIXA ABERTA DE MADEIRA - MANUTENÇÃO. AF_06/2015","CHOR - CUSTOS HORÁRIOS DE MÁQUINAS E EQUIPAMENTOS",null,"H",1,45.22,45.22]
["Composição Auxiliar"," 91030 ","SINAPI","CAMINHÃO TRUCADO (C/ TERCEIRO EIXO) ELETRÔNICO - POTÊNCIA 231CV - PBT = 22000KG - DIST. ENTRE EIXOS 5170 MM - INCLUI CARROCERIA FIXA ABERTA DE MADEIRA - MATERIAIS NA OPERAÇÃO. AF_06/2015","CHOR - CUSTOS HORÁRIOS DE MÁQUINAS E EQUIPAMENTOS",null,"H",1,148.83000000000001,148.83000000000001]
[{"$nulls":4},"MO sem LS =>",8.4750487999999997,"LS =>",9.76,"MO com LS =>",18.239999999999998]
[{"$nulls":4},"Valor do BDI =>",54.62,null,"Valor com BDI =>",null,310.48]
[]
[null,"Código","Banco","Descrição","Tipo",null,"Und","Quant.","Valor Unit","Total"]
["Composição"," 91026 ","SINAPI","CAMINHÃO TRUCADO (C/ TERCEIRO EIXO) ELETRÔNICO - POTÊNCIA 231CV - PBT = 22000KG - DIST. ENTRE EIXOS 5170 MM - INCLUI CARROCERIA FIXA ABERTA DE MADEIRA - DEPRECIAÇÃO. AF_06/2015","CHOR - CUSTOS HORÁRIOS DE MÁQUINAS E EQUIPAMENTOS",null,"H",1,24.62,24.62]
["Insumo"," 00037730 ","SINAPI","CARROCERIA FIXA ABERTA DE MADEIRA PARA TRANSPORTE GERAL DE CARGA SECA DIMENSOES APROXIMADAS 2,5 X 6,5 X 0,50 M (INCLUI MONTAGEM, NAO INCLUI CAMINHAO)","Material",null,"UN",5.5099999999999998E-5,27396.57,1.5]
["Insumo"," 00044061 ","SINAPI","CAMINHAO TRUCADO, PESO BRUTO TOTAL 23000 KG, CARGA UTIL MAXIMA 16540 KG, DISTANCIA ENTRE EIXOS 4,80 M, POTENCIA 256 CV (INCLUI CABINE E CHASSI, NAO INCLUI CARROCERIA)","Equipamento",null,"UN",3.43E-5,674102.58,23.12]
[{"$nulls":4},"MO sem LS =>",0,"LS =>",0,"MO com LS =>",0]
[{"$nulls":4},"Valor do BDI =>",5.25,null,"Valor com BDI =>",null,29.87]
[]
[null,"Código","Banco","Descrição","Tipo",null,"Und","Quant.","Valor Unit","Total"]
["Composição"," 91028 ","SINAPI","CAMINHÃO TRUCADO (C/ TERCEIRO EIXO) ELETRÔNICO - POTÊNCIA 231CV - PBT = 22000KG - DIST. ENTRE EIXOS 5170 MM - INCLUI CARROCERIA FIXA ABERTA DE MADEIRA - IMPOSTOS E SEGUROS. AF_06/2015","CHOR - CUSTOS HORÁRIOS DE MÁQUINAS E EQUIPAMENTOS",null,"H",1,3.99,3.99]
["Insumo"," 00037730 ","SINAPI","CARROCERIA FIXA ABERTA DE MADEIRA PARA TRANSPORTE GERAL DE CARGA SECA DIMENSOES APROXIMADAS 2,5 X 6,5 X 0,50 M (INCLUI MONTAGEM, NAO INCLUI CAMINHAO)","Material",null,"UN",5.8000000000000004E-6,27396.57,0.15]
["Insumo"," 00044061 ","SINAPI","CAMINHAO TRUCADO, PESO BRUTO TOTAL 23000 KG, CARGA UTIL MAXIMA 16540 KG, DISTANCIA ENTRE EIXOS 4,80 M, POTENCIA 256 CV (INCLUI CABINE E CHASSI, NAO INCLUI CARROCERIA)","Equipamento",null,"UN",5.6999999999999996E-6,674102.58,3.84]
[{"$nulls":4},"MO sem LS =>",0,"LS =>",0,"MO com LS =>",0]
[{"$nulls":4},"Valor do BDI =>",0.85,null,"Valor com BDI =>",null,4.84]
[]
[null,"Código","Banco","Descrição","Tipo",null,"Und","Quant.","Valor Unit","Total"]
["Composição"," 91027 ","SINAPI","CAMINHÃO TRUCADO (C/ TERCEIRO EIXO) ELETRÔNICO - POTÊNCIA 231CV - PBT = 22000KG - DIST. ENTRE EIXOS 5170 MM - INCLUI CARROCERIA FIXA ABERTA DE MADEIRA - JUROS. AF_06/2015","CHOR - CUSTOS HORÁRIOS DE MÁQUINAS E EQUIPAMENTOS",null,"H",1,9.89,9.89]
["Insumo"," 00037730 ","SINAPI","CARROCERIA FIXA ABERTA DE MADEIRA PARA TRANSPORTE GERAL DE CARGA SECA DIMENSOES APROXIMADAS 2,5 X 6,5 X 0,50 M (INCLUI MONTAGEM, NAO INCLUI CAMINHAO)","Material",null,"UN",1.4399999999999999E-5,27396.57,0.39]
["Insumo"," 00044061 ","SINAPI","CAMINHAO TRUCADO, PESO BRUTO TOTAL 23000 KG, CARGA UTIL MAXIMA 16540 KG, DISTANCIA ENTRE EIXOS 4,80 M, POTENCIA 256 CV (INCLUI CABINE E CHASSI, NAO INCLUI CARROCERIA)","Equipamento",null,"UN",1.4100000000000001E-5,674102.58,9.5]
[{"$nulls":4},"MO sem LS =>",0,"LS =>",0,"MO com LS =>",0]
[{"$nulls":4},"Valor do BDI =>",2.11,null,"Valor com BDI =>",null,12]
[]
[null,"Código","Banco","Descrição","Tipo",null,"Und","Quant.","Valor Unit","Total"]
["Composição"," 91029 ","SINAPI","CAMINHÃO TRUCADO (C/ TERCEIRO EIXO) ELETRÔNICO - POTÊNCIA 231CV - PBT = 22000KG - DIST. ENTRE EIXOS 5170 MM - INCLUI CARROCERIA FIXA ABERTA DE MADEIRA - MANUTENÇÃO. AF_06/2015","CHOR - CUSTOS HORÁRIOS DE MÁQUINAS E EQUIPAMENTOS",null,"H",1,45.22,45.22]
["Insumo"," 00037730 ","SINAPI","CARROCERIA FIXA ABERTA DE MADEIRA PARA TRANSPORTE GERAL DE CARGA SECA DIMENSOES APROXIMADAS 2,5 X 6,5 X 0,50 M (INCLUI MONTAGEM, NAO INCLUI CAMINHAO)","Material",null,"UN",6.8899999999999994E-5,27396.57,1.88]
["Insumo"," 00044061 ","SINAPI","CAMINHAO TRUCADO, PESO BRUTO TOTAL 23000 KG, CARGA UTIL MAXIMA 16540 KG, DISTANCIA ENTRE EIXOS 4,80 M, POTENCIA 256 CV (INCLUI CABINE E CHASSI, NAO INCLUI CARROCERIA)","Equipamento",null,"UN",6.4300000000000004E-5,674102.58,43.34]
[{"$nulls":4},"MO sem LS =>",0,"LS =>",0,"MO com LS =>",0]
[{"$nulls":4},"Valor do BDI =>",9.65,null,"Valor com BDI =>",null,54.87]
[]
[null,"Código","Banco","Descrição","Tipo",null,"Und","Quant.","Valor Unit","Total"]
["Composição"," 91030 ","SINAPI","CAMINHÃO TRUCADO (C/ TERCEIRO EIXO) ELETRÔNICO - POTÊNCIA 231CV - PBT = 22000KG - DIST. ENTRE EIXOS 5170 MM - INCLUI CARROCERIA FIXA ABERTA DE MADEIRA - MATERIAIS NA OPERAÇÃO. AF_06/2015","CHOR - CUSTOS HORÁRIOS DE MÁQUINAS E EQUIPAMENTOS",null,"H",1,148.83000000000001,148.83000000000001]
["Insumo"," 00004221 ","SINAPI","OLEO DIESEL COMBUSTIVEL COMUM","Material",null,"L",24.52,6.07,148.83000000000001]
[{"$nulls":4},"MO sem LS =>",0,"LS =>",0,"MO com LS =>",0]
[{"$nulls":4},"Valor do BDI =>",31.77,null,"Valor com BDI =>",null,180.6]
[]
[null,"Código","Banco","Descrição","Tipo",null,"Und","Quant.","Valor Unit","Total"]
["Composição"," 88262 ","SINAPI","CARPINTEIRO DE FORMAS COM ENCARGOS COMPLEMENTARES","SEDI - SERVIÇOS DIVERSOS",null,"H",1,24.5,24.5]
["Composição Auxiliar"," 95330 ","SINAPI","CURSO DE CAPACITAÇÃO PARA CARPINTEIRO DE FÔRMAS (ENCARGOS COMPLEMENTARES) - HORISTA","SEDI - SERVIÇOS DIVERSOS",null,"H",1,0.24,0.24]
["Insumo"," 00001213 ","SINAPI","CARPINTEIRO DE FORMAS (HORISTA)","Mão de Obra",null,"H",1,18.14,18.14]
["Insumo"," 00037370 ","SINAPI","ALIMENTACAO - HORISTA (COLETADO CAIXA - ENCARGOS COMPLEMENTARES)","Outros",null,"H",1,2.2200000000000002,2.2200000000000002]
["Insumo"," 00037371 ","SINAPI","TRANSPORTE - HORISTA (COLETADO CAIXA - ENCARGOS COMPLEMENTARES)","Serviços",null,"H",1,0.6,0.6]
["Insumo"," 00037372 ","SINAPI","EXAMES - HORISTA (COLETADO CAIXA - ENCARGOS COMPLEMENTARES)","Outros",null,"H",1,1.34,1.34]
["Insumo"," 00037373 ","SINAPI","SEGURO - HORISTA (COLETADO CAIXA - ENCARGOS COMPLEMENTARES)","Taxas",null,"H",1,0.04,0.04]
["Insumo"," 00043459 ","SINAPI","FERRAMENTAS - FAMILIA CARPINTEIRO DE FORMAS - HORISTA (ENCARGOS COMPLEMENTARES - COLETADO CAIXA)","Equipamento",null,"H",1,0.49,0.49]
["Insumo"," 00043483 ","SINAPI","EPI - FAMILIA CARPINTEIRO DE FORMAS - HORISTA (ENCARGOS COMPLEMENTARES - COLETADO CAIXA)","Equipamento",null,"H",1,1.43,1.43]
[{"$nulls":4},"MO sem LS =>",8.5400984999999991,"LS =>",9.84,"MO com LS =>",18.38]
[{"$nulls":4},"Valor do BDI =>",5.23,null,"Valor com BDI =>",null,29.73]
[]
[null,"Código","Banco","Descrição","Tipo",null,"Und","Quant.","Valor Unit","Total"]
["Composição"," 104488 ","SINAPI","COMPOSIÇÃO PARAMÉTRICA PARA EXECUÇÃO DE ESTRUTURAS DE CONCRETO ARMADO, PARA EDIFICAÇÃO INSTITUCIONAL TÉRREA, FCK = 25 MPA. AF_11/2022","FUES - FUNDAÇÕES E ESTRUTURAS",null,"m³",1,2657.13,2657.13]
["Composição Auxiliar"," 103672 ","SINAPI","CONCRETAGEM DE PILARES, FCK = 25 MPA, COM USO DE BOMBA - LANÇAMENTO, ADENSAMENTO E ACABAMENTO. AF_02/2022_PS","FUES - FUNDAÇÕES E ESTRUTURAS",null,"m³",0.1235,628.21,77.58]
["Composição Auxiliar"," 103675 ","SINAPI","CONCRETAGEM DE VIGAS E LAJES, FCK=25 MPA, PARA LAJES MACIÇAS OU NERVURADAS COM USO DE BOMBA - LANÇAMENTO, ADENSAMENTO E ACABAMENTO. AF_02/2022_PS","FUES - FUNDAÇÕES E ESTRUTURAS",null,"m³",0.83630000000000004,628.45000000000005,525.57000000000005]
["Composição Auxiliar"," 92415 ","SINAPI","MONTAGEM E DESMONTAGEM DE FÔRMA DE PILARES RETANGULARES E ESTRUTURAS SIMILARES, PÉ-DIREITO SIMPLES, EM CHAPA DE MADEIRA COMPENSADA RESINADA, 2 UTILIZAÇÕES. AF_09/2020","FUES - FUNDAÇÕES E ESTRUTURAS",null,"m²",0.77429999999999999,160.71,124.43]
["Composição Auxiliar"," 92451 ","SINAPI","MONTAGEM E DESMONTAGEM DE FÔRMA DE VIGA, ESCORAMENTO COM GARFO DE MADEIRA, PÉ-DIREITO SIMPLES, EM CHAPA DE MADEIRA RESINADA, 2 UTILIZAÇÕES. AF_09/2020","FUES - FUNDAÇÕES E ESTRUTURAS",null,"m²",2.5817999999999999,211.6,546.29999999999995]
["Composição Auxiliar"," 92510 ","SINAPI","MONTAGEM E DESMONTAGEM DE FÔRMA DE LAJE MACIÇA, PÉ-DIREITO SIMPLES, EM CHAPA DE MADEIRA COMPENSADA RESINADA, 2 UTILIZAÇÕES. AF_09/2020","FUES - FUNDAÇÕES E ESTRUTURAS",null,"m²",4.6375000000000002,77.55,359.63]
["Composição Auxiliar"," 92759 ","SINAPI","ARMAÇÃO DE PILAR OU VIGA DE ESTRUTURA CONVENCIONAL DE CONCRETO ARMADO UTILIZANDO AÇO CA-60 DE 5,0 MM - MONTAGEM. AF_06/2022","FUES - FUNDAÇÕES E ESTRUTURAS",null,"KG",2.7682000000000002,14.59,40.380000000000003]
["Composição Auxiliar"," 92760 ","SINAPI","ARMAÇÃO DE PILAR OU VIGA DE ESTRUTURA CONVENCIONAL DE CONCRETO ARMADO UTILIZANDO AÇO CA-50 DE 6,3 MM - MONTAGEM. AF_06/2022","FUES - FUNDAÇÕES E ESTRUTURAS",null,"KG",2.6901999999999999,14.01,37.68]
["Composição Auxiliar"," 92761 ","SINAPI","ARMAÇÃO DE PILAR OU VIGA DE ESTRUTURA CONVENCIONAL DE CONCRETO ARMADO UTILIZANDO AÇO CA-50 DE 8,0 MM - MONTAGEM. AF_06/2022","FUES - FUNDAÇÕES E ESTRUTURAS",null,"KG",0.97760000000000002,13.34,13.04]
["Composição Auxiliar"," 92762 ","SINAPI","ARMAÇÃO DE PILAR OU VIGA DE ESTRUTURA CONVENCIONAL DE CONCRETO ARMADO UTILIZANDO AÇO CA-50 DE 10,0 MM - MONTAGEM. AF_06/2022","FUES - FUNDAÇÕES E ESTRUTURAS",null,"KG",20.357600000000001,11.99,244.08]
["Composição Auxiliar"," 92763 ","SINAPI","ARMAÇÃO DE PILAR OU VIGA DE ESTRUTURA CONVENCIONAL DE CONCRETO ARMADO UTILIZANDO AÇO CA-50 DE 12,5 MM - MONTAGEM. AF_06/2022","FUES - FUNDAÇÕES E ESTRUTURAS",null,"KG",7.9741999999999997,10.16,81.010000000000005]
["Composição Auxiliar"," 92764 ","SINAPI","ARMAÇÃO DE PILAR OU VIGA DE ESTRUTURA CONVENCIONAL DE CONCRETO ARMADO UTILIZANDO AÇO CA-50 DE 16,0 MM - MONTAGEM. AF_06/2022","FUES - FUNDAÇÕES E ESTRUTURAS",null,"KG",2.4283000000000001,9.8800000000000008,23.99]
["Composição Auxiliar"," 92765 ","SINAPI","ARMAÇÃO DE PILAR OU VIGA DE ESTRUTURA CONVENCIONAL DE CONCRETO ARMADO UTILIZANDO AÇO CA-50 DE 20,0 MM - MONTAGEM. AF_06/2022","FUES - FUNDAÇÕES E ESTRUTURAS",null,"KG",4.2644000000000002,11.28,48.1]
["Composição Auxiliar"," 92768 ","SINAPI","ARMAÇÃO DE LAJE DE ESTRUTURA CONVENCIONAL DE CONCRETO ARMADO UTILIZANDO AÇO CA-60 DE 5,0 MM - MONTAGEM. AF_06/2022","FUES - FUNDAÇÕES E ESTRUTURAS",null,"KG",7.7183000000000002,14.12,108.98]
["Composição Auxiliar"," 92769 ","SINAPI","ARMAÇÃO DE LAJE DE ESTRUTURA CONVENCIONAL DE CONCRETO ARMADO UTILIZANDO AÇO CA-50 DE 6,3 MM - MONTAGEM. AF_06/2022","FUES - FUNDAÇÕES E ESTRUTURAS",null,"KG",13.316700000000001,13.55,180.44]
["Composição Auxiliar"," 92770 ","SINAPI","ARMAÇÃO DE LAJE DE ESTRUTURA CONVENCIONAL DE CONCRETO ARMADO UTILIZANDO AÇO CA-50 DE 8,0 MM - MONTAGEM. AF_06/2022","FUES - FUNDAÇÕES E ESTRUTURAS",null,"KG",6.7664999999999997,12.9,87.28]
["Composição Auxiliar"," 96542 ","SINAPI","FABRICAÇÃO, MONTAGEM E DESMONTAGEM DE FÔRMA PARA VIGA BALDRAME, EM CHAPA DE MADEIRA COMPENSADA RESINADA, E=17 MM, 4 UTILIZAÇÕES. AF_06/2017","FUES - FUNDAÇÕES E ESTRUTURAS",null,"m²",0.63980000000000004,96.81,61.93]
["Composição Auxiliar"," 96543 ","SINAPI","ARMAÇÃO DE BLOCO, VIGA BALDRAME E SAPATA UTILIZANDO AÇO CA-60 DE 5 MM - MONTAGEM. AF_06/2017","FUES - FUNDAÇÕES E ESTRUTURAS",null,"KG",0.19270000000000001,19.84,3.82]
["Composição Auxiliar"," 96544 ","SINAPI","ARMAÇÃO DE BLOCO, VIGA BALDRAME OU SAPATA UTILIZANDO AÇO CA-50 DE 6,3 MM - MONTAGEM. AF_06/2017","FUES - FUNDAÇÕES E ESTRUTURAS",null,"KG",0.33239999999999997,18.18,6.04]
["Composição Auxiliar"," 96545 ","SINAPI","ARMAÇÃO DE BLOCO, VIGA BALDRAME OU SAPATA UTILIZANDO AÇO CA-50 DE 8 MM - MONTAGEM. AF_06/2017","FUES - FUNDAÇÕES E ESTRUTURAS",null,"KG",0.17530000000000001,16.64,2.91]
["Composição Auxiliar"," 96546 ","SINAPI","ARMAÇÃO DE BLOCO, VIGA BALDRAME OU SAPATA UTILIZANDO AÇO CA-50 DE 10 MM - MONTAGEM. AF_06/2017","FUES - FUNDAÇÕES E ESTRUTURAS",null,"KG",2.6637,14.67,39.07]
["Composição Auxiliar"," 96547 ","SINAPI","ARMAÇÃO DE BLOCO, VIGA BALDRAME OU SAPATA UTILIZANDO AÇO CA-50 DE 12,5 MM - MONTAGEM. AF_06/2017","FUES - FUNDAÇÕES E ESTRUTURAS",null,"KG",1.4605999999999999,11.56,16.88]
["Composição Auxiliar"," 96557 ","SINAPI","CONCRETAGEM DE BLOCOS DE COROAMENTO E VIGAS BALDRAMES, FCK 30 MPA, COM USO DE BOMBA \u0096 LANÇAMENTO, ADENSAMENTO E ACABAMENTO. AF_06/2017","FUES - FUNDAÇÕES E ESTRUTURAS",null,"m³",4.02E-2,696.45,27.99]
[{"$nulls":4},"MO sem LS =>",179.93680884676147,"LS =>",207.32,"MO com LS =>",387.26]
[{"$nulls":4},"Valor do BDI =>",567.29,null,"Valor com BDI =>",null,3224.42]
[]
[null,"Código","Banco","Descrição","Tipo",null,"Und","Quant.","Valor Unit","Total"]
["Composição"," 96557 ","SINAPI","CONCRETAGEM DE BLOCOS DE COROAMENTO E VIGAS BALDRAMES, FCK 30 MPA, COM USO DE BOMBA \u0096 LANÇAMENTO, ADENSAMENTO E ACABAMENTO. AF_06/2017","FUES - FUNDAÇÕES E ESTRUTURAS",null,"m³",1,696.45,696.45]
["Composição Auxiliar"," 88309 ","SINAPI","PEDREIRO COM ENCARGOS COMPLEMENTARES","SEDI - SERVIÇOS DIVERSOS",null,"H",0.33400000000000002,24.84,8.2899999999999991]
["Composição Auxiliar"," 88316 ","SINAPI","SERVENTE COM ENCARGOS COMPLEMENTARES","SEDI - SERVIÇOS DIVERSOS",null,"H",0.501,20.28,10.16]
["Composição Auxiliar"," 90586 ","SINAPI","VIBRADOR DE IMERSÃO, DIÂMETRO DE PONTEIRA 45MM, MOTOR ELÉTRICO TRIFÁSICO POTÊNCIA DE 2 CV - CHP DIURNO. AF_06/2015","CHOR - CUSTOS HORÁRIOS DE MÁQUINAS E EQUIPAMENTOS",null,"CHP",9.1999999999999998E-2,1.37,0.12]
["Composição Auxiliar"," 90587 ","SINAPI","VIBRADOR DE IMERSÃO, DIÂMETRO DE PONTEIRA 45MM, MOTOR ELÉTRICO TRIFÁSICO POTÊNCIA DE 2 CV - CHI DIURNO. AF_06/2015","CHOR - CUSTOS HORÁRIOS DE MÁQUINAS E EQUIPAMENTOS",null,"CHI",7.4999999999999997E-2,0.49,0.03]
["Insumo"," 00001525 ","SINAPI","CONCRETO USINADO BOMBEAVEL, CLASSE DE RESISTENCIA C30, BRITA 0 E 1, SLUMP = 100 +/- 20 MM, COM BOMBEAMENTO (DISPONIBILIZACAO DE BOMBA), SEM O LANCAMENTO (NBR 8953)","Material",null,"m³",1.23,551.1,677.85]
[{"$nulls":4},"MO sem LS =>",6.170430257411021,"LS =>",7.11,"MO com LS =>",13.28]
[{"$nulls":4},"Valor do BDI =>",148.69,null,"Valor com BDI =>",null,845.14]
[]
[null,"Código","Banco","Descrição","Tipo",null,"Und","Quant.","Valor Unit","Total"]
["Composição"," 103672 ","SINAPI","CONCRETAGEM DE PILARES, FCK = 25 MPA, COM USO DE BOMBA - LANÇAMENTO, ADENSAMENTO E ACABAMENTO. AF_02/2022_PS","FUES - FUNDAÇÕES E ESTRUTURAS",null,"m³",1,628.21,628.21]
["Composição Auxiliar"," 88262 ","SINAPI","CARPINTEIRO DE FORMAS COM ENCARGOS COMPLEMENTARES","SEDI - SERVIÇOS DIVERSOS",null,"H",0.224,24.5,5.48]
["Composição Auxiliar"," 88309 ","SINAPI","PEDREIRO COM ENCARGOS COMPLEMENTARES","SEDI - SERVIÇOS DIVERSOS",null,"H",0.224,24.84,5.56]
["Composição Auxiliar"," 88316 ","SINAPI","SERVENTE COM ENCARGOS COMPLEMENTARES","SEDI - SERVIÇOS DIVERSOS",null,"H",1.345,20.28,27.27]
["Composição Auxiliar"," 90586 ","SINAPI","VIBRADOR DE IMERSÃO, DIÂMETRO DE PONTEIRA 45MM, MOTOR ELÉTRICO TRIFÁSICO POTÊNCIA DE 2 CV - CHP DIURNO. AF_06/2015","CHOR - CUSTOS HORÁRIOS DE MÁQUINAS E EQUIPAMENTOS",null,"CHP",9.4E-2,1.37,0.12]
["Composição Auxiliar"," 90587 ","SINAPI","VIBRADOR DE IMERSÃO, DIÂMETRO DE PONTEIRA 45MM, MOTOR ELÉTRICO TRIFÁSICO POTÊNCIA DE 2 CV - CHI DIURNO. AF_06/2015","CHOR - CUSTOS HORÁRIOS DE MÁQUINAS E EQUIPAMENTOS",null,"CHI",0.13,0.49,0.06]
["Insumo"," 00001527 ","SINAPI","CONCRETO USINADO BOMBEAVEL, CLASSE DE RESISTENCIA C25, BRITA 0 E 1, SLUMP = 100 +/- 20 MM, COM BOMBEAMENTO (DISPONIBILIZACAO DE BOMBA), SEM O LANCAMENTO (NBR 8953)","Material",null,"m³",1.103,534.66,589.72]
[{"$nulls":4},"MO sem LS =>",12.675401914320231,"LS =>",14.6,"MO com LS =>",27.28]
[{"$nulls":4},"Valor do BDI =>",134.12,null,"Valor com BDI =>",null,762.33]
[]
[null,"Código","Banco","Descrição","Tipo",null,"Und","Quant.","Valor Unit","Total"]
["Composição"," 103675 ","SINAPI","CONCRETAGEM DE VIGAS E LAJES, FCK=25 MPA, PARA LAJES MACIÇAS OU NERVURADAS COM USO DE BOMBA - LANÇAMENTO, ADENSAMENTO E ACABAMENTO. AF_02/2022_PS","FUES - FUNDAÇÕES E ESTRUTURAS",null,"m³",1,628.45000000000005,628.45000000000005]
["Composição Auxiliar"," 88262 ","SINAPI","CARPINTEIRO DE FORMAS COM ENCARGOS COMPLEMENTARES","SEDI - SERVIÇOS DIVERSOS",null,"H",0.125,24.5,3.06]
["Composição Auxiliar"," 88309 ","SINAPI","PEDREIRO COM ENCARGOS COMPLEMENTARES","SEDI - SERVIÇOS DIVERSOS",null,"H",0.753,24.84,18.7]
["Composição Auxiliar"," 88316 ","SINAPI","SERVENTE COM ENCARGOS COMPLEMENTARES","SEDI - SERVIÇOS DIVERSOS",null,"H",0.82599999999999996,20.28,16.75]
["Composição Auxiliar"," 90586 ","SINAPI","VIBRADOR DE IMERSÃO, DIÂMETRO DE PONTEIRA 45MM, MOTOR ELÉTRICO TRIFÁSICO POTÊNCIA DE 2 CV - CHP DIURNO. AF_06/2015","CHOR - CUSTOS HORÁRIOS DE MÁQUINAS E EQUIPAMENTOS",null,"CHP",0.12,1.37,0.16]
["Composição Auxiliar"," 90587 ","SINAPI","VIBRADOR DE IMERSÃO, DIÂMETRO DE PONTEIRA 45MM, MOTOR ELÉTRICO TRIFÁSICO POTÊNCIA DE 2 CV - CHI DIURNO. AF_06/2015","CHOR - CUSTOS HORÁRIOS DE MÁQUINAS E EQUIPAMENTOS",null,"CHI",0.13100000000000001,0.49,0.06]
["Insumo"," 00001527 ","SINAPI","CONCRETO USINADO BOMBEAVEL, CLASSE DE RESISTENCIA C25, BRITA 0 E 1, SLUMP = 100 +/- 20 MM, COM BOMBEAMENTO (DISPONIBILIZACAO DE BOMBA), SEM O LANCAMENTO (NBR 8953)","Material",null,"m³",1.103,534.66,589.72]
[{"$nulls":4},"MO sem LS =>",12.9867112721866,"LS =>",14.96,"MO com LS =>",27.95]
[{"$nulls":4},"Valor do BDI =>",134.16999999999999,null,"Valor com BDI =>",null,762.62]
[]
[null,"Código","Banco","Descrição","Tipo",null,"Und","Quant.","Valor Unit","Total"]
["Composição"," 102486 ","SINAPI","CONCRETO FCK = 15MPA, TRAÇO 1:3,4:3,4 (EM MASSA SECA DE CIMENTO/ AREIA MÉDIA/ SEIXO ROLADO) - PREPARO MANUAL. AF_05/2021","FUES - FUNDAÇÕES E ESTRUTURAS",null,"m³",1,582.5,582.5]
["Composição Auxiliar"," 88316 ","SINAPI","SERVENTE COM ENCARGOS COMPLEMENTARES","SEDI - SERVIÇOS DIVERSOS",null,"H",6.2382999999999997,20.28,126.51]
["Insumo"," 00000370 ","SINAPI","AREIA MEDIA - POSTO JAZIDA/FORNECEDOR (RETIRADO NA JAZIDA, SEM TRANSPORTE)","Material",null,"m³",0.83479999999999999,95,79.3]
["Insumo"," 00001379 ","SINAPI","CIMENTO PORTLAND COMPOSTO CP II-32","Material",null,"KG",283.30919999999998,0.76,215.31]
["Insumo"," 00004734 ","SINAPI","SEIXO ROLADO PARA APLICACAO EM CONCRETO (POSTO PEDREIRA/FORNECEDOR, SEM FRETE)","Material",null,"m³",0.59460000000000002,271.41000000000003,161.38]
[{"$nulls":4},"MO sem LS =>",40.98132143852802,"LS =>",47.22,"MO com LS =>",88.2]
[{"$nulls":4},"Valor do BDI =>",124.36,null,"Valor com BDI =>",null,706.86]
[]
[null,"Código","Banco","Descrição","Tipo",null,"Und","Quant.","Valor Unit","Total"]
["Composição"," 92803 ","SINAPI","CORTE E DOBRA DE AÇO CA-50, DIÂMETRO DE 10,0 MM. AF_06/2022","FUES - FUNDAÇÕES E ESTRUTURAS",null,"KG",1,10.06,10.06]
["Composição Auxiliar"," 88238 ","SINAPI","AJUDANTE DE ARMADOR COM ENCARGOS COMPLEMENTARES","SEDI - SERVIÇOS DIVERSOS",null,"H",1.4E-3,21.25,0.02]
["Composição Auxiliar"," 88245 ","SINAPI","ARMADOR COM ENCARGOS COMPLEMENTARES","SEDI - SERVIÇOS DIVERSOS",null,"H",8.8000000000000005E-3,24.64,0.21]
["Insumo"," 00000034 ","SINAPI","ACO CA-50, 10,0 MM, VERGALHAO","Material",null,"KG",1.1100000000000001,8.86,9.83]
[{"$nulls":4},"MO sem LS =>",8.3635349874546974E-2,"LS =>",0.1,"MO com LS =>",0.18]
[{"$nulls":4},"Valor do BDI =>",2.14,null,"Valor com BDI =>",null,12.2]
[]
[null,"Código","Banco","Descrição","Tipo",null,"Und","Quant.","Valor Unit","Total"]
["Composição"," 92804 ","SINAPI","CORTE E DOBRA DE AÇO CA-50, DIÂMETRO DE 12,5 MM. AF_06/2022","FUES - FUNDAÇÕES E ESTRUTURAS",null,"KG",1,8.64,8.64]
["Composição Auxiliar"," 88238 ","SINAPI","AJUDANTE DE ARMADOR COM ENCARGOS COMPLEMENTARES","SEDI - SERVIÇOS DIVERSOS",null,"H",8.0000000000000004E-4,21.25,0.01]
["Composição Auxiliar"," 88245 ","SINAPI","ARMADOR COM ENCARGOS COMPLEMENTARES","SEDI - SERVIÇOS DIVERSOS",null,"H",4.7999999999999996E-3,24.64,0.11]
["Insumo"," 00043055 ","SINAPI","ACO CA-50, 12,5 MM OU 16,0 MM, VERGALHAO","Material",null,"KG",1.1100000000000001,7.68,8.52]
[{"$nulls":4},"MO sem LS =>",4.1817674937273487E-2,"LS =>",0.05,"MO com LS =>",0.09]
[{"$nulls":4},"Valor do BDI =>",1.84,null,"Valor com BDI =>",null,10.48]
[]
[null,"Código","Banco","Descrição","Tipo",null,"Und","Quant.","Valor Unit","Total"]
["Composição"," 92805 ","SINAPI","CORTE E DOBRA DE AÇO CA-50, DIÂMETRO DE 16,0 MM. AF_06/2022","FUES - FUNDAÇÕES E ESTRUTURAS",null,"KG",1,8.58,8.58]
["Composição Auxiliar"," 88245 ","SINAPI","ARMADOR COM ENCARGOS COMPLEMENTARES","SEDI - SERVIÇOS DIVERSOS",null,"H",2.5000000000000001E-3,24.64,0.06]
["Insumo"," 00043055 ","SINAPI","ACO CA-50, 12,5 MM OU 16,0 MM, VERGALHAO","Material",null,"KG",1.1100000000000001,7.68,8.52]
[{"$nulls":4},"MO sem LS =>",1.8585633305454884E-2,"LS =>",0.02,"MO com LS =>",0.04]
[{"$nulls":4},"Valor do BDI =>",1.83,null,"Valor com BDI =>",null,10.41]
[]
[null,"Código","Banco","Descrição","Tipo",null,"Und","Quant.","Valor Unit","Total"]
["Composição"," 92806 ","SINAPI","CORTE E DOBRA DE AÇO CA-50, DIÂMETRO DE 20,0 MM. AF_06/2022","FUES - FUNDAÇÕES E ESTRUTURAS",null,"KG",1,10.11,10.11]
["Composição Auxiliar"," 88245 ","SINAPI","ARMADOR COM ENCARGOS COMPLEMENTARES","SEDI - SERVIÇOS DIVERSOS",null,"H",1.2999999999999999E-3,24.64,0.03]
["Insumo"," 00043056 ","SINAPI","ACO CA-50, 20,0 MM OU 25,0 MM, VERGALHAO","Material",null,"KG",1.1399999999999999,8.85,10.08]
[{"$nulls":4},"MO sem LS =>",9.2928166527274422E-3,"LS =>",0.01,"MO com LS =>",0.02]
[{"$nulls":4},"Valor do BDI =>",2.15,null,"Valor com BDI =>",null,12.26]
[]
[null,"Código","Banco","Descrição","Tipo",null,"Und","Quant.","Valor Unit","Total"]
["Composição"," 92801 ","SINAPI","CORTE E DOBRA DE AÇO CA-50, DIÂMETRO DE 6,3 MM. AF_06/2022","FUES - FUNDAÇÕES E ESTRUTURAS",null,"KG",1,10.86,10.86]
["Composição Auxiliar"," 88238 ","SINAPI","AJUDANTE DE ARMADOR COM ENCARGOS COMPLEMENTARES","SEDI - SERVIÇOS DIVERSOS",null,"H",5.1000000000000004E-3,21.25,0.1]
["Composição Auxiliar"," 88245 ","SINAPI","ARMADOR COM ENCARGOS COMPLEMENTARES","SEDI - SERVIÇOS DIVERSOS",null,"H",3.1E-2,24.64,0.76]
["Insumo"," 00000032 ","SINAPI","ACO CA-50, 6,3 MM, VERGALHAO","Material",null,"KG",1.07,9.35,10]
[{"$nulls":4},"MO sem LS =>",0.29272372456091444,"LS =>",0.34,"MO com LS =>",0.63000000000000012]
[{"$nulls":4},"Valor do BDI =>",2.31,null,"Valor com BDI =>",null,13.17]
[]
[null,"Código","Banco","Descrição","Tipo",null,"Und","Quant.","Valor Unit","Total"]
["Composição"," 92802 ","SINAPI","CORTE E DOBRA DE AÇO CA-50, DIÂMETRO DE 8,0 MM. AF_06/2022","FUES - FUNDAÇÕES E ESTRUTURAS",null,"KG",1,10.88,10.88]
["Composição Auxiliar"," 88238 ","SINAPI","AJUDANTE DE ARMADOR COM ENCARGOS COMPLEMENTARES","SEDI - SERVIÇOS DIVERSOS",null,"H",2.5999999999999999E-3,21.25,0.05]
["Composição Auxiliar"," 88245 ","SINAPI","ARMADOR COM ENCARGOS COMPLEMENTARES","SEDI - SERVIÇOS DIVERSOS",null,"H",1.6199999999999999E-2,24.64,0.39]
["Insumo"," 00000033 ","SINAPI","ACO CA-50, 8,0 MM, VERGALHAO","Material",null,"KG",1.1100000000000001,9.41,10.44]
[{"$nulls":4},"MO sem LS =>",0.14868506644363907,"LS =>",0.17,"MO com LS =>",0.32]
[{"$nulls":4},"Valor do BDI =>",2.3199999999999998,null,"Valor com BDI =>",null,13.2]
[]
[null,"Código","Banco","Descrição","Tipo",null,"Und","Quant.","Valor Unit","Total"]
["Composição"," 92800 ","SINAPI","CORTE E DOBRA DE AÇO CA-60, DIÂMETRO DE 5,0 MM. AF_06/2022","FUES - FUNDAÇÕES E ESTRUTURAS",null,"KG",1,10.6,10.6]
["Composição Auxiliar"," 88238 ","SINAPI","AJUDANTE DE ARMADOR COM ENCARGOS COMPLEMENTARES","SEDI - SERVIÇOS DIVERSOS",null,"H",9.4999999999999998E-3,21.25,0.2]
["Composição Auxiliar"," 88245 ","SINAPI","ARMADOR COM ENCARGOS COMPLEMENTARES","SEDI - SERVIÇOS DIVERSOS",null,"H",5.8099999999999999E-2,24.64,1.43]
["Insumo"," 00043059 ","SINAPI","ACO CA-60, 4,2 MM, OU 5,0 MM, OU 6,0 MM, OU 7,0 MM, VERGALHAO","Material",null,"KG",1.07,8.39,8.9700000000000006]
[{"$nulls":4},"MO sem LS =>",0.55756899916364655,"LS =>",0.64,"MO com LS =>",1.2]
[{"$nulls":4},"Valor do BDI =>",2.2599999999999998,null,"Valor com BDI =>",null,12.86]
[]
[null,"Código","Banco","Descrição","Tipo",null,"Und","Quant.","Valor Unit","Total"]
["Composição"," 95308 ","SINAPI","CURSO DE CAPACITAÇÃO PARA AJUDANTE DE ARMADOR (ENCARGOS COMPLEMENTARES) - HORISTA","SEDI - SERVIÇOS DIVERSOS",null,"H",1,0.19,0.19]
["Insumo"," 00006114 ","SINAPI","AJUDANTE DE ARMADOR (HORISTA)","Mão de Obra",null,"H",1.328E-2,14.8,0.19]
[{"$nulls":4},"MO sem LS =>",8.8281799999999994E-2,"LS =>",0.1,"MO com LS =>",0.19]
[{"$nulls":4},"Valor do BDI =>",0.04,null,"Valor com BDI =>",null,0.23]
[]
[null,"Código","Banco","Descrição","Tipo",null,"Und","Quant.","Valor Unit","Total"]
["Composição"," 95309 ","SINAPI","CURSO DE CAPACITAÇÃO PARA AJUDANTE DE CARPINTEIRO (ENCARGOS COMPLEMENTARES) - HORISTA","SEDI - SERVIÇOS DIVERSOS",null,"H",1,0.25,0.25]
["Insumo"," 00006117 ","SINAPI","CARPINTEIRO AUXILIAR (HORISTA)","Mão de Obra",null,"H",1.6990000000000002E-2,14.8,0.25]
[{"$nulls":4},"MO sem LS =>",0.11616020000000001,"LS =>",0.13,"MO com LS =>",0.25]
[{"$nulls":4},"Valor do BDI =>",0.05,null,"Valor com BDI =>",null,0.3]
[]
[null,"Código","Banco","Descrição","Tipo",null,"Und","Quant.","Valor Unit","Total"]
["Composição"," 95314 ","SINAPI","CURSO DE CAPACITAÇÃO PARA ARMADOR (ENCARGOS COMPLEMENTARES) - HORISTA","SEDI - SERVIÇOS DIVERSOS",null,"H",1,0.24,0.24]
["Insumo"," 00000378 ","SINAPI","ARMADOR (HORISTA)","Mão de Obra",null,"H",1.328E-2,18.14,0.24]
[{"$nulls":4},"MO sem LS =>",0.1115138,"LS =>",0.13,"MO com LS =>",0.24]
[{"$nulls":4},"Valor do BDI =>",0.05,null,"Valor com BDI =>",null,0.28999999999999998]
[]
[null,"Código","Banco","Descrição","Tipo",null,"Und","Quant.","Valor Unit","Total"]
["Composição"," 95398 ","SINAPI","CURSO DE CAPACITAÇÃO PARA AUXILIAR DE ESCRITÓRIO (ENCARGOS COMPLEMENTARES) - HORISTA","SEDI - SERVIÇOS DIVERSOS",null,"H",1,0.08,0.08]
["Insumo"," 00002350 ","SINAPI","AUXILIAR DE ESCRITORIO (HORISTA)","Mão de Obra",null,"H",5.8599999999999998E-3,14.35,0.08]
[{"$nulls":4},"MO sem LS =>",3.7171299999999997E-2,"LS =>",0.04,"MO com LS =>",0.08]
[{"$nulls":4},"Valor do BDI =>",0.01,null,"Valor com BDI =>",null,0.09]
[]
[null,"Código","Banco","Descrição","Tipo",null,"Und","Quant.","Valor Unit","Total"]
["Composição"," 95322 ","SINAPI","CURSO DE CAPACITAÇÃO PARA AUXILIAR DE TOPÓGRAFO (ENCARGOS COMPLEMENTARES) - HORISTA","SEDI - SERVIÇOS DIVERSOS",null,"H",1,0.16,0.16]
["Insumo"," 00000244 ","SINAPI","AUXILIAR DE TOPOGRAFO (HORISTA)","Mão de Obra",null,"H",9.5700000000000004E-3,17.47,0.16]
[{"$nulls":4},"MO sem LS =>",7.4342500000000006E-2,"LS =>",0.09,"MO com LS =>",0.16]
[{"$nulls":4},"Valor do BDI =>",0.03,null,"Valor com BDI =>",null,0.19]
[]
[null,"Código","Banco","Descrição","Tipo",null,"Und","Quant.","Valor Unit","Total"]
["Composição"," 95328 ","SINAPI","CURSO DE CAPACITAÇÃO PARA CALCETEIRO (ENCARGOS COMPLEMENTARES) - HORISTA","SEDI - SERVIÇOS DIVERSOS",null,"H",1,0.24,0.24]
["Insumo"," 00004759 ","SINAPI","CALCETEIRO (HORISTA)","Mão de Obra",null,"H",1.328E-2,18.14,0.24]
[{"$nulls":4},"MO sem LS =>",0.1115138,"LS =>",0.13,"MO com LS =>",0.24]
[{"$nulls":4},"Valor do BDI =>",0.05,null,"Valor com BDI =>",null,0.28999999999999998]
[]
[null,"Código","Banco","Descrição","Tipo",null,"Und","Quant.","Valor Unit","Total"]
["Composição"," 95330 ","SINAPI","CURSO DE CAPACITAÇÃO PARA CARPINTEIRO DE FÔRMAS (ENCARGOS COMPLEMENTARES) - HORISTA","SEDI - SERVIÇOS DIVERSOS",null,"H",1,0.24,0.24]
["Insumo"," 00001213 ","SINAPI","CARPINTEIRO DE FORMAS (HORISTA)","Mão de Obra",null,"H",1.328E-2,18.14,0.24]
[{"$nulls":4},"MO sem LS =>",0.1115138,"LS =>",0.13,"MO com LS =>",0.24]
[{"$nulls":4},"Valor do BDI =>",0.05,null,"Valor com BDI =>",null,0.28999999999999998]
[]
[null,"Código","Banco","Descrição","Tipo",null,"Und","Quant.","Valor Unit","Total"]
["Composição"," 95391 ","SINAPI","CURSO DE CAPACITAÇÃO PARA DESENHISTA DETALHISTA (ENCARGOS COMPLEMENTARES) - HORISTA","SEDI - SERVIÇOS DIVERSOS",null,"H",1,0.18,0.18]
["Insumo"," 00002355 ","SINAPI","DESENHISTA DETALHISTA (HORISTA)","Mão de Obra",null,"H",5.3400000000000001E-3,35.39,0.18]
[{"$nulls":4},"MO sem LS =>",8.3635299999999996E-2,"LS =>",0.1,"MO com LS =>",0.18]
[{"$nulls":4},"Valor do BDI =>",0.03,null,"Valor com BDI =>",null,0.21]
[]
[null,"Código","Banco","Descrição","Tipo",null,"Und","Quant.","Valor Unit","Total"]
["Composição"," 95401 ","SINAPI","CURSO DE CAPACITAÇÃO PARA ENCARREGADO GERAL (ENCARGOS COMPLEMENTARES) - HORISTA","SEDI - SERVIÇOS DIVERSOS",null,"H",1,0.55000000000000004,0.55000000000000004]
["Insumo"," 00004083 ","SINAPI","ENCARREGADO GERAL DE OBRAS (HORISTA)","Mão de Obra",null,"H",2.4420000000000001E-2,22.92,0.55000000000000004]
[{"$nulls":4},"MO sem LS =>",0.25555250000000002,"LS =>",0.28999999999999998,"MO com LS =>",0.55000000000000004]
[{"$nulls":4},"Valor do BDI =>",0.11,null,"Valor com BDI =>",null,0.66]
[]
[null,"Código","Banco","Descrição","Tipo",null,"Und","Quant.","Valor Unit","Total"]
["Composição"," 95402 ","SINAPI","CURSO DE CAPACITAÇÃO PARA ENGENHEIRO CIVIL DE OBRA JÚNIOR (ENCARGOS COMPLEMENTARES) - HORISTA","SEDI - SERVIÇOS DIVERSOS",null,"H",1,2.0499999999999998,2.0499999999999998]
["Insumo"," 00002706 ","SINAPI","ENGENHEIRO CIVIL DE OBRA JUNIOR","Mão de Obra",null,"H",1.6990000000000002E-2,120.86,2.0499999999999998]
[{"$nulls":4},"MO sem LS =>",0.95251370000000002,"LS =>",1.1000000000000001,"MO com LS =>",2.0499999999999998]
[{"$nulls":4},"Valor do BDI =>",0.43,null,"Valor com BDI =>",null,2.48]
[]
[null,"Código","Banco","Descrição","Tipo",null,"Und","Quant.","Valor Unit","Total"]
["Composição"," 95346 ","SINAPI","CURSO DE CAPACITAÇÃO PARA MOTORISTA DE BASCULANTE (ENCARGOS COMPLEMENTARES) - HORISTA","SEDI - SERVIÇOS DIVERSOS",null,"H",1,0.11,0.11]
["Insumo"," 00020020 ","SINAPI","MOTORISTA DE CAMINHAO-BASCULANTE","Mão de Obra",null,"H",5.8599999999999998E-3,18.850000000000001,0.11]
[{"$nulls":4},"MO sem LS =>",5.1110500000000003E-2,"LS =>",0.06,"MO com LS =>",0.11]
[{"$nulls":4},"Valor do BDI =>",0.02,null,"Valor com BDI =>",null,0.13]
[]
[null,"Código","Banco","Descrição","Tipo",null,"Und","Quant.","Valor Unit","Total"]
["Composição"," 95347 ","SINAPI","CURSO DE CAPACITAÇÃO PARA MOTORISTA DE CAMINHÃO (ENCARGOS COMPLEMENTARES) - HORISTA","SEDI - SERVIÇOS DIVERSOS",null,"H",1,0.1,0.1]
["Insumo"," 00004093 ","SINAPI","MOTORISTA DE CAMINHAO","Mão de Obra",null,"H",5.8599999999999998E-3,18.14,0.1]
[{"$nulls":4},"MO sem LS =>",4.6464100000000001E-2,"LS =>",0.05,"MO com LS =>",0.1]
[{"$nulls":4},"Valor do BDI =>",0.02,null,"Valor com BDI =>",null,0.12]
[]
[null,"Código","Banco","Descrição","Tipo",null,"Und","Quant.","Valor Unit","Total"]
["Composição"," 95349 ","SINAPI","CURSO DE CAPACITAÇÃO PARA MOTORISTA DE VEÍCULO LEVE (ENCARGOS COMPLEMENTARES) - HORISTA","SEDI - SERVIÇOS DIVERSOS",null,"H",1,0.1,0.1]
["Insumo"," 00004095 ","SINAPI","MOTORISTA DE CARRO DE PASSEIO","Mão de Obra",null,"H",5.8599999999999998E-3,17.3,0.1]
[{"$nulls":4},"MO sem LS =>",4.6464100000000001E-2,"LS =>",0.05,"MO com LS =>",0.1]
[{"$nulls":4},"Valor do BDI =>",0.02,null,"Valor com BDI =>",null,0.12]
[]
[null,"Código","Banco","Descrição","Tipo",null,"Und","Quant.","Valor Unit","Total"]
["Composição"," 95352 ","SINAPI","CURSO DE CAPACITAÇÃO PARA NIVELADOR (ENCARGOS COMPLEMENTARES) - HORISTA","SEDI - SERVIÇOS DIVERSOS",null,"H",1,0.14000000000000001,0.14000000000000001]
["Insumo"," 00007595 ","SINAPI","NIVELADOR (HORISTA)","Mão de Obra",null,"H",9.5700000000000004E-3,14.8,0.14000000000000001]
[{"$nulls":4},"MO sem LS =>",6.5049700000000002E-2,"LS =>",7.0000000000000007E-2,"MO com LS =>",0.14000000000000001]
[{"$nulls":4},"Valor do BDI =>",0.02,null,"Valor com BDI =>",null,0.16]
[]
[null,"Código","Banco","Descrição","Tipo",null,"Und","Quant.","Valor Unit","Total"]
["Composição"," 95389 ","SINAPI","CURSO DE CAPACITAÇÃO PARA OPERADOR DE BETONEIRA ESTACIONÁRIA/MISTURADOR (ENCARGOS COMPLEMENTARES) - HORISTA","SEDI - SERVIÇOS DIVERSOS",null,"H",1,0.11,0.11]
["Insumo"," 00037666 ","SINAPI","OPERADOR DE BETONEIRA ESTACIONARIA / MISTURADOR","Mão de Obra",null,"H",9.5700000000000004E-3,11.92,0.11]
[{"$nulls":4},"MO sem LS =>",5.1110500000000003E-2,"LS =>",0.06,"MO com LS =>",0.11]
[{"$nulls":4},"Valor do BDI =>",0.02,null,"Valor com BDI =>",null,0.13]
[]
[null,"Código","Banco","Descrição","Tipo",null,"Und","Quant.","Valor Unit","Total"]
["Composição"," 95363 ","SINAPI","CURSO DE CAPACITAÇÃO PARA OPERADOR DE MOTONIVELADORA (ENCARGOS COMPLEMENTARES) - HORISTA","SEDI - SERVIÇOS DIVERSOS",null,"H",1,0.27,0.27]
["Insumo"," 00004239 ","SINAPI","OPERADOR DE MOTONIVELADORA","Mão de Obra",null,"H",9.5700000000000004E-3,29.11,0.27]
[{"$nulls":4},"MO sem LS =>",0.12545300000000001,"LS =>",0.14000000000000001,"MO com LS =>",0.27]
[{"$nulls":4},"Valor do BDI =>",0.05,null,"Valor com BDI =>",null,0.32]
[]
[null,"Código","Banco","Descrição","Tipo",null,"Und","Quant.","Valor Unit","Total"]
["Composição"," 95360 ","SINAPI","CURSO DE CAPACITAÇÃO PARA OPERADOR DE MÁQUINAS E EQUIPAMENTOS (ENCARGOS COMPLEMENTARES) - HORISTA","SEDI - SERVIÇOS DIVERSOS",null,"H",1,0.21,0.21]
["Insumo"," 00004230 ","SINAPI","OPERADOR DE MAQUINAS E TRATORES DIVERSOS (TERRAPLANAGEM)","Mão de Obra",null,"H",1.328E-2,16.329999999999998,0.21]
[{"$nulls":4},"MO sem LS =>",9.7574599999999997E-2,"LS =>",0.11,"MO com LS =>",0.21]
[{"$nulls":4},"Valor do BDI =>",0.04,null,"Valor com BDI =>",null,0.25]
[]
[null,"Código","Banco","Descrição","Tipo",null,"Und","Quant.","Valor Unit","Total"]
["Composição"," 95364 ","SINAPI","CURSO DE CAPACITAÇÃO PARA OPERADOR DE PÁ CARREGADEIRA (ENCARGOS COMPLEMENTARES) - HORISTA","SEDI - SERVIÇOS DIVERSOS",null,"H",1,0.15,0.15]
["Insumo"," 00004248 ","SINAPI","OPERADOR DE PA CARREGADEIRA","Mão de Obra",null,"H",9.5700000000000004E-3,16.309999999999999,0.15]
[{"$nulls":4},"MO sem LS =>",6.9696099999999997E-2,"LS =>",0.08,"MO com LS =>",0.15]
[{"$nulls":4},"Valor do BDI =>",0.03,null,"Valor com BDI =>",null,0.18]
[]
[null,"Código","Banco","Descrição","Tipo",null,"Und","Quant.","Valor Unit","Total"]
["Composição"," 95366 ","SINAPI","CURSO DE CAPACITAÇÃO PARA OPERADOR DE ROLO COMPACTADOR (ENCARGOS COMPLEMENTARES) - HORISTA","SEDI - SERVIÇOS DIVERSOS",null,"H",1,0.16,0.16]
["Insumo"," 00004238 ","SINAPI","OPERADOR DE ROLO COMPACTADOR","Mão de Obra",null,"H",9.5700000000000004E-3,17.3,0.16]
[{"$nulls":4},"MO sem LS =>",7.4342500000000006E-2,"LS =>",0.09,"MO com LS =>",0.16]
[{"$nulls":4},"Valor do BDI =>",0.03,null,"Valor com BDI =>",null,0.19]
[]
[null,"Código","Banco","Descrição","Tipo",null,"Und","Quant.","Valor Unit","Total"]
["Composição"," 95371 ","SINAPI","CURSO DE CAPACITAÇÃO PARA PEDREIRO (ENCARGOS COMPLEMENTARES) - HORISTA","SEDI - SERVIÇOS DIVERSOS",null,"H",1,0.44,0.44]
["Insumo"," 00004750 ","SINAPI","PEDREIRO (HORISTA)","Mão de Obra",null,"H",2.4420000000000001E-2,18.14,0.44]
[{"$nulls":4},"MO sem LS =>",0.20444200000000001,"LS =>",0.24,"MO com LS =>",0.44]
[{"$nulls":4},"Valor do BDI =>",0.09,null,"Valor com BDI =>",null,0.53]
[]
[null,"Código","Banco","Descrição","Tipo",null,"Und","Quant.","Valor Unit","Total"]
["Composição"," 95372 ","SINAPI","CURSO DE CAPACITAÇÃO PARA PINTOR (ENCARGOS COMPLEMENTARES) - HORISTA","SEDI - SERVIÇOS DIVERSOS",null,"H",1,0.3,0.3]
["Insumo"," 00004783 ","SINAPI","PINTOR (HORISTA)","Mão de Obra",null,"H",1.6990000000000002E-2,18.14,0.3]
[{"$nulls":4},"MO sem LS =>",0.13939219999999999,"LS =>",0.16,"MO com LS =>",0.3]
[{"$nulls":4},"Valor do BDI =>",0.06,null,"Valor com BDI =>",null,0.36]
[]
[null,"Código","Banco","Descrição","Tipo",null,"Und","Quant.","Valor Unit","Total"]
["Composição"," 95378 ","SINAPI","CURSO DE CAPACITAÇÃO PARA SERVENTE (ENCARGOS COMPLEMENTARES) - HORISTA","SEDI - SERVIÇOS DIVERSOS",null,"H",1,0.33,0.33]
["Insumo"," 00006111 ","SINAPI","SERVENTE DE OBRAS","Mão de Obra",null,"H",2.4420000000000001E-2,13.81,0.33]
[{"$nulls":4},"MO sem LS =>",0.15333150000000001,"LS =>",0.18,"MO com LS =>",0.33]
[{"$nulls":4},"Valor do BDI =>",7.0000000000000007E-2,null,"Valor com BDI =>",null,0.4]
[]
[null,"Código","Banco","Descrição","Tipo",null,"Und","Quant.","Valor Unit","Total"]
["Composição"," 95386 ","SINAPI","CURSO DE CAPACITAÇÃO PARA TRATORISTA (ENCARGOS COMPLEMENTARES) - HORISTA","SEDI - SERVIÇOS DIVERSOS",null,"H",1,0.21,0.21]
["Insumo"," 00004230 ","SINAPI","OPERADOR DE MAQUINAS E TRATORES DIVERSOS (TERRAPLANAGEM)","Mão de Obra",null,"H",1.328E-2,16.329999999999998,0.21]
[{"$nulls":4},"MO sem LS =>",9.7574599999999997E-2,"LS =>",0.11,"MO com LS =>",0.21]
[{"$nulls":4},"Valor do BDI =>",0.04,null,"Valor com BDI =>",null,0.25]
[]
[null,"Código","Banco","Descrição","Tipo",null,"Und","Quant.","Valor Unit","Total"]
["Composição"," 100299 ","SINAPI","CURSO DE CAPACITAÇÃO PARA TÉCNICO EM SEGURANÇA DO TRABALHO (ENCARGOS COMPLEMENTARES) - HORISTA","SEDI - SERVIÇOS DIVERSOS",null,"H",1,0.51,0.51]
["Insumo"," 00040943 ","SINAPI","TECNICO EM SEGURANCA DO TRABALHO (HORISTA)","Mão de Obra",null,"H",2.07E-2,25.05,0.51]
[{"$nulls":4},"MO sem LS =>",0.23696680000000001,"LS =>",0.27,"MO com LS =>",0.51]
[{"$nulls":4},"Valor do BDI =>",0.1,null,"Valor com BDI =>",null,0.61]
[]
[null,"Código","Banco","Descrição","Tipo",null,"Und","Quant.","Valor Unit","Total"]
["Composição"," 88597 ","SINAPI","DESENHISTA DETALHISTA COM ENCARGOS COMPLEMENTARES","SEDI - SERVIÇOS DIVERSOS",null,"H",1,37.729999999999997,37.729999999999997]
["Composição Auxiliar"," 95391 ","SINAPI","CURSO DE CAPACITAÇÃO PARA DESENHISTA DETALHISTA (ENCARGOS COMPLEMENTARES) - HORISTA","SEDI - SERVIÇOS DIVERSOS",null,"H",1,0.18,0.18]
["Insumo"," 00002355 ","SINAPI","DESENHISTA DETALHISTA (HORISTA)","Mão de Obra",null,"H",1,35.39,35.39]
["Insumo"," 00037372 ","SINAPI","EXAMES - HORISTA (COLETADO CAIXA - ENCARGOS COMPLEMENTARES)","Outros",null,"H",1,1.34,1.34]
["Insumo"," 00037373 ","SINAPI","SEGURO - HORISTA (COLETADO CAIXA - ENCARGOS COMPLEMENTARES)","Taxas",null,"H",1,0.04,0.04]
["Insumo"," 00043469 ","SINAPI","FERRAMENTAS - FAMILIA TOPOGRAFO - HORISTA (ENCARGOS COMPLEMENTARES - COLETADO CAIXA)","Equipamento",null,"H",1,7.0000000000000007E-2,7.0000000000000007E-2]
["Insumo"," 00043493 ","SINAPI","EPI - FAMILIA TOPOGRAFO - HORISTA (ENCARGOS COMPLEMENTARES - COLETADO CAIXA)","Equipamento",null,"H",1,0.71,0.71]
[{"$nulls":4},"MO sem LS =>",16.5272744,"LS =>",19.04,"MO com LS =>",35.57]
[{"$nulls":4},"Valor do BDI =>",8.0500000000000007,null,"Valor com BDI =>",null,45.78]
[]
[null,"Código","Banco","Descrição","Tipo",null,"Und","Quant.","Valor Unit","Total"]
["Composição"," 90776 ","SINAPI","ENCARREGADO GERAL COM ENCARGOS COMPLEMENTARES","SEDI - SERVIÇOS DIVERSOS",null,"H",1,26.2,26.2]
["Composição Auxiliar"," 95401 ","SINAPI","CURSO DE CAPACITAÇÃO PARA ENCARREGADO GERAL (ENCARGOS COMPLEMENTARES) - HORISTA","SEDI - SERVIÇOS DIVERSOS",null,"H",1,0.55000000000000004,0.55000000000000004]
["Insumo"," 00004083 ","SINAPI","ENCARREGADO GERAL DE OBRAS (HORISTA)","Mão de Obra",null,"H",1,22.92,22.92]
["Insumo"," 00037372 ","SINAPI","EXAMES - HORISTA (COLETADO CAIXA - ENCARGOS COMPLEMENTARES)","Outros",null,"H",1,1.34,1.34]
["Insumo"," 00037373 ","SINAPI","SEGURO - HORISTA (COLETADO CAIXA - ENCARGOS COMPLEMENTARES)","Taxas",null,"H",1,0.04,0.04]
["Insumo"," 00043463 ","SINAPI","FERRAMENTAS - FAMILIA ENCARREGADO GERAL - HORISTA (ENCARGOS COMPLEMENTARES - COLETADO CAIXA)","Equipamento",null,"H",1,0.1,0.1]
["Insumo"," 00043487 ","SINAPI","EPI - FAMILIA ENCARREGADO GERAL - HORISTA (ENCARGOS COMPLEMENTARES - COLETADO CAIXA)","Equipamento",null,"H",1,1.25,1.25]
[{"$nulls":4},"MO sem LS =>",10.9051203,"LS =>",12.56,"MO com LS =>",23.47]
[{"$nulls":4},"Valor do BDI =>",5.59,null,"Valor com BDI =>",null,31.79]
[]
[null,"Código","Banco","Descrição","Tipo",null,"Und","Quant.","Valor Unit","Total"]
["Composição"," 90777 ","SINAPI","ENGENHEIRO CIVIL DE OBRA JUNIOR COM ENCARGOS COMPLEMENTARES","SEDI - SERVIÇOS DIVERSOS",null,"H",1,125.04,125.04]
["Composição Auxiliar"," 95402 ","SINAPI","CURSO DE CAPACITAÇÃO PARA ENGENHEIRO CIVIL DE OBRA JÚNIOR (ENCARGOS COMPLEMENTARES) - HORISTA","SEDI - SERVIÇOS DIVERSOS",null,"H",1,2.0499999999999998,2.0499999999999998]
["Insumo"," 00002706 ","SINAPI","ENGENHEIRO CIVIL DE OBRA JUNIOR","Mão de Obra",null,"H",1,120.86,120.86]
["Insumo"," 00037372 ","SINAPI","EXAMES - HORISTA (COLETADO CAIXA - ENCARGOS COMPLEMENTARES)","Outros",null,"H",1,1.34,1.34]
["Insumo"," 00037373 ","SINAPI","SEGURO - HORISTA (COLETADO CAIXA - ENCARGOS COMPLEMENTARES)","Taxas",null,"H",1,0.04,0.04]
["Insumo"," 00043462 ","SINAPI","FERRAMENTAS - FAMILIA ENGENHEIRO CIVIL - HORISTA (ENCARGOS COMPLEMENTARES - COLETADO CAIXA)","Equipamento",null,"H",1,0.01,0.01]
["Insumo"," 00043486 ","SINAPI","EPI - FAMILIA ENGENHEIRO CIVIL - HORISTA (ENCARGOS COMPLEMENTARES - COLETADO CAIXA)","Equipamento",null,"H",1,0.74,0.74]
[{"$nulls":4},"MO sem LS =>",57.1090047,"LS =>",65.8,"MO com LS =>",122.91]
[{"$nulls":4},"Valor do BDI =>",26.69,null,"Valor com BDI =>",null,151.72999999999999]
[]
[null,"Código","Banco","Descrição","Tipo",null,"Und","Quant.","Valor Unit","Total"]
["Composição"," 93358 ","SINAPI","ESCAVAÇÃO MANUAL DE VALA COM PROFUNDIDADE MENOR OU IGUAL A 1,30 M. AF_02/2021","MOVT - MOVIMENTO DE TERRA",null,"m³",1,80.22,80.22]
["Composição Auxiliar"," 88316 ","SINAPI","SERVENTE COM ENCARGOS COMPLEMENTARES","SEDI - SERVIÇOS DIVERSOS",null,"H",3.956,20.28,80.22]
[{"$nulls":4},"MO sem LS =>",25.98736176935229,"LS =>",29.94,"MO com LS =>",55.93]
[{"$nulls":4},"Valor do BDI =>",17.12,null,"Valor com BDI =>",null,97.34]
[]
[null,"Código","Banco","Descrição","Tipo",null,"Und","Quant.","Valor Unit","Total"]
["Composição"," 10576 ","ORSE","Encargos Complementares - Ajudante Pratico","Provisórios",null,"h",1,3.72,3.72]
["Insumo"," 158 ","ORSE","Almoço (Participação do empregador) un","Material",null,"un",0.1018,14,1.42]
["Insumo"," 941 ","ORSE","Fardamento com mangas curta un","Material",null,"un",1.5E-3,190.35,0.28000000000000003]
["Insumo"," 1651 ","ORSE","Óculos branco proteção pr","Material",null,"pr",8.0000000000000004E-4,6.35,0]
["Insumo"," 2378 ","ORSE","Vale transporte un","Material",null,"un",9.4100000000000003E-2,4.5,0.42]
["Insumo"," 4728 ","ORSE","Talhadeira chata 10\" Talhadeira chara 10\" un","Material",null,"un",2.9999999999999997E-4,18.579999999999998,0]
["Insumo"," 4729 ","ORSE","Marreta 1 kg com cabo un","Material",null,"un",1E-4,31.5,0]
["Insumo"," 10362 ","ORSE","Seguro de vida e acidente em grupo un","Serviços",null,"un",4.4999999999999997E-3,12.54,0.05]
["Insumo"," 10492 ","ORSE","Cesta Básica un","Material",null,"un",4.4999999999999997E-3,175,0.78]
["Insumo"," 10517 ","ORSE","Exames admissionais/demissionais (checkup) cj","Serviços",null,"cj",4.0000000000000002E-4,300,0.12]
["Insumo"," 10596 ","ORSE","Protetor auricular un","Material",null,"un",4.4999999999999997E-3,4.9000000000000004,0.02]
["Insumo"," 10599 ","ORSE","Protetor solar fps 30 com 120ml un","Material",null,"un",1.8E-3,18,0.03]
["Insumo"," 10761 ","ORSE","Refeição - café da manhã ( café com leite e dois pães com manteiga) un","Serviços",null,"un",0.1018,5,0.5]
["Insumo"," 10788 ","ORSE","Pá quadrada un","Material",null,"un",2.0000000000000001E-4,36.9,0]
["Insumo"," 00002711/SINAPI ","ORSE","Carrinho de mao de aco capacidade 50 a 60 l, pneu com camara","Material",null,"un",2.0000000000000001E-4,184,0.03]
["Insumo"," 00012892/SINAPI ","ORSE","Luva raspa de couro, cano curto (punho *7* cm)","Material",null,"par",2.3E-3,12.15,0.02]
["Insumo"," 00012893/SINAPI ","ORSE","Bota de seguranca com biqueira de aco e colarinho acolchoado","Material",null,"par",8.0000000000000004E-4,64.8,0.05]
["Insumo"," 00012894/SINAPI ","ORSE","Capa para chuva em pvc com forro de poliester, com capuz (amarela ou azul)","Material",null,"un",2.0000000000000001E-4,17.55,0]
["Insumo"," 00012895/SINAPI ","ORSE","Capacete de seguranca aba frontal com suspensao de polietileno, sem jugular (classe b)","Material",null,"un",5.9999999999999995E-4,13.5,0]
[{"$nulls":4},"MO sem LS =>",0,"LS =>",0,"MO com LS =>",0]
[{"$nulls":4},"Valor do BDI =>",0.79,null,"Valor com BDI =>",null,4.51]
[]
[null,"Código","Banco","Descrição","Tipo",null,"Und","Quant.","Valor Unit","Total"]
["Composição"," 10605 ","ORSE","Encargos Complementares - Montador","Provisórios",null,"h",1,4.2699999999999996,4.2699999999999996]
["Insumo"," 158 ","ORSE","Almoço (Participação do empregador) un","Material",null,"un",0.1018,14,1.42]
["Insumo"," 941 ","ORSE","Fardamento com mangas curta un","Material",null,"un",1.5E-3,190.35,0.28000000000000003]
["Insumo"," 1651 ","ORSE","Óculos branco proteção pr","Material",null,"pr",8.0000000000000004E-4,6.35,0]
["Insumo"," 2378 ","ORSE","Vale transporte un","Material",null,"un",6.54E-2,4.5,0.28999999999999998]
["Insumo"," 10362 ","ORSE","Seguro de vida e acidente em grupo un","Serviços",null,"un",4.4999999999999997E-3,12.54,0.05]
["Insumo"," 10492 ","ORSE","Cesta Básica un","Material",null,"un",4.4999999999999997E-3,175,0.78]
["Insumo"," 10517 ","ORSE","Exames admissionais/demissionais (checkup) cj","Serviços",null,"cj",4.0000000000000002E-4,300,0.12]
["Insumo"," 10596 ","ORSE","Protetor auricular un","Material",null,"un",4.4999999999999997E-3,4.9000000000000004,0.02]
["Insumo"," 10599 ","ORSE","Protetor solar fps 30 com 120ml un","Material",null,"un",1.8E-3,18,0.03]
["Insumo"," 10761 ","ORSE","Refeição - café da manhã ( café com leite e dois pães com manteiga) un","Serviços",null,"un",0.1018,5,0.5]
["Insumo"," 11270 ","ORSE","Martelo de solda do tipo picareta, cabo de madeira, 300x0,4x0,5mm un","Material",null,"un",2.9999999999999997E-4,28.65,0]
["Insumo"," 11271 ","ORSE","Talhadeira com punho de proteção 22 x225mm ref.207206BR Belzer un","Material",null,"un",1E-4,29.21,0]
["Insumo"," 11272 ","ORSE","Alicate Climpador ( cripador ) un","Material",null,"un",1E-4,102.6,0.01]
["Insumo"," 11273 ","ORSE","Esquadro de alumínio para soldagem de peças, com duas morsas, 35 x 35 x 4,5cm, marca Black Jack un","Material",null,"un",2.0000000000000001E-4,218.91,0.04]
["Insumo"," 11274 ","ORSE","Grampo de de aperto rápido 16\" Ref. 60987 Beltools un","Material",null,"un",2.9999999999999997E-4,18.78,0]
["Insumo"," 11275 ","ORSE","Alicate de pressão 11\" un","Material",null,"un",2.0000000000000001E-4,62.08,0.01]
["Insumo"," 11276 ","ORSE","Alicate de pressão para solda tipo U, para apertar chapas, tiras e qualquer tipo de perfil. Niquelado, mordentes reforçados em aço laminadao. Corpo em chapa dobrada  extra-reforçada e rebites de aço, 11\" (280mm). Ref. 138 Gedore. un","Material",null,"un",2.0000000000000001E-4,68.31,0.01]
["Insumo"," 11277 ","ORSE","Alicate de pressão para solda de chapa 18\" (460mm), Ref.138 Z Gedore un","Material",null,"un",2.0000000000000001E-4,110.32,0.02]
["Insumo"," 11278 ","ORSE","Alicate diagonal para corte rente 5\" a 8\" un","Material",null,"un",2.0000000000000001E-4,37.6,0]
["Insumo"," 11279 ","ORSE","Alicate para anéis de pistão capacidade 50-100mm. ref.44044101 Tramontina ou similar un","Material",null,"un",2.0000000000000001E-4,88.71,0.01]
["Insumo"," 11280 ","ORSE","Chave Inglesa 15\" ref. 012418012 carbografite un","Material",null,"un",2.0000000000000001E-4,60.5,0.01]
["Insumo"," 11281 ","ORSE","Bolsa de lona para ferramentas 40 x 30 x 20cm un","Material",null,"un",8.0000000000000004E-4,357.49,0.28000000000000003]
["Insumo"," 11282 ","ORSE","Esmerilhadeira angular elétrico portátil 4 1/2\" - 1000 watts  - ref. G1000kB2 Black e Decker un","Material",null,"un",2.0000000000000001E-4,362,7.0000000000000007E-2]
["Insumo"," 11283 ","ORSE","Selador horizontal para fita de aço 1\" un","Material",null,"un",1E-4,483.81,0.04]
["Insumo"," 11284 ","ORSE","Cavalete de ferro nº 1 un","Material",null,"un",2.0000000000000001E-4,120.72,0.02]
["Insumo"," 11285 ","ORSE","Fonte inversora de solda WMI 140ED 220V - BAMBOZZI - WMI- 140ED un","Material",null,"un",1E-4,839,0.08]
["Insumo"," 11286 ","ORSE","Macariço de solda Ref. CG201 código 010414410 carbografite un","Material",null,"un",2.9999999999999997E-4,398.66,0.11]
["Insumo"," 00012892/SINAPI ","ORSE","Luva raspa de couro, cano curto (punho *7* cm)","Material",null,"par",2.3E-3,12.15,0.02]
["Insumo"," 00012893/SINAPI ","ORSE","Bota de seguranca com biqueira de aco e colarinho acolchoado","Material",null,"par",8.0000000000000004E-4,64.8,0.05]
["Insumo"," 00012894/SINAPI ","ORSE","Capa para chuva em pvc com forro de poliester, com capuz (amarela ou azul)","Material",null,"un",2.0000000000000001E-4,17.55,0]
["Insumo"," 00012895/SINAPI ","ORSE","Capacete de seguranca aba frontal com suspensao de polietileno, sem jugular (classe b)","Material",null,"un",5.9999999999999995E-4,13.5,0]
[{"$nulls":4},"MO sem LS =>",0,"LS =>",0,"MO com LS =>",0]
[{"$nulls":4},"Valor do BDI =>",0.91,null,"Valor com BDI =>",null,5.18]
[]
[null,"Código","Banco","Descrição","Tipo",null,"Und","Quant.","Valor Unit","Total"]
["Composição"," 10553 ","ORSE","Encargos Complementares - Pintor","Provisórios",null,"h",1,3.79,3.79]
["Insumo"," 158 ","ORSE","Almoço (Participação do empregador) un","Material",null,"un",0.1018,14,1.42]
["Insumo"," 941 ","ORSE","Fardamento com mangas curta un","Material",null,"un",1.5E-3,190.35,0.28000000000000003]
["Insumo"," 1651 ","ORSE","Óculos branco proteção pr","Material",null,"pr",8.0000000000000004E-4,6.35,0]
["Insumo"," 2378 ","ORSE","Vale transporte un","Material",null,"un",6.54E-2,4.5,0.28999999999999998]
["Insumo"," 4174 ","ORSE","Desempenadeira de aço lisa, cabo madeira, ref:143, Atlas ou similar un","Material",null,"un",5.0000000000000001E-4,10.8,0]
["Insumo"," 4725 ","ORSE","Espátula un","Material",null,"un",4.0000000000000002E-4,19.78,0]
["Insumo"," 10362 ","ORSE","Seguro de vida e acidente em grupo un","Serviços",null,"un",4.4999999999999997E-3,12.54,0.05]
["Insumo"," 10492 ","ORSE","Cesta Básica un","Material",null,"un",4.4999999999999997E-3,175,0.78]
["Insumo"," 10517 ","ORSE","Exames admissionais/demissionais (checkup) cj","Serviços",null,"cj",4.0000000000000002E-4,300,0.12]
["Insumo"," 10583 ","ORSE","Trincha 3\" un","Material",null,"un",4.4999999999999997E-3,11.98,0.05]
["Insumo"," 10596 ","ORSE","Protetor auricular un","Material",null,"un",4.4999999999999997E-3,4.9000000000000004,0.02]
["Insumo"," 10599 ","ORSE","Protetor solar fps 30 com 120ml un","Material",null,"un",1.8E-3,18,0.03]
["Insumo"," 10761 ","ORSE","Refeição - café da manhã ( café com leite e dois pães com manteiga) un","Serviços",null,"un",0.1018,5,0.5]
["Insumo"," 11250 ","ORSE","Rolo lã de carneiro 20cm un","Material",null,"un",2.3E-3,17.5,0.04]
["Insumo"," 11251 ","ORSE","Pincel de seda 2\" un","Material",null,"un",4.4999999999999997E-3,26.9,0.12]
["Insumo"," 11252 ","ORSE","Escada de aluminio de abrir com 7 degraus un","Material",null,"un",1E-4,269,0.02]
["Insumo"," 00012892/SINAPI ","ORSE","Luva raspa de couro, cano curto (punho *7* cm)","Material",null,"par",2.3E-3,12.15,0.02]
["Insumo"," 00012893/SINAPI ","ORSE","Bota de seguranca com biqueira de aco e colarinho acolchoado","Material",null,"par",8.0000000000000004E-4,64.8,0.05]
["Insumo"," 00012894/SINAPI ","ORSE","Capa para chuva em pvc com forro de poliester, com capuz (amarela ou azul)","Material",null,"un",2.0000000000000001E-4,17.55,0]
["Insumo"," 00012895/SINAPI ","ORSE","Capacete de seguranca aba frontal com suspensao de polietileno, sem jugular (classe b)","Material",null,"un",5.9999999999999995E-4,13.5,0]
[{"$nulls":4},"MO sem LS =>",0,"LS =>",0,"MO com LS =>",0]
[{"$nulls":4},"Valor do BDI =>",0.8,null,"Valor com BDI =>",null,4.59]
[]
[null,"Código","Banco","Descrição","Tipo",null,"Und","Quant.","Valor Unit","Total"]
["Composição"," 10594 ","ORSE","Encargos Complementares - Serralheiro ou Operador de Equipamento Leve","Provisórios",null,"h",1,3.56,3.56]
["Insumo"," 158 ","ORSE","Almoço (Participação do empregador) un","Material",null,"un",0.1018,14,1.42]
["Insumo"," 941 ","ORSE","Fardamento com mangas curta un","Material",null,"un",1.5E-3,190.35,0.28000000000000003]
["Insumo"," 1651 ","ORSE","Óculos branco proteção pr","Material",null,"pr",8.0000000000000004E-4,6.35,0]
["Insumo"," 2378 ","ORSE","Vale transporte un","Material",null,"un",6.54E-2,4.5,0.28999999999999998]
["Insumo"," 10362 ","ORSE","Seguro de vida e acidente em grupo un","Serviços",null,"un",4.4999999999999997E-3,12.54,0.05]
["Insumo"," 10492 ","ORSE","Cesta Básica un","Material",null,"un",4.4999999999999997E-3,175,0.78]
["Insumo"," 10517 ","ORSE","Exames admissionais/demissionais (checkup) cj","Serviços",null,"cj",4.0000000000000002E-4,300,0.12]
["Insumo"," 10585 ","ORSE","Arco de serra un","Material",null,"un",2.0000000000000001E-4,19.899999999999999,0]
["Insumo"," 10586 ","ORSE","Torquesa un","Material",null,"un",2.0000000000000001E-4,36.9,0]
["Insumo"," 10596 ","ORSE","Protetor auricular un","Material",null,"un",4.4999999999999997E-3,4.9000000000000004,0.02]
["Insumo"," 10599 ","ORSE","Protetor solar fps 30 com 120ml un","Material",null,"un",1.8E-3,18,0.03]
["Insumo"," 10761 ","ORSE","Refeição - café da manhã ( café com leite e dois pães com manteiga) un","Serviços",null,"un",0.1018,5,0.5]
["Insumo"," 00012892/SINAPI ","ORSE","Luva raspa de couro, cano curto (punho *7* cm)","Material",null,"par",2.3E-3,12.15,0.02]
["Insumo"," 00012893/SINAPI ","ORSE","Bota de seguranca com biqueira de aco e colarinho acolchoado","Material",null,"par",8.0000000000000004E-4,64.8,0.05]
["Insumo"," 00012894/SINAPI ","ORSE","Capa para chuva em pvc com forro de poliester, com capuz (amarela ou azul)","Material",null,"un",2.0000000000000001E-4,17.55,0]
["Insumo"," 00012895/SINAPI ","ORSE","Capacete de seguranca aba frontal com suspensao de polietileno, sem jugular (classe b)","Material",null,"un",5.9999999999999995E-4,13.5,0]
[{"$nulls":4},"MO sem LS =>",0,"LS =>",0,"MO com LS =>",0]
[{"$nulls":4},"Valor do BDI =>",0.76,null,"Valor com BDI =>",null,4.32]
[]
[null,"Código","Banco","Descrição","Tipo",null,"Und","Quant.","Valor Unit","Total"]
["Composição"," 92272 ","SINAPI","FABRICAÇÃO DE ESCORAS DE VIGA DO TIPO GARFO, EM MADEIRA. AF_09/2020","FUES - FUNDAÇÕES E ESTRUTURAS",null,"M",1,46.29,46.29]
["Composição Auxiliar"," 88239 ","SINAPI","AJUDANTE DE CARPINTEIRO COM ENCARGOS COMPLEMENTARES","SEDI - SERVIÇOS DIVERSOS",null,"H",3.2000000000000001E-2,21.17,0.67]
["Composição Auxiliar"," 88262 ","SINAPI","CARPINTEIRO DE FORMAS COM ENCARGOS COMPLEMENTARES","SEDI - SERVIÇOS DIVERSOS",null,"H",8.3000000000000004E-2,24.5,2.0299999999999998]
["Composição Auxiliar"," 91692 ","SINAPI","SERRA CIRCULAR DE BANCADA COM MOTOR ELÉTRICO POTÊNCIA DE 5HP, COM COIFA PARA DISCO 10\" - CHP DIURNO. AF_08/2015","CHOR - CUSTOS HORÁRIOS DE MÁQUINAS E EQUIPAMENTOS",null,"CHP",2.1999999999999999E-2,23.26,0.51]
["Composição Auxiliar"," 91693 ","SINAPI","SERRA CIRCULAR DE BANCADA COM MOTOR ELÉTRICO POTÊNCIA DE 5HP, COM COIFA PARA DISCO 10\" - CHI DIURNO. AF_08/2015","CHOR - CUSTOS HORÁRIOS DE MÁQUINAS E EQUIPAMENTOS",null,"CHI",8.7999999999999995E-2,21.73,1.91]
["Insumo"," 00001345 ","SINAPI","CHAPA/PAINEL DE MADEIRA COMPENSADA PLASTIFICADA (MADEIRITE PLASTIFICADO) PARA FORMA DE CONCRETO, DE 2200 x 1100 MM, E = *17* MM","Material",null,"m²",0.13600000000000001,110.5,15.02]
["Insumo"," 00004491 ","SINAPI","PONTALETE *7,5 X 7,5* CM EM PINUS, MISTA OU EQUIVALENTE DA REGIAO - BRUTA","Material",null,"M",2.3420000000000001,11.05,25.87]
["Insumo"," 00005068 ","SINAPI","PREGO DE ACO POLIDO COM CABECA 17 X 21 (2 X 11)","Material",null,"KG",1.2E-2,23.4,0.28000000000000003]
[{"$nulls":4},"MO sem LS =>",1.7702815723445777,"LS =>",2.04,"MO com LS =>",3.81]
[{"$nulls":4},"Valor do BDI =>",9.8800000000000008,null,"Valor com BDI =>",null,56.17]
[]
[null,"Código","Banco","Descrição","Tipo",null,"Und","Quant.","Valor Unit","Total"]
["Composição"," 92267 ","SINAPI","FABRICAÇÃO DE FÔRMA PARA LAJES, EM CHAPA DE MADEIRA COMPENSADA RESINADA, E = 17 MM. AF_09/2020","FUES - FUNDAÇÕES E ESTRUTURAS",null,"m²",1,69.31,69.31]
["Composição Auxiliar"," 88239 ","SINAPI","AJUDANTE DE CARPINTEIRO COM ENCARGOS COMPLEMENTARES","SEDI - SERVIÇOS DIVERSOS",null,"H",5.0000000000000001E-3,21.17,0.1]
["Composição Auxiliar"," 88262 ","SINAPI","CARPINTEIRO DE FORMAS COM ENCARGOS COMPLEMENTARES","SEDI - SERVIÇOS DIVERSOS",null,"H",5.0000000000000001E-3,24.5,0.12]
["Composição Auxiliar"," 91692 ","SINAPI","SERRA CIRCULAR DE BANCADA COM MOTOR ELÉTRICO POTÊNCIA DE 5HP, COM COIFA PARA DISCO 10\" - CHP DIURNO. AF_08/2015","CHOR - CUSTOS HORÁRIOS DE MÁQUINAS E EQUIPAMENTOS",null,"CHP",5.0000000000000001E-3,23.26,0.11]
["Composição Auxiliar"," 91693 ","SINAPI","SERRA CIRCULAR DE BANCADA COM MOTOR ELÉTRICO POTÊNCIA DE 5HP, COM COIFA PARA DISCO 10\" - CHI DIURNO. AF_08/2015","CHOR - CUSTOS HORÁRIOS DE MÁQUINAS E EQUIPAMENTOS",null,"CHI",2.1999999999999999E-2,21.73,0.47]
["Insumo"," 00001358 ","SINAPI","CHAPA/PAINEL DE MADEIRA COMPENSADA RESINADA (MADEIRITE RESINADO ROSA) PARA FORMA DE CONCRETO, DE 2200 x 1100 MM, E = 17 MM","Material",null,"m²",1.05,65.25,68.510000000000005]
[{"$nulls":4},"MO sem LS =>",0.27878449958182328,"LS =>",0.32,"MO com LS =>",0.6]
[{"$nulls":4},"Valor do BDI =>",14.79,null,"Valor com BDI =>",null,84.1]
[]
[null,"Código","Banco","Descrição","Tipo",null,"Und","Quant.","Valor Unit","Total"]
["Composição"," 92263 ","SINAPI","FABRICAÇÃO DE FÔRMA PARA PILARES E ESTRUTURAS SIMILARES, EM CHAPA DE MADEIRA COMPENSADA RESINADA, E = 17 MM. AF_09/2020","FUES - FUNDAÇÕES E ESTRUTURAS",null,"m²",1,194.47,194.47]
["Composição Auxiliar"," 88239 ","SINAPI","AJUDANTE DE CARPINTEIRO COM ENCARGOS COMPLEMENTARES","SEDI - SERVIÇOS DIVERSOS",null,"H",0.25,21.17,5.29]
["Composição Auxiliar"," 88262 ","SINAPI","CARPINTEIRO DE FORMAS COM ENCARGOS COMPLEMENTARES","SEDI - SERVIÇOS DIVERSOS",null,"H",1.18,24.5,28.91]
["Composição Auxiliar"," 91692 ","SINAPI","SERRA CIRCULAR DE BANCADA COM MOTOR ELÉTRICO POTÊNCIA DE 5HP, COM COIFA PARA DISCO 10\" - CHP DIURNO. AF_08/2015","CHOR - CUSTOS HORÁRIOS DE MÁQUINAS E EQUIPAMENTOS",null,"CHP",6.3E-2,23.26,1.46]
["Composição Auxiliar"," 91693 ","SINAPI","SERRA CIRCULAR DE BANCADA COM MOTOR ELÉTRICO POTÊNCIA DE 5HP, COM COIFA PARA DISCO 10\" - CHI DIURNO. AF_08/2015","CHOR - CUSTOS HORÁRIOS DE MÁQUINAS E EQUIPAMENTOS",null,"CHI",0.255,21.73,5.54]
["Insumo"," 00001358 ","SINAPI","CHAPA/PAINEL DE MADEIRA COMPENSADA RESINADA (MADEIRITE RESINADO ROSA) PARA FORMA DE CONCRETO, DE 2200 x 1100 MM, E = 17 MM","Material",null,"m²",1.3360000000000001,65.25,87.17]
["Insumo"," 00004491 ","SINAPI","PONTALETE *7,5 X 7,5* CM EM PINUS, MISTA OU EQUIVALENTE DA REGIAO - BRUTA","Material",null,"M",2.3079999999999998,11.05,25.5]
["Insumo"," 00004517 ","SINAPI","SARRAFO *2,5 X 7,5* CM EM PINUS, MISTA OU EQUIVALENTE DA REGIAO - BRUTA","Material",null,"M",9.2370000000000001,3.87,35.74]
["Insumo"," 00005068 ","SINAPI","PREGO DE ACO POLIDO COM CABECA 17 X 21 (2 X 11)","Material",null,"KG",0.20799999999999999,23.4,4.8600000000000003]
[{"$nulls":4},"MO sem LS =>",14.25982715361026,"LS =>",16.43,"MO com LS =>",30.69]
[{"$nulls":4},"Valor do BDI =>",41.51,null,"Valor com BDI =>",null,235.98]
[]
[null,"Código","Banco","Descrição","Tipo",null,"Und","Quant.","Valor Unit","Total"]
["Composição"," 92265 ","SINAPI","FABRICAÇÃO DE FÔRMA PARA VIGAS, EM CHAPA DE MADEIRA COMPENSADA RESINADA, E = 17 MM. AF_09/2020","FUES - FUNDAÇÕES E ESTRUTURAS",null,"m²",1,140.11000000000001,140.11000000000001]
["Composição Auxiliar"," 88239 ","SINAPI","AJUDANTE DE CARPINTEIRO COM ENCARGOS COMPLEMENTARES","SEDI - SERVIÇOS DIVERSOS",null,"H",0.20200000000000001,21.17,4.2699999999999996]
["Composição Auxiliar"," 88262 ","SINAPI","CARPINTEIRO DE FORMAS COM ENCARGOS COMPLEMENTARES","SEDI - SERVIÇOS DIVERSOS",null,"H",0.91100000000000003,24.5,22.31]
["Composição Auxiliar"," 91692 ","SINAPI","SERRA CIRCULAR DE BANCADA COM MOTOR ELÉTRICO POTÊNCIA DE 5HP, COM COIFA PARA DISCO 10\" - CHP DIURNO. AF_08/2015","CHOR - CUSTOS HORÁRIOS DE MÁQUINAS E EQUIPAMENTOS",null,"CHP",0.05,23.26,1.1599999999999999]
["Composição Auxiliar"," 91693 ","SINAPI","SERRA CIRCULAR DE BANCADA COM MOTOR ELÉTRICO POTÊNCIA DE 5HP, COM COIFA PARA DISCO 10\" - CHI DIURNO. AF_08/2015","CHOR - CUSTOS HORÁRIOS DE MÁQUINAS E EQUIPAMENTOS",null,"CHI",0.23699999999999999,21.73,5.15]
["Insumo"," 00001358 ","SINAPI","CHAPA/PAINEL DE MADEIRA COMPENSADA RESINADA (MADEIRITE RESINADO ROSA) PARA FORMA DE CONCRETO, DE 2200 x 1100 MM, E = 17 MM","Material",null,"m²",1.1459999999999999,65.25,74.77]
["Insumo"," 00004491 ","SINAPI","PONTALETE *7,5 X 7,5* CM EM PINUS, MISTA OU EQUIVALENTE DA REGIAO - BRUTA","Material",null,"M",0.16600000000000001,11.05,1.83]
["Insumo"," 00004517 ","SINAPI","SARRAFO *2,5 X 7,5* CM EM PINUS, MISTA OU EQUIVALENTE DA REGIAO - BRUTA","Material",null,"M",6.952,3.87,26.9]
["Insumo"," 00005068 ","SINAPI","PREGO DE ACO POLIDO COM CABECA 17 X 21 (2 X 11)","Material",null,"KG",0.159,23.4,3.72]
[{"$nulls":4},"MO sem LS =>",11.388346807917479,"LS =>",13.12,"MO com LS =>",24.51]
[{"$nulls":4},"Valor do BDI =>",29.91,null,"Valor com BDI =>",null,170.02]
[]
[null,"Código","Banco","Descrição","Tipo",null,"Und","Quant.","Valor Unit","Total"]
["Composição"," 96542 ","SINAPI","FABRICAÇÃO, MONTAGEM E DESMONTAGEM DE FÔRMA PARA VIGA BALDRAME, EM CHAPA DE MADEIRA COMPENSADA RESINADA, E=17 MM, 4 UTILIZAÇÕES. AF_06/2017","FUES - FUNDAÇÕES E ESTRUTURAS",null,"m²",1,96.81,96.81]
["Composição Auxiliar"," 88239 ","SINAPI","AJUDANTE DE CARPINTEIRO COM ENCARGOS COMPLEMENTARES","SEDI - SERVIÇOS DIVERSOS",null,"H",0.73099999999999998,21.17,15.47]
["Composição Auxiliar"," 88262 ","SINAPI","CARPINTEIRO DE FORMAS COM ENCARGOS COMPLEMENTARES","SEDI - SERVIÇOS DIVERSOS",null,"H",1.718,24.5,42.09]
["Composição Auxiliar"," 91692 ","SINAPI","SERRA CIRCULAR DE BANCADA COM MOTOR ELÉTRICO POTÊNCIA DE 5HP, COM COIFA PARA DISCO 10\" - CHP DIURNO. AF_08/2015","CHOR - CUSTOS HORÁRIOS DE MÁQUINAS E EQUIPAMENTOS",null,"CHP",1.4E-2,23.26,0.32]
["Composição Auxiliar"," 91693 ","SINAPI","SERRA CIRCULAR DE BANCADA COM MOTOR ELÉTRICO POTÊNCIA DE 5HP, COM COIFA PARA DISCO 10\" - CHI DIURNO. AF_08/2015","CHOR - CUSTOS HORÁRIOS DE MÁQUINAS E EQUIPAMENTOS",null,"CHI",5.6000000000000001E-2,21.73,1.21]
["Insumo"," 00001358 ","SINAPI","CHAPA/PAINEL DE MADEIRA COMPENSADA RESINADA (MADEIRITE RESINADO ROSA) PARA FORMA DE CONCRETO, DE 2200 x 1100 MM, E = 17 MM","Material",null,"m²",0.315,65.25,20.55]
["Insumo"," 00002692 ","SINAPI","DESMOLDANTE PROTETOR PARA FORMAS DE MADEIRA, DE BASE OLEOSA EMULSIONADA EM AGUA","Material",null,"L",9.5499999999999995E-3,8.51,0.08]
["Insumo"," 00004491 ","SINAPI","PONTALETE *7,5 X 7,5* CM EM PINUS, MISTA OU EQUIVALENTE DA REGIAO - BRUTA","Material",null,"M",1.218,11.05,13.45]
["Insumo"," 00004517 ","SINAPI","SARRAFO *2,5 X 7,5* CM EM PINUS, MISTA OU EQUIVALENTE DA REGIAO - BRUTA","Material",null,"M",0.72199999999999998,3.87,2.79]
["Insumo"," 00005073 ","SINAPI","PREGO DE ACO POLIDO COM CABECA 17 X 24 (2 1/4 X 11)","Material",null,"KG",8.0000000000000002E-3,23.85,0.19]
["Insumo"," 00020247 ","SINAPI","PREGO DE ACO POLIDO COM CABECA 15 X 15 (1 1/4 X 13)","Material",null,"KG",8.9999999999999993E-3,25.91,0.23]
["Insumo"," 00040304 ","SINAPI","PREGO DE ACO POLIDO COM CABECA DUPLA 17 X 27 (2 1/2 X 11)","Material",null,"KG",1.4999999999999999E-2,28.88,0.43]
[{"$nulls":4},"MO sem LS =>",20.314097202862186,"LS =>",23.41,"MO com LS =>",43.72]
[{"$nulls":4},"Valor do BDI =>",20.66,null,"Valor com BDI =>",null,117.47]
[]
[null,"Código","Banco","Descrição","Tipo",null,"Und","Quant.","Valor Unit","Total"]
["Composição"," 92510 ","SINAPI","MONTAGEM E DESMONTAGEM DE FÔRMA DE LAJE MACIÇA, PÉ-DIREITO SIMPLES, EM CHAPA DE MADEIRA COMPENSADA RESINADA, 2 UTILIZAÇÕES. AF_09/2020","FUES - FUNDAÇÕES E ESTRUTURAS",null,"m²",1,77.55,77.55]
["Composição Auxiliar"," 88239 ","SINAPI","AJUDANTE DE CARPINTEIRO COM ENCARGOS COMPLEMENTARES","SEDI - SERVIÇOS DIVERSOS",null,"H",0.126,21.17,2.66]
["Composição Auxiliar"," 88262 ","SINAPI","CARPINTEIRO DE FORMAS COM ENCARGOS COMPLEMENTARES","SEDI - SERVIÇOS DIVERSOS",null,"H",0.68700000000000006,24.5,16.829999999999998]
["Composição Auxiliar"," 92267 ","SINAPI","FABRICAÇÃO DE FÔRMA PARA LAJES, EM CHAPA DE MADEIRA COMPENSADA RESINADA, E = 17 MM. AF_09/2020","FUES - FUNDAÇÕES E ESTRUTURAS",null,"m²",0.57699999999999996,69.31,39.99]
["Insumo"," 00002692 ","SINAPI","DESMOLDANTE PROTETOR PARA FORMAS DE MADEIRA, DE BASE OLEOSA EMULSIONADA EM AGUA","Material",null,"L",0.01,8.51,0.08]
["Insumo"," 00010749 ","SINAPI","LOCACAO DE ESCORA METALICA TELESCOPICA, COM ALTURA REGULAVEL DE *1,80* A *3,20* M, COM CAPACIDADE DE CARGA DE NO MINIMO 1000 KGF (10 KN), INCLUSO TRIPE E FORCADO","Equipamento",null,"MES",0.39700000000000002,33.28,13.21]
["Insumo"," 00040270 ","SINAPI","VIGA DE ESCORAMAENTO H20, DE MADEIRA, PESO DE 5,00 A 5,20 KG/M, COM EXTREMIDADES PLASTICAS","Material",null,"M",3.7999999999999999E-2,126.05,4.78]
[{"$nulls":4},"MO sem LS =>",6.8999163646501254,"LS =>",7.95,"MO com LS =>",14.85]
[{"$nulls":4},"Valor do BDI =>",16.55,null,"Valor com BDI =>",null,94.1]
[]
[null,"Código","Banco","Descrição","Tipo",null,"Und","Quant.","Valor Unit","Total"]
["Composição"," 92415 ","SINAPI","MONTAGEM E DESMONTAGEM DE FÔRMA DE PILARES RETANGULARES E ESTRUTURAS SIMILARES, PÉ-DIREITO SIMPLES, EM CHAPA DE MADEIRA COMPENSADA RESINADA, 2 UTILIZAÇÕES. AF_09/2020","FUES - FUNDAÇÕES E ESTRUTURAS",null,"m²",1,160.71,160.71]
["Composição Auxiliar"," 88239 ","SINAPI","AJUDANTE DE CARPINTEIRO COM ENCARGOS COMPLEMENTARES","SEDI - SERVIÇOS DIVERSOS",null,"H",0.20599999999999999,21.17,4.3600000000000003]
["Composição Auxiliar"," 88262 ","SINAPI","CARPINTEIRO DE FORMAS COM ENCARGOS COMPLEMENTARES","SEDI - SERVIÇOS DIVERSOS",null,"H",1.125,24.5,27.56]
["Composição Auxiliar"," 92263 ","SINAPI","FABRICAÇÃO DE FÔRMA PARA PILARES E ESTRUTURAS SIMILARES, EM CHAPA DE MADEIRA COMPENSADA RESINADA, E = 17 MM. AF_09/2020","FUES - FUNDAÇÕES E ESTRUTURAS",null,"m²",0.52500000000000002,194.47,102.09]
["Insumo"," 00002692 ","SINAPI","DESMOLDANTE PROTETOR PARA FORMAS DE MADEIRA, DE BASE OLEOSA EMULSIONADA EM AGUA","Material",null,"L",0.01,8.51,0.08]
["Insumo"," 00040271 ","SINAPI","LOCACAO DE APRUMADOR METALICO DE PILAR, COM ALTURA E ANGULO REGULAVEIS, EXTENSAO DE *1,50* A *2,80* M","Equipamento",null,"MES",0.19600000000000001,28.7,5.62]
["Insumo"," 00040275 ","SINAPI","LOCACAO DE VIGA SANDUICHE METALICA VAZADA PARA TRAVAMENTO DE PILARES, ALTURA DE *8* CM, LARGURA DE *6* CM E EXTENSAO DE 2 M","Equipamento",null,"MES",0.39300000000000002,30,11.79]
["Insumo"," 00040287 ","SINAPI","LOCACAO DE BARRA DE ANCORAGEM DE 0,80 A 1,20 M DE EXTENSAO, COM ROSCA DE 5/8\", INCLUINDO PORCA E FLANGE","Equipamento",null,"MES",0.78500000000000003,11.05,8.67]
["Insumo"," 00040304 ","SINAPI","PREGO DE ACO POLIDO COM CABECA DUPLA 17 X 27 (2 1/2 X 11)","Material",null,"KG",1.9E-2,28.88,0.54]
[{"$nulls":4},"MO sem LS =>",18.52987640553852,"LS =>",21.35,"MO com LS =>",39.880000000000003]
[{"$nulls":4},"Valor do BDI =>",34.31,null,"Valor com BDI =>",null,195.02]
[]
[null,"Código","Banco","Descrição","Tipo",null,"Und","Quant.","Valor Unit","Total"]
["Composição"," 92451 ","SINAPI","MONTAGEM E DESMONTAGEM DE FÔRMA DE VIGA, ESCORAMENTO COM GARFO DE MADEIRA, PÉ-DIREITO SIMPLES, EM CHAPA DE MADEIRA RESINADA, 2 UTILIZAÇÕES. AF_09/2020","FUES - FUNDAÇÕES E ESTRUTURAS",null,"m²",1,211.6,211.6]
["Composição Auxiliar"," 88239 ","SINAPI","AJUDANTE DE CARPINTEIRO COM ENCARGOS COMPLEMENTARES","SEDI - SERVIÇOS DIVERSOS",null,"H",0.20499999999999999,21.17,4.33]
["Composição Auxiliar"," 88262 ","SINAPI","CARPINTEIRO DE FORMAS COM ENCARGOS COMPLEMENTARES","SEDI - SERVIÇOS DIVERSOS",null,"H",1.1200000000000001,24.5,27.44]
["Composição Auxiliar"," 92265 ","SINAPI","FABRICAÇÃO DE FÔRMA PARA VIGAS, EM CHAPA DE MADEIRA COMPENSADA RESINADA, E = 17 MM. AF_09/2020","FUES - FUNDAÇÕES E ESTRUTURAS",null,"m²",0.626,140.11000000000001,87.7]
["Composição Auxiliar"," 92272 ","SINAPI","FABRICAÇÃO DE ESCORAS DE VIGA DO TIPO GARFO, EM MADEIRA. AF_09/2020","FUES - FUNDAÇÕES E ESTRUTURAS",null,"M",1.8160000000000001,46.29,84.06]
["Insumo"," 00002692 ","SINAPI","DESMOLDANTE PROTETOR PARA FORMAS DE MADEIRA, DE BASE OLEOSA EMULSIONADA EM AGUA","Material",null,"L",0.01,8.51,0.08]
["Insumo"," 00006193 ","SINAPI","TABUA  NAO  APARELHADA  *2,5 X 20* CM, EM MACARANDUBA, ANGELIM OU EQUIVALENTE DA REGIAO - BRUTA","Material",null,"M",0.47399999999999998,13.89,6.58]
["Insumo"," 00040304 ","SINAPI","PREGO DE ACO POLIDO COM CABECA DUPLA 17 X 27 (2 1/2 X 11)","Material",null,"KG",4.9000000000000002E-2,28.88,1.41]
[{"$nulls":4},"MO sem LS =>",21.331660626335843,"LS =>",24.58,"MO com LS =>",45.91]
[{"$nulls":4},"Valor do BDI =>",45.17,null,"Valor com BDI =>",null,256.77]
[]
[null,"Código","Banco","Descrição","Tipo",null,"Und","Quant.","Valor Unit","Total"]
["Composição"," 5934 ","SINAPI","MOTONIVELADORA POTÊNCIA BÁSICA LÍQUIDA (PRIMEIRA MARCHA) 125 HP, PESO BRUTO 13032 KG, LARGURA DA LÂMINA DE 3,7 M - CHI DIURNO. AF_06/2014","CHOR - CUSTOS HORÁRIOS DE MÁQUINAS E EQUIPAMENTOS",null,"CHI",1,93.96,93.96]
["Composição Auxiliar"," 88300 ","SINAPI","OPERADOR DE MOTONIVELADORA COM ENCARGOS COMPLEMENTARES","SEDI - SERVIÇOS DIVERSOS",null,"H",1,34.450000000000003,34.450000000000003]
["Composição Auxiliar"," 89228 ","SINAPI","MOTONIVELADORA POTÊNCIA BÁSICA LÍQUIDA (PRIMEIRA MARCHA) 125 HP, PESO BRUTO 13032 KG, LARGURA DA LÂMINA DE 3,7 M - DEPRECIAÇÃO. AF_06/2014","CHOR - CUSTOS HORÁRIOS DE MÁQUINAS E EQUIPAMENTOS",null,"H",1,44,44]
["Composição Auxiliar"," 89229 ","SINAPI","MOTONIVELADORA POTÊNCIA BÁSICA LÍQUIDA (PRIMEIRA MARCHA) 125 HP, PESO BRUTO 13032 KG, LARGURA DA LÂMINA DE 3,7 M - JUROS. AF_06/2014","CHOR - CUSTOS HORÁRIOS DE MÁQUINAS E EQUIPAMENTOS",null,"H",1,15.51,15.51]
[{"$nulls":4},"MO sem LS =>",13.651147699999999,"LS =>",15.73,"MO com LS =>",29.38]
[{"$nulls":4},"Valor do BDI =>",20.059999999999999,null,"Valor com BDI =>",null,114.02]
[]
[null,"Código","Banco","Descrição","Tipo",null,"Und","Quant.","Valor Unit","Total"]
["Composição"," 5932 ","SINAPI","MOTONIVELADORA POTÊNCIA BÁSICA LÍQUIDA (PRIMEIRA MARCHA) 125 HP, PESO BRUTO 13032 KG, LARGURA DA LÂMINA DE 3,7 M - CHP DIURNO. AF_06/2014","CHOR - CUSTOS HORÁRIOS DE MÁQUINAS E EQUIPAMENTOS",null,"CHP",1,249.6,249.6]
["Composição Auxiliar"," 53849 ","SINAPI","MOTONIVELADORA POTÊNCIA BÁSICA LÍQUIDA (PRIMEIRA MARCHA) 125 HP, PESO BRUTO 13032 KG, LARGURA DA LÂMINA DE 3,7 M - MATERIAIS NA OPERAÇÃO. AF_06/2014","CHOR - CUSTOS HORÁRIOS DE MÁQUINAS E EQUIPAMENTOS",null,"H",1,84.91,84.91]
["Composição Auxiliar"," 5779 ","SINAPI","MOTONIVELADORA POTÊNCIA BÁSICA LÍQUIDA (PRIMEIRA MARCHA) 125 HP, PESO BRUTO 13032 KG, LARGURA DA LÂMINA DE 3,7 M - MANUTENÇÃO. AF_06/2014","CHOR - CUSTOS HORÁRIOS DE MÁQUINAS E EQUIPAMENTOS",null,"H",1,70.73,70.73]
["Composição Auxiliar"," 88300 ","SINAPI","OPERADOR DE MOTONIVELADORA COM ENCARGOS COMPLEMENTARES","SEDI - SERVIÇOS DIVERSOS",null,"H",1,34.450000000000003,34.450000000000003]
["Composição Auxiliar"," 89228 ","SINAPI","MOTONIVELADORA POTÊNCIA BÁSICA LÍQUIDA (PRIMEIRA MARCHA) 125 HP, PESO BRUTO 13032 KG, LARGURA DA LÂMINA DE 3,7 M - DEPRECIAÇÃO. AF_06/2014","CHOR - CUSTOS HORÁRIOS DE MÁQUINAS E EQUIPAMENTOS",null,"H",1,44,44]
["Composição Auxiliar"," 89229 ","SINAPI","MOTONIVELADORA POTÊNCIA BÁSICA LÍQUIDA (PRIMEIRA MARCHA) 125 HP, PESO BRUTO 13032 KG, LARGURA DA LÂMINA DE 3,7 M - JUROS. AF_06/2014","CHOR - CUSTOS HORÁRIOS DE MÁQUINAS E EQUIPAMENTOS",null,"H",1,15.51,15.51]
[{"$nulls":4},"MO sem LS =>",13.651147699999999,"LS =>",15.73,"MO com LS =>",29.38]
[{"$nulls":4},"Valor do BDI =>",53.28,null,"Valor com BDI =>",null,302.88]
[]
[null,"Código","Banco","Descrição","Tipo",null,"Und","Quant.","Valor Unit","Total"]
["Composição"," 89228 ","SINAPI","MOTONIVELADORA POTÊNCIA BÁSICA LÍQUIDA (PRIMEIRA MARCHA) 125 HP, PESO BRUTO 13032 KG, LARGURA DA LÂMINA DE 3,7 M - DEPRECIAÇÃO. AF_06/2014","CHOR - CUSTOS HORÁRIOS DE MÁQUINAS E EQUIPAMENTOS",null,"H",1,44,44]
["Insumo"," 00004090 ","SINAPI","MOTONIVELADORA POTENCIA BASICA LIQUIDA (PRIMEIRA MARCHA) 125 HP , PESO BRUTO 13843 KG, LARGURA DA LAMINA DE 3,7 M","Equipamento",null,"UN",4.0000000000000003E-5,1100000,44]
[{"$nulls":4},"MO sem LS =>",0,"LS =>",0,"MO com LS =>",0]
[{"$nulls":4},"Valor do BDI =>",9.39,null,"Valor com BDI =>",null,53.39]
[]
[null,"Código","Banco","Descrição","Tipo",null,"Und","Quant.","Valor Unit","Total"]
["Composição"," 89229 ","SINAPI","MOTONIVELADORA POTÊNCIA BÁSICA LÍQUIDA (PRIMEIRA MARCHA) 125 HP, PESO BRUTO 13032 KG, LARGURA DA LÂMINA DE 3,7 M - JUROS. AF_06/2014","CHOR - CUSTOS HORÁRIOS DE MÁQUINAS E EQUIPAMENTOS",null,"H",1,15.51,15.51]
["Insumo"," 00004090 ","SINAPI","MOTONIVELADORA POTENCIA BASICA LIQUIDA (PRIMEIRA MARCHA) 125 HP , PESO BRUTO 13843 KG, LARGURA DA LAMINA DE 3,7 M","Equipamento",null,"UN",1.4100000000000001E-5,1100000,15.51]
[{"$nulls":4},"MO sem LS =>",0,"LS =>",0,"MO com LS =>",0]
[{"$nulls":4},"Valor do BDI =>",3.31,null,"Valor com BDI =>",null,18.82]
[]
[null,"Código","Banco","Descrição","Tipo",null,"Und","Quant.","Valor Unit","Total"]
["Composição"," 5779 ","SINAPI","MOTONIVELADORA POTÊNCIA BÁSICA LÍQUIDA (PRIMEIRA MARCHA) 125 HP, PESO BRUTO 13032 KG, LARGURA DA LÂMINA DE 3,7 M - MANUTENÇÃO. AF_06/2014","CHOR - CUSTOS HORÁRIOS DE MÁQUINAS E EQUIPAMENTOS",null,"H",1,70.73,70.73]
["Insumo"," 00004090 ","SINAPI","MOTONIVELADORA POTENCIA BASICA LIQUIDA (PRIMEIRA MARCHA) 125 HP , PESO BRUTO 13843 KG, LARGURA DA LAMINA DE 3,7 M","Equipamento",null,"UN",6.4300000000000004E-5,1100000,70.73]
[{"$nulls":4},"MO sem LS =>",0,"LS =>",0,"MO com LS =>",0]
[{"$nulls":4},"Valor do BDI =>",15.1,null,"Valor com BDI =>",null,85.83]
[]
[null,"Código","Banco","Descrição","Tipo",null,"Und","Quant.","Valor Unit","Total"]
["Composição"," 53849 ","SINAPI","MOTONIVELADORA POTÊNCIA BÁSICA LÍQUIDA (PRIMEIRA MARCHA) 125 HP, PESO BRUTO 13032 KG, LARGURA DA LÂMINA DE 3,7 M - MATERIAIS NA OPERAÇÃO. AF_06/2014","CHOR - CUSTOS HORÁRIOS DE MÁQUINAS E EQUIPAMENTOS",null,"H",1,84.91,84.91]
["Insumo"," 00004221 ","SINAPI","OLEO DIESEL COMBUSTIVEL COMUM","Material",null,"L",13.99,6.07,84.91]
[{"$nulls":4},"MO sem LS =>",0,"LS =>",0,"MO com LS =>",0]
[{"$nulls":4},"Valor do BDI =>",18.12,null,"Valor com BDI =>",null,103.03]
[]
[null,"Código","Banco","Descrição","Tipo",null,"Und","Quant.","Valor Unit","Total"]
["Composição"," 88281 ","SINAPI","MOTORISTA DE BASCULANTE COM ENCARGOS COMPLEMENTARES","SEDI - SERVIÇOS DIVERSOS",null,"H",1,24.03,24.03]
["Composição Auxiliar"," 95346 ","SINAPI","CURSO DE CAPACITAÇÃO PARA MOTORISTA DE BASCULANTE (ENCARGOS COMPLEMENTARES) - HORISTA","SEDI - SERVIÇOS DIVERSOS",null,"H",1,0.11,0.11]
["Insumo"," 00020020 ","SINAPI","MOTORISTA DE CAMINHAO-BASCULANTE","Mão de Obra",null,"H",1,18.850000000000001,18.850000000000001]
["Insumo"," 00037370 ","SINAPI","ALIMENTACAO - HORISTA (COLETADO CAIXA - ENCARGOS COMPLEMENTARES)","Outros",null,"H",1,2.2200000000000002,2.2200000000000002]
["Insumo"," 00037371 ","SINAPI","TRANSPORTE - HORISTA (COLETADO CAIXA - ENCARGOS COMPLEMENTARES)","Serviços",null,"H",1,0.6,0.6]
["Insumo"," 00037372 ","SINAPI","EXAMES - HORISTA (COLETADO CAIXA - ENCARGOS COMPLEMENTARES)","Outros",null,"H",1,1.34,1.34]
["Insumo"," 00037373 ","SINAPI","SEGURO - HORISTA (COLETADO CAIXA - ENCARGOS COMPLEMENTARES)","Taxas",null,"H",1,0.04,0.04]
["Insumo"," 00043464 ","SINAPI","FERRAMENTAS - FAMILIA OPERADOR ESCAVADEIRA - HORISTA (ENCARGOS COMPLEMENTARES - COLETADO CAIXA)","Equipamento",null,"H",1,0.01,0.01]
["Insumo"," 00043488 ","SINAPI","EPI - FAMILIA OPERADOR ESCAVADEIRA - HORISTA (ENCARGOS COMPLEMENTARES - COLETADO CAIXA)","Equipamento",null,"H",1,0.86,0.86]
[{"$nulls":4},"MO sem LS =>",8.8095902000000006,"LS =>",10.15,"MO com LS =>",18.96]
[{"$nulls":4},"Valor do BDI =>",5.13,null,"Valor com BDI =>",null,29.16]
[]
[null,"Código","Banco","Descrição","Tipo",null,"Und","Quant.","Valor Unit","Total"]
["Composição"," 88282 ","SINAPI","MOTORISTA DE CAMINHÃO COM ENCARGOS COMPLEMENTARES","SEDI - SERVIÇOS DIVERSOS",null,"H",1,23.31,23.31]
["Composição Auxiliar"," 95347 ","SINAPI","CURSO DE CAPACITAÇÃO PARA MOTORISTA DE CAMINHÃO (ENCARGOS COMPLEMENTARES) - HORISTA","SEDI - SERVIÇOS DIVERSOS",null,"H",1,0.1,0.1]
["Insumo"," 00004093 ","SINAPI","MOTORISTA DE CAMINHAO","Mão de Obra",null,"H",1,18.14,18.14]
["Insumo"," 00037370 ","SINAPI","ALIMENTACAO - HORISTA (COLETADO CAIXA - ENCARGOS COMPLEMENTARES)","Outros",null,"H",1,2.2200000000000002,2.2200000000000002]
["Insumo"," 00037371 ","SINAPI","TRANSPORTE - HORISTA (COLETADO CAIXA - ENCARGOS COMPLEMENTARES)","Serviços",null,"H",1,0.6,0.6]
["Insumo"," 00037372 ","SINAPI","EXAMES - HORISTA (COLETADO CAIXA - ENCARGOS COMPLEMENTARES)","Outros",null,"H",1,1.34,1.34]
["Insumo"," 00037373 ","SINAPI","SEGURO - HORISTA (COLETADO CAIXA - ENCARGOS COMPLEMENTARES)","Taxas",null,"H",1,0.04,0.04]
["Insumo"," 00043464 ","SINAPI","FERRAMENTAS - FAMILIA OPERADOR ESCAVADEIRA - HORISTA (ENCARGOS COMPLEMENTARES - COLETADO CAIXA)","Equipamento",null,"H",1,0.01,0.01]
["Insumo"," 00043488 ","SINAPI","EPI - FAMILIA OPERADOR ESCAVADEIRA - HORISTA (ENCARGOS COMPLEMENTARES - COLETADO CAIXA)","Equipamento",null,"H",1,0.86,0.86]
[{"$nulls":4},"MO sem LS =>",8.4750487999999997,"LS =>",9.76,"MO com LS =>",18.239999999999998]
[{"$nulls":4},"Valor do BDI =>",4.97,null,"Valor com BDI =>",null,28.28]
[]
[null,"Código","Banco","Descrição","Tipo",null,"Und","Quant.","Valor Unit","Total"]
["Composição"," 88284 ","SINAPI","MOTORISTA DE VEIÍCULO LEVE COM ENCARGOS COMPLEMENTARES","SEDI - SERVIÇOS DIVERSOS",null,"H",1,22.47,22.47]
["Composição Auxiliar"," 95349 ","SINAPI","CURSO DE CAPACITAÇÃO PARA MOTORISTA DE VEÍCULO LEVE (ENCARGOS COMPLEMENTARES) - HORISTA","SEDI - SERVIÇOS DIVERSOS",null,"H",1,0.1,0.1]
["Insumo"," 00004095 ","SINAPI","MOTORISTA DE CARRO DE PASSEIO","Mão de Obra",null,"H",1,17.3,17.3]
["Insumo"," 00037370 ","SINAPI","ALIMENTACAO - HORISTA (COLETADO CAIXA - ENCARGOS COMPLEMENTARES)","Outros",null,"H",1,2.2200000000000002,2.2200000000000002]
["Insumo"," 00037371 ","SINAPI","TRANSPORTE - HORISTA (COLETADO CAIXA - ENCARGOS COMPLEMENTARES)","Serviços",null,"H",1,0.6,0.6]
["Insumo"," 00037372 ","SINAPI","EXAMES - HORISTA (COLETADO CAIXA - ENCARGOS COMPLEMENTARES)","Outros",null,"H",1,1.34,1.34]
["Insumo"," 00037373 ","SINAPI","SEGURO - HORISTA (COLETADO CAIXA - ENCARGOS COMPLEMENTARES)","Taxas",null,"H",1,0.04,0.04]
["Insumo"," 00043464 ","SINAPI","FERRAMENTAS - FAMILIA OPERADOR ESCAVADEIRA - HORISTA (ENCARGOS COMPLEMENTARES - COLETADO CAIXA)","Equipamento",null,"H",1,0.01,0.01]
["Insumo"," 00043488 ","SINAPI","EPI - FAMILIA OPERADOR ESCAVADEIRA - HORISTA (ENCARGOS COMPLEMENTARES - COLETADO CAIXA)","Equipamento",null,"H",1,0.86,0.86]
[{"$nulls":4},"MO sem LS =>",8.0847505000000002,"LS =>",9.32,"MO com LS =>",17.399999999999999]
[{"$nulls":4},"Valor do BDI =>",4.79,null,"Valor com BDI =>",null,27.26]
[]
[null,"Código","Banco","Descrição","Tipo",null,"Und","Quant.","Valor Unit","Total"]
["Composição"," 88288 ","SINAPI","NIVELADOR COM ENCARGOS COMPLEMENTARES","SEDI - SERVIÇOS DIVERSOS",null,"H",1,17.100000000000001,17.100000000000001]
["Composição Auxiliar"," 95352 ","SINAPI","CURSO DE CAPACITAÇÃO PARA NIVELADOR (ENCARGOS COMPLEMENTARES) - HORISTA","SEDI - SERVIÇOS DIVERSOS",null,"H",1,0.14000000000000001,0.14000000000000001]
["Insumo"," 00007595 ","SINAPI","NIVELADOR (HORISTA)","Mão de Obra",null,"H",1,14.8,14.8]
["Insumo"," 00037372 ","SINAPI","EXAMES - HORISTA (COLETADO CAIXA - ENCARGOS COMPLEMENTARES)","Outros",null,"H",1,1.34,1.34]
["Insumo"," 00037373 ","SINAPI","SEGURO - HORISTA (COLETADO CAIXA - ENCARGOS COMPLEMENTARES)","Taxas",null,"H",1,0.04,0.04]
["Insumo"," 00043469 ","SINAPI","FERRAMENTAS - FAMILIA TOPOGRAFO - HORISTA (ENCARGOS COMPLEMENTARES - COLETADO CAIXA)","Equipamento",null,"H",1,7.0000000000000007E-2,7.0000000000000007E-2]
["Insumo"," 00043493 ","SINAPI","EPI - FAMILIA TOPOGRAFO - HORISTA (ENCARGOS COMPLEMENTARES - COLETADO CAIXA)","Equipamento",null,"H",1,0.71,0.71]
[{"$nulls":4},"MO sem LS =>",6.9417340000000003,"LS =>",8,"MO com LS =>",14.94]
[{"$nulls":4},"Valor do BDI =>",3.65,null,"Valor com BDI =>",null,20.75]
[]
[null,"Código","Banco","Descrição","Tipo",null,"Und","Quant.","Valor Unit","Total"]
["Composição"," 88377 ","SINAPI","OPERADOR DE BETONEIRA ESTACIONÁRIA/MISTURADOR COM ENCARGOS COMPLEMENTARES","SEDI - SERVIÇOS DIVERSOS",null,"H",1,17.100000000000001,17.100000000000001]
["Composição Auxiliar"," 95389 ","SINAPI","CURSO DE CAPACITAÇÃO PARA OPERADOR DE BETONEIRA ESTACIONÁRIA/MISTURADOR (ENCARGOS COMPLEMENTARES) - HORISTA","SEDI - SERVIÇOS DIVERSOS",null,"H",1,0.11,0.11]
["Insumo"," 00037370 ","SINAPI","ALIMENTACAO - HORISTA (COLETADO CAIXA - ENCARGOS COMPLEMENTARES)","Outros",null,"H",1,2.2200000000000002,2.2200000000000002]
["Insumo"," 00037371 ","SINAPI","TRANSPORTE - HORISTA (COLETADO CAIXA - ENCARGOS COMPLEMENTARES)","Serviços",null,"H",1,0.6,0.6]
["Insumo"," 00037372 ","SINAPI","EXAMES - HORISTA (COLETADO CAIXA - ENCARGOS COMPLEMENTARES)","Outros",null,"H",1,1.34,1.34]
["Insumo"," 00037373 ","SINAPI","SEGURO - HORISTA (COLETADO CAIXA - ENCARGOS COMPLEMENTARES)","Taxas",null,"H",1,0.04,0.04]
["Insumo"," 00037666 ","SINAPI","OPERADOR DE BETONEIRA ESTACIONARIA / MISTURADOR","Mão de Obra",null,"H",1,11.92,11.92]
["Insumo"," 00043464 ","SINAPI","FERRAMENTAS - FAMILIA OPERADOR ESCAVADEIRA - HORISTA (ENCARGOS COMPLEMENTARES - COLETADO CAIXA)","Equipamento",null,"H",1,0.01,0.01]
["Insumo"," 00043488 ","SINAPI","EPI - FAMILIA OPERADOR ESCAVADEIRA - HORISTA (ENCARGOS COMPLEMENTARES - COLETADO CAIXA)","Equipamento",null,"H",1,0.86,0.86]
[{"$nulls":4},"MO sem LS =>",5.5896292000000001,"LS =>",6.44,"MO com LS =>",12.03]
[{"$nulls":4},"Valor do BDI =>",3.65,null,"Valor com BDI =>",null,20.75]
[]
[null,"Código","Banco","Descrição","Tipo",null,"Und","Quant.","Valor Unit","Total"]
["Composição"," 88300 ","SINAPI","OPERADOR DE MOTONIVELADORA COM ENCARGOS COMPLEMENTARES","SEDI - SERVIÇOS DIVERSOS",null,"H",1,34.450000000000003,34.450000000000003]
["Composição Auxiliar"," 95363 ","SINAPI","CURSO DE CAPACITAÇÃO PARA OPERADOR DE MOTONIVELADORA (ENCARGOS COMPLEMENTARES) - HORISTA","SEDI - SERVIÇOS DIVERSOS",null,"H",1,0.27,0.27]
["Insumo"," 00004239 ","SINAPI","OPERADOR DE MOTONIVELADORA","Mão de Obra",null,"H",1,29.11,29.11]
["Insumo"," 00037370 ","SINAPI","ALIMENTACAO - HORISTA (COLETADO CAIXA - ENCARGOS COMPLEMENTARES)","Outros",null,"H",1,2.2200000000000002,2.2200000000000002]
["Insumo"," 00037371 ","SINAPI","TRANSPORTE - HORISTA (COLETADO CAIXA - ENCARGOS COMPLEMENTARES)","Serviços",null,"H",1,0.6,0.6]
["Insumo"," 00037372 ","SINAPI","EXAMES - HORISTA (COLETADO CAIXA - ENCARGOS COMPLEMENTARES)","Outros",null,"H",1,1.34,1.34]
["Insumo"," 00037373 ","SINAPI","SEGURO - HORISTA (COLETADO CAIXA - ENCARGOS COMPLEMENTARES)","Taxas",null,"H",1,0.04,0.04]
["Insumo"," 00043464 ","SINAPI","FERRAMENTAS - FAMILIA OPERADOR ESCAVADEIRA - HORISTA (ENCARGOS COMPLEMENTARES - COLETADO CAIXA)","Equipamento",null,"H",1,0.01,0.01]
["Insumo"," 00043488 ","SINAPI","EPI - FAMILIA OPERADOR ESCAVADEIRA - HORISTA (ENCARGOS COMPLEMENTARES - COLETADO CAIXA)","Equipamento",null,"H",1,0.86,0.86]
[{"$nulls":4},"MO sem LS =>",13.651147699999999,"LS =>",15.73,"MO com LS =>",29.38]
[{"$nulls":4},"Valor do BDI =>",7.35,null,"Valor com BDI =>",null,41.8]
[]
[null,"Código","Banco","Descrição","Tipo",null,"Und","Quant.","Valor Unit","Total"]
["Composição"," 88297 ","SINAPI","OPERADOR DE MÁQUINAS E EQUIPAMENTOS COM ENCARGOS COMPLEMENTARES","SEDI - SERVIÇOS DIVERSOS",null,"H",1,21.61,21.61]
["Composição Auxiliar"," 95360 ","SINAPI","CURSO DE CAPACITAÇÃO PARA OPERADOR DE MÁQUINAS E EQUIPAMENTOS (ENCARGOS COMPLEMENTARES) - HORISTA","SEDI - SERVIÇOS DIVERSOS",null,"H",1,0.21,0.21]
["Insumo"," 00004230 ","SINAPI","OPERADOR DE MAQUINAS E TRATORES DIVERSOS (TERRAPLANAGEM)","Mão de Obra",null,"H",1,16.329999999999998,16.329999999999998]
["Insumo"," 00037370 ","SINAPI","ALIMENTACAO - HORISTA (COLETADO CAIXA - ENCARGOS COMPLEMENTARES)","Outros",null,"H",1,2.2200000000000002,2.2200000000000002]
["Insumo"," 00037371 ","SINAPI","TRANSPORTE - HORISTA (COLETADO CAIXA - ENCARGOS COMPLEMENTARES)","Serviços",null,"H",1,0.6,0.6]
["Insumo"," 00037372 ","SINAPI","EXAMES - HORISTA (COLETADO CAIXA - ENCARGOS COMPLEMENTARES)","Outros",null,"H",1,1.34,1.34]
["Insumo"," 00037373 ","SINAPI","SEGURO - HORISTA (COLETADO CAIXA - ENCARGOS COMPLEMENTARES)","Taxas",null,"H",1,0.04,0.04]
["Insumo"," 00043464 ","SINAPI","FERRAMENTAS - FAMILIA OPERADOR ESCAVADEIRA - HORISTA (ENCARGOS COMPLEMENTARES - COLETADO CAIXA)","Equipamento",null,"H",1,0.01,0.01]
["Insumo"," 00043488 ","SINAPI","EPI - FAMILIA OPERADOR ESCAVADEIRA - HORISTA (ENCARGOS COMPLEMENTARES - COLETADO CAIXA)","Equipamento",null,"H",1,0.86,0.86]
[{"$nulls":4},"MO sem LS =>",7.6851593999999999,"LS =>",8.85,"MO com LS =>",16.54]
[{"$nulls":4},"Valor do BDI =>",4.6100000000000003,null,"Valor com BDI =>",null,26.22]
[]
[null,"Código","Banco","Descrição","Tipo",null,"Und","Quant.","Valor Unit","Total"]
["Composição"," 88301 ","SINAPI","OPERADOR DE PÁ CARREGADEIRA COM ENCARGOS COMPLEMENTARES","SEDI - SERVIÇOS DIVERSOS",null,"H",1,21.53,21.53]
["Composição Auxiliar"," 95364 ","SINAPI","CURSO DE CAPACITAÇÃO PARA OPERADOR DE PÁ CARREGADEIRA (ENCARGOS COMPLEMENTARES) - HORISTA","SEDI - SERVIÇOS DIVERSOS",null,"H",1,0.15,0.15]
["Insumo"," 00004248 ","SINAPI","OPERADOR DE PA CARREGADEIRA","Mão de Obra",null,"H",1,16.309999999999999,16.309999999999999]
["Insumo"," 00037370 ","SINAPI","ALIMENTACAO - HORISTA (COLETADO CAIXA - ENCARGOS COMPLEMENTARES)","Outros",null,"H",1,2.2200000000000002,2.2200000000000002]
["Insumo"," 00037371 ","SINAPI","TRANSPORTE - HORISTA (COLETADO CAIXA - ENCARGOS COMPLEMENTARES)","Serviços",null,"H",1,0.6,0.6]
["Insumo"," 00037372 ","SINAPI","EXAMES - HORISTA (COLETADO CAIXA - ENCARGOS COMPLEMENTARES)","Outros",null,"H",1,1.34,1.34]
["Insumo"," 00037373 ","SINAPI","SEGURO - HORISTA (COLETADO CAIXA - ENCARGOS COMPLEMENTARES)","Taxas",null,"H",1,0.04,0.04]
["Insumo"," 00043464 ","SINAPI","FERRAMENTAS - FAMILIA OPERADOR ESCAVADEIRA - HORISTA (ENCARGOS COMPLEMENTARES - COLETADO CAIXA)","Equipamento",null,"H",1,0.01,0.01]
["Insumo"," 00043488 ","SINAPI","EPI - FAMILIA OPERADOR ESCAVADEIRA - HORISTA (ENCARGOS COMPLEMENTARES - COLETADO CAIXA)","Equipamento",null,"H",1,0.86,0.86]
[{"$nulls":4},"MO sem LS =>",7.6479881000000001,"LS =>",8.81,"MO com LS =>",16.46]
[{"$nulls":4},"Valor do BDI =>",4.59,null,"Valor com BDI =>",null,26.12]
[]
[null,"Código","Banco","Descrição","Tipo",null,"Und","Quant.","Valor Unit","Total"]
["Composição"," 88303 ","SINAPI","OPERADOR DE ROLO COMPACTADOR COM ENCARGOS COMPLEMENTARES","SEDI - SERVIÇOS DIVERSOS",null,"H",1,22.53,22.53]
["Composição Auxiliar"," 95366 ","SINAPI","CURSO DE CAPACITAÇÃO PARA OPERADOR DE ROLO COMPACTADOR (ENCARGOS COMPLEMENTARES) - HORISTA","SEDI - SERVIÇOS DIVERSOS",null,"H",1,0.16,0.16]
["Insumo"," 00004238 ","SINAPI","OPERADOR DE ROLO COMPACTADOR","Mão de Obra",null,"H",1,17.3,17.3]
["Insumo"," 00037370 ","SINAPI","ALIMENTACAO - HORISTA (COLETADO CAIXA - ENCARGOS COMPLEMENTARES)","Outros",null,"H",1,2.2200000000000002,2.2200000000000002]
["Insumo"," 00037371 ","SINAPI","TRANSPORTE - HORISTA (COLETADO CAIXA - ENCARGOS COMPLEMENTARES)","Serviços",null,"H",1,0.6,0.6]
["Insumo"," 00037372 ","SINAPI","EXAMES - HORISTA (COLETADO CAIXA - ENCARGOS COMPLEMENTARES)","Outros",null,"H",1,1.34,1.34]
["Insumo"," 00037373 ","SINAPI","SEGURO - HORISTA (COLETADO CAIXA - ENCARGOS COMPLEMENTARES)","Taxas",null,"H",1,0.04,0.04]
["Insumo"," 00043464 ","SINAPI","FERRAMENTAS - FAMILIA OPERADOR ESCAVADEIRA - HORISTA (ENCARGOS COMPLEMENTARES - COLETADO CAIXA)","Equipamento",null,"H",1,0.01,0.01]
["Insumo"," 00043488 ","SINAPI","EPI - FAMILIA OPERADOR ESCAVADEIRA - HORISTA (ENCARGOS COMPLEMENTARES - COLETADO CAIXA)","Equipamento",null,"H",1,0.86,0.86]
[{"$nulls":4},"MO sem LS =>",8.1126289000000007,"LS =>",9.35,"MO com LS =>",17.46]
[{"$nulls":4},"Valor do BDI =>",4.8099999999999996,null,"Valor com BDI =>",null,27.34]
[]
[null,"Código","Banco","Descrição","Tipo",null,"Und","Quant.","Valor Unit","Total"]
["Composição"," 88309 ","SINAPI","PEDREIRO COM ENCARGOS COMPLEMENTARES","SEDI - SERVIÇOS DIVERSOS",null,"H",1,24.84,24.84]
["Composição Auxiliar"," 95371 ","SINAPI","CURSO DE CAPACITAÇÃO PARA PEDREIRO (ENCARGOS COMPLEMENTARES) - HORISTA","SEDI - SERVIÇOS DIVERSOS",null,"H",1,0.44,0.44]
["Insumo"," 00004750 ","SINAPI","PEDREIRO (HORISTA)","Mão de Obra",null,"H",1,18.14,18.14]
["Insumo"," 00037370 ","SINAPI","ALIMENTACAO - HORISTA (COLETADO CAIXA - ENCARGOS COMPLEMENTARES)","Outros",null,"H",1,2.2200000000000002,2.2200000000000002]
["Insumo"," 00037371 ","SINAPI","TRANSPORTE - HORISTA (COLETADO CAIXA - ENCARGOS COMPLEMENTARES)","Serviços",null,"H",1,0.6,0.6]
["Insumo"," 00037372 ","SINAPI","EXAMES - HORISTA (COLETADO CAIXA - ENCARGOS COMPLEMENTARES)","Outros",null,"H",1,1.34,1.34]
["Insumo"," 00037373 ","SINAPI","SEGURO - HORISTA (COLETADO CAIXA - ENCARGOS COMPLEMENTARES)","Taxas",null,"H",1,0.04,0.04]
["Insumo"," 00043465 ","SINAPI","FERRAMENTAS - FAMILIA PEDREIRO - HORISTA (ENCARGOS COMPLEMENTARES - COLETADO CAIXA)","Equipamento",null,"H",1,0.82,0.82]
["Insumo"," 00043489 ","SINAPI","EPI - FAMILIA PEDREIRO - HORISTA (ENCARGOS COMPLEMENTARES - COLETADO CAIXA)","Equipamento",null,"H",1,1.24,1.24]
[{"$nulls":4},"MO sem LS =>",8.6330267000000003,"LS =>",9.9499999999999993,"MO com LS =>",18.579999999999998]
[{"$nulls":4},"Valor do BDI =>",5.3,null,"Valor com BDI =>",null,30.14]
[]
[null,"Código","Banco","Descrição","Tipo",null,"Und","Quant.","Valor Unit","Total"]
["Composição"," 88310 ","SINAPI","PINTOR COM ENCARGOS COMPLEMENTARES","SEDI - SERVIÇOS DIVERSOS",null,"H",1,26.34,26.34]
["Composição Auxiliar"," 95372 ","SINAPI","CURSO DE CAPACITAÇÃO PARA PINTOR (ENCARGOS COMPLEMENTARES) - HORISTA","SEDI - SERVIÇOS DIVERSOS",null,"H",1,0.3,0.3]
["Insumo"," 00004783 ","SINAPI","PINTOR (HORISTA)","Mão de Obra",null,"H",1,18.14,18.14]
["Insumo"," 00037370 ","SINAPI","ALIMENTACAO - HORISTA (COLETADO CAIXA - ENCARGOS COMPLEMENTARES)","Outros",null,"H",1,2.2200000000000002,2.2200000000000002]
["Insumo"," 00037371 ","SINAPI","TRANSPORTE - HORISTA (COLETADO CAIXA - ENCARGOS COMPLEMENTARES)","Serviços",null,"H",1,0.6,0.6]
["Insumo"," 00037372 ","SINAPI","EXAMES - HORISTA (COLETADO CAIXA - ENCARGOS COMPLEMENTARES)","Outros",null,"H",1,1.34,1.34]
["Insumo"," 00037373 ","SINAPI","SEGURO - HORISTA (COLETADO CAIXA - ENCARGOS COMPLEMENTARES)","Taxas",null,"H",1,0.04,0.04]
["Insumo"," 00043466 ","SINAPI","FERRAMENTAS - FAMILIA PINTOR - HORISTA (ENCARGOS COMPLEMENTARES - COLETADO CAIXA)","Equipamento",null,"H",1,1.97,1.97]
["Insumo"," 00043490 ","SINAPI","EPI - FAMILIA PINTOR - HORISTA (ENCARGOS COMPLEMENTARES - COLETADO CAIXA)","Equipamento",null,"H",1,1.73,1.73]
[{"$nulls":4},"MO sem LS =>",8.5679770000000008,"LS =>",9.8699999999999992,"MO com LS =>",18.440000000000001]
[{"$nulls":4},"Valor do BDI =>",5.62,null,"Valor com BDI =>",null,31.96]
[]
[null,"Código","Banco","Descrição","Tipo",null,"Und","Quant.","Valor Unit","Total"]
["Composição"," 102513 ","SINAPI","PINTURA DE SÍMBOLOS E TEXTOS COM TINTA ACRÍLICA, DEMARCAÇÃO COM FITA ADESIVA E APLICAÇÃO COM ROLO. AF_05/2021","PINT - PINTURAS",null,"m²",1,44.13,44.13]
["Composição Auxiliar"," 88310 ","SINAPI","PINTOR COM ENCARGOS COMPLEMENTARES","SEDI - SERVIÇOS DIVERSOS",null,"H",0.96,26.34,25.28]
["Composição Auxiliar"," 88316 ","SINAPI","SERVENTE COM ENCARGOS COMPLEMENTARES","SEDI - SERVIÇOS DIVERSOS",null,"H",0.4,20.28,8.11]
["Insumo"," 00007348 ","SINAPI","TINTA ACRILICA PREMIUM PARA PISO","Material",null,"L",0.42699999999999999,20.66,8.82]
["Insumo"," 00012815 ","SINAPI","FITA CREPE ROLO DE 25 MM X 50 M","Material",null,"UN",0.23,8.3699999999999992,1.92]
[{"$nulls":4},"MO sem LS =>",10.849363442059289,"LS =>",12.5,"MO com LS =>",23.35]
[{"$nulls":4},"Valor do BDI =>",9.42,null,"Valor com BDI =>",null,53.55]
[]
[null,"Código","Banco","Descrição","Tipo",null,"Und","Quant.","Valor Unit","Total"]
["Composição"," 102197 ","SINAPI","PINTURA FUNDO NIVELADOR ALQUÍDICO BRANCO EM MADEIRA. AF_01/2021","PINT - PINTURAS",null,"m²",1,21.77,21.77]
["Composição Auxiliar"," 88310 ","SINAPI","PINTOR COM ENCARGOS COMPLEMENTARES","SEDI - SERVIÇOS DIVERSOS",null,"H",0.28060000000000002,26.34,7.39]
["Insumo"," 00003767 ","SINAPI","LIXA EM FOLHA PARA PAREDE OU MADEIRA, NUMERO 120, COR VERMELHA","Material",null,"UN",0.4,0.92,0.36]
["Insumo"," 00005318 ","SINAPI","DILUENTE AGUARRAS","Material",null,"L",2.76E-2,24.04,0.66]
["Insumo"," 00043653 ","SINAPI","FUNDO SINTETICO NIVELADOR BRANCO FOSCO PARA MADEIRA","Material",null,"L",0.49608000000000002,26.95,13.36]
[{"$nulls":4},"MO sem LS =>",2.4021931047300438,"LS =>",2.77,"MO com LS =>",5.17]
[{"$nulls":4},"Valor do BDI =>",4.6399999999999997,null,"Valor com BDI =>",null,26.41]
[]
[null,"Código","Banco","Descrição","Tipo",null,"Und","Quant.","Valor Unit","Total"]
["Composição"," 102234 ","SINAPI","PINTURA IMUNIZANTE PARA MADEIRA, 2 DEMÃOS. AF_01/2021","PINT - PINTURAS",null,"m²",1,24.18,24.18]
["Composição Auxiliar"," 88310 ","SINAPI","PINTOR COM ENCARGOS COMPLEMENTARES","SEDI - SERVIÇOS DIVERSOS",null,"H",0.45290000000000002,26.34,11.92]
["Insumo"," 00007340 ","SINAPI","IMUNIZANTE PARA MADEIRA, INCOLOR","Material",null,"L",0.32569999999999999,37.659999999999997,12.26]
[{"$nulls":4},"MO sem LS =>",3.8797509525137071,"LS =>",4.47,"MO com LS =>",8.35]
[{"$nulls":4},"Valor do BDI =>",5.16,null,"Valor com BDI =>",null,29.34]
[]
[null,"Código","Banco","Descrição","Tipo",null,"Und","Quant.","Valor Unit","Total"]
["Composição"," 102218 ","SINAPI","PINTURA TINTA DE ACABAMENTO (PIGMENTADA) ESMALTE SINTÉTICO FOSCO EM MADEIRA, 2 DEMÃOS. AF_01/2021","PINT - PINTURAS",null,"m²",1,15.65,15.65]
["Composição Auxiliar"," 88310 ","SINAPI","PINTOR COM ENCARGOS COMPLEMENTARES","SEDI - SERVIÇOS DIVERSOS",null,"H",0.3805,26.34,10.02]
["Insumo"," 00005318 ","SINAPI","DILUENTE AGUARRAS","Material",null,"L",1.2999999999999999E-2,24.04,0.31]
["Insumo"," 00007288 ","SINAPI","TINTA ESMALTE SINTETICO PREMIUM FOSCO","Material",null,"L",0.13,40.99,5.32]
[{"$nulls":4},"MO sem LS =>",3.2571322367809685,"LS =>",3.75,"MO com LS =>",7.01]
[{"$nulls":4},"Valor do BDI =>",3.34,null,"Valor com BDI =>",null,18.989999999999998]
[]
[null,"Código","Banco","Descrição","Tipo",null,"Und","Quant.","Valor Unit","Total"]
["Composição"," 5942 ","SINAPI","PÁ CARREGADEIRA SOBRE RODAS, POTÊNCIA LÍQUIDA 128 HP, CAPACIDADE DA CAÇAMBA 1,7 A 2,8 M3, PESO OPERACIONAL 11632 KG - CHI DIURNO. AF_06/2014","CHOR - CUSTOS HORÁRIOS DE MÁQUINAS E EQUIPAMENTOS",null,"CHI",1,64.89,64.89]
["Composição Auxiliar"," 88301 ","SINAPI","OPERADOR DE PÁ CARREGADEIRA COM ENCARGOS COMPLEMENTARES","SEDI - SERVIÇOS DIVERSOS",null,"H",1,21.53,21.53]
["Composição Auxiliar"," 89128 ","SINAPI","PÁ CARREGADEIRA SOBRE RODAS, POTÊNCIA LÍQUIDA 128 HP, CAPACIDADE DA CAÇAMBA 1,7 A 2,8 M3, PESO OPERACIONAL 11632 KG - DEPRECIAÇÃO. AF_06/2014","CHOR - CUSTOS HORÁRIOS DE MÁQUINAS E EQUIPAMENTOS",null,"H",1,34.299999999999997,34.299999999999997]
["Composição Auxiliar"," 89129 ","SINAPI","PÁ CARREGADEIRA SOBRE RODAS, POTÊNCIA LÍQUIDA 128 HP, CAPACIDADE DA CAÇAMBA 1,7 A 2,8 M3, PESO OPERACIONAL 11632 KG - JUROS. AF_06/2014","CHOR - CUSTOS HORÁRIOS DE MÁQUINAS E EQUIPAMENTOS",null,"H",1,9.06,9.06]
[{"$nulls":4},"MO sem LS =>",7.6479881000000001,"LS =>",8.81,"MO com LS =>",16.46]
[{"$nulls":4},"Valor do BDI =>",13.85,null,"Valor com BDI =>",null,78.739999999999995]
[]
[null,"Código","Banco","Descrição","Tipo",null,"Und","Quant.","Valor Unit","Total"]
["Composição"," 5940 ","SINAPI","PÁ CARREGADEIRA SOBRE RODAS, POTÊNCIA LÍQUIDA 128 HP, CAPACIDADE DA CAÇAMBA 1,7 A 2,8 M3, PESO OPERACIONAL 11632 KG - CHP DIURNO. AF_06/2014","CHOR - CUSTOS HORÁRIOS DE MÁQUINAS E EQUIPAMENTOS",null,"CHP",1,172.51,172.51]
["Composição Auxiliar"," 53857 ","SINAPI","PÁ CARREGADEIRA SOBRE RODAS, POTÊNCIA LÍQUIDA 128 HP, CAPACIDADE DA CAÇAMBA 1,7 A 2,8 M3, PESO OPERACIONAL 11632 KG - MANUTENÇÃO. AF_06/2014","CHOR - CUSTOS HORÁRIOS DE MÁQUINAS E EQUIPAMENTOS",null,"H",1,61.25,61.25]
["Composição Auxiliar"," 53858 ","SINAPI","PÁ CARREGADEIRA SOBRE RODAS, POTÊNCIA LÍQUIDA 128 HP, CAPACIDADE DA CAÇAMBA 1,7 A 2,8 M3, PESO OPERACIONAL 11632 KG - MATERIAIS NA OPERAÇÃO. AF_06/2014","CHOR - CUSTOS HORÁRIOS DE MÁQUINAS E EQUIPAMENTOS",null,"H",1,46.37,46.37]
["Composição Auxiliar"," 88301 ","SINAPI","OPERADOR DE PÁ CARREGADEIRA COM ENCARGOS COMPLEMENTARES","SEDI - SERVIÇOS DIVERSOS",null,"H",1,21.53,21.53]
["Composição Auxiliar"," 89128 ","SINAPI","PÁ CARREGADEIRA SOBRE RODAS, POTÊNCIA LÍQUIDA 128 HP, CAPACIDADE DA CAÇAMBA 1,7 A 2,8 M3, PESO OPERACIONAL 11632 KG - DEPRECIAÇÃO. AF_06/2014","CHOR - CUSTOS HORÁRIOS DE MÁQUINAS E EQUIPAMENTOS",null,"H",1,34.299999999999997,34.299999999999997]
["Composição Auxiliar"," 89129 ","SINAPI","PÁ CARREGADEIRA SOBRE RODAS, POTÊNCIA LÍQUIDA 128 HP, CAPACIDADE DA CAÇAMBA 1,7 A 2,8 M3, PESO OPERACIONAL 11632 KG - JUROS. AF_06/2014","CHOR - CUSTOS HORÁRIOS DE MÁQUINAS E EQUIPAMENTOS",null,"H",1,9.06,9.06]
[{"$nulls":4},"MO sem LS =>",7.6479881000000001,"LS =>",8.81,"MO com LS =>",16.46]
[{"$nulls":4},"Valor do BDI =>",36.83,null,"Valor com BDI =>",null,209.34]
[]
[null,"Código","Banco","Descrição","Tipo",null,"Und","Quant.","Valor Unit","Total"]
["Composição"," 89128 ","SINAPI","PÁ CARREGADEIRA SOBRE RODAS, POTÊNCIA LÍQUIDA 128 HP, CAPACIDADE DA CAÇAMBA 1,7 A 2,8 M3, PESO OPERACIONAL 11632 KG - DEPRECIAÇÃO. AF_06/2014","CHOR - CUSTOS HORÁRIOS DE MÁQUINAS E EQUIPAMENTOS",null,"H",1,34.299999999999997,34.299999999999997]
["Insumo"," 00004262 ","SINAPI","PA CARREGADEIRA SOBRE RODAS, POTENCIA LIQUIDA 128 HP, CAPACIDADE DA CACAMBA DE 1,7 A 2,8 M3, PESO OPERACIONAL MAXIMO DE 11632 KG","Equipamento",null,"UN",5.5999999999999999E-5,612500,34.299999999999997]
[{"$nulls":4},"MO sem LS =>",0,"LS =>",0,"MO com LS =>",0]
[{"$nulls":4},"Valor do BDI =>",7.32,null,"Valor com BDI =>",null,41.62]
[]
[null,"Código","Banco","Descrição","Tipo",null,"Und","Quant.","Valor Unit","Total"]
["Composição"," 89129 ","SINAPI","PÁ CARREGADEIRA SOBRE RODAS, POTÊNCIA LÍQUIDA 128 HP, CAPACIDADE DA CAÇAMBA 1,7 A 2,8 M3, PESO OPERACIONAL 11632 KG - JUROS. AF_06/2014","CHOR - CUSTOS HORÁRIOS DE MÁQUINAS E EQUIPAMENTOS",null,"H",1,9.06,9.06]
["Insumo"," 00004262 ","SINAPI","PA CARREGADEIRA SOBRE RODAS, POTENCIA LIQUIDA 128 HP, CAPACIDADE DA CACAMBA DE 1,7 A 2,8 M3, PESO OPERACIONAL MAXIMO DE 11632 KG","Equipamento",null,"UN",1.4800000000000001E-5,612500,9.06]
[{"$nulls":4},"MO sem LS =>",0,"LS =>",0,"MO com LS =>",0]
[{"$nulls":4},"Valor do BDI =>",1.93,null,"Valor com BDI =>",null,10.99]
[]
[null,"Código","Banco","Descrição","Tipo",null,"Und","Quant.","Valor Unit","Total"]
["Composição"," 53857 ","SINAPI","PÁ CARREGADEIRA SOBRE RODAS, POTÊNCIA LÍQUIDA 128 HP, CAPACIDADE DA CAÇAMBA 1,7 A 2,8 M3, PESO OPERACIONAL 11632 KG - MANUTENÇÃO. AF_06/2014","CHOR - CUSTOS HORÁRIOS DE MÁQUINAS E EQUIPAMENTOS",null,"H",1,61.25,61.25]
["Insumo"," 00004262 ","SINAPI","PA CARREGADEIRA SOBRE RODAS, POTENCIA LIQUIDA 128 HP, CAPACIDADE DA CACAMBA DE 1,7 A 2,8 M3, PESO OPERACIONAL MAXIMO DE 11632 KG","Equipamento",null,"UN",1E-4,612500,61.25]
[{"$nulls":4},"MO sem LS =>",0,"LS =>",0,"MO com LS =>",0]
[{"$nulls":4},"Valor do BDI =>",13.07,null,"Valor com BDI =>",null,74.319999999999993]
[]
[null,"Código","Banco","Descrição","Tipo",null,"Und","Quant.","Valor Unit","Total"]
["Composição"," 53858 ","SINAPI","PÁ CARREGADEIRA SOBRE RODAS, POTÊNCIA LÍQUIDA 128 HP, CAPACIDADE DA CAÇAMBA 1,7 A 2,8 M3, PESO OPERACIONAL 11632 KG - MATERIAIS NA OPERAÇÃO. AF_06/2014","CHOR - CUSTOS HORÁRIOS DE MÁQUINAS E EQUIPAMENTOS",null,"H",1,46.37,46.37]
["Insumo"," 00004221 ","SINAPI","OLEO DIESEL COMBUSTIVEL COMUM","Material",null,"L",7.64,6.07,46.37]
[{"$nulls":4},"MO sem LS =>",0,"LS =>",0,"MO com LS =>",0]
[{"$nulls":4},"Valor do BDI =>",9.89,null,"Valor com BDI =>",null,56.26]
[]
[null,"Código","Banco","Descrição","Tipo",null,"Und","Quant.","Valor Unit","Total"]
["Composição"," 5685 ","SINAPI","ROLO COMPACTADOR VIBRATÓRIO DE UM CILINDRO AÇO LISO, POTÊNCIA 80 HP, PESO OPERACIONAL MÁXIMO 8,1 T, IMPACTO DINÂMICO 16,15 / 9,5 T, LARGURA DE TRABALHO 1,68 M - CHI DIURNO. AF_06/2014","CHOR - CUSTOS HORÁRIOS DE MÁQUINAS E EQUIPAMENTOS",null,"CHI",1,61.36,61.36]
["Composição Auxiliar"," 88303 ","SINAPI","OPERADOR DE ROLO COMPACTADOR COM ENCARGOS COMPLEMENTARES","SEDI - SERVIÇOS DIVERSOS",null,"H",1,22.53,22.53]
["Composição Auxiliar"," 89210 ","SINAPI","ROLO COMPACTADOR VIBRATÓRIO DE UM CILINDRO AÇO LISO, POTÊNCIA 80 HP, PESO OPERACIONAL MÁXIMO 8,1 T, IMPACTO DINÂMICO 16,15 / 9,5 T, LARGURA DE TRABALHO 1,68 M - DEPRECIAÇÃO. AF_06/2014","CHOR - CUSTOS HORÁRIOS DE MÁQUINAS E EQUIPAMENTOS",null,"H",1,30.62,30.62]
["Composição Auxiliar"," 89211 ","SINAPI","ROLO COMPACTADOR VIBRATÓRIO DE UM CILINDRO AÇO LISO, POTÊNCIA 80 HP, PESO OPERACIONAL MÁXIMO 8,1 T, IMPACTO DINÂMICO 16,15 / 9,5 T, LARGURA DE TRABALHO 1,68 M - JUROS. AF_06/2014","CHOR - CUSTOS HORÁRIOS DE MÁQUINAS E EQUIPAMENTOS",null,"H",1,8.2100000000000009,8.2100000000000009]
[{"$nulls":4},"MO sem LS =>",8.1126289000000007,"LS =>",9.35,"MO com LS =>",17.46]
[{"$nulls":4},"Valor do BDI =>",13.1,null,"Valor com BDI =>",null,74.459999999999994]
[]
[null,"Código","Banco","Descrição","Tipo",null,"Und","Quant.","Valor Unit","Total"]
["Composição"," 5684 ","SINAPI","ROLO COMPACTADOR VIBRATÓRIO DE UM CILINDRO AÇO LISO, POTÊNCIA 80 HP, PESO OPERACIONAL MÁXIMO 8,1 T, IMPACTO DINÂMICO 16,15 / 9,5 T, LARGURA DE TRABALHO 1,68 M - CHP DIURNO. AF_06/2014","CHOR - CUSTOS HORÁRIOS DE MÁQUINAS E EQUIPAMENTOS",null,"CHP",1,157.63999999999999,157.63999999999999]
["Composição Auxiliar"," 53788 ","SINAPI","ROLO COMPACTADOR VIBRATÓRIO DE UM CILINDRO AÇO LISO, POTÊNCIA 80 HP, PESO OPERACIONAL MÁXIMO 8,1 T, IMPACTO DINÂMICO 16,15 / 9,5 T, LARGURA DE TRABALHO 1,68 M - MATERIAIS NA OPERAÇÃO. AF_06/2014","CHOR - CUSTOS HORÁRIOS DE MÁQUINAS E EQUIPAMENTOS",null,"H",1,57.96,57.96]
["Composição Auxiliar"," 5674 ","SINAPI","ROLO COMPACTADOR VIBRATÓRIO DE UM CILINDRO AÇO LISO, POTÊNCIA 80 HP, PESO OPERACIONAL MÁXIMO 8,1 T, IMPACTO DINÂMICO 16,15 / 9,5 T, LARGURA DE TRABALHO 1,68 M - MANUTENÇÃO. AF_06/2014","CHOR - CUSTOS HORÁRIOS DE MÁQUINAS E EQUIPAMENTOS",null,"H",1,38.32,38.32]
["Composição Auxiliar"," 88303 ","SINAPI","OPERADOR DE ROLO COMPACTADOR COM ENCARGOS COMPLEMENTARES","SEDI - SERVIÇOS DIVERSOS",null,"H",1,22.53,22.53]
["Composição Auxiliar"," 89210 ","SINAPI","ROLO COMPACTADOR VIBRATÓRIO DE UM CILINDRO AÇO LISO, POTÊNCIA 80 HP, PESO OPERACIONAL MÁXIMO 8,1 T, IMPACTO DINÂMICO 16,15 / 9,5 T, LARGURA DE TRABALHO 1,68 M - DEPRECIAÇÃO. AF_06/2014","CHOR - CUSTOS HORÁRIOS DE MÁQUINAS E EQUIPAMENTOS",null,"H",1,30.62,30.62]
["Composição Auxiliar"," 89211 ","SINAPI","ROLO COMPACTADOR VIBRATÓRIO DE UM CILINDRO AÇO LISO, POTÊNCIA 80 HP, PESO OPERACIONAL MÁXIMO 8,1 T, IMPACTO DINÂMICO 16,15 / 9,5 T, LARGURA DE TRABALHO 1,68 M - JUROS. AF_06/2014","CHOR - CUSTOS HORÁRIOS DE MÁQUINAS E EQUIPAMENTOS",null,"H",1,8.2100000000000009,8.2100000000000009]
[{"$nulls":4},"MO sem LS =>",8.1126289000000007,"LS =>",9.35,"MO com LS =>",17.46]
[{"$nulls":4},"Valor do BDI =>",33.65,null,"Valor com BDI =>",null,191.29]
[]
[null,"Código","Banco","Descrição","Tipo",null,"Und","Quant.","Valor Unit","Total"]
["Composição"," 89210 ","SINAPI","ROLO COMPACTADOR VIBRATÓRIO DE UM CILINDRO AÇO LISO, POTÊNCIA 80 HP, PESO OPERACIONAL MÁXIMO 8,1 T, IMPACTO DINÂMICO 16,15 / 9,5 T, LARGURA DE TRABALHO 1,68 M - DEPRECIAÇÃO. AF_06/2014","CHOR - CUSTOS HORÁRIOS DE MÁQUINAS E EQUIPAMENTOS",null,"H",1,30.62,30.62]
["Insumo"," 00010646 ","SINAPI","ROLO COMPACTADOR VIBRATORIO DE UM CILINDRO, ACO LISO, POTENCIA 80 HP, PESO OPERACIONAL MAXIMO 8,1 T, IMPACTO DINAMICO 16,15/9,5 T, LARGURA TRABALHO 1,68 M","Equipamento",null,"UN",5.3300000000000001E-5,574591.49,30.62]
[{"$nulls":4},"MO sem LS =>",0,"LS =>",0,"MO com LS =>",0]
[{"$nulls":4},"Valor do BDI =>",6.53,null,"Valor com BDI =>",null,37.15]
[]
[null,"Código","Banco","Descrição","Tipo",null,"Und","Quant.","Valor Unit","Total"]
["Composição"," 89211 ","SINAPI","ROLO COMPACTADOR VIBRATÓRIO DE UM CILINDRO AÇO LISO, POTÊNCIA 80 HP, PESO OPERACIONAL MÁXIMO 8,1 T, IMPACTO DINÂMICO 16,15 / 9,5 T, LARGURA DE TRABALHO 1,68 M - JUROS. AF_06/2014","CHOR - CUSTOS HORÁRIOS DE MÁQUINAS E EQUIPAMENTOS",null,"H",1,8.2100000000000009,8.2100000000000009]
["Insumo"," 00010646 ","SINAPI","ROLO COMPACTADOR VIBRATORIO DE UM CILINDRO, ACO LISO, POTENCIA 80 HP, PESO OPERACIONAL MAXIMO 8,1 T, IMPACTO DINAMICO 16,15/9,5 T, LARGURA TRABALHO 1,68 M","Equipamento",null,"UN",1.43E-5,574591.49,8.2100000000000009]
[{"$nulls":4},"MO sem LS =>",0,"LS =>",0,"MO com LS =>",0]
[{"$nulls":4},"Valor do BDI =>",1.75,null,"Valor com BDI =>",null,9.9600000000000009]
[]
[null,"Código","Banco","Descrição","Tipo",null,"Und","Quant.","Valor Unit","Total"]
["Composição"," 5674 ","SINAPI","ROLO COMPACTADOR VIBRATÓRIO DE UM CILINDRO AÇO LISO, POTÊNCIA 80 HP, PESO OPERACIONAL MÁXIMO 8,1 T, IMPACTO DINÂMICO 16,15 / 9,5 T, LARGURA DE TRABALHO 1,68 M - MANUTENÇÃO. AF_06/2014","CHOR - CUSTOS HORÁRIOS DE MÁQUINAS E EQUIPAMENTOS",null,"H",1,38.32,38.32]
["Insumo"," 00010646 ","SINAPI","ROLO COMPACTADOR VIBRATORIO DE UM CILINDRO, ACO LISO, POTENCIA 80 HP, PESO OPERACIONAL MAXIMO 8,1 T, IMPACTO DINAMICO 16,15/9,5 T, LARGURA TRABALHO 1,68 M","Equipamento",null,"UN",6.6699999999999995E-5,574591.49,38.32]
[{"$nulls":4},"MO sem LS =>",0,"LS =>",0,"MO com LS =>",0]
[{"$nulls":4},"Valor do BDI =>",8.18,null,"Valor com BDI =>",null,46.5]
[]
[null,"Código","Banco","Descrição","Tipo",null,"Und","Quant.","Valor Unit","Total"]
["Composição"," 53788 ","SINAPI","ROLO COMPACTADOR VIBRATÓRIO DE UM CILINDRO AÇO LISO, POTÊNCIA 80 HP, PESO OPERACIONAL MÁXIMO 8,1 T, IMPACTO DINÂMICO 16,15 / 9,5 T, LARGURA DE TRABALHO 1,68 M - MATERIAIS NA OPERAÇÃO. AF_06/2014","CHOR - CUSTOS HORÁRIOS DE MÁQUINAS E EQUIPAMENTOS",null,"H",1,57.96,57.96]
["Insumo"," 00004221 ","SINAPI","OLEO DIESEL COMBUSTIVEL COMUM","Material",null,"L",9.5500000000000007,6.07,57.96]
[{"$nulls":4},"MO sem LS =>",0,"LS =>",0,"MO com LS =>",0]
[{"$nulls":4},"Valor do BDI =>",12.37,null,"Valor com BDI =>",null,70.33]
[]
[null,"Código","Banco","Descrição","Tipo",null,"Und","Quant.","Valor Unit","Total"]
["Composição"," 91693 ","SINAPI","SERRA CIRCULAR DE BANCADA COM MOTOR ELÉTRICO POTÊNCIA DE 5HP, COM COIFA PARA DISCO 10\" - CHI DIURNO. AF_08/2015","CHOR - CUSTOS HORÁRIOS DE MÁQUINAS E EQUIPAMENTOS",null,"CHI",1,21.73,21.73]
["Composição Auxiliar"," 88297 ","SINAPI","OPERADOR DE MÁQUINAS E EQUIPAMENTOS COM ENCARGOS COMPLEMENTARES","SEDI - SERVIÇOS DIVERSOS",null,"H",1,21.61,21.61]
["Composição Auxiliar"," 91688 ","SINAPI","SERRA CIRCULAR DE BANCADA COM MOTOR ELÉTRICO POTÊNCIA DE 5HP, COM COIFA PARA DISCO 10\" - DEPRECIAÇÃO. AF_08/2015","CHOR - CUSTOS HORÁRIOS DE MÁQUINAS E EQUIPAMENTOS",null,"H",1,0.1,0.1]
["Composição Auxiliar"," 91689 ","SINAPI","SERRA CIRCULAR DE BANCADA COM MOTOR ELÉTRICO POTÊNCIA DE 5HP, COM COIFA PARA DISCO 10\" - JUROS. AF_08/2015","CHOR - CUSTOS HORÁRIOS DE MÁQUINAS E EQUIPAMENTOS",null,"H",1,0.02,0.02]
[{"$nulls":4},"MO sem LS =>",7.6851593999999999,"LS =>",8.85,"MO com LS =>",16.54]
[{"$nulls":4},"Valor do BDI =>",4.63,null,"Valor com BDI =>",null,26.36]
[]
[null,"Código","Banco","Descrição","Tipo",null,"Und","Quant.","Valor Unit","Total"]
["Composição"," 91692 ","SINAPI","SERRA CIRCULAR DE BANCADA COM MOTOR ELÉTRICO POTÊNCIA DE 5HP, COM COIFA PARA DISCO 10\" - CHP DIURNO. AF_08/2015","CHOR - CUSTOS HORÁRIOS DE MÁQUINAS E EQUIPAMENTOS",null,"CHP",1,23.26,23.26]
["Composição Auxiliar"," 88297 ","SINAPI","OPERADOR DE MÁQUINAS E EQUIPAMENTOS COM ENCARGOS COMPLEMENTARES","SEDI - SERVIÇOS DIVERSOS",null,"H",1,21.61,21.61]
["Composição Auxiliar"," 91688 ","SINAPI","SERRA CIRCULAR DE BANCADA COM MOTOR ELÉTRICO POTÊNCIA DE 5HP, COM COIFA PARA DISCO 10\" - DEPRECIAÇÃO. AF_08/2015","CHOR - CUSTOS HORÁRIOS DE MÁQUINAS E EQUIPAMENTOS",null,"H",1,0.1,0.1]
["Composição Auxiliar"," 91689 ","SINAPI","SERRA CIRCULAR DE BANCADA COM MOTOR ELÉTRICO POTÊNCIA DE 5HP, COM COIFA PARA DISCO 10\" - JUROS. AF_08/2015","CHOR - CUSTOS HORÁRIOS DE MÁQUINAS E EQUIPAMENTOS",null,"H",1,0.02,0.02]
["Composição Auxiliar"," 91690 ","SINAPI","SERRA CIRCULAR DE BANCADA COM MOTOR ELÉTRICO POTÊNCIA DE 5HP, COM COIFA PARA DISCO 10\" - MANUTENÇÃO. AF_08/2015","CHOR - CUSTOS HORÁRIOS DE MÁQUINAS E EQUIPAMENTOS",null,"H",1,7.0000000000000007E-2,7.0000000000000007E-2]
["Composição Auxiliar"," 91691 ","SINAPI","SERRA CIRCULAR DE BANCADA COM MOTOR ELÉTRICO POTÊNCIA DE 5HP, COM COIFA PARA DISCO 10\" - MATERIAIS NA OPERAÇÃO. AF_08/2015","CHOR - CUSTOS HORÁRIOS DE MÁQUINAS E EQUIPAMENTOS",null,"H",1,1.46,1.46]
[{"$nulls":4},"MO sem LS =>",7.6851593999999999,"LS =>",8.85,"MO com LS =>",16.54]
[{"$nulls":4},"Valor do BDI =>",4.96,null,"Valor com BDI =>",null,28.22]
[]
[null,"Código","Banco","Descrição","Tipo",null,"Und","Quant.","Valor Unit","Total"]
["Composição"," 91688 ","SINAPI","SERRA CIRCULAR DE BANCADA COM MOTOR ELÉTRICO POTÊNCIA DE 5HP, COM COIFA PARA DISCO 10\" - DEPRECIAÇÃO. AF_08/2015","CHOR - CUSTOS HORÁRIOS DE MÁQUINAS E EQUIPAMENTOS",null,"H",1,0.1,0.1]
["Insumo"," 00014618 ","SINAPI","SERRA CIRCULAR DE BANCADA COM MOTOR ELETRICO, POTENCIA DE *1600* W, PARA DISCO DE DIAMETRO DE 10\" (250 MM)","Material",null,"UN",7.2000000000000002E-5,1429.41,0.1]
[{"$nulls":4},"MO sem LS =>",0,"LS =>",0,"MO com LS =>",0]
[{"$nulls":4},"Valor do BDI =>",0.02,null,"Valor com BDI =>",null,0.12]
[]
[null,"Código","Banco","Descrição","Tipo",null,"Und","Quant.","Valor Unit","Total"]
["Composição"," 91689 ","SINAPI","SERRA CIRCULAR DE BANCADA COM MOTOR ELÉTRICO POTÊNCIA DE 5HP, COM COIFA PARA DISCO 10\" - JUROS. AF_08/2015","CHOR - CUSTOS HORÁRIOS DE MÁQUINAS E EQUIPAMENTOS",null,"H",1,0.02,0.02]
["Insumo"," 00014618 ","SINAPI","SERRA CIRCULAR DE BANCADA COM MOTOR ELETRICO, POTENCIA DE *1600* W, PARA DISCO DE DIAMETRO DE 10\" (250 MM)","Material",null,"UN",1.4800000000000001E-5,1429.41,0.02]
[{"$nulls":4},"MO sem LS =>",0,"LS =>",0,"MO com LS =>",0]
[{"$nulls":4},"Valor do BDI =>",0,null,"Valor com BDI =>",null,0.02]
[]
[null,"Código","Banco","Descrição","Tipo",null,"Und","Quant.","Valor Unit","Total"]
["Composição"," 91690 ","SINAPI","SERRA CIRCULAR DE BANCADA COM MOTOR ELÉTRICO POTÊNCIA DE 5HP, COM COIFA PARA DISCO 10\" - MANUTENÇÃO. AF_08/2015","CHOR - CUSTOS HORÁRIOS DE MÁQUINAS E EQUIPAMENTOS",null,"H",1,7.0000000000000007E-2,7.0000000000000007E-2]
["Insumo"," 00014618 ","SINAPI","SERRA CIRCULAR DE BANCADA COM MOTOR ELETRICO, POTENCIA DE *1600* W, PARA DISCO DE DIAMETRO DE 10\" (250 MM)","Material",null,"UN",5.0000000000000002E-5,1429.41,7.0000000000000007E-2]
[{"$nulls":4},"MO sem LS =>",0,"LS =>",0,"MO com LS =>",0]
[{"$nulls":4},"Valor do BDI =>",0.01,null,"Valor com BDI =>",null,0.08]
[]
[null,"Código","Banco","Descrição","Tipo",null,"Und","Quant.","Valor Unit","Total"]
["Composição"," 91691 ","SINAPI","SERRA CIRCULAR DE BANCADA COM MOTOR ELÉTRICO POTÊNCIA DE 5HP, COM COIFA PARA DISCO 10\" - MATERIAIS NA OPERAÇÃO. AF_08/2015","CHOR - CUSTOS HORÁRIOS DE MÁQUINAS E EQUIPAMENTOS",null,"H",1,1.46,1.46]
["Insumo"," 00002705 ","SINAPI","ENERGIA ELETRICA ATE 2000 KWH INDUSTRIAL, SEM DEMANDA","Material",null,"KWH",1.36,1.08,1.46]
[{"$nulls":4},"MO sem LS =>",0,"LS =>",0,"MO com LS =>",0]
[{"$nulls":4},"Valor do BDI =>",0.31,null,"Valor com BDI =>",null,1.77]
[]
[null,"Código","Banco","Descrição","Tipo",null,"Und","Quant.","Valor Unit","Total"]
["Composição"," 88316 ","SINAPI","SERVENTE COM ENCARGOS COMPLEMENTARES","SEDI - SERVIÇOS DIVERSOS",null,"H",1,20.28,20.28]
["Composição Auxiliar"," 95378 ","SINAPI","CURSO DE CAPACITAÇÃO PARA SERVENTE (ENCARGOS COMPLEMENTARES) - HORISTA","SEDI - SERVIÇOS DIVERSOS",null,"H",1,0.33,0.33]
["Insumo"," 00006111 ","SINAPI","SERVENTE DE OBRAS","Mão de Obra",null,"H",1,13.81,13.81]
["Insumo"," 00037370 ","SINAPI","ALIMENTACAO - HORISTA (COLETADO CAIXA - ENCARGOS COMPLEMENTARES)","Outros",null,"H",1,2.2200000000000002,2.2200000000000002]
["Insumo"," 00037371 ","SINAPI","TRANSPORTE - HORISTA (COLETADO CAIXA - ENCARGOS COMPLEMENTARES)","Serviços",null,"H",1,0.6,0.6]
["Insumo"," 00037372 ","SINAPI","EXAMES - HORISTA (COLETADO CAIXA - ENCARGOS COMPLEMENTARES)","Outros",null,"H",1,1.34,1.34]
["Insumo"," 00037373 ","SINAPI","SEGURO - HORISTA (COLETADO CAIXA - ENCARGOS COMPLEMENTARES)","Taxas",null,"H",1,0.04,0.04]
["Insumo"," 00043467 ","SINAPI","FERRAMENTAS - FAMILIA SERVENTE - HORISTA (ENCARGOS COMPLEMENTARES - COLETADO CAIXA)","Equipamento",null,"H",1,0.61,0.61]
["Insumo"," 00043491 ","SINAPI","EPI - FAMILIA SERVENTE - HORISTA (ENCARGOS COMPLEMENTARES - COLETADO CAIXA)","Equipamento",null,"H",1,1.33,1.33]
[{"$nulls":4},"MO sem LS =>",6.5700213999999999,"LS =>",7.57,"MO com LS =>",14.14]
[{"$nulls":4},"Valor do BDI =>",4.32,null,"Valor com BDI =>",null,24.6]
[]
[null,"Código","Banco","Descrição","Tipo",null,"Und","Quant.","Valor Unit","Total"]
["Composição"," 95878 ","SINAPI","TRANSPORTE COM CAMINHÃO BASCULANTE DE 10 M³, EM VIA URBANA PAVIMENTADA, DMT ATÉ 30 KM (UNIDADE: TXKM). AF_07/2020","TRAN - TRANSPORTES, CARGAS E DESCARGAS",null,"TXKM",1,1.63,1.63]
["Composição Auxiliar"," 91386 ","SINAPI","CAMINHÃO BASCULANTE 10 M3, TRUCADO CABINE SIMPLES, PESO BRUTO TOTAL 23.000 KG, CARGA ÚTIL MÁXIMA 15.935 KG, DISTÂNCIA ENTRE EIXOS 4,80 M, POTÊNCIA 230 CV INCLUSIVE CAÇAMBA METÁLICA - CHP DIURNO. AF_06/2014","CHOR - CUSTOS HORÁRIOS DE MÁQUINAS E EQUIPAMENTOS",null,"CHP",5.5999999999999999E-3,264.18,1.47]
["Composição Auxiliar"," 91387 ","SINAPI","CAMINHÃO BASCULANTE 10 M3, TRUCADO CABINE SIMPLES, PESO BRUTO TOTAL 23.000 KG, CARGA ÚTIL MÁXIMA 15.935 KG, DISTÂNCIA ENTRE EIXOS 4,80 M, POTÊNCIA 230 CV INCLUSIVE CAÇAMBA METÁLICA - CHI DIURNO. AF_06/2014","CHOR - CUSTOS HORÁRIOS DE MÁQUINAS E EQUIPAMENTOS",null,"CHI",2.3999999999999998E-3,68.39,0.16]
[{"$nulls":4},"MO sem LS =>",6.5049716569092086E-2,"LS =>",7.0000000000000007E-2,"MO com LS =>",0.14000000000000001]
[{"$nulls":4},"Valor do BDI =>",0.34,null,"Valor com BDI =>",null,1.97]
[]
[null,"Código","Banco","Descrição","Tipo",null,"Und","Quant.","Valor Unit","Total"]
["Composição"," 89035 ","SINAPI","TRATOR DE PNEUS, POTÊNCIA 85 CV, TRAÇÃO 4X4, PESO COM LASTRO DE 4.675 KG - CHP DIURNO. AF_06/2014","CHOR - CUSTOS HORÁRIOS DE MÁQUINAS E EQUIPAMENTOS",null,"CHP",1,121.17,121.17]
["Composição Auxiliar"," 5714 ","SINAPI","TRATOR DE PNEUS, POTÊNCIA 85 CV, TRAÇÃO 4X4, PESO COM LASTRO DE 4.675 KG - MANUTENÇÃO. AF_06/2014","CHOR - CUSTOS HORÁRIOS DE MÁQUINAS E EQUIPAMENTOS",null,"H",1,14.46,14.46]
["Composição Auxiliar"," 5715 ","SINAPI","TRATOR DE PNEUS, POTÊNCIA 85 CV, TRAÇÃO 4X4, PESO COM LASTRO DE 4.675 KG - MATERIAIS NA OPERAÇÃO. AF_06/2014","CHOR - CUSTOS HORÁRIOS DE MÁQUINAS E EQUIPAMENTOS",null,"H",1,68.34,68.34]
["Composição Auxiliar"," 88324 ","SINAPI","TRATORISTA COM ENCARGOS COMPLEMENTARES","SEDI - SERVIÇOS DIVERSOS",null,"H",1,21.61,21.61]
["Composição Auxiliar"," 89033 ","SINAPI","TRATOR DE PNEUS, POTÊNCIA 85 CV, TRAÇÃO 4X4, PESO COM LASTRO DE 4.675 KG - DEPRECIAÇÃO. AF_06/2014","CHOR - CUSTOS HORÁRIOS DE MÁQUINAS E EQUIPAMENTOS",null,"H",1,13.22,13.22]
["Composição Auxiliar"," 89034 ","SINAPI","TRATOR DE PNEUS, POTÊNCIA 85 CV, TRAÇÃO 4X4, PESO COM LASTRO DE 4.675 KG - JUROS. AF_06/2014","CHOR - CUSTOS HORÁRIOS DE MÁQUINAS E EQUIPAMENTOS",null,"H",1,3.54,3.54]
[{"$nulls":4},"MO sem LS =>",7.6851593999999999,"LS =>",8.85,"MO com LS =>",16.54]
[{"$nulls":4},"Valor do BDI =>",25.86,null,"Valor com BDI =>",null,147.03]
[]
[null,"Código","Banco","Descrição","Tipo",null,"Und","Quant.","Valor Unit","Total"]
["Composição"," 89033 ","SINAPI","TRATOR DE PNEUS, POTÊNCIA 85 CV, TRAÇÃO 4X4, PESO COM LASTRO DE 4.675 KG - DEPRECIAÇÃO. AF_06/2014","CHOR - CUSTOS HORÁRIOS DE MÁQUINAS E EQUIPAMENTOS",null,"H",1,13.22,13.22]
["Insumo"," 00007640 ","SINAPI","TRATOR DE PNEUS COM POTENCIA DE 85 CV, TRACAO 4 X 4, PESO COM LASTRO DE 4675 KG","Equipamento para Aquisição Permanente",null,"UN",5.3300000000000001E-5,248195,13.22]
[{"$nulls":4},"MO sem LS =>",0,"LS =>",0,"MO com LS =>",0]
[{"$nulls":4},"Valor do BDI =>",2.82,null,"Valor com BDI =>",null,16.04]
[]
[null,"Código","Banco","Descrição","Tipo",null,"Und","Quant.","Valor Unit","Total"]
["Composição"," 89034 ","SINAPI","TRATOR DE PNEUS, POTÊNCIA 85 CV, TRAÇÃO 4X4, PESO COM LASTRO DE 4.675 KG - JUROS. AF_06/2014","CHOR - CUSTOS HORÁRIOS DE MÁQUINAS E EQUIPAMENTOS",null,"H",1,3.54,3.54]
["Insumo"," 00007640 ","SINAPI","TRATOR DE PNEUS COM POTENCIA DE 85 CV, TRACAO 4 X 4, PESO COM LASTRO DE 4675 KG","Equipamento para Aquisição Permanente",null,"UN",1.43E-5,248195,3.54]
[{"$nulls":4},"MO sem LS =>",0,"LS =>",0,"MO com LS =>",0]
[{"$nulls":4},"Valor do BDI =>",0.75,null,"Valor com BDI =>",null,4.29]
[]
[null,"Código","Banco","Descrição","Tipo",null,"Und","Quant.","Valor Unit","Total"]
["Composição"," 5714 ","SINAPI","TRATOR DE PNEUS, POTÊNCIA 85 CV, TRAÇÃO 4X4, PESO COM LASTRO DE 4.675 KG - MANUTENÇÃO. AF_06/2014","CHOR - CUSTOS HORÁRIOS DE MÁQUINAS E EQUIPAMENTOS",null,"H",1,14.46,14.46]
["Insumo"," 00007640 ","SINAPI","TRATOR DE PNEUS COM POTENCIA DE 85 CV, TRACAO 4 X 4, PESO COM LASTRO DE 4675 KG","Equipamento para Aquisição Permanente",null,"UN",5.8300000000000001E-5,248195,14.46]
[{"$nulls":4},"MO sem LS =>",0,"LS =>",0,"MO com LS =>",0]
[{"$nulls":4},"Valor do BDI =>",3.08,null,"Valor com BDI =>",null,17.54]
[]
[null,"Código","Banco","Descrição","Tipo",null,"Und","Quant.","Valor Unit","Total"]
["Composição"," 5715 ","SINAPI","TRATOR DE PNEUS, POTÊNCIA 85 CV, TRAÇÃO 4X4, PESO COM LASTRO DE 4.675 KG - MATERIAIS NA OPERAÇÃO. AF_06/2014","CHOR - CUSTOS HORÁRIOS DE MÁQUINAS E EQUIPAMENTOS",null,"H",1,68.34,68.34]
["Insumo"," 00004221 ","SINAPI","OLEO DIESEL COMBUSTIVEL COMUM","Material",null,"L",11.26,6.07,68.34]
[{"$nulls":4},"MO sem LS =>",0,"LS =>",0,"MO com LS =>",0]
[{"$nulls":4},"Valor do BDI =>",14.59,null,"Valor com BDI =>",null,82.93]
[]
[null,"Código","Banco","Descrição","Tipo",null,"Und","Quant.","Valor Unit","Total"]
["Composição"," 88324 ","SINAPI","TRATORISTA COM ENCARGOS COMPLEMENTARES","SEDI - SERVIÇOS DIVERSOS",null,"H",1,21.61,21.61]
["Composição Auxiliar"," 95386 ","SINAPI","CURSO DE CAPACITAÇÃO PARA TRATORISTA (ENCARGOS COMPLEMENTARES) - HORISTA","SEDI - SERVIÇOS DIVERSOS",null,"H",1,0.21,0.21]
["Insumo"," 00004230 ","SINAPI","OPERADOR DE MAQUINAS E TRATORES DIVERSOS (TERRAPLANAGEM)","Mão de Obra",null,"H",1,16.329999999999998,16.329999999999998]
["Insumo"," 00037370 ","SINAPI","ALIMENTACAO - HORISTA (COLETADO CAIXA - ENCARGOS COMPLEMENTARES)","Outros",null,"H",1,2.2200000000000002,2.2200000000000002]
["Insumo"," 00037371 ","SINAPI","TRANSPORTE - HORISTA (COLETADO CAIXA - ENCARGOS COMPLEMENTARES)","Serviços",null,"H",1,0.6,0.6]
["Insumo"," 00037372 ","SINAPI","EXAMES - HORISTA (COLETADO CAIXA - ENCARGOS COMPLEMENTARES)","Outros",null,"H",1,1.34,1.34]
["Insumo"," 00037373 ","SINAPI","SEGURO - HORISTA (COLETADO CAIXA - ENCARGOS COMPLEMENTARES)","Taxas",null,"H",1,0.04,0.04]
["Insumo"," 00043464 ","SINAPI","FERRAMENTAS - FAMILIA OPERADOR ESCAVADEIRA - HORISTA (ENCARGOS COMPLEMENTARES - COLETADO CAIXA)","Equipamento",null,"H",1,0.01,0.01]
["Insumo"," 00043488 ","SINAPI","EPI - FAMILIA OPERADOR ESCAVADEIRA - HORISTA (ENCARGOS COMPLEMENTARES - COLETADO CAIXA)","Equipamento",null,"H",1,0.86,0.86]
[{"$nulls":4},"MO sem LS =>",7.6851593999999999,"LS =>",8.85,"MO com LS =>",16.54]
[{"$nulls":4},"Valor do BDI =>",4.6100000000000003,null,"Valor com BDI =>",null,26.22]
[]
[null,"Código","Banco","Descrição","Tipo",null,"Und","Quant.","Valor Unit","Total"]
["Composição"," 100309 ","SINAPI","TÉCNICO EM SEGURANÇA DO TRABALHO COM ENCARGOS COMPLEMENTARES","SEDI - SERVIÇOS DIVERSOS",null,"H",1,27.79,27.79]
["Composição Auxiliar"," 100299 ","SINAPI","CURSO DE CAPACITAÇÃO PARA TÉCNICO EM SEGURANÇA DO TRABALHO (ENCARGOS COMPLEMENTARES) - HORISTA","SEDI - SERVIÇOS DIVERSOS",null,"H",1,0.51,0.51]
["Insumo"," 00037372 ","SINAPI","EXAMES - HORISTA (COLETADO CAIXA - ENCARGOS COMPLEMENTARES)","Outros",null,"H",1,1.34,1.34]
["Insumo"," 00037373 ","SINAPI","SEGURO - HORISTA (COLETADO CAIXA - ENCARGOS COMPLEMENTARES)","Taxas",null,"H",1,0.04,0.04]
["Insumo"," 00040943 ","SINAPI","TECNICO EM SEGURANCA DO TRABALHO (HORISTA)","Mão de Obra",null,"H",1,25.05,25.05]
["Insumo"," 00043458 ","SINAPI","FERRAMENTAS - FAMILIA ALMOXARIFE - HORISTA (ENCARGOS COMPLEMENTARES - COLETADO CAIXA)","Equipamento",null,"H",1,0.06,0.06]
["Insumo"," 00043482 ","SINAPI","EPI - FAMILIA ALMOXARIFE - HORISTA (ENCARGOS COMPLEMENTARES - COLETADO CAIXA)","Equipamento",null,"H",1,0.79,0.79]
[{"$nulls":4},"MO sem LS =>",11.8762197,"LS =>",13.68,"MO com LS =>",25.56]
[{"$nulls":4},"Valor do BDI =>",5.93,null,"Valor com BDI =>",null,33.72]
[]
[null,"Código","Banco","Descrição","Tipo",null,"Und","Quant.","Valor Unit","Total"]
["Composição"," 90587 ","SINAPI","VIBRADOR DE IMERSÃO, DIÂMETRO DE PONTEIRA 45MM, MOTOR ELÉTRICO TRIFÁSICO POTÊNCIA DE 2 CV - CHI DIURNO. AF_06/2015","CHOR - CUSTOS HORÁRIOS DE MÁQUINAS E EQUIPAMENTOS",null,"CHI",1,0.49,0.49]
["Composição Auxiliar"," 90582 ","SINAPI","VIBRADOR DE IMERSÃO, DIÂMETRO DE PONTEIRA 45MM, MOTOR ELÉTRICO TRIFÁSICO POTÊNCIA DE 2 CV - DEPRECIAÇÃO. AF_06/2015","CHOR - CUSTOS HORÁRIOS DE MÁQUINAS E EQUIPAMENTOS",null,"H",1,0.4,0.4]
["Composição Auxiliar"," 90583 ","SINAPI","VIBRADOR DE IMERSÃO, DIÂMETRO DE PONTEIRA 45MM, MOTOR ELÉTRICO TRIFÁSICO POTÊNCIA DE 2 CV - JUROS. AF_06/2015","CHOR - CUSTOS HORÁRIOS DE MÁQUINAS E EQUIPAMENTOS",null,"H",1,0.09,0.09]
[{"$nulls":4},"MO sem LS =>",0,"LS =>",0,"MO com LS =>",0]
[{"$nulls":4},"Valor do BDI =>",0.1,null,"Valor com BDI =>",null,0.59]
[]
[null,"Código","Banco","Descrição","Tipo",null,"Und","Quant.","Valor Unit","Total"]
["Composição"," 90586 ","SINAPI","VIBRADOR DE IMERSÃO, DIÂMETRO DE PONTEIRA 45MM, MOTOR ELÉTRICO TRIFÁSICO POTÊNCIA DE 2 CV - CHP DIURNO. AF_06/2015","CHOR - CUSTOS HORÁRIOS DE MÁQUINAS E EQUIPAMENTOS",null,"CHP",1,1.37,1.37]
["Composição Auxiliar"," 90582 ","SINAPI","VIBRADOR DE IMERSÃO, DIÂMETRO DE PONTEIRA 45MM, MOTOR ELÉTRICO TRIFÁSICO POTÊNCIA DE 2 CV - DEPRECIAÇÃO. AF_06/2015","CHOR - CUSTOS HORÁRIOS DE MÁQUINAS E EQUIPAMENTOS",null,"H",1,0.4,0.4]
["Composição Auxiliar"," 90583 ","SINAPI","VIBRADOR DE IMERSÃO, DIÂMETRO DE PONTEIRA 45MM, MOTOR ELÉTRICO TRIFÁSICO POTÊNCIA DE 2 CV - JUROS. AF_06/2015","CHOR - CUSTOS HORÁRIOS DE MÁQUINAS E EQUIPAMENTOS",null,"H",1,0.09,0.09]
["Composição Auxiliar"," 90584 ","SINAPI","VIBRADOR DE IMERSÃO, DIÂMETRO DE PONTEIRA 45MM, MOTOR ELÉTRICO TRIFÁSICO POTÊNCIA DE 2 CV - MANUTENÇÃO. AF_06/2015","CHOR - CUSTOS HORÁRIOS DE MÁQUINAS E EQUIPAMENTOS",null,"H",1,0.32,0.32]
["Composição Auxiliar"," 90585 ","SINAPI","VIBRADOR DE IMERSÃO, DIÂMETRO DE PONTEIRA 45MM, MOTOR ELÉTRICO TRIFÁSICO POTÊNCIA DE 2 CV - MATERIAIS NA OPERAÇÃO. AF_06/2015","CHOR - CUSTOS HORÁRIOS DE MÁQUINAS E EQUIPAMENTOS",null,"H",1,0.56000000000000005,0.56000000000000005]
[{"$nulls":4},"MO sem LS =>",0,"LS =>",0,"MO com LS =>",0]
[{"$nulls":4},"Valor do BDI =>",0.28999999999999998,null,"Valor com BDI =>",null,1.66]
[]
[null,"Código","Banco","Descrição","Tipo",null,"Und","Quant.","Valor Unit","Total"]
["Composição"," 90582 ","SINAPI","VIBRADOR DE IMERSÃO, DIÂMETRO DE PONTEIRA 45MM, MOTOR ELÉTRICO TRIFÁSICO POTÊNCIA DE 2 CV - DEPRECIAÇÃO. AF_06/2015","CHOR - CUSTOS HORÁRIOS DE MÁQUINAS E EQUIPAMENTOS",null,"H",1,0.4,0.4]
["Insumo"," 00013896 ","SINAPI","VIBRADOR DE IMERSAO, DIAMETRO DA PONTEIRA DE *45* MM, COM MOTOR ELETRICO TRIFASICO DE 2 HP (2 CV)","Equipamento",null,"UN",1.2799999999999999E-4,3202.6,0.4]
[{"$nulls":4},"MO sem LS =>",0,"LS =>",0,"MO com LS =>",0]
[{"$nulls":4},"Valor do BDI =>",0.08,null,"Valor com BDI =>",null,0.48]
[]
[null,"Código","Banco","Descrição","Tipo",null,"Und","Quant.","Valor Unit","Total"]
["Composição"," 90583 ","SINAPI","VIBRADOR DE IMERSÃO, DIÂMETRO DE PONTEIRA 45MM, MOTOR ELÉTRICO TRIFÁSICO POTÊNCIA DE 2 CV - JUROS. AF_06/2015","CHOR - CUSTOS HORÁRIOS DE MÁQUINAS E EQUIPAMENTOS",null,"H",1,0.09,0.09]
["Insumo"," 00013896 ","SINAPI","VIBRADOR DE IMERSAO, DIAMETRO DA PONTEIRA DE *45* MM, COM MOTOR ELETRICO TRIFASICO DE 2 HP (2 CV)","Equipamento",null,"UN",2.9600000000000001E-5,3202.6,0.09]
[{"$nulls":4},"MO sem LS =>",0,"LS =>",0,"MO com LS =>",0]
[{"$nulls":4},"Valor do BDI =>",0.01,null,"Valor com BDI =>",null,0.1]
[]
[null,"Código","Banco","Descrição","Tipo",null,"Und","Quant.","Valor Unit","Total"]
["Composição"," 90584 ","SINAPI","VIBRADOR DE IMERSÃO, DIÂMETRO DE PONTEIRA 45MM, MOTOR ELÉTRICO TRIFÁSICO POTÊNCIA DE 2 CV - MANUTENÇÃO. AF_06/2015","CHOR - CUSTOS HORÁRIOS DE MÁQUINAS E EQUIPAMENTOS",null,"H",1,0.32,0.32]
["Insumo"," 00013896 ","SINAPI","VIBRADOR DE IMERSAO, DIAMETRO DA PONTEIRA DE *45* MM, COM MOTOR ELETRICO TRIFASICO DE 2 HP (2 CV)","Equipamento",null,"UN",1E-4,3202.6,0.32]
[{"$nulls":4},"MO sem LS =>",0,"LS =>",0,"MO com LS =>",0]
[{"$nulls":4},"Valor do BDI =>",0.06,null,"Valor com BDI =>",null,0.38]
[]
[null,"Código","Banco","Descrição","Tipo",null,"Und","Quant.","Valor Unit","Total"]
["Composição"," 90585 ","SINAPI","VIBRADOR DE IMERSÃO, DIÂMETRO DE PONTEIRA 45MM, MOTOR ELÉTRICO TRIFÁSICO POTÊNCIA DE 2 CV - MATERIAIS NA OPERAÇÃO. AF_06/2015","CHOR - CUSTOS HORÁRIOS DE MÁQUINAS E EQUIPAMENTOS",null,"H",1,0.56000000000000005,0.56000000000000005]
["Insumo"," 00002705 ","SINAPI","ENERGIA ELETRICA ATE 2000 KWH INDUSTRIAL, SEM DEMANDA","Material",null,"KWH",0.52,1.08,0.56000000000000005]
[{"$nulls":4},"MO sem LS =>",0,"LS =>",0,"MO com LS =>",0]
[{"$nulls":4},"Valor do BDI =>",0.11,null,"Valor com BDI =>",null,0.67]
[]
[]
[{"$nulls":5},"Total sem BDI",null,765839.39]
[{"$nulls":5},"Total do BDI",null,162610.26]
[{"$nulls":5},"Total Geral",null,928449.65]
[]
["_______________________________________________________________\nGRD / UEP 2\nSetor de Engenharia"]

{"sheet":"ES ","index":7,"n_rows":6,"n_cols":3,"rows_kept":6,"cut":false,"hidden":false,"merged":[[5,0,5,8],[0,2,0,7],[1,2,1,7],[2,2,2,7],[3,2,3,7],[4,2,4,7]]}
[null,null,"Ministério do Desenvolvimento Regional - MDR"]
[null,null,"Companhia de Desenvolvimento dos Vales do São Francisco e do Parnaíba"]
[null,null,"5ª Superintendência Regional"]
[null,null,"Gerência Regional de Infraestrutura"]
[null,null,"Unidade Regional de Estudos e Projetos"]
["ANEXO IV - ENCARGOS SOCIAIS e COMPOSIÇÃO DO BDI"]

{"sheet":"COMPOSIÇÃO BDI","index":8,"n_rows":120,"n_cols":11,"rows_kept":120,"cut":false,"hidden":false,"merged":[[116,2,116,3],[117,2,117,3],[118,1,118,6],[119,1,119,3],[110,2,110,3],[111,2,111,3],[112,2,112,3],[113,2,113,3],[114,1,114,7],[115,2,115,3],[104,2,104,3],[105,2,105,3],[106,2,106,3],[107,1,107,7],[108,2,108,3],[109,2,109,3],[98,2,98,3],[99,2,99,3],[100,2,100,3],[101,2,101,3],[102,2,102,3],[103,2,103,3],[92,2,92,3],[93,2,93,3],[94,2,94,3],[95,1,95,7],[96,2,96,3],[97,2,97,3],[86,2,86,3],[87,2,87,3],[88,2,88,3],[89,2,89,3],[90,2,90,3],[91,2,91,3],[82,1,83,1],[82,2,83,3],[82,4,82,5],[82,6,82,7],[84,1,84,7],[85,2,85,3],[75,1,75,2],[75,3,75,5],[76,1,76,2],[76,3,76,5],[77,1,77,6],[81,1,81,7],[71,2,71,5],[72,2,72,5],[73,1,73,2],[73,3,73,5],[74,1,74,2],[74,3,74,5],[66,1,66,7],[66,8,66,10],[67,2,67,5],[68,2,68,5],[69,2,69,5],[70,2,70,5],[59,1,59,2],[59,3,59,5],[60,1,60,2],[60,3,60,5],[61,1,61,6],[65,1,65,7],[55,2,55,5],[56,2,56,5],[57,1,57,2],[57,3,57,5],[58,1,58,2],[58,3,58,5],[50,1,50,7],[50,8,50,10],[51,2,51,5],[52,2,52,5],[53,2,53,5],[54,2,54,5],[42,1,42,2],[42,3,42,5],[43,1,43,2],[43,3,43,5],[44,1,44,6],[49,1,49,7],[38,2,38,5],[39,2,39,5],[40,1,40,2],[40,3,40,5],[41,1,41,2],[41,3,41,5],[33,1,33,7],[33,8,33,10],[34,2,34,5],[35,2,35,5],[36,2,36,5],[37,2,37,5],[26,1,26,2],[26,3,26,5],[27,1,27,2],[27,3,27,5],[28,1,28,6],[32,1,32,7],[21,2,21,5],[22,2,22,5],[23,2,23,5],[24,1,24,2],[24,3,24,5],[25,1,25,2],[25,3,25,5],[16,1,16,7],[16,8,17,10],[17,1,17,7],[18,2,18,5],[19,2,19,5],[20,2,20,5],[1,3,1,7],[2,3,2,7],[3,3,3,7],[4,3,4,7],[5,3,5,7],[14,1,14,4]]}
[]
[null,null,null,"Ministério do Desenvolvimento Regional - MDR"]
[null,null,null,"Companhia de Desenvolvimento dos Vales do São Francisco e do Parnaíba"]
[null,null,null,"5ª Superintendência Regional"]
[null,null,null,"Gerência Regional de Infraestrutura"]
["ANEXO IV - ENCARGOS SOCIAIS e COMPOSIÇÃO DO BDI",null,null,"Unidade Regional de Estudos e Projetos"]
[]
[null,"Considerações:",null,"Acórdão  Nº 2622/2013 – TCU – Plenário de 25/9/2013"]
[]
[]
[]
[]
[null,null,null,"Acórdão nº 2369/2011 - TCU - Plenário - DOU nº174 em 20 de setembro de 2011"]
[]
[null,"CONSTRUÇÃO DE RODOVIAS E FERROVIAS"]
[]
[null,"BDI SEM DESONERAÇÃO",{"$nulls":6},{"$f":"B15","v":"CONSTRUÇÃO DE RODOVIAS E FERROVIAS"}]
[null,"DETALHAMENTO BDI - SERVIÇOS"]
[null,"ITEM","DESCRIÇÃO",null,null,null,"ITEM FORM","TOTAL","1º QUARTIL","MEDIA","3º QUARTIL"]
[null,1,"ADMINISTRAÇÃO CENTRAL RATEIO",null,null,null,"AC",4.0099999999999997E-2,{"$f":"HLOOKUP($B$15&\" 1\",[38]DADOS!$B$7:$P$18,3,FALSE)","v":3.7999999999999999E-2},{"$f":"HLOOKUP($B$15&\" 2\",[38]DADOS!$B$7:$P$18,3,FALSE)","v":4.0099999999999997E-2},{"$f":"HLOOKUP($B$15&\" 3\",[38]DADOS!$B$7:$P$18,3,FALSE)","v":4.6699999999999998E-2}]
[null,2,"DESPESAS FINANCEIRAS",null,null,null,"DF",1.11E-2,{"$f":"HLOOKUP($B$15&\" 1\",[38]DADOS!$B$7:$P$18,4,FALSE)","v":1.0200000000000001E-2},{"$f":"HLOOKUP($B$15&\" 2\",[38]DADOS!$B$7:$P$18,4,FALSE)","v":1.11E-2},{"$f":"HLOOKUP($B$15&\" 3\",[38]DADOS!$B$7:$P$18,4,FALSE)","v":1.21E-2}]
[null,3,"RISCO, SEGURO E GARANTIA",null,null,null,"R",{"$f":"0.4%+0.56%","v":9.6000000000000009E-3},{"$f":"HLOOKUP($B$15&\" 1\",[38]DADOS!$B$7:$P$18,5,FALSE)","v":8.2000000000000007E-3},{"$f":"HLOOKUP($B$15&\" 2\",[38]DADOS!$B$7:$P$18,5,FALSE)","v":9.6000000000000009E-3},{"$f":"HLOOKUP($B$15&\" 3\",[38]DADOS!$B$7:$P$18,5,FALSE)","v":1.7100000000000001E-2}]
[null,4,"EXPECTATIVA DE LUCRO",null,null,null,"L",7.2999999999999995E-2,{"$f":"HLOOKUP($B$15&\" 1\",[38]DADOS!$B$7:$P$18,6,FALSE)","v":6.6400000000000001E-2},{"$f":"HLOOKUP($B$15&\" 2\",[38]DADOS!$B$7:$P$18,6,FALSE)","v":7.2999999999999995E-2},{"$f":"HLOOKUP($B$15&\" 3\",[38]DADOS!$B$7:$P$18,6,FALSE)","v":8.6900000000000005E-2}]
[null,5,"TRIBUTOS",null,null,null,"I",{"$f":"SUM(H25:H28)","v":6.1499999999999999E-2}]
[null,"05.01",null,"PIS",null,null,null,6.4999999999999997E-3]
[null,"05.02",null,"COFINS",null,null,null,0.03]
[null,"05.03",null,"ISS",null,null,null,2.5000000000000001E-2]
[null,"05.04",null,"Contribuição Sobre Receita Bruta",null,null,null,0]
[null,"BDI (%) = ((((1+AC+R)*(1+DF)*(1+L))/(1-I))-1)",{"$nulls":5},{"$f":"ROUND((((1+H20+H22)*(1+H21)*(1+H23))/(1-H24))-1,4)","v":0.2135},{"$f":"HLOOKUP($B$15&\" 1\",[38]DADOS!$B$7:$P$18,12,FALSE)","v":0.19600000000000001},{"$f":"HLOOKUP($B$15&\" 2\",[38]DADOS!$B$7:$P$18,12,FALSE)","v":0.2097},{"$f":"HLOOKUP($B$15&\" 3\",[38]DADOS!$B$7:$P$18,12,FALSE)","v":0.24229999999999999}]
[null,"* VALORES DE PIS E COFINS SEGUNDO ALIQ MÁXIMA DO REGIME CUMULATIVO"]
[]
[]
[null,"BDI COM DESONERAÇÃO"]
[null,"DETALHAMENTO BDI - SERVIÇOS"]
[null,"ITEM","DESCRIÇÃO",null,null,null,"ITEM FORM","TOTAL"]
[null,1,"ADMINISTRAÇÃO CENTRAL RATEIO",null,null,null,"AC",{"$f":"H20","v":4.0099999999999997E-2}]
[null,2,"DESPESAS FINANCEIRAS",null,null,null,"DF",{"$f":"H21","v":1.11E-2}]
[null,3,"RISCO, SEGURO E GARANTIA",null,null,null,"R",{"$f":"H22","v":9.6000000000000009E-3}]
[null,4,"EXPECTATIVA DE LUCRO",null,null,null,"L",{"$f":"H23","v":7.2999999999999995E-2}]
[null,5,"TRIBUTOS",null,null,null,"I",{"$f":"SUM(H41:H44)","v":0.1065}]
[null,"05.01",null,"PIS",null,null,null,{"$f":"H25","v":6.4999999999999997E-3}]
[null,"05.02",null,"COFINS",null,null,null,{"$f":"H26","v":0.03}]
[null,"05.03",null,"ISS",null,null,null,{"$f":"H27","v":2.5000000000000001E-2}]
[null,"05.04",null,"Contribuição Sobre Receita Bruta",null,null,null,4.4999999999999998E-2]
[null,"BDI (%) = ((((1+AC+R)*(1+DF)*(1+L))/(1-I))-1)",{"$nulls":5},{"$f":"ROUND((((1+H36+H38)*(1+H37)*(1+H39))/(1-H40))-1,4)","v":0.27460000000000001}]
[null,{"$f":"B30","v":"* VALORES DE PIS E COFINS SEGUNDO ALIQ MÁXIMA DO REGIME CUMULATIVO"}]
[null,"** PERCENTUAL DE CSRB EM CONFORMIDADE COM AS LEIS Nº 12.546/2011 E Nº 13.161/2015"]
[]
[]
[null,"BDI SEM DESONERAÇÃO"]
[null,"DETALHAMENTO BDI DIFERENCIADO - MATERIAIS",{"$nulls":6},"BDI DE MATERIAIS"]
[null,"ITEM","DESCRIÇÃO",null,null,null,"ITEM FORM","TOTAL","1º QUARTIL","MEDIA","3º QUARTIL"]
[null,1,"ADMINISTRAÇÃO CENTRAL RATEIO",null,null,null,"AC",3.4500000000000003E-2,1.4999999999999999E-2,3.4500000000000003E-2,4.4900000000000002E-2]
[null,2,"DESPESAS FINANCEIRAS",null,null,null,"DF",8.5000000000000006E-3,8.5000000000000006E-3,8.5000000000000006E-3,1.11E-2]
[null,3,"RISCO, SEGURO E GARANTIA",null,null,null,"R",{"$f":"0.48%+0.85%","v":1.3299999999999999E-2},{"$f":"0.3%+0.56%","v":8.6E-3},{"$f":"0.48%+0.85%","v":1.3299999999999999E-2},{"$f":"0.82%+0.89%","v":1.7099999999999997E-2}]
[null,4,"EXPECTATIVA DE LUCRO",null,null,null,"L",5.11E-2,3.5000000000000003E-2,5.11E-2,6.2199999999999998E-2]
[null,5,"TRIBUTOS",null,null,null,"I",{"$f":"SUM(H58:H61)","v":3.6499999999999998E-2}]
[null,"05.01",null,"PIS",null,null,null,{"$f":"$H$41","v":6.4999999999999997E-3}]
[null,"05.02",null,"COFINS",null,null,null,{"$f":"H42","v":0.03}]
[null,"05.03",null,"ISS",null,null,null,0]
[null,"05.04",null,"Contribuição Sobre Receita Bruta",null,null,null,0]
[null,"BDI (%) = ((((1+AC+R)*(1+DF)*(1+L))/(1-I))-1)",{"$nulls":5},{"$f":"ROUND((((1+H53+H55)*(1+H54)*(1+H56))/(1-H57))-1,4)","v":0.15279999999999999},0.111,0.14019999999999999,0.16800000000000001]
[null,{"$f":"B46","v":"* VALORES DE PIS E COFINS SEGUNDO ALIQ MÁXIMA DO REGIME CUMULATIVO"}]
[null,"** PARA INSUMOS ASFÁLTICOS COMO CAP, EMULSÃO, ETC., CONSIDERAR BDI = 15% (NÃO PRECISA DETALHAR)"]
[]
[null,"BDI COM DESONERAÇÃO"]
[null,"DETALHAMENTO BDI DIFERENCIADO - MATERIAIS",{"$nulls":6},"BDI DE MATERIAIS"]
[null,"ITEM","DESCRIÇÃO",null,null,null,"ITEM FORM","TOTAL","1º QUARTIL","MEDIA","3º QUARTIL"]
[null,1,"ADMINISTRAÇÃO CENTRAL RATEIO",null,null,null,"AC",3.4500000000000003E-2,1.4999999999999999E-2,3.4500000000000003E-2,4.4900000000000002E-2]
[null,2,"DESPESAS FINANCEIRAS",null,null,null,"DF",8.5000000000000006E-3,8.5000000000000006E-3,8.5000000000000006E-3,1.11E-2]
[null,3,"RISCO, SEGURO E GARANTIA",null,null,null,"R",{"$f":"0.48%+0.85%","v":1.3299999999999999E-2},{"$f":"0.3%+0.56%","v":8.6E-3},{"$f":"0.48%+0.85%","v":1.3299999999999999E-2},{"$f":"0.82%+0.89%","v":1.7099999999999997E-2}]
[null,4,"EXPECTATIVA DE LUCRO",null,null,null,"L",5.11E-2,3.5000000000000003E-2,5.11E-2,6.2199999999999998E-2]
[null,5,"TRIBUTOS",null,null,null,"I",{"$f":"SUM(H74:H77)","v":8.1499999999999989E-2}]
[null,"05.01",null,"PIS",null,null,null,{"$f":"$H$41","v":6.4999999999999997E-3}]
[null,"05.02",null,"COFINS",null,null,null,{"$f":"$H$42","v":0.03}]
[null,"05.03",null,"ISS",null,null,null,0]
[null,"05.04",null,"Contribuição Sobre Receita Bruta",null,null,null,4.4999999999999998E-2]
[null,"BDI (%) = ((((1+AC+R)*(1+DF)*(1+L))/(1-I))-1)",{"$nulls":5},{"$f":"ROUND((((1+H69+H71)*(1+H70)*(1+H72))/(1-H73))-1,4)","v":0.20930000000000001},0.111,0.14019999999999999,0.16800000000000001]
[null,{"$f":"B62","v":"BDI (%) = ((((1+AC+R)*(1+DF)*(1+L))/(1-I))-1)"}]
[null,"** PARA INSUMOS ASFÁLTICOS COMO CAP, EMULSÃO, ETC., CONSIDERAR BDI = 15% (NÃO PRECISA DETALHAR)"]
[]
[null,"ENCARGOS SOCIAIS SOBRE A MÃO DE OBRA 12-2023"]
[null,"CÓDIGO","DESCRIÇÃO",null,"COM DESONERAÇÃO",null,"SEM DESONERAÇÃO"]
[{"$nulls":4},"HORISTA %","MENSALISTA %","HORISTA %","MENSALISTA %"]
[null,"GRUPO A"]
[null,"A1","INSS",null,0,0,20,20]
[null,"A2","SESI",null,1.5,1.5,1.5,1.5]
[null,"A3","SENAI",null,1,1,1,1]
[null,"A4","INCRA",null,0.2,0.2,0.2,0.2]
[null,"A5","SEBRAE",null,0.6,0.6,0.6,0.6]
[null,"A6","Salário Educação",null,2.5,2.5,2.5,2.5]
[null,"A7","Seguro Contra Acidentes de Trabalho",null,3,3,3,3]
[null,"A8","FGTS",null,8,8,8,8]
[null,"A9","SECONCI",null,0,0,0,0]
[null,"A","Total",null,{"$f":"SUM(E86:E94)","v":16.8},{"$f":"SUM(F86:F94)","v":16.8},{"$f":"SUM(G86:G94)","v":36.799999999999997},{"$f":"SUM(H86:H94)","v":36.799999999999997}]
[null,"GRUPO B"]
[null,"B1","Repouso Semanal Remunerado",null,18.05,"-",18.05,"-"]
[null,"B2","Feriados",null,4.67,"-",4.67,"-"]
[null,"B3","Auxílio-enfermidade",null,0.86,0.64,0.86,0.64]
[null,"B4","13° salário",null,11.15,8.33,11.15,8.33]
[null,"B5","Licença-paternidade",null,0.06,0.04,0.06,0.04]
[null,"B6","Faltas Justificadas",null,0.74,0.56000000000000005,0.74,0.56000000000000005]
[null,"B7","Dias de chuva",null,1.84,"-",1.84,"-"]
[null,"B8","Auxílio Acidente de Trabalho",null,0.1,0.08,0.1,0.08]
[null,"B9","Férias Gozadas",null,12.52,9.36,12.52,9.36]
[null,"B10","Salário Maternidade",null,0.04,0.03,0.04,0.03]
[null,"B","Total ",null,{"$f":"SUM(E97:E106)","v":50.030000000000008},{"$f":"SUM(F97:F106)","v":19.04},{"$f":"SUM(G97:G106)","v":50.030000000000008},{"$f":"SUM(H97:H106)","v":19.04}]
[null,"GRUPO C"]
[null,"C1","Aviso Prévio Indenizado",null,4.8499999999999996,3.62,4.8499999999999996,3.62]
[null,"C2","Aviso Prévio Trabalhado",null,0.11,0.09,0.11,0.09]
[null,"C3","Férias Indenizadas",null,1.67,1.25,1.67,1.25]
[null,"C4","Depósito Rescisão Sem Justa Causa",null,2.5099999999999998,1.88,2.5099999999999998,1.88]
[null,"C5","Indenização Adicional",null,0.41,0.3,0.41,0.3]
[null,"C","Total ",null,{"$f":"SUM(E109:E113)","v":9.5500000000000007},{"$f":"SUM(F109:F113)","v":7.14},9.5500000000000007,7.14]
[null,"GRUPO D"]
[null,"D1","Reincidência de A sobre B",null,{"$f":"ROUND(E95*E107/100,2)","v":8.41},{"$f":"ROUND(F95*F107/100,2)","v":3.2},18.41,7.01]
[null,"D2","Reincidência de Grupo A sobre Aviso Prévio Trabalhado e Reincidência do FGTS sobre Aviso Prévio Indenizado",null,{"$f":"ROUND((E95*E110+E93*E109)/100,2)","v":0.41},{"$f":"ROUND((F95*F110+F93*F109)/100,2)","v":0.3},0.43,0.32]
[null,"D","Total",null,{"$f":"ROUND(SUM(E116:E117),2)","v":8.82},{"$f":"ROUND(SUM(F116:F117),2)","v":3.5},18.84,7.33]
[]
[null,"T O T A L (%)",null,null,{"$f":"E95+E107+E114+E118","v":85.200000000000017},{"$f":"F95+F107+F114+F118","v":46.480000000000004},115.22000000000001,{"$f":"SUM(H95+H107+H114+H118)","v":70.31}]

{"sheet":"Curva ABC de Serviços","index":9,"n_rows":32,"n_cols":10,"rows_kept":32,"cut":false,"hidden":false,"merged":[[0,4,0,6],[0,7,0,9],[1,4,1,6],[1,7,1,9],[2,0,2,9],[29,0,29,2],[29,5,29,6],[29,7,29,9],[31,0,31,9],[27,0,27,2],[27,5,27,6],[27,7,27,9],[28,0,28,2],[28,5,28,6],[28,7,28,9]]}
[null,null,"Obra","Bancos","B.D.I.",null,null,"Encargos Sociais"]
[null,null,"SEM DESONERAÇÃO -Execução de serviços de pavimentação em paralelepípedo em ruas do município de Penedo/AL ","SINAPI - 04/2024 - Alagoas\nSICRO3 - 01/2024 - Alagoas\nORSE - 03/2024 - Sergipe\n","21,35%",null,null,"Não Desonerado: \nHorista: 115,22%\nMensalista: 70,31%"]
["Curva ABC de Serviços"]
["Código","Banco","Descrição","Tipo","Und","Quant.","Valor  Unit","Total","Peso (%)","Peso Acumulado (%)"]
[" 101169 ","SINAPI","EXECUÇÃO DE PAVIMENTO EM PARALELEPÍPEDOS, REJUNTAMENTO COM ARGAMASSA TRAÇO 1:3 (CIMENTO E AREIA). AF_05/2020","PAVI - PAVIMENTAÇÃO","m²","4.209,99","89,49","376.752,00","40,58","40,58"]
[" 94273 ","SINAPI","ASSENTAMENTO DE GUIA (MEIO-FIO) EM TRECHO RETO, CONFECCIONADA EM CONCRETO PRÉ-FABRICADO, DIMENSÕES 100X15X13X30 CM (COMPRIMENTO X BASE INFERIOR X BASE SUPERIOR X ALTURA), PARA VIAS URBANAS (USO VIÁRIO). AF_06/2016","DROP - DRENAGEM/OBRAS DE CONTENÇÃO / POÇOS DE VISITA E CAIXAS","M","1.880,0","68,67","129.099,60","13,90","54,48"]
[" GRD-2023-12-SP1 ","Próprio","ADMINISTRAÇÃO LOCAL","SERP - SERVIÇOS PRELIMINARES","UND","1,0","77.781,46","77.781,46","8,38","62,86"]
[" 93590 ","SINAPI","TRANSPORTE COM CAMINHÃO BASCULANTE DE 10 M³, EM VIA URBANA PAVIMENTADA, ADICIONAL PARA DMT EXCEDENTE A 30 KM (UNIDADE: M3XKM). AF_07/2020 (TRANSPORTE DE PEDRA)","TRAN - TRANSPORTES, CARGAS E DESCARGAS","M3XKM","63.655,05","1,16","73.839,85","7,95","70,81"]
[" 94287 ","SINAPI","EXECUÇÃO DE SARJETA DE CONCRETO USINADO, MOLDADA  IN LOCO  EM TRECHO RETO, 30 CM BASE X 10 CM ALTURA. AF_06/2016","DROP - DRENAGEM/OBRAS DE CONTENÇÃO / POÇOS DE VISITA E CAIXAS","M","1.880,0","38,52","72.417,60","7,80","78,61"]
[" 95875 ","SINAPI","TRANSPORTE COM CAMINHÃO BASCULANTE DE 10 M³, EM VIA URBANA PAVIMENTADA, DMT ATÉ 30 KM (UNIDADE: M3XKM). AF_07/2020 (TRANSPORTE DE PEDRA)","TRAN - TRANSPORTES, CARGAS E DESCARGAS","M3XKM","21.218,35","2,94","62.381,94","6,72","85,33"]
[" 95875 ","SINAPI","TRANSPORTE COM CAMINHÃO BASCULANTE DE 10 M³, EM VIA URBANA PAVIMENTADA, DMT ATÉ 30 KM (UNIDADE: M3XKM). AF_07/2020 (TRANSPORTE DE AREIA)","TRAN - TRANSPORTES, CARGAS E DESCARGAS","M3XKM","18.944,96","2,94","55.698,18","6,00","91,33"]
[" 95875 ","SINAPI","TRANSPORTE COM CAMINHÃO BASCULANTE DE 10 M³, EM VIA URBANA PAVIMENTADA, DMT ATÉ 30 KM (UNIDADE: M3XKM). AF_07/2020","TRAN - TRANSPORTES, CARGAS E DESCARGAS","M3XKM","5.004,06","2,94","14.711,93","1,58","92,92"]
[" 93590 ","SINAPI","TRANSPORTE COM CAMINHÃO BASCULANTE DE 10 M³, EM VIA URBANA PAVIMENTADA, ADICIONAL PARA DMT EXCEDENTE A 30 KM (UNIDADE: M3XKM). AF_07/2020 (TRANSPORTE DE AREIA)","TRAN - TRANSPORTES, CARGAS E DESCARGAS","M3XKM","12.629,97","1,16","14.650,76","1,58","94,49"]
[" 83718 ","SINAPI","ESCORAMENTO DE MEIO FIO COM MATERIAL LOCAL COMPACTADO MANUALMENTE, EM FAIXA DE 0,50M","DROP - DRENAGEM/OBRAS DE CONTENÇÃO / POÇOS DE VISITA E CAIXAS","M","1.880,0","5,65","10.622,00","1,14","95,64"]
[" 100974 ","SINAPI","CARGA, MANOBRA E DESCARGA DE SOLOS E MATERIAIS GRANULARES EM CAMINHÃO BASCULANTE 10 M³ - CARGA COM PÁ CARREGADEIRA (CAÇAMBA DE 1,7 A 2,8 M³ / 128 HP) E DESCARGA LIVRE (UNIDADE: M3). AF_07/2020","TRAN - TRANSPORTES, CARGAS E DESCARGAS","m³","1.000,81","10,04","10.048,13","1,08","96,72"]
[" GRD-2023-12-SP3 ","Próprio","PROJETO EXECUTIVO - POVOADO MARCAÇÃO","SERP - SERVIÇOS PRELIMINARES","UND","1,0","7.159,65","7.159,65","0,77","97,49"]
[" GRD-2023-12-SP2 ","Próprio","MOBILIZAÇÃO E DESMOBILIZAÇÃO - POVOADO MARCAÇÃO","ASTU - ASSENTAMENTO DE TUBOS E PECAS","UND","2,0","2.925,57","5.851,14","0,63","98,12"]
[" 103689 ","SINAPI","FORNECIMENTO E INSTALAÇÃO DE PLACA DE OBRA COM CHAPA GALVANIZADA E ESTRUTURA DE MADEIRA. AF_03/2022_PS","PAVI - PAVIMENTAÇÃO","m²","12,96","379,46","4.917,80","0,53","98,65"]
[" 102498 ","SINAPI","PINTURA DE MEIO-FIO COM TINTA BRANCA A BASE DE CAL (CAIAÇÃO). AF_05/2021","PINT - PINTURAS","M","1.880,0","1,82","3.421,60","0,37","99,02"]
[" C-22-0117 ","Próprio","LIMPEZA DE RUAS (VARRIÇÃO E REMOÇÃO DE ENTULHOS) - REF. ORSE 6191","ASTU - ASSENTAMENTO DE TUBOS E PECAS","m²","4.209,99","0,80","3.367,99","0,36","99,38"]
[" 78472 ","SINAPI","SERVICOS TOPOGRAFICOS PARA PAVIMENTACAO, INCLUSIVE NOTA DE SERVICOS, ACOMPANHAMENTO E GREIDE","SERT - SERVIÇOS TÉCNICOS","m²","4.209,99","0,48","2.020,79","0,22","99,60"]
[" C-23-0016 ","Próprio","TOTEM DE INAUGURAÇÃO EM CONCRETO ARMADO FCL=20MPA COM TEXTO EM BAIXO RELEVO - MODELO CODEVASF","ASTU - ASSENTAMENTO DE TUBOS E PECAS","UND","2,0","719,73","1.439,46","0,16","99,76"]
[" 103689 ","SINAPI","FORNECIMENTO E INSTALAÇÃO DE PLACA DE OBRA COM CHAPA GALVANIZADA E ESTRUTURA DE MADEIRA. AF_03/2022_PS (PLACA IMA)","PAVI - PAVIMENTAÇÃO","m²","3,0","379,46","1.138,38","0,12","99,88"]
[" 100575 ","SINAPI","REGULARIZAÇÃO DE SUPERFÍCIES COM MOTONIVELADORA. AF_11/2019","PAVI - PAVIMENTAÇÃO","m²","4.209,99","0,15","631,49","0,07","99,95"]
[" 103694 ","SINAPI","FORNECIMENTO E INSTALAÇÃO DE SUPORTE DE MADEIRA  PARA PLACAS DE SINALIZAÇÃO, EM SOLO, COM H= DE 2,5 M E SEÇÃO DE 7,5 X 7,5 CM. AF_03/2022","PAVI - PAVIMENTAÇÃO","UN","2,0","131,56","263,12","0,03","99,97"]
[" 10712 ","ORSE","Confecção de placa de sinalização totalmente refletiva","Sinalização Vertical","m²","2,0","117,39","234,78","0,03","100,00"]
[]
[{"$nulls":5},"Total sem BDI",null,765839.39]
[{"$nulls":5},"Total do BDI",null,162610.26]
[{"$nulls":5},"Total Geral",null,928449.65]
[]
["_______________________________________________________________\nGRD / UEP 2\nSetor de Engenharia"]

{"sheet":"Curva ABC de Insumos","index":10,"n_rows":190,"n_cols":15,"rows_kept":190,"cut":false,"hidden":false,"merged":[[0,7,0,14],[1,4,1,6],[1,7,1,14],[2,0,2,14],[171,11,171,14],[3,14,4,14],[3,0,4,0],[3,1,4,1],[3,2,4,2],[3,3,4,3],[3,4,4,4],[0,4,0,6],[3,6,3,6],[3,8,3,8],[3,11,3,11],[3,12,4,12],[3,13,4,13],[189,0,189,14],[183,11,183,13],[185,0,185,2],[185,10,185,11],[185,12,185,14],[186,0,186,2],[186,10,186,11],[186,12,186,14],[181,11,181,13],[187,0,187,2],[187,10,187,11],[187,12,187,14],[182,11,182,13],[3,15,4,15],[3,16,4,16],[178,11,178,13],[179,11,179,13],[180,11,180,13],[173,11,173,13],[174,11,174,13],[175,11,175,13],[176,11,176,13],[177,11,177,13],[172,11,172,13]]}
[null,null,"Obra","Bancos","B.D.I.",null,null,"Encargos Sociais"]
[null,null,"SEM DESONERAÇÃO -Execução de serviços de pavimentação em paralelepípedo em ruas do município de Penedo/AL ","SINAPI - 04/2024 - Alagoas\nSICRO3 - 01/2024 - Alagoas\nORSE - 03/2024 - Sergipe\n","21,35%",null,null,"Não Desonerado: \nHorista: 115,22%\nMensalista: 70,31%"]
["Curva ABC de Insumos"]
["Código","Banco","Descrição","Tipo","Und","Quantidade",null,"Valor Unitário",null,"Total",null,null,"Peso","Valor Acumulado","Peso Acumulado"]
[{"$nulls":5},"Operativa","Improdutiva","Operativa","Improdutiva","Operativa","Improdutiva","Geral"]
[" 00004385 ","SINAPI","PARALELEPIPEDO GRANITICO OU BASALTICO, PARA PAVIMENTACAO, SEM FRETE (VARIACAO REGIONAL DE PECAS POR M2)","Material","MIL","138,9296700","","934,75","","129.864,51","",129864.50903250001,"13,99%",129864.50903250001,"13,99%"]
[" 00004221 ","SINAPI","OLEO DIESEL COMBUSTIVEL COMUM","Material","L","15.972,2525034","","7,36","","117.555,78","",117555.77842502399,"12,66%",247420.2874575,"26,65%"]
[" 00004059 ","SINAPI","MEIO-FIO OU GUIA DE CONCRETO, PRE-MOLDADO, COMP 1 M, *30 X 12/15* CM (H X L1/L2)","Material","M","1.889,4000000","","53,69","","101.441,89","",101441.886,"10,93%",348862.1734575,"37,57%"]
[" 00037758 ","SINAPI","CAMINHAO TRUCADO, PESO BRUTO TOTAL 23000 KG, CARGA UTIL MAXIMA 15285 KG, DISTANCIA ENTRE EIXOS 4,80 M, POTENCIA 326 CV (INCLUI CABINE E CHASSI, NAO INCLUI CARROCERIA)","Equipamento","UN","0,0928583","","862.563,88","","80.096,22","",80096.215538203993,"8,63%",428958.38899569999,"46,20%"]
[" 00000367 ","SINAPI","AREIA GROSSA - POSTO JAZIDA/FORNECEDOR (RETIRADO NA JAZIDA, SEM TRANSPORTE)","Material","m³","479,9388600","","116,78","","56.047,26","",56047.260070800003,"6,04%",485005.64906650002,"52,24%"]
[" 00006111 ","SINAPI","SERVENTE DE OBRAS","Mão de Obra","H","3.308,3619692","","16,75","","55.415,06","",55415.062984099997,"5,97%",540420.71205059998,"58,21%"]
[" 00034492 ","SINAPI","CONCRETO USINADO BOMBEAVEL, CLASSE DE RESISTENCIA C20, COM BRITA 0 E 1, SLUMP = 100 +/- 20 MM, EXCLUI SERVICO DE BOMBEAMENTO (NBR 8953)","Material","m³","70,6880000","","582,48","","41.174,35","",41174.346239999999,"4,43%",581595.05829059996,"62,64%"]
[" 00001379 ","SINAPI","CIMENTO PORTLAND COMPOSTO CP II-32","Material","KG","43.189,0210174","","0,92","","39.733,90","",39733.899336007998,"4,28%",621328.95762660005,"66,92%"]
[" 00004759 ","SINAPI","CALCETEIRO (HORISTA)","Mão de Obra","H","1.715,3178541","","22,01","","37.754,15","",37754.145968741002,"4,07%",659083.1035953,"70,99%"]
[" 00010646 ","SINAPI","ROLO COMPACTADOR VIBRATORIO DE UM CILINDRO, ACO LISO, POTENCIA 80 HP, PESO OPERACIONAL MAXIMO 8,1 T, IMPACTO DINAMICO 16,15/9,5 T, LARGURA TRABALHO 1,68 M","Equipamento","UN","0,0390063","","697.266,77","","27.197,80","",27197.796810651002,"2,93%",686280.90040599997,"73,92%"]
[" 00020020 ","SINAPI","MOTORISTA DE CAMINHAO-BASCULANTE","Mão de Obra","H","941,2504700","","22,87","","21.526,40","",21526.398248900001,"2,32%",707807.29865490005,"76,24%"]
[" 00037370 ","SINAPI","ALIMENTACAO - HORISTA (COLETADO CAIXA - ENCARGOS COMPLEMENTARES)","Outros","H","7.725,1622243","","2,69","","20.780,69","",20780.686383367,"2,24%",728587.98503830004,"78,47%"]
[" 00004750 ","SINAPI","PEDREIRO (HORISTA)","Mão de Obra","H","890,3478350","","22,01","","19.596,56","",19596.555848349999,"2,11%",748184.54088670004,"80,58%"]
[" 00002706 ","SINAPI","ENGENHEIRO CIVIL DE OBRA JUNIOR","Mão de Obra","H","122,0388000","","146,66","","17.898,21","",17898.210407999999,"1,93%",766082.75129469996,"82,51%"]
[" 00037372 ","SINAPI","EXAMES - HORISTA (COLETADO CAIXA - ENCARGOS COMPLEMENTARES)","Outros","H","9.314,6321543","","1,62","","15.089,70","",15089.704089966001,"1,63%",781172.45538469998,"84,14%"]
[" 2789 ","ORSE","Veículo leve - pick up (97kw) h","Equipamento","un","1.200,0000000","","12,55","","15.060,00","",15060,"1,62%",796232.45538469998,"85,76%"]
[" 00040943 ","SINAPI","TECNICO EM SEGURANCA DO TRABALHO (HORISTA)","Mão de Obra","H","489,9360000","","30,39","","14.889,16","",14889.15504,"1,60%",811121.61042469996,"87,36%"]
[" 00000370 ","SINAPI","AREIA MEDIA - POSTO JAZIDA/FORNECEDOR (RETIRADO NA JAZIDA, SEM TRANSPORTE)","Material","m³","126,5739407","","115,28","","14.591,44","",14591.443883896001,"1,57%",825713.05430860003,"88,93%"]
[" 00004083 ","SINAPI","ENCARREGADO GERAL DE OBRAS (HORISTA)","Mão de Obra","H","491,7216000","","27,81","","13.674,78","",13674.777695999999,"1,47%",839387.83200459997,"90,41%"]
[" 00004238 ","SINAPI","OPERADOR DE ROLO COMPACTADOR","Mão de Obra","H","569,5374670","","20,99","","11.954,59","",11954.591432329998,"1,29%",851342.42343690002,"91,70%"]
[" 00037734 ","SINAPI","CACAMBA METALICA BASCULANTE COM CAPACIDADE DE 10 M3 (INCLUI MONTAGEM, NAO INCLUI CAMINHAO)","Material","UN","0,1309578","","90.248,94","","11.818,80","",11818.802634731999,"1,27%",863161.22607159999,"92,97%"]
[" 00002350 ","SINAPI","AUXILIAR DE ESCRITORIO (HORISTA)","Mão de Obra","H","482,8128000","","17,41","","8.405,77","",8405.7708480000001,"0,91%",871566.99691959994,"93,87%"]
[" 13587 ","ORSE","Projeto de Pavimentação Km","Serviços","Km","1,0000000","","7.159,65","","7.159,65","",7159.65,"0,77%",878726.64691959997,"94,64%"]
[" 00037371 ","SINAPI","TRANSPORTE - HORISTA (COLETADO CAIXA - ENCARGOS COMPLEMENTARES)","Serviços","H","7.725,1622243","","0,72","","5.562,12","",5562.1168014960003,"0,60%",884288.76372110005,"95,24%"]
[" 00043491 ","SINAPI","EPI - FAMILIA SERVENTE - HORISTA (ENCARGOS COMPLEMENTARES - COLETADO CAIXA)","Equipamento","H","3.229,4976367","","1,61","","5.199,49","",5199.4911950870001,"0,56%",889488.25491619995,"95,80%"]
[" 00004813 ","SINAPI","PLACA DE OBRA (PARA CONSTRUCAO CIVIL) EM CHAPA GALVANIZADA *N. 22*, ADESIVADA, DE *2,4 X 1,2* M (SEM POSTES PARA FIXACAO)","Material","m²","15,9600000","","303,37","","4.841,79","",4841.7852000000003,"0,52%",894330.04011619999,"96,33%"]
[" 00037666 ","SINAPI","OPERADOR DE BETONEIRA ESTACIONARIA / MISTURADOR","Mão de Obra","H","296,5335074","","14,46","","4.287,87","",4287.8745170040002,"0,46%",898617.91463320004,"96,79%"]
[" 00043489 ","SINAPI","EPI - FAMILIA PEDREIRO - HORISTA (ENCARGOS COMPLEMENTARES - COLETADO CAIXA)","Equipamento","H","2.563,7687092","","1,50","","3.845,65","",3845.6530637999999,"0,41%",902463.56769699999,"97,20%"]
[" 00004222 ","SINAPI","GASOLINA COMUM","Material","L","508,1648331","","6,97","","3.541,91","",3541.908886707,"0,38%",906005.47658370005,"97,58%"]
[" 00006212 ","SINAPI","TABUA *2,5 X 30 CM EM PINUS, MISTA OU EQUIVALENTE DA REGIAO - BRUTA","Material","M","156,6040000","","22,24","","3.482,87","",3482.8729600000001,"0,38%",909488.34954369999,"97,96%"]
[" 00043465 ","SINAPI","FERRAMENTAS - FAMILIA PEDREIRO - HORISTA (ENCARGOS COMPLEMENTARES - COLETADO CAIXA)","Equipamento","H","2.563,7687092","","0,99","","2.538,13","",2538.1310221079998,"0,27%",912026.48056579998,"98,23%"]
[" 00043467 ","SINAPI","FERRAMENTAS - FAMILIA SERVENTE - HORISTA (ENCARGOS COMPLEMENTARES - COLETADO CAIXA)","Equipamento","H","3.229,4976367","","0,74","","2.389,83","",2389.8282511580001,"0,26%",914416.30881700001,"98,49%"]
[" 00043488 ","SINAPI","EPI - FAMILIA OPERADOR ESCAVADEIRA - HORISTA (ENCARGOS COMPLEMENTARES - COLETADO CAIXA)","Equipamento","H","1.837,6275759","","1,04","","1.911,13","",1911.1326789359998,"0,21%",916327.44149590004,"98,69%"]
[" 00004783 ","SINAPI","PINTOR (HORISTA)","Mão de Obra","H","85,7185073","","22,01","","1.886,66","",1886.6643456730001,"0,20%",918214.10584159999,"98,90%"]
[" 00004517 ","SINAPI","SARRAFO *2,5 X 7,5* CM EM PINUS, MISTA OU EQUIVALENTE DA REGIAO - BRUTA","Material","M","380,3267602","","4,69","","1.783,73","",1783.732505338,"0,19%",919997.83834689995,"99,09%"]
[" 00004262 ","SINAPI","PA CARREGADEIRA SOBRE RODAS, POTENCIA LIQUIDA 128 HP, CAPACIDADE DA CACAMBA DE 1,7 A 2,8 M3, PESO OPERACIONAL MAXIMO DE 11632 KG","Equipamento","UN","0,0021628","","743.268,75","","1.607,54","",1607.5416525000001,"0,17%",921605.3799994,"99,26%"]
[" 00004090 ","SINAPI","MOTONIVELADORA POTENCIA BASICA LIQUIDA (PRIMEIRA MARCHA) 125 HP , PESO BRUTO 13843 KG, LARGURA DA LAMINA DE 3,7 M","Equipamento","UN","0,0007512","","1.334.850,00","","1.002,74","",1002.73932,"0,11%",922608.11931940005,"99,37%"]
[" 00043482 ","SINAPI","EPI - FAMILIA ALMOXARIFE - HORISTA (ENCARGOS COMPLEMENTARES - COLETADO CAIXA)","Equipamento","H","960,0000000","","0,95","","912,00","",912,"0,10%",923520.11931940005,"99,47%"]
[" 00043487 ","SINAPI","EPI - FAMILIA ENCARREGADO GERAL - HORISTA (ENCARGOS COMPLEMENTARES - COLETADO CAIXA)","Equipamento","H","480,0000000","","1,51","","724,80","",724.8,"0,08%",924244.91931939998,"99,55%"]
[" 00011161 ","SINAPI","CAL HIDRATADA PARA PINTURA","Material","KG","199,2800000","","2,42","","482,26","",482.25760000000002,"0,05%",924727.17691939999,"99,60%"]
[" 00044061 ","SINAPI","CAMINHAO TRUCADO, PESO BRUTO TOTAL 23000 KG, CARGA UTIL MAXIMA 16540 KG, DISTANCIA ENTRE EIXOS 4,80 M, POTENCIA 256 CV (INCLUI CABINE E CHASSI, NAO INCLUI CARROCERIA)","Equipamento","UN","0,0004736","","818.023,48","","387,42","",387.41592012799998,"0,04%",925114.59283950005,"99,64%"]
[" 00004248 ","SINAPI","OPERADOR DE PA CARREGADEIRA","Mão de Obra","H","18,9952897","","19,79","","375,92","",375.91678316299999,"0,04%",925490.50962270005,"99,68%"]
[" 00037373 ","SINAPI","SEGURO - HORISTA (COLETADO CAIXA - ENCARGOS COMPLEMENTARES)","Taxas","H","9.314,6321543","","0,04","","372,59","",372.585286172,"0,04%",925863.09490889998,"99,72%"]
[" 00002355 ","SINAPI","DESENHISTA DETALHISTA (HORISTA)","Mão de Obra","H","8,4649427","","42,94","","363,48","",363.48463953800007,"0,04%",926226.57954840001,"99,76%"]
[" 00004509 ","SINAPI","SARRAFO *2,5 X 10* CM EM PINUS, MISTA OU EQUIVALENTE DA REGIAO - BRUTA","Material","M","51,2044680","","6,80","","348,19","",348.19038239999998,"0,04%",926574.76993079996,"99,80%"]
[" 00004239 ","SINAPI","OPERADOR DE MOTONIVELADORA","Mão de Obra","H","8,7135876","","35,32","","307,76","",307.763914032,"0,03%",926882.53384479997,"99,83%"]
[" 00000244 ","SINAPI","AUXILIAR DE TOPOGRAFO (HORISTA)","Mão de Obra","H","10,6256990","","21,19","","225,16","",225.15856181000001,"0,02%",927107.69240659999,"99,86%"]
[" 00001213 ","SINAPI","CARPINTEIRO DE FORMAS (HORISTA)","Mão de Obra","H","9,4526626","","22,01","","208,05","",208.05310382600001,"0,02%",927315.74551040004,"99,88%"]
[" 00043466 ","SINAPI","FERRAMENTAS - FAMILIA PINTOR - HORISTA (ENCARGOS COMPLEMENTARES - COLETADO CAIXA)","Equipamento","H","84,2864800","","2,39","","201,44","",201.4446872,"0,02%",927517.19019760005,"99,90%"]
[" 00001527 ","SINAPI","CONCRETO USINADO BOMBEAVEL, CLASSE DE RESISTENCIA C25, BRITA 0 E 1, SLUMP = 100 +/- 20 MM, COM BOMBEAMENTO (DISPONIBILIZACAO DE BOMBA), SEM O LANCAMENTO (NBR 8953)","Material","m³","0,2964246","","648,80","","192,32","",192.32028048000001,"0,02%",927709.51047810004,"99,92%"]
[" 00007595 ","SINAPI","NIVELADOR (HORISTA)","Mão de Obra","H","10,6256990","","17,95","","190,73","",190.73129704999999,"0,02%",927900.2417752,"99,94%"]
[" 00006204 ","SINAPI","SARRAFO DE MADEIRA NAO APARELHADA *2,5 X 15* CM, MACARANDUBA, ANGELIM OU EQUIVALENTE DA REGIAO","Material","M","12,1500311","","14,93","","181,40","",181.39996432300001,"0,02%",928081.64173949999,"99,96%"]
[" 00004093 ","SINAPI","MOTORISTA DE CAMINHAO","Mão de Obra","H","8,0468800","","22,01","","177,11","",177.11182880000001,"0,02%",928258.75356830005,"99,98%"]
[" 00043490 ","SINAPI","EPI - FAMILIA PINTOR - HORISTA (ENCARGOS COMPLEMENTARES - COLETADO CAIXA)","Equipamento","H","84,2864800","","2,09","","176,16","",176.1587432,"0,02%",928434.91231150005,"100,00%"]
[" 00010535 ","SINAPI","BETONEIRA CAPACIDADE NOMINAL 400 L, CAPACIDADE DE MISTURA  280 L, MOTOR ELETRICO TRIFASICO 220/380 V POTENCIA 2 CV, SEM CARREGADOR","Equipamento","UN","0,0267799","","6.188,24","","165,72","",165.72044837600001,"0,02%",928600.63275989995,"100,02%"]
[" 00007640 ","SINAPI","TRATOR DE PNEUS COM POTENCIA DE 85 CV, TRACAO 4 X 4, PESO COM LASTRO DE 4675 KG","Equipamento para Aquisição Permanente","UN","0,0005036","","301.184,63","","151,68","",151.67657966799999,"0,02%",928752.30933960003,"100,03%"]
[" 00004491 ","SINAPI","PONTALETE *7,5 X 7,5* CM EM PINUS, MISTA OU EQUIVALENTE DA REGIAO - BRUTA","Material","M","10,8905829","","13,40","","145,93","",145.93381085999999,"0,02%",928898.2431505,"100,05%"]
[" 00001358 ","SINAPI","CHAPA/PAINEL DE MADEIRA COMPENSADA RESINADA (MADEIRITE RESINADO ROSA) PARA FORMA DE CONCRETO, DE 2200 x 1100 MM, E = 17 MM","Material","m²","1,5138013","","79,18","","119,86","",119.862786934,"0,01%",929018.10593740002,"100,06%"]
[" 00007340 ","SINAPI","IMUNIZANTE PARA MADEIRA, INCOLOR","Material","L","2,5990860","","45,70","","118,78","",118.7782302,"0,01%",929136.88416759996,"100,07%"]
[" 00002705 ","SINAPI","ENERGIA ELETRICA ATE 2000 KWH INDUSTRIAL, SEM DEMANDA","Material","KWH","86,0713944","","1,31","","112,75","",112.75352666399999,"0,01%",929249.63769430004,"100,09%"]
[" 00043486 ","SINAPI","EPI - FAMILIA ENGENHEIRO CIVIL - HORISTA (ENCARGOS COMPLEMENTARES - COLETADO CAIXA)","Equipamento","H","120,0000000","","0,89","","106,80","",106.8,"0,01%",929356.43769429997,"100,10%"]
[" 00004095 ","SINAPI","MOTORISTA DE CARRO DE PASSEIO","Mão de Obra","H","4,2346605","","20,99","","88,89","",88.885523895000006,"0,01%",929445.32321820001,"100,11%"]
[" 00004230 ","SINAPI","OPERADOR DE MAQUINAS E TRATORES DIVERSOS (TERRAPLANAGEM)","Mão de Obra","H","4,4009288","","19,81","","87,18","",87.182399528000005,"0,01%",929532.50561770005,"100,12%"]
[" 11424 ","ORSE","Pelicula refletiva lentes inclusas m2","Material","m²","0,4666666","","184,54","","86,12","",86.118654363999994,"0,01%",929618.62427210005,"100,13%"]
[" 00043651 ","SINAPI","MASSA ACRILICA PARA SUPERFICIES INTERNAS E EXTERNAS","Material","KG","13,0386460","","5,98","","77,97","",77.971103080000006,"0,01%",929696.59537520004,"100,13%"]
[" 00000034 ","SINAPI","ACO CA-50, 10,0 MM, VERGALHAO","Material","KG","7,1550201","","10,75","","76,92","",76.916466075000002,"0,01%",929773.51184129994,"100,14%"]
[" 00043458 ","SINAPI","FERRAMENTAS - FAMILIA ALMOXARIFE - HORISTA (ENCARGOS COMPLEMENTARES - COLETADO CAIXA)","Equipamento","H","960,0000000","","0,07","","67,20","",67.2,"0,01%",929840.71184130001,"100,15%"]
[" 00013617 ","SINAPI","PICAPE CABINE SIMPLES COM MOTOR 1.6 FLEX, CAMBIO MANUAL, POTENCIA 101/104 CV, 2 PORTAS","Equipamento","UN","0,0005423","","118.432,49","","64,23","",64.225939327000006,"0,01%",929904.93778060004,"100,16%"]
[" 8820 ","ORSE","Chapa de aço galvanizado nº 16 - e=1,55mm - dimensões 2,00x1,00m m2","Material","un","0,3333334","","180,60","","60,20","",60.200012039999997,"0,01%",929965.13779259997,"100,16%"]
[" 00037736 ","SINAPI","TANQUE DE ACO CARBONO NAO REVESTIDO, PARA TRANSPORTE DE AGUA COM CAPACIDADE DE 10 M3, COM BOMBA CENTRIFUGA POR TOMADA DE FORCA, VAZAO MAXIMA *75* M3/H (INCLUI MONTAGEM, NAO INCLUI CAMINHAO)","Material","UN","0,0005768","","100.659,82","","58,06","",58.060584175999999,"0,01%",930023.19837680005,"100,17%"]
[" 00043463 ","SINAPI","FERRAMENTAS - FAMILIA ENCARREGADO GERAL - HORISTA (ENCARGOS COMPLEMENTARES - COLETADO CAIXA)","Equipamento","H","480,0000000","","0,12","","57,60","",57.6,"0,01%",930080.79837680003,"100,18%"]
[" 00000032 ","SINAPI","ACO CA-50, 6,3 MM, VERGALHAO","Material","KG","4,8952542","","11,34","","55,51","",55.512182627999998,"0,01%",930136.31055940001,"100,18%"]
[" 00007348 ","SINAPI","TINTA ACRILICA PREMIUM PARA PISO","Material","L","1,7080000","","25,07","","42,82","",42.819560000000003,"0,00%",930179.13011939998,"100,19%"]
[" 00043055 ","SINAPI","ACO CA-50, 12,5 MM OU 16,0 MM, VERGALHAO","Material","KG","3,6870515","","9,31","","34,33","",34.326449465000003,"0,00%",930213.45656890003,"100,19%"]
[" 00000378 ","SINAPI","ARMADOR (HORISTA)","Mão de Obra","H","1,5474563","","22,01","","34,06","",34.059513162999998,"0,00%",930247.51608209999,"100,19%"]
[" 00043059 ","SINAPI","ACO CA-60, 4,2 MM, OU 5,0 MM, OU 6,0 MM, OU 7,0 MM, VERGALHAO","Material","KG","3,1994883","","10,18","","32,57","",32.570790893999998,"0,00%",930280.08687300002,"100,20%"]
[" 00043653 ","SINAPI","FUNDO SINTETICO NIVELADOR BRANCO FOSCO PARA MADEIRA","Material","L","0,9822384","","32,70","","32,12","",32.119195679999997,"0,00%",930312.20606869995,"100,20%"]
[" 00000033 ","SINAPI","ACO CA-50, 8,0 MM, VERGALHAO","Material","KG","2,4613495","","11,41","","28,08","",28.083997794999998,"0,00%",930340.29006649996,"100,20%"]
[" 00043493 ","SINAPI","EPI - FAMILIA TOPOGRAFO - HORISTA (ENCARGOS COMPLEMENTARES - COLETADO CAIXA)","Equipamento","H","29,4699300","","0,86","","25,34","",25.344139800000001,"0,00%",930365.63420630002,"100,21%"]
[" 00001345 ","SINAPI","CHAPA/PAINEL DE MADEIRA COMPENSADA PLASTIFICADA (MADEIRITE PLASTIFICADO) PARA FORMA DE CONCRETO, DE 2200 x 1100 MM, E = *17* MM","Material","m²","0,1785399","","134,09","","23,94","",23.940415191,"0,00%",930389.57462149998,"100,21%"]
[" 10454 ","ORSE","Ajudante-pratico/Meio-Oficial h","Mão de Obra","h","1,3333334","","16,86","","22,48","",22.480001124000001,"0,00%",930412.05462259997,"100,21%"]
[" 00010749 ","SINAPI","LOCACAO DE ESCORA METALICA TELESCOPICA, COM ALTURA REGULAVEL DE *1,80* A *3,20* M, COM CAPACIDADE DE CARGA DE NO MINIMO 1000 KGF (10 KN), INCLUSO TRIPE E FORCADO","Equipamento","MES","0,5155045","","40,38","","20,82","",20.816071709999999,"0,00%",930432.87069430004,"100,21%"]
[" 00037730 ","SINAPI","CARROCERIA FIXA ABERTA DE MADEIRA PARA TRANSPORTE GERAL DE CARGA SECA DIMENSOES APROXIMADAS 2,5 X 6,5 X 0,50 M (INCLUI MONTAGEM, NAO INCLUI CAMINHAO)","Material","UN","0,0005768","","33.245,73","","19,18","",19.176137063999999,"0,00%",930452.04683140002,"100,22%"]
[" 00043132 ","SINAPI","ARAME RECOZIDO 16 BWG, D = 1,65 MM (0,016 KG/M) OU 18 BWG, D = 1,25 MM (0,01 KG/M)","Material","KG","0,5186069","","35,79","","18,56","",18.560940950999999,"0,00%",930470.60777240002,"100,22%"]
[" 00043464 ","SINAPI","FERRAMENTAS - FAMILIA OPERADOR ESCAVADEIRA - HORISTA (ENCARGOS COMPLEMENTARES - COLETADO CAIXA)","Equipamento","H","1.837,6275759","","0,01","","18,38","",18.376275758999999,"0,00%",930488.98404819996,"100,22%"]
[" 00043483 ","SINAPI","EPI - FAMILIA CARPINTEIRO DE FORMAS - HORISTA (ENCARGOS COMPLEMENTARES - COLETADO CAIXA)","Equipamento","H","9,9818225","","1,73","","17,27","",17.268552925000002,"0,00%",930506.25260110002,"100,22%"]
[" 00043056 ","SINAPI","ACO CA-50, 20,0 MM OU 25,0 MM, VERGALHAO","Material","KG","1,3611965","","10,73","","14,61","",14.605638445,"0,00%",930520.85823949997,"100,22%"]
[" 00044497/SINAPI ","ORSE","Montador de estruturas metalicas horista","Mão de Obra","h","0,6666666","","20,48","","13,65","",13.653331968,"0,00%",930534.51157149998,"100,22%"]
[" 00007288 ","SINAPI","TINTA ESMALTE SINTETICO PREMIUM FOSCO","Material","L","0,2574000","","49,74","","12,80","",12.803076000000001,"0,00%",930547.31464750005,"100,23%"]
[" 00006117 ","SINAPI","CARPINTEIRO AUXILIAR (HORISTA)","Mão de Obra","H","0,6641412","","17,95","","11,92","",11.92133454,"0,00%",930559.23598200001,"100,23%"]
[" 00005065 ","SINAPI","PREGO DE ACO POLIDO COM CABECA 10 X 10 (7/8 X 17)","Material","KG","0,1803480","","54,00","","9,74","",9.7387920000000001,"0,00%",930568.974774,"100,23%"]
[" 00012815 ","SINAPI","FITA CREPE ROLO DE 25 MM X 50 M","Material","UN","0,9200000","","10,15","","9,34","",9.3379999999999992,"0,00%",930578.31277399999,"100,23%"]
[" 00001525 ","SINAPI","CONCRETO USINADO BOMBEAVEL, CLASSE DE RESISTENCIA C30, BRITA 0 E 1, SLUMP = 100 +/- 20 MM, COM BOMBEAMENTO (DISPONIBILIZACAO DE BOMBA), SEM O LANCAMENTO (NBR 8953)","Material","m³","0,0138449","","668,75","","9,26","",9.2587768750000006,"0,00%",930587.5715509,"100,23%"]
[" 00007288/SINAPI ","ORSE","Tinta esmalte sintetico premium fosco","Material","l","0,1766666","","49,89","","8,81","",8.8138966740000004,"0,00%",930596.38544760004,"100,23%"]
[" 00004734 ","SINAPI","SEIXO ROLADO PARA APLICACAO EM CONCRETO (POSTO PEDREIRA/FORNECEDOR, SEM FRETE)","Material","m³","0,0266381","","329,35","","8,77","",8.7732582350000001,"0,00%",930605.15870579996,"100,23%"]
[" 00040270 ","SINAPI","VIGA DE ESCORAMAENTO H20, DE MADEIRA, PESO DE 5,00 A 5,20 KG/M, COM EXTREMIDADES PLASTICAS","Material","M","0,0493430","","152,96","","7,55","",7.5475052800000002,"0,00%",930612.70621109998,"100,23%"]
[" 00006110/SINAPI ","ORSE","Serralheiro (horista)","Mão de Obra","h","0,3333334","","22,09","","7,36","",7.3633348060000001,"0,00%",930620.06954589998,"100,23%"]
[" 11423 ","ORSE","Guilhotina de bancada - (4kW) h","Equipamento","h","0,3333334","","18,43","","6,14","",6.1433345619999997,"0,00%",930626.21288050001,"100,23%"]
[" 00005069 ","SINAPI","PREGO DE ACO POLIDO COM CABECA 17 X 27 (2 1/2 X 11)","Material","KG","0,2106720","","28,94","","6,10","",6.0968476799999998,"0,00%",930632.30972819997,"100,24%"]
[" 00043459 ","SINAPI","FERRAMENTAS - FAMILIA CARPINTEIRO DE FORMAS - HORISTA (ENCARGOS COMPLEMENTARES - COLETADO CAIXA)","Equipamento","H","9,9818225","","0,59","","5,89","",5.8892752750000001,"0,00%",930638.19900350005,"100,24%"]
[" 00006193 ","SINAPI","TABUA  NAO  APARELHADA  *2,5 X 20* CM, EM MACARANDUBA, ANGELIM OU EQUIVALENTE DA REGIAO - BRUTA","Material","M","0,3426565","","16,85","","5,77","",5.7737620249999999,"0,00%",930643.97276549996,"100,24%"]
[" 11421 ","ORSE","Prensa excêntrica - (1kW) h","Equipamento","h","0,3333334","","16,05","","5,35","",5.3500010700000002,"0,00%",930649.32276659994,"100,24%"]
[" 00006114 ","SINAPI","AJUDANTE DE ARMADOR (HORISTA)","Mão de Obra","H","0,2844519","","17,95","","5,11","",5.1059116050000002,"0,00%",930654.4286782,"100,24%"]
[" 11422 ","ORSE","Máquina universal de corte de chapa, de bancada, 4kw - C-6A h","Equipamento","h","0,3333334","","14,68","","4,89","",4.8933343120000004,"0,00%",930659.32201250002,"100,24%"]
[" 00039017 ","SINAPI","ESPACADOR / DISTANCIADOR CIRCULAR COM ENTRADA LATERAL, EM PLASTICO, PARA VERGALHAO *4,2 A 12,5* MM, COBRIMENTO 20 MM","Material","UN","17,6325944","","0,26","","4,58","",4.5844745439999999,"0,00%",930663.90648699994,"100,24%"]
[" 158 ","ORSE","Almoço (Participação do empregador) un","Material","un","0,2476795","","16,98","","4,21","",4.2055979099999998,"0,00%",930668.11208490003,"100,24%"]
[" 54 ","ORSE","Encarregado de turma - SICRO h","Mão de Obra","h","0,1666666","","22,18","","3,70","",3.6966651879999999,"0,00%",930671.80875009997,"100,24%"]
[" 00005068 ","SINAPI","PREGO DE ACO POLIDO COM CABECA 17 X 21 (2 X 11)","Material","KG","0,1113820","","28,39","","3,16","",3.1621349799999998,"0,00%",930674.97088509996,"100,24%"]
[" 00040275 ","SINAPI","LOCACAO DE VIGA SANDUICHE METALICA VAZADA PARA TRAVAMENTO DE PILARES, ALTURA DE *8* CM, LARGURA DE *6* CM E EXTENSAO DE 2 M","Equipamento","MES","0,0852040","","36,40","","3,10","",3.1014255999999998,"0,00%",930678.07231069996,"100,24%"]
[" 11420 ","ORSE","Compressor de ar p/ pintura c/ filtro (2 kW) h","Equipamento","h","0,3333334","","7,94","","2,65","",2.6466671960000001,"0,00%",930680.71897789999,"100,24%"]
[" 00043469 ","SINAPI","FERRAMENTAS - FAMILIA TOPOGRAFO - HORISTA (ENCARGOS COMPLEMENTARES - COLETADO CAIXA)","Equipamento","H","29,4699300","","0,08","","2,36","",2.3575944,"0,00%",930683.07657230005,"100,24%"]
[" 00005318 ","SINAPI","DILUENTE AGUARRAS","Material","L","0,0803880","","29,17","","2,34","",2.3449179600000001,"0,00%",930685.42149029998,"100,24%"]
[" 10492 ","ORSE","Cesta Básica un","Material","un","0,0109485","","212,36","","2,33","",2.3250234600000002,"0,00%",930687.7465138,"100,24%"]
[" 00040287 ","SINAPI","LOCACAO DE BARRA DE ANCORAGEM DE 0,80 A 1,20 M DE EXTENSAO, COM ROSCA DE 5/8\", INCLUINDO PORCA E FLANGE","Equipamento","MES","0,1701911","","13,40","","2,28","",2.2805607399999999,"0,00%",930690.02707449999,"100,24%"]
[" 00004783/SINAPI ","ORSE","Pintor (horista)","Mão de Obra","h","0,1000000","","22,09","","2,21","",2.2090000000000001,"0,00%",930692.23607450002,"100,24%"]
[" 00003767 ","SINAPI","LIXA EM FOLHA PARA PAREDE OU MADEIRA, NUMERO 120, COR VERMELHA","Material","UN","1,5709780","","1,11","","1,74","",1.7437855799999999,"0,00%",930693.97986009996,"100,24%"]
[" 10761 ","ORSE","Refeição - café da manhã ( café com leite e dois pães com manteiga) un","Serviços","un","0,2476795","","6,06","","1,50","",1.5009377699999999,"0,00%",930695.4807979,"100,24%"]
[" 00040304 ","SINAPI","PREGO DE ACO POLIDO COM CABECA DUPLA 17 X 27 (2 1/2 X 11)","Material","KG","0,0422288","","35,04","","1,48","",1.479697152,"0,00%",930696.96049510001,"100,24%"]
[" 00040271 ","SINAPI","LOCACAO DE APRUMADOR METALICO DE PILAR, COM ALTURA E ANGULO REGULAVEIS, EXTENSAO DE *1,50* A *2,80* M","Equipamento","MES","0,0424936","","34,82","","1,48","",1.4796271519999999,"0,00%",930698.44012229994,"100,24%"]
[" 00043462 ","SINAPI","FERRAMENTAS - FAMILIA ENGENHEIRO CIVIL - HORISTA (ENCARGOS COMPLEMENTARES - COLETADO CAIXA)","Equipamento","H","120,0000000","","0,01","","1,20","",1.2,"0,00%",930699.64012230001,"100,24%"]
[" 2378 ","ORSE","Vale transporte un","Material","un","0,1973810","","5,46","","1,08","",1.0777002600000001,"0,00%",930700.71782260004,"100,24%"]
[" 941 ","ORSE","Fardamento com mangas curta un","Material","un","0,0036495","","230,98","","0,84","",0.84296150999999997,"0,00%",930701.56078409997,"100,24%"]
[" 10517 ","ORSE","Exames admissionais/demissionais (checkup) cj","Serviços","cj","0,0009732","","364,05","","0,35","",0.35429346,"0,00%",930701.91507760005,"100,24%"]
[" 00002692 ","SINAPI","DESMOLDANTE PROTETOR PARA FORMAS DE MADEIRA, DE BASE OLEOSA EMULSIONADA EM AGUA","Material","L","0,0240928","","10,32","","0,25","",0.24863769599999999,"0,00%",930702.16371530003,"100,24%"]
[" 11281 ","ORSE","Bolsa de lona para ferramentas 40 x 30 x 20cm un","Material","un","0,0005333","","433,81","","0,23","",0.23135087300000001,"0,00%",930702.39506620006,"100,24%"]
[" 10362 ","ORSE","Seguro de vida e acidente em grupo un","Serviços","un","0,0109485","","15,21","","0,17","",0.16652668500000001,"0,00%",930702.56159289996,"100,24%"]
[" 00012893/SINAPI ","ORSE","Bota de seguranca com biqueira de aco e colarinho acolchoado","Material","par","0,0019465","","78,63","","0,15","",0.15305329500000001,"0,00%",930702.71464619995,"100,24%"]
[" 11286 ","ORSE","Macariço de solda Ref. CG201 código 010414410 carbografite un","Material","un","0,0002000","","483,77","","0,10","",9.6754000000000007E-2,"0,00%",930702.81140020001,"100,24%"]
[" 10599 ","ORSE","Protetor solar fps 30 com 120ml un","Material","un","0,0043795","","21,84","","0,10","",9.5648280000000002E-2,"0,00%",930702.90704850003,"100,24%"]
[" 00012892/SINAPI ","ORSE","Luva raspa de couro, cano curto (punho *7* cm)","Material","par","0,0055960","","14,74","","0,08","",8.2485039999999996E-2,"0,00%",930702.98953350005,"100,24%"]
[" 11285 ","ORSE","Fonte inversora de solda WMI 140ED 220V - BAMBOZZI - WMI- 140ED un","Material","un","0,0000667","","1.018,12","","0,07","",6.7908603999999984E-2,"0,00%",930703.05744210002,"100,24%"]
[" 10596 ","ORSE","Protetor auricular un","Material","un","0,0109485","","5,94","","0,07","",6.5034090000000003E-2,"0,00%",930703.12247619999,"100,24%"]
[" 00002711/SINAPI ","ORSE","Carrinho de mao de aco capacidade 50 a 60 l, pneu com camara","Material","un","0,0002666","","223,28","","0,06","",5.9526448000000003E-2,"0,00%",930703.18200260005,"100,24%"]
[" 11282 ","ORSE","Esmerilhadeira angular elétrico portátil 4 1/2\" - 1000 watts  - ref. G1000kB2 Black e Decker un","Material","un","0,0001333","","439,28","","0,06","",5.8556023999999998E-2,"0,00%",930703.24055860005,"100,24%"]
[" 00014618 ","SINAPI","SERRA CIRCULAR DE BANCADA COM MOTOR ELETRICO, POTENCIA DE *1600* W, PARA DISCO DE DIAMETRO DE 10\" (250 MM)","Material","UN","0,0000328","","1.734,58","","0,06","",5.6894224E-2,"0,00%",930703.29745279998,"100,24%"]
[" 00013896 ","SINAPI","VIBRADOR DE IMERSAO, DIAMETRO DA PONTEIRA DE *45* MM, COM MOTOR ELETRICO TRIFASICO DE 2 HP (2 CV)","Equipamento","UN","0,0000138","","3.886,35","","0,05","",5.363163E-2,"0,00%",930703.35108439997,"100,24%"]
[" 00020247 ","SINAPI","PREGO DE ACO POLIDO COM CABECA 15 X 15 (1 1/4 X 13)","Material","KG","0,0016123","","31,44","","0,05","",5.0690711999999999E-2,"0,00%",930703.40177510004,"100,24%"]
[" 00005073 ","SINAPI","PREGO DE ACO POLIDO COM CABECA 17 X 24 (2 1/4 X 11)","Material","KG","0,0014332","","28,94","","0,04","",4.1476807999999997E-2,"0,00%",930703.44325190003,"100,24%"]
[" 11283 ","ORSE","Selador horizontal para fita de aço 1\" un","Material","un","0,0000667","","587,10","","0,04","",3.9159569999999991E-2,"0,00%",930703.48241149995,"100,24%"]
[" 11273 ","ORSE","Esquadro de alumínio para soldagem de peças, com duas morsas, 35 x 35 x 4,5cm, marca Black Jack un","Material","un","0,0001333","","265,64","","0,04","",3.5409811999999999E-2,"0,00%",930703.51782129996,"100,24%"]
[" 00012895/SINAPI ","ORSE","Capacete de seguranca aba frontal com suspensao de polietileno, sem jugular (classe b)","Material","un","0,0014598","","16,38","","0,02","",2.3911524E-2,"0,00%",930703.54173279996,"100,24%"]
[" 11284 ","ORSE","Cavalete de ferro nº 1 un","Material","un","0,0001333","","146,49","","0,02","",1.9527117E-2,"0,00%",930703.56125989999,"100,24%"]
[" 11277 ","ORSE","Alicate de pressão para solda de chapa 18\" (460mm), Ref.138 Z Gedore un","Material","un","0,0001333","","133,87","","0,02","",1.7844871000000002E-2,"0,00%",930703.57910480001,"100,24%"]
[" 1651 ","ORSE","Óculos branco proteção pr","Material","pr","0,0019465","","7,70","","0,01","",1.4988049999999999E-2,"0,00%",930703.59409290005,"100,24%"]
[" 11251 ","ORSE","Pincel de seda 2\" un","Material","un","0,0004500","","32,64","","0,01","",1.4688E-2,"0,00%",930703.60878090002,"100,24%"]
[" 11279 ","ORSE","Alicate para anéis de pistão capacidade 50-100mm. ref.44044101 Tramontina ou similar un","Material","un","0,0001333","","107,64","","0,01","",1.4348412E-2,"0,00%",930703.62312929996,"100,24%"]
[" 10788 ","ORSE","Pá quadrada un","Material","un","0,0002666","","44,77","","0,01","",1.1935682E-2,"0,00%",930703.63506500004,"100,24%"]
[" 11276 ","ORSE","Alicate de pressão para solda tipo U, para apertar chapas, tiras e qualquer tipo de perfil. Niquelado, mordentes reforçados em aço laminadao. Corpo em chapa dobrada  extra-reforçada e rebites de aço, 11\" (280mm). Ref. 138 Gedore. un","Material","un","0,0001333","","82,89","","0,01","",1.1049237E-2,"0,00%",930703.6461142,"100,24%"]
[" 00012894/SINAPI ","ORSE","Capa para chuva em pvc com forro de poliester, com capuz (amarela ou azul)","Material","un","0,0004865","","21,29","","0,01","",1.0357585000000001E-2,"0,00%",930703.65647179994,"100,24%"]
[" 11275 ","ORSE","Alicate de pressão 11\" un","Material","un","0,0001333","","75,33","","0,01","",1.0041489000000001E-2,"0,00%",930703.66651330004,"100,24%"]
[" 11280 ","ORSE","Chave Inglesa 15\" ref. 012418012 carbografite un","Material","un","0,0001333","","73,41","","0,01","",9.7855530000000007E-3,"0,00%",930703.67629890004,"100,24%"]
[" 4728 ","ORSE","Talhadeira chata 10\" Talhadeira chara 10\" un","Material","un","0,0004000","","22,54","","0,01","",9.0159999999999997E-3,"0,00%",930703.68531490001,"100,24%"]
[" 11272 ","ORSE","Alicate Climpador ( cripador ) un","Material","un","0,0000667","","124,50","","0,01","",8.304149999999998E-3,"0,00%",930703.69361910003,"100,24%"]
[" 11270 ","ORSE","Martelo de solda do tipo picareta, cabo de madeira, 300x0,4x0,5mm un","Material","un","0,0002000","","34,76","","0,01","",6.9519999999999998E-3,"0,00%",930703.70057109999,"100,24%"]
[" 10583 ","ORSE","Trincha 3\" un","Material","un","0,0004500","","14,53","","0,01","",6.5385E-3,"0,00%",930703.70710959996,"100,24%"]
[" 11278 ","ORSE","Alicate diagonal para corte rente 5\" a 8\" un","Material","un","0,0001333","","45,62","","0,01","",6.0811459999999999E-3,"0,00%",930703.71319070004,"100,24%"]
[" 4729 ","ORSE","Marreta 1 kg com cabo un","Material","un","0,0001333","","38,22","","0,01","",5.0947259999999999E-3,"0,00%",930703.71828539995,"100,24%"]
[" 11250 ","ORSE","Rolo lã de carneiro 20cm un","Material","un","0,0002300","","21,23","","0,00","",4.8828999999999999E-3,"0,00%",930703.7231683,"100,24%"]
[" 11274 ","ORSE","Grampo de de aperto rápido 16\" Ref. 60987 Beltools un","Material","un","0,0002000","","22,78","","0,00","",4.5560000000000002E-3,"0,00%",930703.7277243,"100,24%"]
[" 11252 ","ORSE","Escada de aluminio de abrir com 7 degraus un","Material","un","0,0000100","","326,43","","0,00","",3.2642999999999999E-3,"0,00%",930703.73098859994,"100,24%"]
[" 10586 ","ORSE","Torquesa un","Material","un","0,0000666","","44,77","","0,00","",2.9816820000000003E-3,"0,00%",930703.73397029995,"100,24%"]
[" 11271 ","ORSE","Talhadeira com punho de proteção 22 x225mm ref.207206BR Belzer un","Material","un","0,0000667","","35,44","","0,00","",2.3638479999999996E-3,"0,00%",930703.73633410002,"100,24%"]
[" 10585 ","ORSE","Arco de serra un","Material","un","0,0000666","","24,14","","0,00","",1.6077240000000003E-3,"0,00%",930703.73794180003,"100,24%"]
[" 4725 ","ORSE","Espátula un","Material","un","0,0000400","","24,00","","0,00","",9.6000000000000002E-4,"0,00%",930703.73890180001,"100,24%"]
[" 4174 ","ORSE","Desempenadeira de aço lisa, cabo madeira, ref:143, Atlas ou similar un","Material","un","0,0000500","","13,10","","0,00","",6.5499999999999998E-4,"0,00%",930703.73955679999,"100,24%"]
[]
[{"$nulls":11},"Totais por Tipo"]
[{"$nulls":11},"Equipamento",null,null,"R$ 143.829,10"]
[{"$nulls":11},"Equipamento para Aquisição Permanente",null,null,"R$ 151,68"]
[{"$nulls":11},"Mão de Obra",null,null,"R$ 209.413,98"]
[{"$nulls":11},"Material",null,null,"R$ 528.342,22"]
[{"$nulls":11},"Serviços",null,null,"R$ 12.723,79"]
[{"$nulls":11},"Taxas",null,null,"R$ 372,59"]
[{"$nulls":11},"Administração",null,null,"R$ 0,00"]
[{"$nulls":11},"Aluguel",null,null,"R$ 0,00"]
[{"$nulls":11},"Verba",null,null,"R$ 0,00"]
[{"$nulls":11},"Transporte",null,null,"R$ 0,00"]
[{"$nulls":11},"Franquia",null,null,"R$ 0,00"]
[{"$nulls":11},"Outros",null,null,"R$ 35.870,39"]
[]
[{"$nulls":10},"Total sem BDI",null,765839.39]
[{"$nulls":10},"Total do BDI",null,162610.26]
[{"$nulls":10},"Total Geral",null,928449.65]
[]
["_______________________________________________________________\nGRD / UEP 2\nSetor de Engenharia"]